Workbook

Sheet TDPrimas_ (hidden)
A3: periodo | B3: 2025-Q3
A4: Ramo_ | B4: 10 Total General
A6: jerarquia | B6: nombre_compania | C6: Suma de Prima_DirectaAct | D6: Suma de Prima_DirectaAnt | E6: Suma de Part_Mercado_Act | F6: Suma de Part_Mercado_Ant | G6: Suma de PD_IncreAbs | H6: Suma de PD_IncreRel | I6: Suma de Part_Operacion_Act | J6: Suma de Part_Cartera_Act | K6: Suma de Part_Sector_Act
A7: 1 | B7: G.N.P. | C7: 95200080.78 | D7: 84865140.39 | E7: 12.36024551 | F7: 12.36183784 | G7: 10334940.4 | H7: 12.17807494 | I7: 100 | J7: 100 | K7: 12.36024551
A8: 2 | B8: BBVA | C8: 72393915.93 | D8: 61339841.86 | E8: 9.39922075 | F8: 8.935037103 | G8: 11054074.07 | H8: 18.02103451 | I8: 100 | J8: 100 | K8: 9.39922075
A9: 3 | B9: Metlife México | C9: 66136633.36 | D9: 62258031 | E9: 8.586810211 | F9: 9.068784661 | G9: 3878602.352 | H9: 6.229882778 | I9: 100 | J9: 100 | K9: 8.586810211
A10: 4 | B10: Quálitas | C10: 50730778.69 | D10: 45799351.88 | E10: 6.586600291 | F10: 6.671339474 | G10: 4931426.809 | H10: 10.76745981 | I10: 100 | J10: 100 | K10: 6.586600291
A11: 5 | B11: AXA Seguros | C11: 50222142.31 | D11: 47053426.41 | E11: 6.52056179 | F11: 6.854013607 | G11: 3168715.899 | H11: 6.734293633 | I11: 100 | J11: 100 | K11: 6.52056179
A12: 5.1 | B12: TOTAL GRANDES | C12: 334683551.1 | D12: 301315791.5 | E12: 43.45343856 | F12: 43.89101268 | G12: 33367759.53 | H12: 11.07401619 | I12: 100 | J12: 100 | K12: 43.45343856
A13: 6 | B13: Banorte | C13: 45159030.64 | D13: 35723485.48 | E13: 5.863195717 | F13: 5.203643481 | G13: 9435545.16 | H13: 26.4127227 | I13: 100 | J13: 100 | K13: 5.863195717
A14: 7 | B14: Banamex Seguros | C14: 38955130.27 | D14: 44827465.71 | E14: 5.057716025 | F14: 6.529770165 | G14: -5872335.437 | H14: -13.09986042 | I14: 100 | J14: 100 | K14: 5.057716025
A15: 8 | B15: Monterrey New York Life | C15: 33270313.77 | D15: 30915868.76 | E15: 4.319631276 | F15: 4.503344418 | G15: 2354445.005 | H15: 7.615652089 | I15: 100 | J15: 100 | K15: 4.319631276
A16: 9 | B16: Mapfre México | C16: 30687810.65 | D16: 25680299.42 | E16: 3.98433353 | F16: 3.740707853 | G16: 5007511.223 | H16: 19.49942693 | I16: 100 | J16: 100 | K16: 3.98433353
A17: 10 | B17: Inbursa | C17: 24654610.77 | D17: 23848282.47 | E17: 3.201016635 | F17: 3.473848028 | G17: 806328.3072 | H17: 3.381074961 | I17: 100 | J17: 100 | K17: 3.201016635
A18: 11 | B18: Chubb Seguros México | C18: 24127131.33 | D18: 20570212.77 | E18: 3.132531656 | F18: 2.99634966 | G18: 3556918.56 | H18: 17.29159829 | I18: 100 | J18: 100 | K18: 3.132531656
A19: 12 | B19: Allianz México | C19: 23235788.47 | D19: 18450547.53 | E19: 3.01680469 | F19: 2.687589693 | G19: 4785240.94 | H19: 25.93549559 | I19: 100 | J19: 100 | K19: 3.01680469
A20: 13 | B20: Zurich Santander | C20: 19835739.91 | D20: 16146107.36 | E20: 2.57536142 | F20: 2.351914578 | G20: 3689632.549 | H20: 22.85152989 | I20: 100 | J20: 100 | K20: 2.57536142
A21: 14 | B21: Atlas | C21: 17981615.09 | D21: 17823957.29 | E21: 2.334632234 | F21: 2.596317742 | G21: 157657.7981 | H21: 0.8845274676 | I21: 100 | J21: 100 | K21: 2.334632234
A22: 15 | B22: Agroasemex | C22: 13598277.13 | D22: 6432910.424 | E22: 1.765524174 | F22: 0.9370466498 | G22: 7165366.71 | H22: 111.3860794 | I22: 100 | J22: 100 | K22: 1.765524174
A23: 15.1 | B23: TOTAL MEDIANAS | C23: 271505448 | D23: 240419137.2 | E23: 35.25074736 | F23: 35.02053227 | G23: 31086310.82 | H23: 12.9300484 | I23: 100 | J23: 100 | K23: 35.25074736
A24: 16 | B24: HSBC Seguros | C24: 12979804.62 | D24: 12695334.4 | E24: 1.685225165 | F24: 1.849259478 | G24: 284470.2131 | H24: 2.24074612 | I24: 100 | J24: 100 | K24: 1.685225165
A25: 17 | B25: ProFuturo G.N.P. | C25: 12182725.52 | D25: 8995707.534 | E25: 1.581736877 | F25: 1.310355197 | G25: 3187017.988 | H25: 35.42820813 | I25: 100 | J25: 100 | K25: 1.581736877
A26: 18 | B26: Pensiones Banorte | C26: 11966941.46 | D26: 13199642.62 | E26: 1.553720683 | F26: 1.922719279 | G26: -1232701.151 | H26: -9.338897929 | I26: 100 | J26: 100 | K26: 1.553720683
A27: 19 | B27: HDI Seguros | C27: 11052143.53 | D27: 9306186.595 | E27: 1.434948441 | F27: 1.355580973 | G27: 1745956.933 | H27: 18.76125 | I27: 100 | J27: 100 | K27: 1.434948441
A28: 20 | B28: Zurich Aseguradora Mexicana | C28: 10982728.37 | D28: 10496838.85 | E28: 1.425935964 | F28: 1.529016733 | G28: 485889.5128 | H28: 4.628912758 | I28: 100 | J28: 100 | K28: 1.425935964
A29: 21 | B29: Pensiones BBVA | C29: 9676186.363 | D29: 6921813.909 | E29: 1.256301866 | F29: 1.008262529 | G29: 2754372.454 | H29: 39.79263948 | I29: 100 | J29: 100 | K29: 1.256301866
A30: 22 | B30: GMX Seguros | C30: 8451044.793 | D30: 8783487.936 | E30: 1.097236343 | F30: 1.279442337 | G30: -332443.1424 | H30: -3.784864793 | I30: 100 | J30: 100 | K30: 1.097236343
A31: 23 | B31: AIG Seguros | C31: 6300133.655 | D31: 5387062.674 | E31: 0.8179740827 | F31: 0.7847037652 | G31: 913070.9812 | H31: 16.94932909 | I31: 100 | J31: 100 | K31: 0.8179740827
A32: 24 | B32: Afirme | C32: 5593472.962 | D32: 5391455.186 | E32: 0.7262252145 | F32: 0.7853435982 | G32: 202017.776 | H32: 3.746999076 | I32: 100 | J32: 100 | K32: 0.7262252145
A33: 25 | B33: Seguros SURA | C33: 4871025.241 | D33: 4592296.013 | E33: 0.6324266471 | F33: 0.6689344807 | G33: 278729.2282 | H33: 6.069496118 | I33: 100 | J33: 100 | K33: 0.6324266471
A34: 26 | B34: Patrimonial Vida | C34: 4625465.06 | D34: 2704976.959 | E34: 0.6005444879 | F34: 0.3940191033 | G34: 1920488.101 | H34: 70.99831645 | I34: 100 | J34: 100 | K34: 0.6005444879
A35: 27 | B35: Hir Seguros | C35: 4515434.181 | D35: 3240513.884 | E35: 0.5862586945 | F35: 0.4720278192 | G35: 1274920.297 | H35: 39.34315182 | I35: 100 | J35: 100 | K35: 0.5862586945
A36: 28 | B36: BUPA México | C36: 4375142.857 | D36: 3560915.634 | E36: 0.5680440544 | F36: 0.5186989785 | G36: 814227.2222 | H36: 22.86567012 | I36: 100 | J36: 100 | K36: 0.5680440544
A37: 29 | B37: Ve Por Más | C37: 3740005.272 | D37: 3728743.961 | E37: 0.4855813462 | F37: 0.543145607 | G37: 11261.31039 | H37: 0.3020135066 | I37: 100 | J37: 100 | K37: 0.4855813462
A38: 30 | B38: Cardif Vida | C38: 3667211.957 | D38: 2528072.369 | E38: 0.4761302697 | F38: 0.3682503855 | G38: 1139139.588 | H38: 45.05961151 | I38: 100 | J38: 100 | K38: 0.4761302697
A39: 31 | B39: FM Global | C39: 3623624.725 | D39: 3245561.499 | E39: 0.4704711475 | F39: 0.4727630775 | G39: 378063.2257 | H39: 11.64862308 | I39: 100 | J39: 100 | K39: 0.4704711475
A40: 32 | B40: ANA | C40: 3347262.784 | D40: 2784750.469 | E40: 0.4345898604 | F40: 0.4056392715 | G40: 562512.3149 | H40: 20.19973858 | I40: 100 | J40: 100 | K40: 0.4345898604
A41: 33 | B41: Plan Seguro | C41: 3324020.051 | D41: 2340553.693 | E41: 0.431572154 | F41: 0.3409355723 | G41: 983466.3579 | H41: 42.01853436 | I41: 100 | J41: 100 | K41: 0.431572154
A42: 34 | B42: Seguros Azteca | C42: 2729565.32 | D42: 2821244.02 | E42: 0.3543914797 | F42: 0.4109550861 | G42: -91678.70061 | H42: -3.249584224 | I42: 100 | J42: 100 | K42: 0.3543914797
A43: 35 | B43: General de Seguros | C43: 2630736.925 | D43: 2219668.69 | E43: 0.3415601543 | F43: 0.3233269193 | G43: 411068.2355 | H43: 18.51935099 | I43: 100 | J43: 100 | K43: 0.3415601543
A44: 36 | B44: Seguros Argos | C44: 2607218.612 | D44: 2553070.5 | E44: 0.3385066682 | F44: 0.3718917257 | G44: 54148.11197 | H44: 2.120901556 | I44: 100 | J44: 100 | K44: 0.3385066682
A45: 37 | B45: Cardif Seguros Generales | C45: 2456286.892 | D45: 0 | E45: 0.3189105386 | F45: 0 | G45: 0 | H45: 0 | I45: 100 | J45: 100 | K45: 0.3189105386
A46: 38 | B46: El Potosí | C46: 2435676.414 | D46: 1891357.541 | E46: 0.3162345895 | F46: 0.2755036415 | G46: 544318.8732 | H46: 28.77926893 | I46: 100 | J46: 100 | K46: 0.3162345895
A47: 39 | B47: HDI Global Seguros | C47: 2295531.777 | D47: 2103649.437 | E47: 0.2980389944 | F47: 0.3064270334 | G47: 191882.3401 | H47: 9.12140287 | I47: 100 | J47: 100 | K47: 0.2980389944
A48: 40 | B48: Seguros Azteca Daños | C48: 1992442.888 | D48: 1756185.315 | E48: 0.25868763 | F48: 0.2558138474 | G48: 236257.5731 | H48: 13.45288399 | I48: 100 | J48: 100 | K48: 0.25868763
A49: 41 | B49: Thona | C49: 1952625.48 | D49: 2019824.973 | E49: 0.2535179606 | F49: 0.2942167851 | G49: -67199.49262 | H49: -3.32699583 | I49: 100 | J49: 100 | K49: 0.2535179606
A50: 42 | B50: Prudential | C50: 1828165.49 | D50: 1558409.868 | E50: 0.2373587723 | F50: 0.2270049869 | G50: 269755.622 | H50: 17.30967106 | I50: 100 | J50: 100 | K50: 0.2373587723
A51: 43 | B51: Insignia Life | C51: 1793771.253 | D51: 1484029.323 | E51: 0.2328932171 | F51: 0.2161703822 | G51: 309741.93 | H51: 20.8716853 | I51: 100 | J51: 100 | K51: 0.2328932171
A52: 44 | B52: BBVA Salud | C52: 1738518.108 | D52: 1674526.547 | E52: 0.2257194581 | F52: 0.2439190643 | G52: 63991.56063 | H52: 3.821471851 | I52: 100 | J52: 100 | K52: 0.2257194581
A53: 45 | B53: El Águila | C53: 1354763.155 | D53: 1282462.571 | E53: 0.1758948635 | F53: 0.1868092631 | G53: 72300.58405 | H53: 5.637636971 | I53: 100 | J53: 100 | K53: 0.1758948635
A54: 46 | B54: Swiss Re Corporate Solutions | C54: 1319552.848 | D54: 1289086.576 | E54: 0.1713233543 | F54: 0.1877741454 | G54: 30466.27257 | H54: 2.363400034 | I54: 100 | J54: 100 | K54: 0.1713233543
A55: 47 | B55: Assurant Vida | C55: 1204700.143 | D55: 1097528.577 | E55: 0.1564115221 | F55: 0.1598709461 | G55: 107171.5666 | H55: 9.764808764 | I55: 100 | J55: 100 | K55: 0.1564115221
A56: 48 | B56: Tokio Marine | C56: 1046151.054 | D56: 835205.6391 | E56: 0.135826396 | F56: 0.1216598078 | G56: 210945.415 | H56: 25.25670387 | I56: 100 | J56: 100 | K56: 0.135826396
A57: 49 | B57: La Latinoamericana | C57: 1045705.941 | D57: 1151107.15 | E57: 0.135768605 | F57: 0.167675442 | G57: -105401.2098 | H57: -9.156507262 | I57: 100 | J57: 100 | K57: 0.135768605
A58: 50 | B58: Pan-American México | C58: 992599.6586 | D58: 996928.2811 | E58: 0.1288735826 | F58: 0.1452170549 | G58: -4328.62255 | H58: -0.434195983 | I58: 100 | J58: 100 | K58: 0.1288735826
A59: 51 | B59: Berkley Seguros | C59: 791062.9977 | D59: 673928.0374 | E59: 0.1027071909 | F59: 0.0981673874 | G59: 117134.9603 | H59: 17.38092998 | I59: 100 | J59: 100 | K59: 0.1027071909
A60: 52 | B60: Sompo Japan | C60: 758794.0596 | D60: 667096.8993 | E60: 0.09851757262 | F60: 0.0971723331 | G60: 91697.1604 | H60: 13.74570329 | I60: 100 | J60: 100 | K60: 0.09851757262
A61: 53 | B61: AXA Salud | C61: 736798.9613 | D61: 632166.9565 | E61: 0.09566185219 | F61: 0.09208428063 | G61: 104632.0047 | H61: 16.55132456 | I61: 100 | J61: 100 | K61: 0.09566185219
A62: 54 | B62: Atradius | C62: 678248.511 | D62: 605124.6715 | E62: 0.08805998951 | F62: 0.08814517983 | G62: 73123.8395 | H62: 12.08409489 | I62: 100 | J62: 100 | K62: 0.08805998951
A63: 55 | B63: Skandia Life | C63: 672062.1935 | D63: 372806.8057 | E63: 0.08725679269 | F63: 0.05430471517 | G63: 299255.3878 | H63: 80.27090259 | I63: 100 | J63: 100 | K63: 0.08725679269
A64: 56 | B64: PREVEM Seguros | C64: 512811.0614 | D64: 478354.1568 | E64: 0.06658051725 | F64: 0.0696792168 | G64: 34456.90455 | H64: 7.203220471 | I64: 100 | J64: 100 | K64: 0.06658051725
A65: 57 | B65: Solunion Crédito | C65: 491847.0151 | D65: 525328.1582 | E65: 0.06385866285 | F65: 0.07652166099 | G65: -33481.14307 | H65: -6.373376822 | I65: 100 | J65: 100 | K65: 0.06385866285
A66: 58 | B66: General de Salud | C66: 463598.8334 | D66: 1101163.058 | E66: 0.06019107708 | F66: 0.160400361 | G66: -637564.2242 | H66: -57.89916578 | I66: 100 | J66: 100 | K66: 0.06019107708
A67: 59 | B67: Primero Seguros | C67: 431846.402 | D67: 1478140.942 | E67: 0.05606851916 | F67: 0.2153126543 | G67: -1046294.54 | H67: -70.78449087 | I67: 100 | J67: 100 | K67: 0.05606851916
A68: 60 | B68: SHF Cred Vivienda | C68: 356133.1991 | D68: 351623.4394 | E68: 0.04623834077 | F68: 0.05121905081 | G68: 4509.75973 | H68: 1.282553785 | I68: 100 | J68: 100 | K68: 0.04623834077
A69: 61 | B69: Coface | C69: 291154.4163 | D69: 305414.1726 | E69: 0.0378018594 | F69: 0.04448800129 | G69: -14259.75627 | H69: -4.668989703 | I69: 100 | J69: 100 | K69: 0.0378018594
A70: 62 | B70: Crabi | C70: 278462.2399 | D70: 169473.8678 | E70: 0.03615397826 | F70: 0.0246863254 | G70: 108988.3721 | H70: 64.30983936 | I70: 100 | J70: 100 | K70: 0.03615397826
A71: 63 | B71: MediAccess | C71: 144964.7039 | D71: 206857.0049 | E71: 0.01882140557 | F71: 0.0301317212 | G71: -61892.301 | H71: -29.92033121 | I71: 100 | J71: 100 | K71: 0.01882140557
A72: 64 | B72: Genworth Seg. de Crédito | C72: 127853.1262 | D72: 117391.5825 | E72: 0.01659973413 | F72: 0.01709978562 | G72: 10461.54367 | H72: 8.91166423 | I72: 100 | J72: 100 | K72: 0.01659973413
A73: 65 | B73: Virginia Surety | C73: 112129.7639 | D73: 95399.78593 | E73: 0.01455830079 | F73: 0.01389636166 | G73: 16729.978 | H73: 17.53670392 | I73: 100 | J73: 100 | K73: 0.01455830079
A74: 66 | B74: Tláloc Seguros | C74: 111365.2858 | D74: 93944.2697 | E74: 0.01445904523 | F74: 0.01368434463 | G74: 17421.0161 | H74: 18.54399013 | I74: 100 | J74: 100 | K74: 0.01445904523
A75: 67 | B75: Odontoprev | C75: 97783.69961 | D75: 103938.1117 | E75: 0.01269568812 | F75: 0.01514009257 | G75: -6154.41206 | H75: -5.921227508 | I75: 100 | J75: 100 | K75: 0.01269568812
A76: 68 | B76: SPP Seguros | C76: 87030.09637 | D76: 71137.01631 | E76: 0.01129950048 | F76: 0.01036213757 | G76: 15893.08006 | H76: 22.34150501 | I76: 100 | J76: 100 | K76: 0.01129950048
A77: 69 | B77: Momento Seguros | C77: 77172.75721 | D77: 21436.39614 | E77: 0.01001967875 | F77: 0.003122521823 | G77: 55736.36107 | H77: 260.0080755 | I77: 100 | J77: 100 | K77: 0.01001967875
A78: 70 | B78: Quálitas Salud | C78: 49328.3722 | D78: 15298.1782 | E78: 0.006404519683 | F78: 0.002228401406 | G78: 34030.194 | H78: 222.4460557 | I78: 100 | J78: 100 | K78: 0.006404519683
A79: 71 | B79: SPT | C79: 44129.07303 | D79: 43281.45902 | E79: 0.005729471787 | F79: 0.006304571881 | G79: 847.61401 | H79: 1.958376703 | I79: 100 | J79: 100 | K79: 0.005729471787
A80: 72 | B80: Banamex Pensiones | C80: 9930.38735 | D80: 6656.59334 | E80: 0.001289305899 | F80: 0.0009696293089 | G80: 3273.79401 | H80: 49.18122293 | I80: 100 | J80: 100 | K80: 0.001289305899
A81: 150.1 | B81: TOTAL RESTO | C81: 164022892.5 | D81: 144774160.8 | E81: 21.29581409 | F81: 21.08845505 | G81: 19248731.75 | H81: 13.29569562 | I81: 100 | J81: 100 | K81: 21.29581409
A82: 200 | B82: Patria | C82: 0 | D82: 0 | E82: 0 | F82: 0 | G82: 0 | H82: 0 | I82: 0 | J82: 0 | K82: 0
A83: 201.1 | B83: TOTAL | C83: 770211891.6 | D83: 686509089.5 | E83: 100 | F83: 100 | G83: 83702802.1 | H83: 12.19252642 | I83: 100 | J83: 100 | K83: 100

Sheet TDPrimas Vida (hidden)
A2: periodo | B2: 2025-Q3
A3: Ramo_ | B3: 12 Vida Total
A4: subramo | B4: (Varios elementos)
A6: Jerarquia 2 | B6: nombre_compania | C6: Suma de Prima_DirectaAct | D6: Suma de Prima_DirectaAnt | E6: Suma de Part_Cartera_Act | F6: Suma de Prima_Directa_Act1anio | G6: Suma de Prima_Directa_Ant1anio | H6: Suma de PD_IncreRel1anio | I6: Suma de PrimaDirectaAct_Renov | J6: Suma de PrimaDirectaAnt_Renov | K6: Suma de PD_PartMerc_Renovacion | L6: Suma de PrimaDirectaAct_Unica | M6: Suma de PrimaDirectaAnt_Unica | N6: Suma de PD_PartMerc_Unicas
A7: 1 | B7: BBVA | C7: 56228654.27 | D7: 47267011.29 | E7: 77.67041408 | F7: 49674455.03 | G7: 41148639.24 | H7: 20.71955709 | I7: 4519824.909 | J7: 4086716.372 | K7: 1.449307351 | L7: 2034374.329 | M7: 2031655.684 | N7: 0.6523336033
A8: 2 | B8: Metlife México | C8: 39129855.74 | D8: 39663455.94 | E8: 59.16517633 | F8: 6936564.031 | G8: 7755131.062 | H8: -10.55516695 | I8: 25978981.07 | J8: 25949915.17 | K8: 8.330306812 | L8: 6214310.642 | M8: 5958409.71 | N8: 1.992653759
A9: 3 | B9: Banamex Seguros | C9: 38266807.85 | D9: 44150506.9 | E9: 98.23303783 | F9: 26663118.36 | G9: 30980312.04 | H9: -13.93528144 | I9: 11603689.49 | J9: 13170194.86 | K9: 3.720788485 | L9: 0 | M9: 0 | N9: 0
A10: 4 | B10: G.N.P. | C10: 30445615.76 | D10: 27770715.72 | E10: 31.98066169 | F10: 8097578.105 | G10: 8012105.836 | H10: 1.066789058 | I10: 15492083.7 | J10: 14075475.56 | K10: 4.967624021 | L10: 6855953.958 | M10: 5683134.33 | N10: 2.198400307
A11: 5 | B11: Banorte | C11: 29563865.44 | D11: 22830842.83 | E11: 65.46612055 | F11: 5852113.592 | G11: 3558903.361 | H11: 64.43586687 | I11: 8832334.878 | J11: 10482700.72 | K11: 2.832137997 | L11: 14879416.97 | M11: 8789238.749 | N11: 4.771168978
A12: 5.1 | B12: TOTAL GRANDES | C12: 193634799.1 | D12: 181682532.7 | E12: 60.92118058 | F12: 97223829.12 | G12: 91455091.53 | H12: 6.307727101 | I12: 66426914.05 | J12: 67765002.69 | K12: 21.30016466 | L12: 29984055.9 | M12: 22462438.47 | N12: 9.614556646
A13: 6 | B13: Monterrey New York Life | C13: 21337894.79 | D13: 19843719.74 | E13: 64.13493705 | F13: 2121513.165 | G13: 2132155.532 | H13: -0.4991365391 | I13: 14189062.94 | J13: 12812119.17 | K13: 4.549803064 | L13: 5027318.683 | M13: 4899445.032 | N13: 1.612038092
A14: 7 | B14: Zurich Santander | C14: 15562563.94 | D14: 12172910.21 | E14: 78.45718898 | F14: 8433793.991 | G14: 6561559.395 | H14: 28.53337877 | I14: 2672325.279 | J14: 1042592.659 | K14: 0.8568961737 | L14: 4456444.673 | M14: 4568758.151 | N14: 1.428984121
A15: 8 | B15: Allianz México | C15: 15054124.88 | D15: 11330570.54 | E15: 64.7885261 | F15: 7359559.367 | G15: 4823953.166 | H15: 52.56282791 | I15: 7694565.509 | J15: 6506617.372 | K15: 2.467305831 | L15: 0 | M15: 0 | N15: 0
A16: 9 | B16: HSBC Seguros | C16: 12635644.15 | D16: 12348930.74 | E16: 97.34849266 | F16: 9007583.858 | G16: 9691792.491 | H16: -7.059670685 | I16: 3628060.288 | J16: 2657138.245 | K16: 1.163357995 | L16: 0 | M16: 0 | N16: 0
A17: 10 | B17: Mapfre México | C17: 8712961.614 | D17: 6620840.573 | E17: 28.39225553 | F17: 8016465.476 | G17: 5958559.392 | H17: 34.5369736 | I17: 678432.1205 | J17: 649554.4216 | K17: 0.2175430861 | L17: 18064.01737 | M17: 12726.75926 | N17: 0.005792329058
A18: 11 | B18: AXA Seguros | C18: 5107757.637 | D18: 4864113.059 | E18: 10.17033006 | F18: 1035477.46 | G18: 975787.5501 | H18: 6.117101014 | I18: 4044028.269 | J18: 3865383.177 | K18: 1.296740474 | L18: 28251.90731 | M18: 22942.33264 | N18: 0.009059133431
A19: 12 | B19: Inbursa | C19: 4831500.992 | D19: 4347948.743 | E19: 19.59674414 | F19: 2800672.189 | G19: 2453837.008 | H19: 14.13440177 | I19: 2030828.803 | J19: 1894111.736 | K19: 0.6511967104 | L19: 0 | M19: 0 | N19: 0
A20: 13 | B20: Patrimonial Vida | C20: 4625465.06 | D20: 2704976.959 | E20: 100 | F20: 4625465.06 | G20: 2704976.959 | H20: 70.99831645 | I20: 0 | J20: 0 | K20: 0 | L20: 0 | M20: 0 | N20: 0
A21: 14 | B21: Hir Seguros | C21: 4432707.575 | D21: 3169415.947 | E21: 98.16791471 | F21: 918803.4404 | G21: 846949.6512 | H21: 8.483832431 | I21: 3513904.135 | J21: 2322466.296 | K21: 1.126753181 | L21: 0 | M21: 0 | N21: 0
A22: 15 | B22: Cardif Vida | C22: 3609583.886 | D22: 2488578.933 | E22: 98.42855903 | F22: 2717912.81 | G22: 1640134.741 | H22: 65.71277607 | I22: 172396.2489 | J22: 466899.9537 | K22: 0.0552798296 | L22: 719274.8262 | M22: 381544.2388 | N22: 0.23063953
A23: 15.1 | B23: TOTAL MEDIANAS | C23: 95910204.52 | D23: 79892005.43 | E23: 46.17853957 | F23: 47037246.82 | G23: 37789705.88 | H23: 24.47105823 | I23: 38623603.59 | J23: 32216883.04 | K23: 12.38487634 | L23: 10249354.11 | M23: 9885416.514 | N23: 3.286513205
A24: 16 | B24: Atlas | C24: 2615143.821 | D24: 2689124.636 | E24: 14.54343121 | F24: 1885007.596 | G24: 2019159.802 | H24: -6.643961795 | I24: 654749.2422 | J24: 588315.5582 | K24: 0.2099490376 | L24: 75386.98253 | M24: 81649.27626 | N24: 0.02417326116
A25: 17 | B25: Seguros Argos | C25: 2607218.612 | D25: 2553070.5 | E25: 100 | F25: 1488028.641 | G25: 739442.1638 | H25: 101.2366502 | I25: 884377.6879 | J25: 1631523.427 | K25: 0.2835806939 | L25: 234812.2836 | M25: 182104.9094 | N25: 0.07529388316
A26: 18 | B26: Seguros Azteca | C26: 2355271.024 | D26: 2404909.523 | E26: 86.28740289 | F26: 2243811.488 | G26: 2300793.277 | H26: -2.476614899 | I26: 6553.54553 | J26: 7030.48114 | K26: 0.002101431339 | L26: 104905.991 | M26: 97085.76502 | N26: 0.03363869771
A27: 19 | B27: Afirme | C27: 2234954.24 | D27: 2131429.121 | E27: 39.9564681 | F27: 2234954.24 | G27: 2131429.121 | H27: 4.857075371 | I27: 0 | J27: 0 | K27: 0 | L27: 0 | M27: 0 | N27: 0
A28: 20 | B28: Thona | C28: 1848324.338 | D28: 1916423.751 | E28: 94.65841541 | F28: 1848128.05 | G28: 1912984.862 | H28: -3.390346293 | I28: 0 | J28: 0 | K28: 0 | L28: 196.288 | M28: 3438.889 | N28: 6.294085434e-05
A29: 21 | B29: Prudential | C29: 1828165.49 | D29: 1558409.868 | E29: 100 | F29: 363594.4171 | G29: 332712.2322 | H29: 9.28195056 | I29: 1453163.774 | J29: 1210725.95 | K29: 0.4659651607 | L29: 11407.29888 | M29: 14971.68658 | N29: 0.003657814728
A30: 22 | B30: Insignia Life | C30: 1793771.253 | D30: 1484029.323 | E30: 100 | F30: 518992.9527 | G30: 489787.2318 | H30: 5.962940428 | I30: 1275785.602 | J30: 995041.1295 | K30: 0.4090878492 | L30: -1007.30188 | M30: -799.03871 | N30: -0.0003229970294
A31: 23 | B31: Assurant Vida | C31: 1204700.143 | D31: 1097528.577 | E31: 100 | F31: 1198208.891 | G31: 1090377.486 | H31: 9.889364542 | I31: 6491.25284 | J31: 7151.09067 | K31: 0.002081456836 | L31: 0 | M31: 0 | N31: 0
A32: 24 | B32: Chubb Seguros México | C32: 917106.3982 | D32: 870755.2526 | E32: 3.801141486 | F32: 917106.3982 | G32: 870755.2526 | H32: 5.323096871 | I32: 0 | J32: 0 | K32: 0 | L32: 0 | M32: 0 | N32: 0
A33: 25 | B33: Seguros SURA | C33: 847765.2948 | D33: 905501.8417 | E33: 17.40424762 | F33: 724403.6331 | G33: 744922.0002 | H33: -2.754431619 | I33: 123312.1749 | J33: 160522.7903 | K33: 0.0395407444 | L33: 49.4868 | M33: 57.05114 | N33: 1.586822155e-05
A34: 26 | B34: Zurich Aseguradora Mexicana | C34: 760246.3463 | D34: 644093.175 | E34: 6.922199303 | F34: 351483.669 | G34: 229505.1891 | H34: 53.14846278 | I34: 187483.9105 | J34: 176307.0682 | K34: 0.06011777339 | L34: 221278.7668 | M34: 238280.9178 | N34: 0.07095428466
A35: 27 | B35: Skandia Life | C35: 672062.1935 | D35: 372806.8057 | E35: 100 | F35: 469419.8705 | G35: 183756.1993 | H35: 155.4579776 | I35: 202642.323 | J35: 189050.6064 | K35: 0.06497840384 | L35: 0 | M35: 0 | N35: 0
A36: 28 | B36: Ve Por Más | C36: 636010.1397 | D36: 779967.1006 | E36: 17.00559474 | F36: 33084.34531 | G36: 48955.91467 | H36: -32.42012629 | I36: 285815.1194 | J36: 442580.8 | K36: 0.09164823016 | L36: 317110.675 | M36: 288430.3859 | N36: 0.1016833266
A37: 29 | B37: General de Seguros | C37: 518961.6451 | D37: 306912.4557 | E37: 19.72685448 | F37: 354658.3641 | G37: 118193.474 | H37: 200.0659445 | I37: 164303.2809 | J37: 188718.9816 | K37: 0.05268477377 | L37: 0 | M37: 0 | N37: 0
A38: 30 | B38: Pan-American México | C38: 470659.5128 | D38: 500563.6504 | E38: 47.41685217 | F38: 105598.5521 | G38: 99484.13397 | H38: 6.146123885 | I38: 365060.9607 | J38: 327327.4283 | K38: 0.1170588561 | L38: 0 | M38: 73752.08814 | N38: 0
A39: 31 | B39: Agroasemex | C39: 423253.4697 | D39: 380561.0972 | E39: 3.112552168 | F39: 423253.4697 | G39: 380561.0972 | H39: 11.2182703 | I39: 0 | J39: 0 | K39: 0 | L39: 0 | M39: 0 | N39: 0
A40: 32 | B40: El Potosí | C40: 383626.2236 | D40: 332799.4902 | E40: 15.75029513 | F40: 104075.2243 | G40: 97085.66264 | H40: 7.199375726 | I40: 277042.6358 | J40: 234714.6276 | K40: 0.08883528378 | L40: 2508.36358 | M40: 999.2 | N40: 0.0008043209301
A41: 33 | B41: La Latinoamericana | C41: 138626.8943 | D41: 178789.6308 | E41: 13.25677601 | F41: 3687.03489 | G41: 33123.76595 | H41: -88.86891395 | I41: 134939.8594 | J41: 145665.8649 | K41: 0.04326922702 | L41: 0 | M41: 0 | N41: 0
A42: 34 | B42: Tokio Marine | C42: 58373.12848 | D42: 62526.04998 | E42: 5.579799232 | F42: 22455.17171 | G42: 29238.92474 | H42: -23.20110295 | I42: 35917.95677 | J42: 33287.12524 | K42: 0.01151729543 | L42: 0 | M42: 0 | N42: 0
A43: 35 | B43: HDI Seguros | C43: 1791.57347 | D43: -6822.10046 | E43: 0.01621019005 | F43: 0 | G43: 0 | H43: 0 | I43: 1791.57347 | J43: -6822.10046 | K43: 0.0005744781383 | L43: 0 | M43: 0 | N43: 0
A44: 150.1 | B44: TOTAL RESTO | C44: 22316031.74 | D44: 21163379.75 | E44: 19.76875327 | F44: 15289952.01 | G44: 13852267.79 | H44: 10.37869207 | I44: 6059430.9 | J44: 6331140.828 | K44: 1.942990696 | L44: 966648.8342 | M44: 979971.1305 | N44: 0.309961401
A45: 201.1 | B45: TOTAL | C45: 311861035.3 | D45: 282737917.9 | E45: 48.84853889 | F45: 159551027.9 | G45: 143097065.2 | H45: 11.49846275 | I45: 111109948.5 | J45: 106313026.5 | K45: 35.62803171 | L45: 41200058.84 | M45: 33327826.12 | N45: 13.21103125

Sheet TD Siniestros (hidden)
P2: anio_reporte
A3: periodo | B3: 2025-Q3 | P3: mes_reporte
A4: Ramo_ | B4: 10 Total General | P4: numero_compania
P5: nombre_compania
A6: Jerarquia 2 | B6: nombre_compania | C6: Suma de CostoSin_Act | D6: Suma de SIN_IncreRel2 | E6: Suma de IncResvDivAct | F6: Suma de SINvsPRIM_ACT | G6: Suma de SINvsPRIM_ANT | H6: Suma de Costo_Sin_RetAct | I6: Suma de SIN_IncreRel | J6: Suma de Prima_DevengadaAct | K6: Suma de IncrDevengada | L6: Suma de SINvsPDEV_ACT | M6: Suma de SINvsPDEV_ANT | P6: ramo
A7: 1 | B7: G.N.P. | C7: 56894917.28 | D7: 12.51272791 | E7: 307796.9439 | F7: 59.76351785 | G7: 59.58575985 | H7: 54143174.55 | I7: 12.51272791 | J7: 74619806.52 | K7: 14.19678386 | L7: 72.55871742 | M7: 74.83323314 | P7: gestor_cia_id
A8: 2 | B8: BBVA | C8: 32555258.48 | D8: 11.43466697 | E8: 0 | F8: 44.96960561 | G8: 47.62754285 | H8: 31882790.59 | I8: 11.43466697 | J8: 33255778.47 | K8: 25.46694206 | L8: 95.87143066 | M8: 108.2696844 | P8: ofuscacion
A9: 3 | B9: Metlife México | C9: 48946410.45 | D9: 7.80955798 | E9: 89924.31593 | F9: 74.00801638 | G9: 72.9236169 | H9: 46932346.49 | I9: 7.80955798 | J9: 60733640.9 | K9: 10.27141291 | L9: 77.27570058 | M9: 79.22686488 | P9: fecha_ofuscada
A10: 4 | B10: Quálitas | C10: 29050534.72 | D10: 6.5079566 | E10: 173534.2754 | F10: 57.26412144 | G10: 59.55424808 | H10: 29034384.41 | I10: 6.5079566 | J10: 48584938.11 | K10: 15.5460173 | L10: 59.76005227 | M10: 64.89816941 | P10: jerarquia
A11: 5 | B11: AXA Seguros | C11: 32562888.4 | D11: 10.22454764 | E11: 258017.2013 | F11: 64.83771281 | G11: 62.78463034 | H11: 28703684.65 | I11: 10.22454764 | J11: 40611676.78 | K11: 7.294745309 | L11: 70.67840317 | M11: 74.91656448 | P11: Prima_DirectaAct
A12: 5.1 | B12: TOTAL GRANDES | C12: 200010009.3 | D12: 9.895135094 | E12: 829272.7365 | F12: 59.76093198 | G12: 60.40200707 | H12: 190696380.7 | I12: 9.895135094 | J12: 257805840.8 | K12: 13.65898064 | L12: 73.9689916 | M12: 77.97947312 | P12: Prima_DirectaAnt
A13: 6 | B13: Banorte | C13: 17162737.25 | D13: 3.684847609 | E13: -39156.17179 | F13: 38.00510551 | G13: 46.33588201 | H13: 14526189.83 | I13: 3.684847609 | J13: 21567861.62 | K13: 7.774469646 | L13: 67.35108972 | M13: 70.34601198 | P13: Prima_directa_Anual_act
A14: 7 | B14: Banamex Seguros | C14: 24629771.14 | D14: -8.254328234 | E14: 0 | F14: 63.22600122 | G14: 59.88673063 | H14: 24599300.08 | I14: -8.254328234 | J14: 14909352.83 | K14: 5.660984792 | L14: 164.9924068 | M14: 189.986768 | P14: Prima_directa_Anual_ant
A15: 8 | B15: Monterrey New York Life | C15: 22822147.27 | D15: 9.98318044 | E15: 11743.40035 | F15: 68.59612876 | G15: 67.11950952 | H15: 21701316.89 | I15: 9.98318044 | J15: 26573989.64 | K15: -0.006644035503 | L15: 81.66375163 | M15: 73.50027222 | P15: CostoSin_Act
A16: 9 | B16: Mapfre México | C16: 6624038.084 | D16: -61.75466479 | E16: 169630.6916 | F16: 21.58524165 | G16: 67.44414692 | H16: 8918574.665 | I16: -61.75466479 | J16: 15239619.84 | K16: 8.864461806 | L16: 58.52229097 | M16: 59.2142233 | P16: CostoSin_Ant
A17: 10 | B17: Inbursa | C17: 16402511.08 | D17: 42.69380796 | E17: 370711.1405 | F17: 66.52918283 | G17: 48.20011839 | H17: 10969829.56 | I17: 42.69380796 | J17: 16430126.64 | K17: 16.0966086 | L17: 66.7665551 | M17: 68.37047785 | P17: cto_sin_anual_act
A18: 11 | B18: Chubb Seguros México | C18: 9308810.027 | D18: -1.574713073 | E18: 91032.37624 | F18: 38.58233249 | G18: 45.9778537 | H18: 4515078.316 | I18: -1.574713073 | J18: 9101931.95 | K18: 13.20455327 | L18: 49.60571383 | M18: 59.02851393 | P18: cto_sin_anual_ant
A19: 12 | B19: Allianz México | C19: 8777972.648 | D19: -7.536196104 | E19: 17670.99308 | F19: 37.7778127 | G19: 51.45329702 | H19: 9145364.418 | I19: -7.536196104 | J19: 6555246.1 | K19: 252.3603004 | L19: 139.5121446 | M19: 399.0411823 | P19: pib_act
A20: 13 | B20: Zurich Santander | C20: 5444206.36 | D20: 11.46912747 | E20: 0 | F20: 27.44644962 | G20: 30.24907795 | H20: 5275289.045 | I20: 11.46912747 | J20: 10667753.93 | K20: 5.742039 | L20: 49.45079422 | M20: 46.33410903 | P20: pib_ant
A21: 14 | B21: Atlas | C21: 8984849.23 | D21: 12.28372125 | E21: 22250.38661 | F21: 49.9668644 | G21: 44.8941614 | H21: 6803326.199 | I21: 12.28372125 | J21: 9983512.814 | K21: 8.811221773 | L21: 68.14561494 | M21: 69.68458911 | P21: inpc_act
A22: 15 | B22: Agroasemex | C22: 3677143.192 | D22: -43.80357383 | E22: 8494.59238 | F22: 27.04124321 | G22: 101.7171869 | H22: 2641517.967 | I22: -43.80357383 | J22: 3868242.314 | K22: 33.57285458 | L22: 68.2872931 | M22: 70.44515414 | P22: inpc_ant
A23: 15.1 | B23: TOTAL MEDIANAS | C23: 123834186.3 | D23: -5.717906274 | E23: 652377.409 | F23: 45.6102031 | G23: 54.63139649 | H23: 109095787 | I23: -5.717906274 | J23: 134897637.7 | K23: 11.56925464 | L23: 80.87301516 | M23: 85.73534435 | P23: IncResvDivAct
A24: 16 | B24: HSBC Seguros | C24: 3675388.326 | D24: 38.06925379 | E24: 0 | F24: 28.31620687 | G24: 20.96824628 | H24: 3635179.254 | I24: 38.06925379 | J24: 3462454.152 | K24: 28.04043405 | L24: 104.9885167 | M24: 95.78904675 | P24: IncResvDivAnt
A25: 17 | B25: ProFuturo G.N.P. | C25: 5539033.894 | D25: 15.4203773 | E25: 0 | F25: 45.46629474 | G25: 53.34776208 | H25: 5539033.894 | I25: 15.4203773 | J25: -405797.4997 | K25: -65.94389815 | L25: -1364.97487 | M25: -402.7514403 | P25: Costo_Sin_RetAct
A26: 18 | B26: Pensiones Banorte | C26: 11714029.66 | D26: 7.602655041 | E26: 0 | F26: 97.88657944 | G26: 82.47477878 | H26: 11714029.66 | I26: 7.602655041 | J26: -3823.87341 | K26: -99.81285304 | L26: -306339.3687 | M26: -532.7980248 | P26: Costo_Sin_RetAnt
A27: 19 | B27: HDI Seguros | C27: 6061159.94 | D27: 15.58278987 | E27: 0 | F27: 54.84148776 | G27: 56.34959708 | H27: 5584548.079 | I27: 15.58278987 | J27: 9543148.075 | K27: 15.64734801 | L27: 58.51892935 | M27: 61.65218851 | P27: Prima_DevengadaAct
A28: 20 | B28: Zurich Aseguradora Mexicana | C28: 4426779.626 | D28: 1.978478012 | E28: 20171.25163 | F28: 40.30673871 | G28: 41.35431643 | H28: 3457419.73 | I28: 1.978478012 | J28: 6489781.619 | K28: 3.690389921 | L28: 53.27482391 | M28: 58.55190928 | P28: Prima_DevengadaAnt
A29: 21 | B29: Pensiones BBVA | C29: 8163299.608 | D29: 12.75356279 | E29: 0 | F29: 84.3648448 | G29: 104.5961125 | H29: 8163299.608 | I29: 12.75356279 | J29: -623647.5069 | K29: -67.98650935 | L29: -1308.960513 | M29: -371.6458631 | P29: Prima_Directa_Act1anio
A30: 22 | B30: GMX Seguros | C30: 3448249.229 | D30: -14.49287511 | E30: 0 | F30: 40.80263817 | G30: 45.91233015 | H30: 1008643.975 | I30: -14.49287511 | J30: 2735568.46 | K30: 4.827028163 | L30: 36.87145799 | M30: 45.29556346 | P30: Prima_Directa_Ant1anio
A31: 23 | B31: AIG Seguros | C31: 2362947.009 | D31: 87.14234233 | E31: 10046.13086 | F31: 37.50629968 | G31: 23.43850424 | H31: 554873.8799 | I31: 87.14234233 | J31: 1054993.881 | K31: 17.73589939 | L31: 52.59498563 | M31: 65.82323794 | P31: PrimaDirectaAct_Renov
A32: 24 | B32: Afirme | C32: 2017664.183 | D32: -34.7977151 | E32: 17031.64716 | F32: 36.07176073 | G32: 57.39579424 | H32: 2055624.919 | I32: -34.7977151 | J32: 3181869.644 | K32: -6.666597219 | L32: 64.60430972 | M32: 75.12770175 | P32: PrimaDirectaAnt_Renov
A33: 25 | B33: Seguros SURA | C33: 2586905.136 | D33: 35.34303048 | E33: -6216.84322 | F33: 53.10802157 | G33: 41.62121291 | H33: 2129993.52 | I33: 35.34303048 | J33: 3486937.751 | K33: -3.030351704 | L33: 61.08493103 | M33: 48.352646 | P33: PrimaDirectaAct_Unica
A34: 26 | B34: Patrimonial Vida | C34: 1946418.365 | D34: 109.3888879 | E34: 4903.45086 | F34: 42.08049006 | G34: 34.3652093 | H34: 893082.2164 | I34: 109.3888879 | J34: 1571421.42 | K34: 44.92789679 | L34: 56.83276331 | M34: 66.05290289 | P34: PrimaDirectaAnt_Unica
A35: 27 | B35: Hir Seguros | C35: 2155179.825 | D35: -5.666564257 | E35: 74877.08288 | F35: 47.7291826 | G35: 70.50241184 | H35: 1231604.727 | I35: -5.666564257 | J35: 2456131.836 | K35: 23.46564656 | L35: 50.14408059 | M35: 57.20311054 | P35: ramo_raiz
A36: 28 | B36: BUPA México | C36: 2937393.384 | D36: 18.40273673 | E36: 0 | F36: 67.13822795 | G36: 69.66885729 | H36: 2717975.453 | I36: 18.40273673 | J36: 4320560.399 | K36: 15.66895515 | L36: 62.90793791 | M36: 57.44778543 | P36: operacion
A37: 29 | B37: Ve Por Más | C37: 2605447.822 | D37: 27.89761413 | E37: -6420.89346 | F37: 69.66428208 | G37: 54.63329249 | H37: 1791479.134 | I37: 27.89761413 | J37: 2434507.657 | K37: 8.755303979 | L37: 73.5869172 | M37: 74.44355731 | P37: ramo_complemento
A38: 30 | B38: Cardif Vida | C38: 851556.7675 | D38: 38.02738262 | E38: 0 | F38: 23.22082218 | G38: 24.40387828 | H38: 740188.6573 | I38: 38.02738262 | J38: 3094939.206 | K38: 34.57753055 | L38: 23.91609683 | M38: 20.84048725 | P38: subramo
A39: 31 | B39: FM Global | C39: 4591850.646 | D39: 21.47700291 | E39: 0 | F39: 126.7198177 | G39: 116.4672558 | H39: 15336.07065 | I39: 21.47700291 | J39: 46588.20866 | K39: -1320.384947 | L39: 32.91835229 | M39: 107.0462474 | P39: periodo
A40: 32 | B40: ANA | C40: 1835327.897 | D40: -1.324412888 | E40: 10970.27701 | F40: 54.83070841 | G40: 66.7909562 | H40: 1530251.736 | I40: -1.324412888 | J40: 2435498.977 | K40: 10.37649699 | L40: 62.83113854 | M40: 68.26730789 | P40: PD_Cartera_act
A41: 33 | B41: Plan Seguro | C41: 1952883.048 | D41: 33.04985583 | E41: 0 | F41: 58.75063984 | G41: 62.71092674 | H41: 1474667.065 | I41: 33.04985583 | J41: 2415451.497 | K41: 49.94784102 | L41: 61.05140455 | M41: 67.85308557 | P41: PD_Cartera_ant
A42: 34 | B42: Seguros Azteca | C42: 513247.2142 | D42: -44.27083849 | E42: 0 | F42: 18.80325818 | G42: 32.64400536 | H42: 317997.6541 | I42: -44.27083849 | J42: 2559407.334 | K42: 1.096313865 | L42: 12.4246598 | M42: 27.68132102 | P42: PD_Sector_Total_act
A43: 35 | B43: General de Seguros | C43: 1732145.886 | D43: 18.2976066 | E43: 41903.40204 | F43: 65.84261123 | G43: 65.96603071 | H43: 1569690.883 | I43: 18.2976066 | J43: 2419400.149 | K43: 22.10718814 | L43: 64.87934143 | M43: 65.95960415 | P43: PD_Sector_Total_ant
A44: 36 | B44: Seguros Argos | C44: 2198505.174 | D44: -1.475841096 | E44: -14954.29151 | F44: 84.32377566 | G44: 87.40211628 | H44: 1866102.686 | I44: -1.475841096 | J44: 2380319.052 | K44: 2.424797527 | L44: 78.3971663 | M44: 73.84314944 | P44: PD_Sector_SinPension_act
A45: 37 | B45: Cardif Seguros Generales | C45: 293532.6303 | D45: 0 | E45: 0 | F45: 11.95025839 | G45: 0 | H45: 262763.7847 | I45: 0 | J45: 2034903.372 | K45: 0 | L45: 12.91283843 | M45: 0 | P45: PD_Sector_SinPension_ant
A46: 38 | B46: El Potosí | C46: 1126492.292 | D46: 11.96059535 | E46: 1291.64917 | F46: 46.24966952 | G46: 53.19727544 | H46: 1022078.424 | I46: 11.96059535 | J46: 1835661.001 | K46: 28.89015278 | L46: 55.67904003 | M46: 58.71095531 | P46: PD_Mercado_Act
A47: 39 | B47: HDI Global Seguros | C47: 1776902.68 | D47: 97.65950278 | E47: 0 | F47: 77.4070173 | G47: 42.73390452 | H47: 19389.58199 | I47: 97.65950278 | J47: -7011.76531 | K47: -34.6319244 | L47: -276.5292495 | M47: 1.22319118 | P47: PD_Mercado_Ant
A48: 40 | B48: Seguros Azteca Daños | C48: 504172.8234 | D48: 68.56004508 | E48: 7972.24138 | F48: 25.30425472 | G48: 17.03156091 | H48: 114291.0452 | I48: 68.56004508 | J48: 360816.0412 | K48: 7.72339015 | L48: 31.67571067 | M48: 27.87807867 | P48: CS_Mercado_Act
A49: 41 | B49: Thona | C49: 1733506.023 | D49: -7.095814884 | E49: 5154.13614 | F49: 88.77821378 | G49: 92.37965567 | H49: 872073.581 | I49: -7.095814884 | J49: 1627642.318 | K49: -10.08075277 | L49: 53.57894491 | M49: 55.89996665 | P49: CS_Mercado_Ant
A50: 42 | B50: Prudential | C50: 231226.2573 | D50: -4.314815559 | E50: 0 | F50: 12.64799377 | G50: 15.5063921 | H50: 249869.1586 | I50: -4.314815559 | J50: 1275138.248 | K50: -28.26619837 | L50: 19.59545634 | M50: 27.45990416 | P50: PD_Operacion_act
A51: 43 | B51: Insignia Life | C51: 851617.9688 | D51: 15.74297295 | E51: 33200.29402 | F51: 47.47639742 | G51: 49.58013452 | H51: 756941.2178 | I51: 15.74297295 | J51: 1203964.707 | K51: -5.361752549 | L51: 62.87071484 | M51: 55.37808978 | P51: PD_Operacion_ant
A52: 44 | B52: BBVA Salud | C52: 1307899.767 | D52: 13.37104986 | E52: 0 | F52: 75.23072445 | G52: 68.89381858 | H52: 1157388.809 | I52: 13.37104986 | J52: 1381727.754 | K52: 20.44599365 | L52: 83.76388221 | M52: 89.4315891 | P52: Part_Mercado_Act
A53: 45 | B53: El Águila | C53: 942654.7362 | D53: 82.05328074 | E53: 0 | F53: 69.58077747 | G53: 40.37471273 | H53: 561586.7368 | I53: 82.05328074 | J53: 1057382.274 | K53: -1.134777127 | L53: 53.11104137 | M53: 49.87701579 | P53: Part_Mercado_Ant
A54: 46 | B54: Swiss Re Corporate Solutions | C54: 555122.7988 | D54: 225.6023001 | E54: 0 | F54: 42.06900842 | G54: 13.22572579 | H54: 4072.48959 | I54: 225.6023001 | J54: 8052.76426 | K54: -214.0213052 | L54: 50.57256687 | M54: -39.48441392 | P54: PD_IncreAbs
A55: 47 | B55: Assurant Vida | C55: 178849.3358 | D55: 10.20405063 | E55: -938.99445 | F55: 14.84596285 | G55: 14.78679109 | H55: 28943.11816 | I55: 10.20405063 | J55: 111063.3406 | K55: 9.136483225 | L55: 26.06001045 | M55: 19.15999189 | P55: PD_IncreRel
A56: 48 | B56: Tokio Marine | C56: 404088.4182 | D56: -17.0397907 | E56: 1963.65391 | F56: 38.62620189 | G56: 58.31941327 | H56: 84959.98446 | I56: -17.0397907 | J56: 173865.0793 | K56: -4.134022581 | L56: 48.86546787 | M56: 44.73013489 | P56: Part_Operacion_Act
A57: 49 | B57: La Latinoamericana | C57: 571422.3422 | D57: -16.75922172 | E57: 8623.23447 | F57: 54.64464913 | G57: 59.63556431 | H57: 370949.1057 | I57: -16.75922172 | J57: 760484.6361 | K57: -11.4039076 | L57: 48.77798815 | M57: 51.65773063 | P57: Part_Operacion_Ant
A58: 50 | B58: Pan-American México | C58: 1026881.068 | D58: 140.6789871 | E58: 10761.29733 | F58: 103.4536995 | G58: 42.79746601 | H58: 940244.9089 | I58: 140.6789871 | J58: 1246544.287 | K58: 73.33993348 | L58: 75.42811905 | M58: 48.72637872 | P58: Part_Cartera_Act
A59: 51 | B59: Berkley Seguros | C59: 399937.6034 | D59: 116.9132774 | E59: 5748.25775 | F59: 50.5569853 | G59: 27.35851868 | H59: 31096.71984 | I59: 116.9132774 | J59: 27398.97163 | K59: 4.183403238 | L59: 113.4959379 | M59: 58.76902789 | P59: Part_Cartera_Ant
A60: 52 | B60: Sompo Japan | C60: 131354.6868 | D60: -3.485684099 | E60: 1608.00521 | F60: 17.31097985 | G60: 20.40163222 | H60: 38841.26211 | I60: -3.485684099 | J60: 74370.05921 | K60: 164.6263098 | L60: 52.22701518 | M60: 31.47145816 | P60: Part_Sector_Act
A61: 53 | B61: AXA Salud | C61: 482046.3032 | D61: 4.745541884 | E61: 0 | F61: 65.42440048 | G61: 72.7983301 | H61: 96189.4579 | I61: 4.745541884 | J61: 59019.54432 | K61: -6.970531694 | L61: 162.9789911 | M61: 174.2029492 | P61: Part_SectorSinPen_Act
A62: 54 | B62: Atradius | C62: 347401.8917 | D62: 149.7195778 | E62: 1452.11603 | F62: 51.22044296 | G62: 22.98977532 | H62: 39032.09627 | I62: 149.7195778 | J62: 173546.5196 | K62: 12.53306648 | L62: 22.49085511 | M62: 31.94788322 | P62: Part_Sector_Ant
A63: 55 | B63: Skandia Life | C63: 74462.12409 | D63: -12.87271456 | E63: 0 | F63: 11.07964781 | G63: 22.9243698 | H63: 59648.02442 | I63: -12.87271456 | J63: 189255.5907 | K63: -24.97210623 | L63: 31.5171796 | M63: 30.26802029 | P63: Part_SectorSinPen_Ant
A64: 56 | B64: PREVEM Seguros | C64: 393521.34 | D64: 15.14529237 | E64: 0 | F64: 76.7380756 | G64: 71.44511658 | H64: 279968.5815 | I64: 15.14529237 | J64: 339771.4728 | K64: -25.89207462 | L64: 82.39908405 | M64: 70.55570568 | P64: PD_PartMerc_1anio
A65: 57 | B65: Solunion Crédito | C65: 552327.5526 | D65: 207.9966619 | E65: 769.00382 | F65: 112.2966157 | G65: 34.13658077 | H65: 23433.79211 | I65: 207.9966619 | J65: 21505.25964 | K65: -3.313520302 | L65: 108.9677247 | M65: 23.18705687 | P65: PD_PartMerc_Renovacion
A66: 58 | B66: General de Salud | C66: 678238.5626 | D66: -8.362223226 | E66: 0 | F66: 146.2985913 | G66: 67.2134676 | H66: 284923.4198 | I66: -8.362223226 | J66: 205301.0301 | K66: -52.5188912 | L66: 138.7832392 | M66: 95.97843351 | P66: PD_PartMerc_Unicas
A67: 59 | B67: Primero Seguros | C67: 825054.7942 | D67: -11.01728925 | E67: 0 | F67: 191.0528351 | G67: 62.72798166 | H67: 686881.9994 | I67: -11.01728925 | J67: 745872.3652 | K67: -29.48144364 | L67: 92.0910911 | M67: 76.58881648 | P67: PDanio1_IncreAbs1anio
A68: 60 | B68: SHF Cred Vivienda | C68: 168492.119 | D68: 91.88734767 | E68: 0 | F68: 47.31154507 | G68: 24.97212123 | H68: 164245.1275 | I68: 91.88734767 | J68: 363300.2456 | K68: 22.88813046 | L68: 45.20919802 | M68: 26.32766265 | P68: PD_IncreRel1anio
A69: 61 | B69: Coface | C69: 125599.2027 | D69: 36.28856861 | E69: -3785.3339 | F69: 43.1383471 | G69: 30.17437378 | H69: 20107.24116 | I69: 36.28856861 | J69: 53859.89429 | K69: -3.538029429 | L69: 37.3324928 | M69: 37.19920289 | P69: PD_IncreAbsRenov
A70: 62 | B70: Crabi | C70: 177404.4252 | D70: 79.72323493 | E70: 0 | F70: 63.70861101 | G70: 58.24484321 | H70: 178868.5895 | I70: 79.72323493 | J70: 228825.3478 | K70: 97.90940518 | L70: 78.16817114 | M70: 78.97981051 | P70: PD_IncreRelRenov
A71: 63 | B71: MediAccess | C71: 211895.2242 | D71: 19.81662477 | E71: 0 | F71: 146.1702183 | G71: 85.49364921 | H71: 202870.5154 | I71: 19.81662477 | J71: 235033.8871 | K71: -7.01806586 | L71: 86.31543214 | M71: 68.17168548 | P71: PD_IncreAbsUni
A72: 64 | B72: Genworth Seg. de Crédito | C72: 112869.9392 | D72: 81.28592192 | E72: 0 | F72: 88.28093809 | G72: 53.03679285 | H72: 117160.0036 | I72: 81.28592192 | J72: 153477.4441 | K72: -0.3467687753 | L72: 76.33695247 | M72: 42.78514144 | P72: PD_IncreRelUnica
A73: 65 | B73: Virginia Surety | C73: 28931.92198 | D73: 2.695135829 | E73: 0 | F73: 25.80217862 | G73: 29.53112633 | H73: 23247.22694 | I73: 2.695135829 | J73: 81657.37197 | K73: 28.40989326 | L73: 28.46923233 | M73: 27.63381356 | P73: SIN_IncreRel
A74: 66 | B74: Tláloc Seguros | C74: 28463.91749 | D74: -49.92485265 | E74: 0 | F74: 25.55905755 | G74: 60.50651524 | H74: 4381.76139 | I74: -49.92485265 | J74: 22959.61974 | K74: 70.66571915 | L74: 19.08464269 | M74: 60.25016859 | P74: SINvsPRIM_ACT
A75: 67 | B75: Odontoprev | C75: 25030.07847 | D75: -4.328773015 | E75: 0 | F75: 25.5973936 | G75: 25.17132314 | H75: 24933.07847 | I75: -4.328773015 | J75: 86446.32826 | K75: -9.865259544 | L75: 28.84226429 | M75: 27.19650885 | P75: SINvsPRIM_ANT
A76: 68 | B76: SPP Seguros | C76: 5438.36973 | D76: 76.91323355 | E76: 0 | F76: 6.248837996 | G76: 4.321283545 | H76: 6021.235 | I76: 76.91323355 | J76: 76038.13001 | K76: -2.707538265 | L76: 7.918704733 | M76: 3.601202622 | P76: PartSIN_Merc_Act
A77: 69 | B77: Momento Seguros | C77: 38436.47156 | D77: 377.8042862 | E77: 0 | F77: 49.80575134 | G77: 37.52681424 | H77: 13585.94237 | I77: 377.8042862 | J77: 22022.35899 | K77: 494.3353577 | L77: 61.69158525 | M77: 80.65570557 | P77: IncrSinRet
A78: 70 | B78: Quálitas Salud | C78: 65378.91155 | D78: 100.8905164 | E78: 0 | F78: 132.5381492 | G78: 212.7347981 | H78: 45317.25041 | I78: 100.8905164 | J78: 88355.41191 | K78: 99.29373699 | L78: 51.28972796 | M78: 57.6566704 | P78: IncrDevengada
A79: 71 | B79: SPT | C79: 38978.43303 | D79: 21.7759942 | E79: 0 | F79: 88.32823885 | G79: 73.95385198 | H79: 38978.43303 | I79: 21.7759942 | J79: 43659.37392 | K79: 13.88421965 | L79: 89.27849745 | M79: 83.49274485 | P79: SINvsPDEV_ACT
A80: 72 | B80: Banamex Pensiones | C80: 611948.5066 | D80: 1.996502535 | E80: 0 | F80: 6162.383048 | G80: 9013.17022 | H80: 611948.5066 | I80: 1.996502535 | J80: 91601.06631 | K80: 686.8321516 | L80: 668.0582784 | M80: 5153.605462 | P80: SINvsPDEV_ANT
A81: 150.1 | B81: TOTAL RESTO | C81: 90342994.17 | D81: 14.7981722 | E81: 226130.7751 | F81: 55.0795031 | G81: 54.35862347 | H81: 67428255.02 | I81: 14.7981722 | J81: 71509221.79 | K81: 21.3312309 | L81: 94.29309022 | M81: 104.097692 | P81: size_compania
A82: 200 | B82: Patria | C82: 0 | D82: 0 | E82: 0 | F82: 0 | G82: 0 | H82: 5129395.501 | I82: 0 | J82: 10599441.16 | K82: 32.36670054 | L82: 48.39307491 | M82: 49.24400898 | P82: anio_anterior
A83: 201.1 | B83: TOTAL | C83: 414187189.8 | D83: 5.648581219 | E83: 1707780.921 | F83: 53.7757459 | G83: 57.10665229 | H83: 367220422.7 | I83: 5.648581219 | J83: 464212700.3 | K83: 14.14958303 | L83: 79.1060698 | M83: 84.07062454 | P83: num_trimeste
P84: fecha_carga
P85: Ramo_
P86: Jerarquia 2

Sheet TD Operación (hidden)
C1: Ramo_ | D1: Suma de Prima_DirectaAct
B4: periodo | C4: 2025-Q3
B6: nombre_compania | C6: Ramo_ | D6: Suma de Prima_DirectaAct
A7: =B7&"|"&C7 -> Afirme|10 Total General | B7: Afirme | C7: 10 Total General | D7: 5593472.962
A8: =B8&"|"&C8 -> Afirme|11 Total General Sin Pensiones | B8: Afirme | C8: 11 Total General Sin Pensiones | D8: 5593472.962
A9: Afirme|12 Vida Total | B9: Afirme | C9: 12 Vida Total | D9: 2234954.24
A10: Afirme|13 Vida Individual | B10: Afirme | C10: 13 Vida Individual | D10: 1300322.111
A11: Afirme|14 Vida Gpo y Col | B11: Afirme | C11: 14 Vida Gpo y Col | D11: 934632.1285
A12: Afirme|38 Daños Total | B12: Afirme | C12: 38 Daños Total | D12: 3358518.722
A13: Afirme|39 Automoviles Total | B13: Afirme | C13: 39 Automoviles Total | D13: 1851896.334
A14: Afirme|41 Automoviles Residentes | B14: Afirme | C14: 41 Automoviles Residentes | D14: 1165570.206
A15: Afirme|42 Camiones | B15: Afirme | C15: 42 Camiones | D15: 603123.8818
A16: Afirme|44 Otros Automoviles y Obligatorios | B16: Afirme | C16: 44 Otros Automoviles y Obligatorios | D16: 83202.24583
A17: Afirme|46 Daños Sin Autos Total | B17: Afirme | C17: 46 Daños Sin Autos Total | D17: 1506622.388
A18: Afirme|46 Responsabilidad Civil y Riesgos Profesionales | B18: Afirme | C18: 46 Responsabilidad Civil y Riesgos Profesionales | D18: 368223.1828
A19: Afirme|47 RC General | B19: Afirme | C19: 47 RC General | D19: 210521.7545
A20: Afirme|48 RC Aviones y Barcos | B20: Afirme | C20: 48 RC Aviones y Barcos | D20: 43420.66335
A21: Afirme|49 RC Viajero | B21: Afirme | C21: 49 RC Viajero | D21: 4010.99318
A22: Afirme|50 RC Otros | B22: Afirme | C22: 50 RC Otros | D22: 110269.7717
A23: Afirme|51 Maritimo y Transportes | B23: Afirme | C23: 51 Maritimo y Transportes | D23: 118826.6642
A24: Afirme|52 MyT Carga | B24: Afirme | C24: 52 MyT Carga | D24: 58804.96477
A25: Afirme|53 MyT Cascos | B25: Afirme | C25: 53 MyT Cascos | D25: 60021.69938
A26: Afirme|54 Incendio | B26: Afirme | C26: 54 Incendio | D26: 353837.4658
A27: Afirme|55 Riesgos Catastroficos | B27: Afirme | C27: 55 Riesgos Catastroficos | D27: 323544.429
A28: Afirme|56 Terremoto y Erupcion Volcanica | B28: Afirme | C28: 56 Terremoto y Erupcion Volcanica | D28: 116849.83
A29: Afirme|57 Huracan y Otros Riesgos Hidrometeorologicos | B29: Afirme | C29: 57 Huracan y Otros Riesgos Hidrometeorologicos | D29: 206694.599
A30: Afirme|63 Diversos | B30: Afirme | C30: 63 Diversos | D30: 342190.6464
A31: Afirme|64 Miscelaneos | B31: Afirme | C31: 64 Miscelaneos | D31: 156980.2091
A32: Afirme|65 Tecnicos | B32: Afirme | C32: 65 Tecnicos | D32: 185210.4373
A33: Agroasemex|10 Total General | B33: Agroasemex | C33: 10 Total General | D33: 13598277.13
A34: Agroasemex|11 Total General Sin Pensiones | B34: Agroasemex | C34: 11 Total General Sin Pensiones | D34: 13598277.13
A35: Agroasemex|12 Vida Total | B35: Agroasemex | C35: 12 Vida Total | D35: 423253.4697
A36: Agroasemex|14 Vida Gpo y Col | B36: Agroasemex | C36: 14 Vida Gpo y Col | D36: 423253.4697
A37: Agroasemex|28 Accidentes y Enfermedades Total | B37: Agroasemex | C37: 28 Accidentes y Enfermedades Total | D37: 0
A38: Agroasemex|29 Accidentes Personales | B38: Agroasemex | C38: 29 Accidentes Personales | D38: 0
A39: Agroasemex|31 AP Gpo y Col | B39: Agroasemex | C39: 31 AP Gpo y Col | D39: 0
A40: Agroasemex|38 Daños Total | B40: Agroasemex | C40: 38 Daños Total | D40: 13175023.66
A41: Agroasemex|46 Daños Sin Autos Total | B41: Agroasemex | C41: 46 Daños Sin Autos Total | D41: 13175023.66
A42: Agroasemex|46 Responsabilidad Civil y Riesgos Profesionales | B42: Agroasemex | C42: 46 Responsabilidad Civil y Riesgos Profesionales | D42: 1217044.949
A43: Agroasemex|47 RC General | B43: Agroasemex | C43: 47 RC General | D43: 1125328.92
A44: Agroasemex|48 RC Aviones y Barcos | B44: Agroasemex | C44: 48 RC Aviones y Barcos | D44: 72138.82076
A45: Agroasemex|49 RC Viajero | B45: Agroasemex | C45: 49 RC Viajero | D45: 18733.52245
A46: Agroasemex|50 RC Otros | B46: Agroasemex | C46: 50 RC Otros | D46: 843.68602
A47: Agroasemex|51 Maritimo y Transportes | B47: Agroasemex | C47: 51 Maritimo y Transportes | D47: 1923264.832
A48: Agroasemex|52 MyT Carga | B48: Agroasemex | C48: 52 MyT Carga | D48: 48471.67426
A49: Agroasemex|53 MyT Cascos | B49: Agroasemex | C49: 53 MyT Cascos | D49: 1874793.157
A50: Agroasemex|54 Incendio | B50: Agroasemex | C50: 54 Incendio | D50: 2878785.68
A51: Agroasemex|55 Riesgos Catastroficos | B51: Agroasemex | C51: 55 Riesgos Catastroficos | D51: 5922390.879
A52: Agroasemex|56 Terremoto y Erupcion Volcanica | B52: Agroasemex | C52: 56 Terremoto y Erupcion Volcanica | D52: 1945339.38
A53: Agroasemex|57 Huracan y Otros Riesgos Hidrometeorologicos | B53: Agroasemex | C53: 57 Huracan y Otros Riesgos Hidrometeorologicos | D53: 3977051.655
A54: Agroasemex|58 Otros Riesgos Catastroficos | B54: Agroasemex | C54: 58 Otros Riesgos Catastroficos | D54: -0.15603
A55: Agroasemex|59 Agricola y de Animales | B55: Agroasemex | C55: 59 Agricola y de Animales | D55: 97759.63644
A56: Agroasemex|60 AyA Agricola | B56: Agroasemex | C56: 60 AyA Agricola | D56: 583.97959
A57: Agroasemex|61 AyA Otros | B57: Agroasemex | C57: 61 AyA Otros | D57: 0
A58: Agroasemex|62 AyA Pecuario | B58: Agroasemex | C58: 62 AyA Pecuario | D58: 97175.65685
A59: Agroasemex|63 Diversos | B59: Agroasemex | C59: 63 Diversos | D59: 1135777.688
A60: Agroasemex|64 Miscelaneos | B60: Agroasemex | C60: 64 Miscelaneos | D60: 460619.974
A61: Agroasemex|65 Tecnicos | B61: Agroasemex | C61: 65 Tecnicos | D61: 675157.7138
A62: AIG Seguros|10 Total General | B62: AIG Seguros | C62: 10 Total General | D62: 6300133.655
A63: AIG Seguros|11 Total General Sin Pensiones | B63: AIG Seguros | C63: 11 Total General Sin Pensiones | D63: 6300133.655
A64: AIG Seguros|28 Accidentes y Enfermedades Total | B64: AIG Seguros | C64: 28 Accidentes y Enfermedades Total | D64: 204303.858
A65: AIG Seguros|29 Accidentes Personales | B65: AIG Seguros | C65: 29 Accidentes Personales | D65: 204303.858
A66: AIG Seguros|30 AP Individual | B66: AIG Seguros | C66: 30 AP Individual | D66: 75091.72497
A67: AIG Seguros|31 AP Gpo y Col | B67: AIG Seguros | C67: 31 AP Gpo y Col | D67: 129212.133
A68: AIG Seguros|38 Daños Total | B68: AIG Seguros | C68: 38 Daños Total | D68: 6095829.797
A69: AIG Seguros|39 Automoviles Total | B69: AIG Seguros | C69: 39 Automoviles Total | D69: 496073.1688
A70: AIG Seguros|41 Automoviles Residentes | B70: AIG Seguros | C70: 41 Automoviles Residentes | D70: 361433.6801
A71: AIG Seguros|42 Camiones | B71: AIG Seguros | C71: 42 Camiones | D71: 56075.62721
A72: =B72&"|"&C72 -> AIG Seguros|43 Automoviles Turistas | B72: AIG Seguros | C72: 43 Automoviles Turistas | D72: 65797.8956
A73: AIG Seguros|44 Otros Automoviles y Obligatorios | B73: AIG Seguros | C73: 44 Otros Automoviles y Obligatorios | D73: 12765.96583
A74: AIG Seguros|46 Daños Sin Autos Total | B74: AIG Seguros | C74: 46 Daños Sin Autos Total | D74: 5599756.628
A75: AIG Seguros|46 Responsabilidad Civil y Riesgos Profesionales | B75: AIG Seguros | C75: 46 Responsabilidad Civil y Riesgos Profesionales | D75: 1455154.222
A76: AIG Seguros|47 RC General | B76: AIG Seguros | C76: 47 RC General | D76: 1454052.515
A77: AIG Seguros|48 RC Aviones y Barcos | B77: AIG Seguros | C77: 48 RC Aviones y Barcos | D77: 1101.70787
A78: AIG Seguros|51 Maritimo y Transportes | B78: AIG Seguros | C78: 51 Maritimo y Transportes | D78: 1029345.328
A79: AIG Seguros|52 MyT Carga | B79: AIG Seguros | C79: 52 MyT Carga | D79: 1028421.899
A80: AIG Seguros|53 MyT Cascos | B80: AIG Seguros | C80: 53 MyT Cascos | D80: 923.4288
A81: AIG Seguros|54 Incendio | B81: AIG Seguros | C81: 54 Incendio | D81: 1559212.576
A82: AIG Seguros|55 Riesgos Catastroficos | B82: AIG Seguros | C82: 55 Riesgos Catastroficos | D82: 998522.0804
A83: AIG Seguros|56 Terremoto y Erupcion Volcanica | B83: AIG Seguros | C83: 56 Terremoto y Erupcion Volcanica | D83: 465372.5264
A84: AIG Seguros|57 Huracan y Otros Riesgos Hidrometeorologicos | B84: AIG Seguros | C84: 57 Huracan y Otros Riesgos Hidrometeorologicos | D84: 533149.554
A85: AIG Seguros|63 Diversos | B85: AIG Seguros | C85: 63 Diversos | D85: 208727.9552
A86: AIG Seguros|64 Miscelaneos | B86: AIG Seguros | C86: 64 Miscelaneos | D86: 149427.9482
A87: AIG Seguros|65 Tecnicos | B87: AIG Seguros | C87: 65 Tecnicos | D87: 59300.00703
A88: AIG Seguros|66 Credito | B88: AIG Seguros | C88: 66 Credito | D88: 348794.4659
A89: Allianz México|10 Total General | B89: Allianz México | C89: 10 Total General | D89: 23235788.47
A90: Allianz México|11 Total General Sin Pensiones | B90: Allianz México | C90: 11 Total General Sin Pensiones | D90: 23235788.47
A91: Allianz México|12 Vida Total | B91: Allianz México | C91: 12 Vida Total | D91: 15054124.88
A92: Allianz México|13 Vida Individual | B92: Allianz México | C92: 13 Vida Individual | D92: 14894293.16
A93: Allianz México|14 Vida Gpo y Col | B93: Allianz México | C93: 14 Vida Gpo y Col | D93: 159831.7176
A94: Allianz México|28 Accidentes y Enfermedades Total | B94: Allianz México | C94: 28 Accidentes y Enfermedades Total | D94: 2122471.502
A95: Allianz México|29 Accidentes Personales | B95: Allianz México | C95: 29 Accidentes Personales | D95: 1156.57488
A96: Allianz México|30 AP Individual | B96: Allianz México | C96: 30 AP Individual | D96: 0
A97: Allianz México|31 AP Gpo y Col | B97: Allianz México | C97: 31 AP Gpo y Col | D97: 1156.57488
A98: Allianz México|32 Gastos Medicos | B98: Allianz México | C98: 32 Gastos Medicos | D98: 2121314.927
A99: Allianz México|33 GMM. Individual | B99: Allianz México | C99: 33 GMM. Individual | D99: 1365696.377
A100: Allianz México|34 GMM. Gpo y Col | B100: Allianz México | C100: 34 GMM. Gpo y Col | D100: 755618.5503
A101: Allianz México|38 Daños Total | B101: Allianz México | C101: 38 Daños Total | D101: 6059192.09
A102: Allianz México|39 Automoviles Total | B102: Allianz México | C102: 39 Automoviles Total | D102: 325971.085
A103: Allianz México|41 Automoviles Residentes | B103: Allianz México | C103: 41 Automoviles Residentes | D103: 325971.085
A104: Allianz México|42 Camiones | B104: Allianz México | C104: 42 Camiones | D104: 0
A105: Allianz México|46 Daños Sin Autos Total | B105: Allianz México | C105: 46 Daños Sin Autos Total | D105: 5733221.005
A106: Allianz México|46 Responsabilidad Civil y Riesgos Profesionales | B106: Allianz México | C106: 46 Responsabilidad Civil y Riesgos Profesionales | D106: 247783.9232
A107: Allianz México|47 RC General | B107: Allianz México | C107: 47 RC General | D107: 222742.807
A108: Allianz México|48 RC Aviones y Barcos | B108: Allianz México | C108: 48 RC Aviones y Barcos | D108: 25041.11618
A109: Allianz México|50 RC Otros | B109: Allianz México | C109: 50 RC Otros | D109: 0
A110: Allianz México|51 Maritimo y Transportes | B110: Allianz México | C110: 51 Maritimo y Transportes | D110: 273796.4593
A111: Allianz México|52 MyT Carga | B111: Allianz México | C111: 52 MyT Carga | D111: 204331.3317
A112: Allianz México|53 MyT Cascos | B112: Allianz México | C112: 53 MyT Cascos | D112: 69465.12759
A113: Allianz México|54 Incendio | B113: Allianz México | C113: 54 Incendio | D113: 764490.4492
A114: Allianz México|55 Riesgos Catastroficos | B114: Allianz México | C114: 55 Riesgos Catastroficos | D114: 367712.6079
A115: Allianz México|56 Terremoto y Erupcion Volcanica | B115: Allianz México | C115: 56 Terremoto y Erupcion Volcanica | D115: 149194.2243
A116: Allianz México|57 Huracan y Otros Riesgos Hidrometeorologicos | B116: Allianz México | C116: 57 Huracan y Otros Riesgos Hidrometeorologicos | D116: 218518.3837
A117: Allianz México|63 Diversos | B117: Allianz México | C117: 63 Diversos | D117: 4079437.565
A118: Allianz México|64 Miscelaneos | B118: Allianz México | C118: 64 Miscelaneos | D118: 56545.19133
A119: Allianz México|65 Tecnicos | B119: Allianz México | C119: 65 Tecnicos | D119: 4022892.374
A120: ANA|10 Total General | B120: ANA | C120: 10 Total General | D120: 3347262.784
A121: ANA|11 Total General Sin Pensiones | B121: ANA | C121: 11 Total General Sin Pensiones | D121: 3347262.784
A122: ANA|38 Daños Total | B122: ANA | C122: 38 Daños Total | D122: 3347262.784
A123: ANA|39 Automoviles Total | B123: ANA | C123: 39 Automoviles Total | D123: 3347262.784
A124: ANA|41 Automoviles Residentes | B124: ANA | C124: 41 Automoviles Residentes | D124: 1589274.656
A125: ANA|42 Camiones | B125: ANA | C125: 42 Camiones | D125: 1565318.345
A126: ANA|43 Automoviles Turistas | B126: ANA | C126: 43 Automoviles Turistas | D126: 93559.78763
A127: ANA|44 Otros Automoviles y Obligatorios | B127: ANA | C127: 44 Otros Automoviles y Obligatorios | D127: 99109.99529
A128: Assurant Vida|10 Total General | B128: Assurant Vida | C128: 10 Total General | D128: 1204700.143
A129: Assurant Vida|11 Total General Sin Pensiones | B129: Assurant Vida | C129: 11 Total General Sin Pensiones | D129: 1204700.143
A130: Assurant Vida|12 Vida Total | B130: Assurant Vida | C130: 12 Vida Total | D130: 1204700.143
A131: Assurant Vida|14 Vida Gpo y Col | B131: Assurant Vida | C131: 14 Vida Gpo y Col | D131: 1204700.143
A132: Atlas|10 Total General | B132: Atlas | C132: 10 Total General | D132: 17981615.09
A133: Atlas|11 Total General Sin Pensiones | B133: Atlas | C133: 11 Total General Sin Pensiones | D133: 17981615.09
A134: Atlas|12 Vida Total | B134: Atlas | C134: 12 Vida Total | D134: 2615143.821
A135: Atlas|13 Vida Individual | B135: Atlas | C135: 13 Vida Individual | D135: 846767.7802
A136: =B136&"|"&C136 -> Atlas|14 Vida Gpo y Col | B136: Atlas | C136: 14 Vida Gpo y Col | D136: 1768376.041
A137: Atlas|28 Accidentes y Enfermedades Total | B137: Atlas | C137: 28 Accidentes y Enfermedades Total | D137: 5411126.113
A138: Atlas|29 Accidentes Personales | B138: Atlas | C138: 29 Accidentes Personales | D138: 37005.39775
A139: Atlas|30 AP Individual | B139: Atlas | C139: 30 AP Individual | D139: 6274.06765
A140: Atlas|31 AP Gpo y Col | B140: Atlas | C140: 31 AP Gpo y Col | D140: 30731.3301
A141: Atlas|32 Gastos Medicos | B141: Atlas | C141: 32 Gastos Medicos | D141: 5374120.715
A142: Atlas|33 GMM. Individual | B142: Atlas | C142: 33 GMM. Individual | D142: 1362071.307
A143: Atlas|34 GMM. Gpo y Col | B143: Atlas | C143: 34 GMM. Gpo y Col | D143: 4012049.408
A144: Atlas|38 Daños Total | B144: Atlas | C144: 38 Daños Total | D144: 9955345.158
A145: Atlas|39 Automoviles Total | B145: Atlas | C145: 39 Automoviles Total | D145: 3826356.455
A146: Atlas|41 Automoviles Residentes | B146: Atlas | C146: 41 Automoviles Residentes | D146: 2381116.125
A147: Atlas|42 Camiones | B147: Atlas | C147: 42 Camiones | D147: 1365752.706
A148: Atlas|43 Automoviles Turistas | B148: Atlas | C148: 43 Automoviles Turistas | D148: 735.74403
A149: Atlas|44 Otros Automoviles y Obligatorios | B149: Atlas | C149: 44 Otros Automoviles y Obligatorios | D149: 78751.8802
A150: Atlas|46 Daños Sin Autos Total | B150: Atlas | C150: 46 Daños Sin Autos Total | D150: 6128988.703
A151: Atlas|46 Responsabilidad Civil y Riesgos Profesionales | B151: Atlas | C151: 46 Responsabilidad Civil y Riesgos Profesionales | D151: 739629.8874
A152: Atlas|47 RC General | B152: Atlas | C152: 47 RC General | D152: 496825.3078
A153: Atlas|48 RC Aviones y Barcos | B153: Atlas | C153: 48 RC Aviones y Barcos | D153: 237910.0987
A154: Atlas|49 RC Viajero | B154: Atlas | C154: 49 RC Viajero | D154: 4894.48094
A155: Atlas|51 Maritimo y Transportes | B155: Atlas | C155: 51 Maritimo y Transportes | D155: 999674.0265
A156: Atlas|52 MyT Carga | B156: Atlas | C156: 52 MyT Carga | D156: 478060.9827
A157: Atlas|53 MyT Cascos | B157: Atlas | C157: 53 MyT Cascos | D157: 521613.0439
A158: Atlas|54 Incendio | B158: Atlas | C158: 54 Incendio | D158: 1119138.765
A159: Atlas|55 Riesgos Catastroficos | B159: Atlas | C159: 55 Riesgos Catastroficos | D159: 1917605.417
A160: Atlas|56 Terremoto y Erupcion Volcanica | B160: Atlas | C160: 56 Terremoto y Erupcion Volcanica | D160: 505177.3409
A161: Atlas|57 Huracan y Otros Riesgos Hidrometeorologicos | B161: Atlas | C161: 57 Huracan y Otros Riesgos Hidrometeorologicos | D161: 1412428.076
A162: Atlas|63 Diversos | B162: Atlas | C162: 63 Diversos | D162: 1352940.606
A163: Atlas|64 Miscelaneos | B163: Atlas | C163: 64 Miscelaneos | D163: 444497.1764
A164: Atlas|65 Tecnicos | B164: Atlas | C164: 65 Tecnicos | D164: 908443.4299
A165: Atradius|10 Total General | B165: Atradius | C165: 10 Total General | D165: 678248.511
A166: Atradius|11 Total General Sin Pensiones | B166: Atradius | C166: 11 Total General Sin Pensiones | D166: 678248.511
A167: Atradius|38 Daños Total | B167: Atradius | C167: 38 Daños Total | D167: 678248.511
A168: Atradius|46 Daños Sin Autos Total | B168: Atradius | C168: 46 Daños Sin Autos Total | D168: 678248.511
A169: Atradius|66 Credito | B169: Atradius | C169: 66 Credito | D169: 678248.511
A170: AXA Salud|10 Total General | B170: AXA Salud | C170: 10 Total General | D170: 736798.9613
A171: AXA Salud|11 Total General Sin Pensiones | B171: AXA Salud | C171: 11 Total General Sin Pensiones | D171: 736798.9613
A172: AXA Salud|28 Accidentes y Enfermedades Total | B172: AXA Salud | C172: 28 Accidentes y Enfermedades Total | D172: 736798.9613
A173: AXA Salud|35 Salud | B173: AXA Salud | C173: 35 Salud | D173: 736798.9613
A174: AXA Salud|36 Salud Individual | B174: AXA Salud | C174: 36 Salud Individual | D174: 60906.58502
A175: AXA Salud|37 Salud Gpo y Col | B175: AXA Salud | C175: 37 Salud Gpo y Col | D175: 675892.3763
A176: AXA Seguros|10 Total General | B176: AXA Seguros | C176: 10 Total General | D176: 50222142.31
A177: AXA Seguros|11 Total General Sin Pensiones | B177: AXA Seguros | C177: 11 Total General Sin Pensiones | D177: 50222142.31
A178: AXA Seguros|12 Vida Total | B178: AXA Seguros | C178: 12 Vida Total | D178: 5107757.637
A179: AXA Seguros|13 Vida Individual | B179: AXA Seguros | C179: 13 Vida Individual | D179: 3317474.075
A180: AXA Seguros|14 Vida Gpo y Col | B180: AXA Seguros | C180: 14 Vida Gpo y Col | D180: 1790283.561
A181: AXA Seguros|28 Accidentes y Enfermedades Total | B181: AXA Seguros | C181: 28 Accidentes y Enfermedades Total | D181: 23239642.59
A182: AXA Seguros|29 Accidentes Personales | B182: AXA Seguros | C182: 29 Accidentes Personales | D182: 218239.4784
A183: AXA Seguros|30 AP Individual | B183: AXA Seguros | C183: 30 AP Individual | D183: 144468.3878
A184: AXA Seguros|31 AP Gpo y Col | B184: AXA Seguros | C184: 31 AP Gpo y Col | D184: 73771.09053
A185: AXA Seguros|32 Gastos Medicos | B185: AXA Seguros | C185: 32 Gastos Medicos | D185: 23021403.11
A186: AXA Seguros|33 GMM. Individual | B186: AXA Seguros | C186: 33 GMM. Individual | D186: 13967230.09
A187: AXA Seguros|34 GMM. Gpo y Col | B187: AXA Seguros | C187: 34 GMM. Gpo y Col | D187: 9054173.022
A188: AXA Seguros|38 Daños Total | B188: AXA Seguros | C188: 38 Daños Total | D188: 21874742.08
A189: AXA Seguros|39 Automoviles Total | B189: AXA Seguros | C189: 39 Automoviles Total | D189: 11713378.54
A190: AXA Seguros|41 Automoviles Residentes | B190: AXA Seguros | C190: 41 Automoviles Residentes | D190: 7231715.785
A191: AXA Seguros|42 Camiones | B191: AXA Seguros | C191: 42 Camiones | D191: 4422351.715
A192: AXA Seguros|43 Automoviles Turistas | B192: AXA Seguros | C192: 43 Automoviles Turistas | D192: 38829.51103
A193: AXA Seguros|44 Otros Automoviles y Obligatorios | B193: AXA Seguros | C193: 44 Otros Automoviles y Obligatorios | D193: 20481.53024
A194: AXA Seguros|46 Daños Sin Autos Total | B194: AXA Seguros | C194: 46 Daños Sin Autos Total | D194: 10161363.54
A195: AXA Seguros|46 Responsabilidad Civil y Riesgos Profesionales | B195: AXA Seguros | C195: 46 Responsabilidad Civil y Riesgos Profesionales | D195: 977902.7723
A196: AXA Seguros|47 RC General | B196: AXA Seguros | C196: 47 RC General | D196: 596428.6837
A197: AXA Seguros|48 RC Aviones y Barcos | B197: AXA Seguros | C197: 48 RC Aviones y Barcos | D197: 63345.19186
A198: AXA Seguros|49 RC Viajero | B198: AXA Seguros | C198: 49 RC Viajero | D198: 151897.5896
A199: AXA Seguros|50 RC Otros | B199: AXA Seguros | C199: 50 RC Otros | D199: 166231.3072
A200: =B200&"|"&C200 -> AXA Seguros|51 Maritimo y Transportes | B200: AXA Seguros | C200: 51 Maritimo y Transportes | D200: 904408.1946
A201: AXA Seguros|52 MyT Carga | B201: AXA Seguros | C201: 52 MyT Carga | D201: 762968.069
A202: AXA Seguros|53 MyT Cascos | B202: AXA Seguros | C202: 53 MyT Cascos | D202: 141440.1257
A203: AXA Seguros|54 Incendio | B203: AXA Seguros | C203: 54 Incendio | D203: 2155464.602
... 1413 more rows

Sheet TD Siniestros Daños (hidden)
A2: periodo | B2: 2025-Q3
A3: Ramo_ | B3: 38 Daños Total
A4: subramo | B4: (Varios elementos)
A6: Jerarquia 2 | B6: nombre_compania | C6: Suma de CostoSin_Act | D6: Suma de SIN_IncreRel | E6: Suma de IncResvDivAct | F6: Suma de SINvsPRIM_ACT | G6: Suma de SINvsPRIM_ANT | H6: Suma de Costo_Sin_RetAct | I6: Suma de IncrSinRet | J6: Suma de Prima_DevengadaAct | K6: Suma de IncrDevengada | L6: Suma de SINvsPDEV_ACT | M6: Suma de SINvsPDEV_ANT
A7: 1 | B7: Quálitas | C7: 29050534.72 | D7: 6.5079566 | E7: 173534.2754 | F7: 57.26412144 | G7: 59.55424808 | H7: 29034384.41 | I7: 6.398009323 | J7: 48584938.11 | K7: 15.5460173 | L7: 59.76005227 | M7: 64.89816941
A8: 2 | B8: G.N.P. | C8: 13859928.28 | D8: 18.05915048 | E8: 46820.78304 | F8: 49.013398 | G8: 46.29460159 | H8: 12516208.79 | I8: 12.42450308 | J8: 21670918.29 | K8: 19.02575043 | L8: 57.75578416 | M8: 61.14703968
A9: 3 | B9: AXA Seguros | C9: 11907099.75 | D9: 33.53111848 | E9: 132434.0118 | F9: 54.4330978 | G9: 45.3594399 | H9: 8843447.507 | I9: 4.514684621 | J9: 14611957.34 | K9: 8.440102673 | L9: 60.521991 | M9: 62.79510809
A10: 4 | B10: Chubb Seguros México | C10: 8621512.558 | D10: -2.34834161 | E10: 13851.56171 | F10: 39.55693906 | G10: 48.11340918 | H10: 4009911.703 | I10: -5.711515879 | J10: 7582048.182 | K10: 13.61289412 | L10: 52.8869193 | M10: 63.7260851
A11: 5 | B11: Mapfre México | C11: -369868.2833 | D11: -103.2783094 | E11: 106303.1338 | F11: -2.2249865 | G11: 76.31974193 | H11: 2240877.43 | I11: -0.5583832209 | J11: 4140191.583 | K11: 8.656843083 | L11: 54.12496946 | M11: 59.14071496
A12: 5.1 | B12: TOTAL GRANDES | C12: 63069207.02 | D12: -7.310467461 | E12: 472943.7658 | F12: 45.27517964 | G12: 54.89592027 | H12: 56644829.84 | I12: 6.097981618 | J12: 96590053.51 | K12: 14.69644417 | L12: 58.64457859 | M12: 63.39729119
A13: 6 | B13: BBVA | C13: 7149106.314 | D13: 13.87082153 | E13: 0 | F13: 45.46612094 | G13: 46.0542455 | H13: 6562966.842 | I13: 13.58299596 | J13: 14368372.49 | K13: 24.80646066 | L13: 45.6764804 | M13: 50.18990568
A14: 7 | B14: Inbursa | C14: 9409215.856 | D14: 63.87101763 | E14: 0 | F14: 64.74095718 | G14: 38.74330496 | H14: 3983996.961 | I14: 1.294262296 | J14: 6692398.743 | K14: 12.70054643 | L14: 59.53017915 | M14: 66.23360067
A15: 8 | B15: Agroasemex | C15: 3258243.724 | D15: -47.00340202 | E15: 8494.59238 | F15: 24.73045823 | G15: 101.5807907 | H15: 2219599.524 | I15: 34.89748827 | J15: 3447743.206 | K15: 33.11345983 | L15: 64.37833072 | M15: 63.52692293
A16: 9 | B16: Banorte | C16: 5929264.919 | D16: 6.915603848 | E16: 1636.02633 | F16: 45.16692478 | G16: 52.16605696 | H16: 4667102.025 | I16: 12.07566541 | J16: 8266153.28 | K16: 13.8473482 | L16: 56.46038571 | M16: 57.35290679
A17: 10 | B17: HDI Seguros | C17: 5966563.177 | D17: 15.01492937 | E17: 0 | F17: 54.67605957 | G17: 56.30650035 | H17: 5533396.446 | I17: 9.748728436 | J17: 9479397.184 | K17: 15.51237751 | L17: 58.37287265 | M17: 61.43842756
A18: 11 | B18: Atlas | C18: 3532376.771 | D18: 16.16689176 | E18: 15288.96574 | F18: 35.48221297 | G18: 30.63922795 | H18: 2706731.551 | I18: -0.1016911026 | J18: 4258547.674 | K18: 7.904372394 | L18: 63.55996828 | M18: 68.65379967
A19: 12 | B19: GMX Seguros | C19: 3448249.229 | D19: -14.49287511 | E19: 0 | F19: 40.80263817 | G19: 45.91233015 | H19: 1008643.975 | I19: -14.66878718 | J19: 2735568.46 | K19: 4.827028163 | L19: 36.87145799 | M19: 45.29556346
A20: 13 | B20: Zurich Aseguradora Mexicana | C20: 2988216.084 | D20: -4.319036131 | E20: 9096.22067 | F20: 36.15205732 | G20: 38.00095022 | H20: 2196272.883 | I20: -13.57479868 | J20: 4247086.544 | K20: -2.203033785 | L20: 51.7124589 | M20: 58.51674648
A21: 14 | B21: AIG Seguros | C21: 2304353.996 | D21: 91.02731431 | E21: 10046.13086 | F21: 37.80213807 | G21: 23.25477994 | H21: 505807.935 | I21: -6.57389635 | J21: 904169.1375 | K21: 20.773601 | L21: 55.94173855 | M21: 72.31688947
A22: 15 | B22: Allianz México | C22: -196713.3779 | D22: -108.3378613 | E22: 11086.60912 | F22: -3.246528168 | G22: 47.06443242 | H22: 306584.0295 | I22: -13.01461538 | J22: 766568.5179 | K22: 32.88716931 | L22: 39.99434131 | M22: 61.09917003
A23: 15.1 | B23: TOTAL MEDIANAS | C23: 43788876.69 | D23: 2.637382808 | E23: 55648.5451 | F23: 41.19374939 | G23: 46.63937393 | H23: 29691102.17 | I23: 6.460361378 | J23: 55166005.23 | K23: 15.57350019 | L23: 53.82137432 | M23: 58.42855063
A24: 16 | B24: FM Global | C24: 4591850.646 | D24: 21.47700291 | E24: 0 | F24: 126.7198177 | G24: 116.4672558 | H24: 15336.07065 | I24: -475.286968 | J24: 46588.20866 | K24: -1320.384947 | L24: 32.91835229 | M24: 107.0462474
A25: 17 | B25: Zurich Santander | C25: 77966.44575 | D25: -35.50365912 | E25: 0 | F25: 2.23799974 | G25: 3.753941308 | H25: 72819.91166 | I25: -50.03678963 | J25: 2508420.485 | K25: 7.916202272 | L25: 2.903018537 | M25: 6.27026833
A26: 18 | B26: Afirme | C26: 1304352.114 | D26: -37.27779625 | E26: 1665.39287 | F26: 38.837125 | G26: 63.78997987 | H26: 1425199.047 | I26: -13.60696337 | J26: 2274484.585 | K26: -0.2912385846 | L26: 62.66030805 | M26: 72.3181167
A27: 19 | B27: ANA | C27: 1835327.897 | D27: -1.324412888 | E27: 10970.27701 | F27: 54.83070841 | G27: 66.7909562 | H27: 1530251.736 | I27: 1.587146011 | J27: 2435498.977 | K27: 10.37649699 | L27: 62.83113854 | M27: 68.26730789
A28: 20 | B28: Seguros SURA | C28: 1660925.811 | D28: 49.63886018 | E28: -5767.45622 | F28: 51.06151569 | G28: 36.23154002 | H28: 1403922.805 | I28: 26.80357749 | J28: 2038132.301 | K28: -5.401050081 | L28: 68.88281022 | M28: 51.38846745
A29: 21 | B29: Cardif Seguros Generales | C29: 293532.6303 | D29: 0 | E29: 0 | F29: 11.95025839 | G29: 0 | H29: 262763.7847 | I29: 0 | J29: 2034903.372 | K29: 0 | L29: 12.91283843 | M29: 0
A30: 22 | B30: HDI Global Seguros | C30: 1776902.68 | D30: 97.65950278 | E30: 0 | F30: 77.4070173 | G30: 42.73390452 | H30: 19389.58199 | I30: -14877.89015 | J30: -7011.76531 | K30: -34.6319244 | L30: -276.5292495 | M30: 1.22319118
A31: 23 | B31: General de Seguros | C31: 1272521.687 | D31: 16.42769602 | E31: -1877.17165 | F31: 61.71135695 | G31: 58.47378363 | H31: 1135360.753 | I31: 17.70077091 | J31: 1735224.985 | K31: 15.53049855 | L31: 65.43017548 | M31: 64.22371524
A32: 24 | B32: El Potosí | C32: 934878.0497 | D32: 13.80255254 | E32: 0 | F32: 46.91495521 | G32: 54.26486068 | H32: 871218.3739 | I32: 26.31934975 | J32: 1515206.397 | K32: 33.09535256 | L32: 57.49832998 | M32: 60.5826464
A33: 25 | B33: Seguros Azteca Daños | C33: 504172.8234 | D33: 68.56004508 | E33: 7972.24138 | F33: 25.30425472 | G33: 17.03156091 | H33: 114291.0452 | I33: 22.39777996 | J33: 360816.0412 | K33: 7.72339015 | L33: 31.67571067 | M33: 27.87807867
A34: 26 | B34: El Águila | C34: 942654.7362 | D34: 82.05328074 | E34: 0 | F34: 69.58077747 | G34: 40.37471273 | H34: 561586.7368 | I34: 5.275643691 | J34: 1057382.274 | K34: -1.134777127 | L34: 53.11104137 | M34: 49.87701579
A35: 27 | B35: Swiss Re Corporate Solutions | C35: 555122.7988 | D35: 225.6023001 | E35: 0 | F35: 42.06900842 | G35: 13.22572579 | H35: 4072.48959 | I35: 46.04117195 | J35: 8052.76426 | K35: -214.0213052 | L35: 50.57256687 | M35: -39.48441392
A36: 28 | B36: Ve Por Más | C36: 808118.3185 | D36: 136.5520807 | E36: 0 | F36: 74.04535697 | G36: 30.47021151 | H36: 172398.76 | I36: -22.25657845 | J36: 372487.1501 | K36: 4.595252912 | L36: 46.2831429 | M36: 62.26889608
A37: 29 | B37: Tokio Marine | C37: 347943.9946 | D37: -24.15797707 | E37: 1645.75614 | F37: 35.22492107 | G37: 59.37450425 | H37: 34143.67798 | I37: -41.04533636 | J37: 118786.2096 | K37: -2.414734596 | L37: 28.74380628 | M37: 47.57845761
A38: 30 | B38: Berkley Seguros | C38: 399937.6034 | D38: 116.9132774 | E38: 5748.25775 | F38: 50.5569853 | G38: 27.35851868 | H38: 31096.71984 | I38: 101.2011002 | J38: 27398.97163 | K38: 4.183403238 | L38: 113.4959379 | M38: 58.76902789
A39: 31 | B39: Sompo Japan | C39: 131354.6868 | D39: -3.485684099 | E39: 1608.00521 | F39: 17.31097985 | G39: 20.40163222 | H39: 38841.26211 | I39: 339.1484572 | J39: 74370.05921 | K39: 164.6263098 | L39: 52.22701518 | M39: 31.47145816
A40: 32 | B40: Atradius | C40: 347401.8917 | D40: 149.7195778 | E40: 1452.11603 | F40: 51.22044296 | G40: 22.98977532 | H40: 39032.09627 | I40: -20.77832275 | J40: 173546.5196 | K40: 12.53306648 | L40: 22.49085511 | M40: 31.94788322
A41: 33 | B41: Solunion Crédito | C41: 552327.5526 | D41: 207.9966619 | E41: 769.00382 | F41: 112.2966157 | G41: 34.13658077 | H41: 23433.79211 | I41: 354.3787406 | J41: 21505.25964 | K41: -3.313520302 | L41: 108.9677247 | M41: 23.18705687
A42: 34 | B42: Primero Seguros | C42: 825054.7942 | D42: -11.01728925 | E42: 0 | F42: 191.0528351 | G42: 62.72798166 | H42: 686881.9994 | I42: -15.207845 | J42: 745872.3652 | K42: -29.48144364 | L42: 92.0910911 | M42: 76.58881648
A43: 35 | B43: SHF Cred Vivienda | C43: 168492.119 | D43: 91.88734767 | E43: 0 | F43: 47.31154507 | G43: 24.97212123 | H43: 164245.1275 | I43: 111.020397 | J43: 363300.2456 | K43: 22.88813046 | L43: 45.20919802 | M43: 26.32766265
A44: 36 | B44: La Latinoamericana | C44: 144443.2593 | D44: -36.79218242 | E44: 3227.04118 | F44: 45.43891808 | G44: 54.1530723 | H44: 87616.54158 | I44: -40.61100573 | J44: 210390.8001 | K44: -17.07300475 | L44: 41.6446639 | M44: 58.14994659
A45: 37 | B45: Coface | C45: 125599.2027 | D45: 36.28856861 | E45: -3785.3339 | F45: 43.1383471 | G45: 30.17437378 | H45: 20107.24116 | I45: -3.192392775 | J45: 53859.89429 | K45: -3.538029429 | L45: 37.3324928 | M45: 37.19920289
A46: 38 | B46: Crabi | C46: 177404.4252 | D46: 79.72323493 | E46: 0 | F46: 63.70861101 | G46: 58.24484321 | H46: 178868.5895 | I46: 95.8755808 | J46: 228825.3478 | K46: 97.90940518 | L46: 78.16817114 | M46: 78.97981051
A47: 39 | B47: Genworth Seg. de Crédito | C47: 112869.9392 | D47: 81.28592192 | E47: 0 | F47: 88.28093809 | G47: 53.03679285 | H47: 117160.0036 | I47: 77.80060366 | J47: 153477.4441 | K47: -0.3467687753 | L47: 76.33695247 | M47: 42.78514144
A48: 40 | B48: Virginia Surety | C48: 28931.92198 | D48: 2.695135829 | E48: 0 | F48: 25.80217862 | G48: 29.53112633 | H48: 23247.22694 | I48: 32.29195009 | J48: 81657.37197 | K48: 28.40989326 | L48: 28.46923233 | M48: 27.63381356
A49: 41 | B49: Tláloc Seguros | C49: 28463.91749 | D49: -49.92485265 | E49: 0 | F49: 25.55905755 | G49: 60.50651524 | H49: 4381.76139 | I49: -45.94049534 | J49: 22959.61974 | K49: 70.66571915 | L49: 19.08464269 | M49: 60.25016859
A50: 42 | B50: SPP Seguros | C50: 7765.16961 | D50: 150.9783785 | E50: 0 | F50: 8.927088706 | G50: 4.355970599 | H50: 8348.03488 | I50: 194.5237797 | J50: 75995.73518 | K50: -2.620749583 | L50: 10.98487285 | M50: 3.631960329
A51: 43 | B51: Momento Seguros | C51: 38436.47156 | D51: 377.8042862 | E51: 0 | F51: 49.80575134 | G51: 37.52681424 | H51: 13585.94237 | I51: 354.5926432 | J51: 22022.35899 | K51: 494.3353577 | L51: 61.69158525 | M51: 80.65570557
A52: 44 | B52: SPT | C52: 38978.43303 | D52: 21.7759942 | E52: 0 | F52: 88.32823885 | G52: 73.95385198 | H52: 38978.43303 | I52: 21.7759942 | J52: 43659.37392 | K52: 13.88421965 | L52: 89.27849745 | M52: 83.49274485
A53: 46 | B53: Banamex Seguros | C53: -145.24494 | D53: 42.56848753 | E53: 0 | F53: 10639.95341 | G53: 3603.72515 | H53: 132.4917 | I53: -83.12547198 | J53: 0 | K53: 0 | L53: 0 | M53: 0
A54: 150.1 | B54: TOTAL RESTO | C54: 20033586.78 | D54: 26.6725505 | E54: 23628.12962 | F54: 53.31836181 | G54: 48.03721746 | H54: 9098712.037 | I54: 9.2972602 | J54: 18797813.35 | K54: 18.76167672 | L54: 48.40303427 | M54: 52.59441542
A55: 200 | B55: Patria | C55: 0 | D55: 0 | E55: 0 | F55: 0 | G55: 0 | H55: 4190779.366 | I55: 32.15359687 | J55: 9319510.371 | K55: 32.48945569 | L55: 44.96780624 | M55: 45.08208867
A56: 201.1 | B56: TOTAL | C56: 126891670.5 | D56: 0.2918359142 | E56: 552220.4405 | F56: 44.81029243 | G56: 50.9454993 | H56: 95434644.05 | I56: 6.508007964 | J56: 170553872.1 | K56: 15.4151705 | L56: 55.9557182 | M56: 60.63524124

Sheet Cat (hidden)
B1: ramo
B2: Total General | C2: 1 | D2: =E2&F2&" "&B2 -> 10 Total General | E2: 1 | F2: 0 | H2: Automoviles Total | I2: 0 | K2: Pensiones Total | L2: 1 | N2: Q4 | O2: Cuarto Trimestre | R2: Ramo_
B3: Total General Sin Pensiones | C3: 2 | D3: =E3&F3&" "&B3 -> 11 Total General Sin Pensiones | E3: 1 | F3: 1 | H3: Automoviles Residentes | I3: 0 | K3: Pensiones IMSS | L3: 1 | N3: Q3 | O3: Tercer Trimestre | R3: 10 Total General | S3: 10 Total General | T3: 0
B4: Vida Total | C4: 3 | D4: 12 Vida Total | E4: 1 | F4: 2 | H4: Camiones | I4: 0 | K4: Pensiones ISSSTE | L4: 1 | N4: Q2 | O4: Segundo Trimestre | R4: 11 Total General Sin Pensiones | S4: 10 Total General | T4: 0
B5: Vida Individual | C5: 4 | D5: 13 Vida Individual | E5: 1 | F5: 3 | H5: Automoviles Turistas | I5: 0 | N5: Q1 | O5: Primer Trimestre | R5: 12 Vida Total | S5: 12 Vida Total | T5: 0
B6: Vida Gpo y Col | C6: 5 | D6: 14 Vida Gpo y Col | E6: 1 | F6: 4 | H6: Otros Automoviles y Obligatorios | I6: 0 | R6: 13 Vida Individual | S6: 12 Vida Total | T6: 0
B7: Pensiones Total | C7: 6 | D7: 15 Pensiones Total | E7: 1 | F7: 5 | H7: Total General | I7: 0 | R7: 14 Vida Gpo y Col | S7: 12 Vida Total | T7: 0
B8: Pensiones IMSS | C8: 7 | D8: 16 Pensiones IMSS | E8: 1 | F8: 6 | H8: Total General Sin Pensiones | I8: 0 | R8: 15 Pensiones Total | S8: 15 Pensiones Total | T8: 0
B9: IMSS Incapacidad Permanente RT | D9: 17 IMSS Incapacidad Permanente RT | E9: 1 | F9: 7 | H9: Vida Total | I9: 0 | R9: 16 Pensiones IMSS | S9: 15 Pensiones Total | T9: 0
B10: IMSS Invalidez (invalidez y vida) | D10: 18 IMSS Invalidez (invalidez y vida) | E10: 1 | F10: 8 | H10: Vida Individual | I10: 0 | R10: 17 Pensiones ISSSTE | S10: 15 Pensiones Total | T10: 0
B11: IMSS Jubilacion (retiro, cesantia y vejez) | D11: 19 IMSS Jubilacion (retiro, cesantia y vejez) | E11: 1 | F11: 9 | H11: Vida Gpo y Col | I11: 0 | R11: 18 Accidentes y Enfermedades Total | S11: 18 Accidentes y Enfermedades Total | T11: 0
B12: IMSS Muerte (invalidez y vida) | D12: 20 IMSS Muerte (invalidez y vida) | E12: 2 | F12: 0 | H12: Pensiones Total | I12: 1 | R12: 19 Accidentes Personales | S12: 18 Accidentes y Enfermedades Total | T12: 0
B13: IMSS Muerte (riesgos de trabajo) | D13: 21 IMSS Muerte (riesgos de trabajo) | E13: 2 | F13: 1 | H13: Pensiones IMSS | I13: 1 | R13: 20 AP Individual | S13: 18 Accidentes y Enfermedades Total | T13: 0
B14: Pensiones ISSSTE | C14: 8 | D14: 22 Pensiones ISSSTE | E14: 2 | F14: 2 | H14: Pensiones ISSSTE | I14: 1 | R14: 21 AP Gpo y Col | S14: 18 Accidentes y Enfermedades Total | T14: 0
B15: ISSSTE Incapacidad Permanente RT | D15: 23 ISSSTE Incapacidad Permanente RT | E15: 2 | F15: 3 | H15: Accidentes y Enfermedades Total | I15: 0 | R15: 22 Gastos Medicos | S15: 18 Accidentes y Enfermedades Total | T15: 0
B16: ISSSTE Invalidez (invalidez y vida) | D16: 24 ISSSTE Invalidez (invalidez y vida) | E16: 2 | F16: 4 | H16: Accidentes Personales | I16: 0 | R16: 23 GMM. Individual | S16: 18 Accidentes y Enfermedades Total | T16: 0
B17: ISSSTE Jubilacion (retiro, cesantia y vejez) | D17: 25 ISSSTE Jubilacion (retiro, cesantia y vejez) | E17: 2 | F17: 5 | H17: AP Individual | I17: 0 | R17: 24 GMM. Gpo y Col | S17: 18 Accidentes y Enfermedades Total | T17: 0
B18: ISSSTE Muerte (invalidez y vida) | D18: 26 ISSSTE Muerte (invalidez y vida) | E18: 2 | F18: 6 | H18: AP Gpo y Col | I18: 0 | R18: 25 Salud | S18: 18 Accidentes y Enfermedades Total | T18: 0
B19: ISSSTE Muerte (riesgos de trabajo) | D19: 27 ISSSTE Muerte (riesgos de trabajo) | E19: 2 | F19: 7 | H19: Gastos Medicos | I19: 0 | R19: 26 Salud Individual | S19: 18 Accidentes y Enfermedades Total | T19: 0
B20: Accidentes y Enfermedades Total | C20: 14 | D20: 28 Accidentes y Enfermedades Total | E20: 2 | F20: 8 | H20: GMM. Individual | I20: 0 | R20: 27 Salud Gpo y Col | S20: 18 Accidentes y Enfermedades Total | T20: 0
B21: Accidentes Personales | C21: 15 | D21: 29 Accidentes Personales | E21: 2 | F21: 9 | H21: GMM. Gpo y Col | I21: 0 | R21: 28 Daños Total | S21: 28 Daños Total | T21: 1
B22: AP Individual | C22: 16 | D22: 30 AP Individual | E22: 3 | F22: 0 | H22: Salud | I22: 0 | R22: 29 Automoviles Total | S22: 29 Automoviles Total | T22: 1
B23: AP Gpo y Col | C23: 17 | D23: 31 AP Gpo y Col | E23: 3 | F23: 1 | H23: Salud Individual | I23: 0 | R23: 30 Automoviles Residentes | S23: 29 Automoviles Total | T23: 1
B24: Gastos Medicos | C24: 18 | D24: 32 Gastos Medicos | E24: 3 | F24: 2 | H24: Salud Gpo y Col | I24: 0 | R24: 31 Camiones | S24: 29 Automoviles Total | T24: 1
B25: GMM. Individual | C25: 19 | D25: 33 GMM. Individual | E25: 3 | F25: 3 | H25: Daños Total | I25: 0 | R25: 32 Automoviles Turistas | S25: 29 Automoviles Total | T25: 1
B26: GMM. Gpo y Col | C26: 20 | D26: 34 GMM. Gpo y Col | E26: 3 | F26: 4 | H26: Daños Sin Autos Total | I26: 0 | R26: 33 Otros Automoviles y Obligatorios | S26: 29 Automoviles Total | T26: 1
B27: Salud | C27: 21 | D27: 35 Salud | E27: 3 | F27: 5 | H27: Responsabilidad Civil y Riesgos Profesionales | I27: 0 | R27: 34 Daños Sin Autos Total | S27: 28 Daños Total | T27: 1
B28: Salud Individual | C28: 22 | D28: 36 Salud Individual | E28: 3 | F28: 6 | H28: RC General | I28: 0 | R28: 35 Responsabilidad Civil y Riesgos Profesionales | S28: 35 Responsabilidad Civil y Riesgos Profesionales | T28: 1
B29: Salud Gpo y Col | C29: 23 | D29: 37 Salud Gpo y Col | E29: 3 | F29: 7 | H29: RC Aviones y Barcos | I29: 0 | R29: 36 RC General | S29: 35 Responsabilidad Civil y Riesgos Profesionales | T29: 1
B30: Daños Total | C30: 24 | D30: 38 Daños Total | E30: 3 | F30: 8 | H30: RC Viajero | I30: 0 | R30: 37 RC Aviones y Barcos | S30: 35 Responsabilidad Civil y Riesgos Profesionales | T30: 1
B31: Daños | D31: =D30 -> 38 Daños Total | H31: RC Otros | I31: 0 | R31: 38 RC Viajero | S31: 35 Responsabilidad Civil y Riesgos Profesionales | T31: 1
B32: Automoviles Total | C32: 25 | D32: 39 Automoviles Total | E32: 3 | F32: 9 | H32: Maritimo y Transportes | I32: 0 | R32: 39 RC Otros | S32: 35 Responsabilidad Civil y Riesgos Profesionales | T32: 1
B33: Automoviles | D33: 39 Automoviles Total | E33: 3 | F33: 9 | H33: MyT Carga | I33: 0 | R33: 40 Maritimo y Transportes | S33: 40 Maritimo y Transportes | T33: 1
B34: Automoviles Residentes | C34: 26 | D34: 41 Automoviles Residentes | E34: 4 | F34: 1 | H34: MyT Cascos | I34: 0 | R34: 41 MyT Carga | S34: 40 Maritimo y Transportes | T34: 1
B35: Camiones | C35: 27 | D35: 42 Camiones | E35: 4 | F35: 2 | H35: Incendio | I35: 0 | R35: 42 MyT Cascos | S35: 40 Maritimo y Transportes | T35: 1
B36: Automoviles Turistas | C36: 28 | D36: 43 Automoviles Turistas | E36: 4 | F36: 3 | H36: Riesgos Catastroficos | I36: 0 | R36: 43 Incendio | S36: 43 Incendio | T36: 1
B37: Otros Automoviles y Obligatorios | C37: 29 | D37: 44 Otros Automoviles y Obligatorios | E37: 4 | F37: 4 | H37: Terremoto y Erupcion Volcanica | I37: 0 | R37: 44 Riesgos Catastroficos | S37: 44 Riesgos Catastroficos | T37: 1
B38: Daños Sin Autos Total | C38: 30 | D38: 45 Daños Sin Autos Total | E38: 4 | F38: 5 | H38: Huracan y Otros Riesgos Hidrometeorologicos | I38: 0 | R38: 45 Terremoto y Erupcion Volcanica | S38: 44 Riesgos Catastroficos | T38: 1
B39: Daños Sin Autos | D39: 46 Daños Sin Autos Total | H39: Otros Riesgos Catastroficos | I39: 0 | R39: 46 Huracan y Otros Riesgos Hidrometeorologicos | S39: 44 Riesgos Catastroficos | T39: 1
B40: Responsabilidad Civil y Riesgos Profesionales | C40: 31 | D40: 46 Responsabilidad Civil y Riesgos Profesionales | E40: 4 | F40: 6 | H40: Agricola y de Animales | I40: 0 | R40: 47 Otros Riesgos Catastroficos | S40: 44 Riesgos Catastroficos | T40: 1
B41: RC General | C41: 32 | D41: 47 RC General | E41: 4 | F41: 7 | H41: AyA Agricola | I41: 0 | R41: 48 Agricola y de Animales | S41: 48 Agricola y de Animales | T41: 1
B42: RC Aviones y Barcos | C42: 33 | D42: 48 RC Aviones y Barcos | E42: 4 | F42: 8 | H42: AyA Otros | I42: 0 | R42: 49 AyA Agricola | S42: 48 Agricola y de Animales | T42: 1
B43: RC Viajero | C43: 34 | D43: 49 RC Viajero | E43: 4 | F43: 9 | H43: AyA Pecuario | I43: 0 | R43: 50 AyA Otros | S43: 48 Agricola y de Animales | T43: 1
B44: RC Otros | C44: 35 | D44: 50 RC Otros | E44: 5 | F44: 0 | H44: Diversos | I44: 0 | R44: 51 AyA Pecuario | S44: 48 Agricola y de Animales | T44: 1
B45: Maritimo y Transportes | C45: 36 | D45: 51 Maritimo y Transportes | E45: 5 | F45: 1 | H45: Miscelaneos | I45: 0 | R45: 52 Diversos | S45: 52 Diversos | T45: 1
B46: MyT Carga | C46: 37 | D46: 52 MyT Carga | E46: 5 | F46: 2 | H46: Tecnicos | I46: 0 | R46: 53 Miscelaneos | S46: 52 Diversos | T46: 1
B47: MyT Cascos | C47: 38 | D47: 53 MyT Cascos | E47: 5 | F47: 3 | H47: Credito | I47: 0 | R47: 54 Tecnicos | S47: 52 Diversos | T47: 1
B48: Incendio | C48: 39 | D48: 54 Incendio | E48: 5 | F48: 4 | H48: Credito a la Vivienda | I48: 0 | R48: 55 Credito | S48: 52 Diversos | T48: 1
B49: Riesgos Catastroficos | C49: 40 | D49: 55 Riesgos Catastroficos | E49: 5 | F49: 5 | R49: 56 Credito a la Vivienda | S49: 52 Diversos | T49: 1
B50: Terremoto y Erupcion Volcanica | C50: 41 | D50: 56 Terremoto y Erupcion Volcanica | E50: 5 | F50: 6
B51: Huracan y Otros Riesgos Hidrometeorologicos | C51: 42 | D51: 57 Huracan y Otros Riesgos Hidrometeorologicos | E51: 5 | F51: 7
B52: Otros Riesgos Catastroficos | C52: 43 | D52: 58 Otros Riesgos Catastroficos | E52: 5 | F52: 8
B53: Agricola y de Animales | C53: 44 | D53: 59 Agricola y de Animales | E53: 5 | F53: 9
B54: AyA Agricola | C54: 45 | D54: 60 AyA Agricola | E54: 6 | F54: 0
B55: AyA Otros | C55: 46 | D55: 61 AyA Otros | E55: 6 | F55: 1
B56: AyA Pecuario | C56: 47 | D56: 62 AyA Pecuario | E56: 6 | F56: 2
B57: Diversos | C57: 48 | D57: 63 Diversos | E57: 6 | F57: 3
B58: Miscelaneos | C58: 49 | D58: 64 Miscelaneos | E58: 6 | F58: 4
B59: Tecnicos | C59: 50 | D59: 65 Tecnicos | E59: 6 | F59: 5
B60: Credito | C60: 51 | D60: 66 Credito | E60: 6 | F60: 6
B61: Credito a la Vivienda | C61: 52 | D61: 67 Credito a la Vivienda | E61: 6 | F61: 7
B64: Automoviles
B65: Daños | D65: =E65&F65&" "&B65 -> Daños
B66: Daños Sin Autos
B67: IMSS Incapacidad Permanente RT | D67: =E67&F67&" "&B67 -> IMSS Incapacidad Permanente RT
B68: IMSS Invalidez (invalidez y vida) | D68: =E68&F68&" "&B68 -> IMSS Invalidez (invalidez y vida)
B69: IMSS Jubilacion (retiro, cesantia y vejez)
B70: IMSS Muerte (invalidez y vida) | D70: =E70&F70&" "&B70 -> IMSS Muerte (invalidez y vida)
B71: IMSS Muerte (riesgos de trabajo) | D71: =E71&F71&" "&B71 -> IMSS Muerte (riesgos de trabajo)
B72: ISSSTE Incapacidad Permanente RT
B73: ISSSTE Invalidez (invalidez y vida) | D73: =E73&F73&" "&B73 -> ISSSTE Invalidez (invalidez y vida)
B74: ISSSTE Jubilacion (retiro, cesantia y vejez) | D74: =E74&F74&" "&B74 -> ISSSTE Jubilacion (retiro, cesantia y vejez)
B75: ISSSTE Muerte (invalidez y vida) | D75: =E75&F75&" "&B75 -> ISSSTE Muerte (invalidez y vida)
B76: ISSSTE Muerte (riesgos de trabajo) | D76: =E76&F76&" "&B76 -> ISSSTE Muerte (riesgos de trabajo)

Sheet Inicio
J4: EstadisticAMIS Informe
D6: Con la finalidad de atender la solicitud de información, presentamos esta publicación comparando los datosprimas del periodo actual vs el mismo periodo del año anterior.
I10: Periodo: | J10: 2025-Q3
I11: Fecha de actualización: | J11: 2025-11-05
I12: Porcentaje de articipación: | J12: 0.9993
B14: ANÁLISIS DE PRIMAS DIRECTAS | G14: ANÁLISIS DE SINIESTROS
B21: NOTAS DE ACTUALIZACIÓN:
B22: *Dentegra cambio su nombre por AUNA Seguros. *No se incluyen la información de AUNA Seguros.
B26: DEFINICIÓN DE TÉRMINOS
B28: Participación de mercado
B29: Porcentaje que representa la participación de las compañías sobre el total del ramo o subramo que se está consultando.
B31: Participación por operación
B32: Porcentaje que representa la participación del subramo sobre el ramo de la compañía.
B34: Participación por cartera
B35: Porcentaje que representa la participación del ramo o subramos sobre el total general sin pensiones de la compañía.
B37: Participación por sector
B38: Porcentaje que representa la participación de la compañía del ramo o subramo(s) sobre la suma del total general sin pensiones.

Sheet Primas Directas
B1: PRIMAS DIRECTAS | L1: =VLOOKUP(RIGHT(TDPrimas_!B3,2),Cat!$N$2:$O$5,2,0)&" "&LEFT(TDPrimas_!B3,4) -> Tercer Trimestre 2025
B2: =UPPER(RIGHT(TDPrimas_!$B$4,LEN(TDPrimas_!$B$4)-3)) -> TOTAL GENERAL
L3: Cifras en miles
D4: 2 | E4: 3 | F4: 4 | G4: 5 | H4: 6 | I4: 7 | J4: 8 | K4: 9 | L4: 10
D5: Primas Directas | F5: % Part. en Merc. | H5: Incremento | J5: % de Cartera
B6: Compañías | D6: =LEFT(TDPrimas_!B3,4) -> 2025 | E6: =D6-1 -> 2024 | F6: =D6 -> 2025 | G6: =E6 -> 2024 | H6: Importe | I6: % | J6: Por | K6: Total | L6: Total
D7: Importe | E7: Importe | F7: =RIGHT(TDPrimas_!B3,2) -> Q3 | G7: =RIGHT(TDPrimas_!B3,2) -> Q3 | J7: Operación | K7: Cartera | L7: Sector
C8: TOTAL | D8: =VLOOKUP($C$8,$C$9:$L$125,D$4,0) -> 770211891.6 | E8: =VLOOKUP($C$8,$C$9:$L$125,E$4,0) -> 686509089.5 | F8: 100 | G8: 100 | H8: 83702802.1 | I8: 12.19252642 | J8: 100 | K8: 100 | L8: 100
B9: =IF(TDPrimas_!A7="","",TDPrimas_!A7) -> 1 | C9: =IF(TDPrimas_!B7="","",TDPrimas_!B7) -> G.N.P. | D9: =IF(TDPrimas_!C7="","",TDPrimas_!C7) -> 95200080.78 | E9: =IF(TDPrimas_!D7="","",TDPrimas_!D7) -> 84865140.39 | F9: =IF(TDPrimas_!E7="","",TDPrimas_!E7) -> 12.36024551 | G9: =IF(TDPrimas_!F7="","",TDPrimas_!F7) -> 12.36183784 | H9: =IF(TDPrimas_!G7="","",TDPrimas_!G7) -> 10334940.4 | I9: =IF(TDPrimas_!H7="","",TDPrimas_!H7) -> 12.17807494 | J9: =IF(TDPrimas_!I7="","",TDPrimas_!I7) -> 100 | K9: =IF(TDPrimas_!J7="","",TDPrimas_!J7) -> 100 | L9: =IF(TDPrimas_!K7="","",TDPrimas_!K7) -> 12.36024551
B10: =IF(TDPrimas_!A8="","",TDPrimas_!A8) -> 2 | C10: =IF(TDPrimas_!B8="","",TDPrimas_!B8) -> BBVA | D10: =IF(TDPrimas_!C8="","",TDPrimas_!C8) -> 72393915.93 | E10: =IF(TDPrimas_!D8="","",TDPrimas_!D8) -> 61339841.86 | F10: =IF(TDPrimas_!E8="","",TDPrimas_!E8) -> 9.39922075 | G10: =IF(TDPrimas_!F8="","",TDPrimas_!F8) -> 8.935037103 | H10: =IF(TDPrimas_!G8="","",TDPrimas_!G8) -> 11054074.07 | I10: =IF(TDPrimas_!H8="","",TDPrimas_!H8) -> 18.02103451 | J10: =IF(TDPrimas_!I8="","",TDPrimas_!I8) -> 100 | K10: =IF(TDPrimas_!J8="","",TDPrimas_!J8) -> 100 | L10: =IF(TDPrimas_!K8="","",TDPrimas_!K8) -> 9.39922075
B11: =IF(TDPrimas_!A9="","",TDPrimas_!A9) -> 3 | C11: =IF(TDPrimas_!B9="","",TDPrimas_!B9) -> Metlife México | D11: =IF(TDPrimas_!C9="","",TDPrimas_!C9) -> 66136633.36 | E11: =IF(TDPrimas_!D9="","",TDPrimas_!D9) -> 62258031 | F11: =IF(TDPrimas_!E9="","",TDPrimas_!E9) -> 8.586810211 | G11: =IF(TDPrimas_!F9="","",TDPrimas_!F9) -> 9.068784661 | H11: =IF(TDPrimas_!G9="","",TDPrimas_!G9) -> 3878602.352 | I11: =IF(TDPrimas_!H9="","",TDPrimas_!H9) -> 6.229882778 | J11: =IF(TDPrimas_!I9="","",TDPrimas_!I9) -> 100 | K11: =IF(TDPrimas_!J9="","",TDPrimas_!J9) -> 100 | L11: =IF(TDPrimas_!K9="","",TDPrimas_!K9) -> 8.586810211
B12: =IF(TDPrimas_!A10="","",TDPrimas_!A10) -> 4 | C12: =IF(TDPrimas_!B10="","",TDPrimas_!B10) -> Quálitas | D12: =IF(TDPrimas_!C10="","",TDPrimas_!C10) -> 50730778.69 | E12: =IF(TDPrimas_!D10="","",TDPrimas_!D10) -> 45799351.88 | F12: =IF(TDPrimas_!E10="","",TDPrimas_!E10) -> 6.586600291 | G12: =IF(TDPrimas_!F10="","",TDPrimas_!F10) -> 6.671339474 | H12: =IF(TDPrimas_!G10="","",TDPrimas_!G10) -> 4931426.809 | I12: =IF(TDPrimas_!H10="","",TDPrimas_!H10) -> 10.76745981 | J12: =IF(TDPrimas_!I10="","",TDPrimas_!I10) -> 100 | K12: =IF(TDPrimas_!J10="","",TDPrimas_!J10) -> 100 | L12: =IF(TDPrimas_!K10="","",TDPrimas_!K10) -> 6.586600291
B13: =IF(TDPrimas_!A11="","",TDPrimas_!A11) -> 5 | C13: =IF(TDPrimas_!B11="","",TDPrimas_!B11) -> AXA Seguros | D13: =IF(TDPrimas_!C11="","",TDPrimas_!C11) -> 50222142.31 | E13: =IF(TDPrimas_!D11="","",TDPrimas_!D11) -> 47053426.41 | F13: =IF(TDPrimas_!E11="","",TDPrimas_!E11) -> 6.52056179 | G13: =IF(TDPrimas_!F11="","",TDPrimas_!F11) -> 6.854013607 | H13: =IF(TDPrimas_!G11="","",TDPrimas_!G11) -> 3168715.899 | I13: =IF(TDPrimas_!H11="","",TDPrimas_!H11) -> 6.734293633 | J13: =IF(TDPrimas_!I11="","",TDPrimas_!I11) -> 100 | K13: =IF(TDPrimas_!J11="","",TDPrimas_!J11) -> 100 | L13: =IF(TDPrimas_!K11="","",TDPrimas_!K11) -> 6.52056179
B14: =IF(TDPrimas_!A12="","",TDPrimas_!A12) -> 5.1 | C14: =IF(TDPrimas_!B12="","",TDPrimas_!B12) -> TOTAL GRANDES | D14: =IF(TDPrimas_!C12="","",TDPrimas_!C12) -> 334683551.1 | E14: =IF(TDPrimas_!D12="","",TDPrimas_!D12) -> 301315791.5 | F14: =IF(TDPrimas_!E12="","",TDPrimas_!E12) -> 43.45343856 | G14: =IF(TDPrimas_!F12="","",TDPrimas_!F12) -> 43.89101268 | H14: =IF(TDPrimas_!G12="","",TDPrimas_!G12) -> 33367759.53 | I14: =IF(TDPrimas_!H12="","",TDPrimas_!H12) -> 11.07401619 | J14: =IF(TDPrimas_!I12="","",TDPrimas_!I12) -> 100 | K14: =IF(TDPrimas_!J12="","",TDPrimas_!J12) -> 100 | L14: =IF(TDPrimas_!K12="","",TDPrimas_!K12) -> 43.45343856
B15: =IF(TDPrimas_!A13="","",TDPrimas_!A13) -> 6 | C15: =IF(TDPrimas_!B13="","",TDPrimas_!B13) -> Banorte | D15: =IF(TDPrimas_!C13="","",TDPrimas_!C13) -> 45159030.64 | E15: =IF(TDPrimas_!D13="","",TDPrimas_!D13) -> 35723485.48 | F15: =IF(TDPrimas_!E13="","",TDPrimas_!E13) -> 5.863195717 | G15: =IF(TDPrimas_!F13="","",TDPrimas_!F13) -> 5.203643481 | H15: =IF(TDPrimas_!G13="","",TDPrimas_!G13) -> 9435545.16 | I15: =IF(TDPrimas_!H13="","",TDPrimas_!H13) -> 26.4127227 | J15: =IF(TDPrimas_!I13="","",TDPrimas_!I13) -> 100 | K15: =IF(TDPrimas_!J13="","",TDPrimas_!J13) -> 100 | L15: =IF(TDPrimas_!K13="","",TDPrimas_!K13) -> 5.863195717
B16: =IF(TDPrimas_!A14="","",TDPrimas_!A14) -> 7 | C16: =IF(TDPrimas_!B14="","",TDPrimas_!B14) -> Banamex Seguros | D16: =IF(TDPrimas_!C14="","",TDPrimas_!C14) -> 38955130.27 | E16: =IF(TDPrimas_!D14="","",TDPrimas_!D14) -> 44827465.71 | F16: =IF(TDPrimas_!E14="","",TDPrimas_!E14) -> 5.057716025 | G16: =IF(TDPrimas_!F14="","",TDPrimas_!F14) -> 6.529770165 | H16: =IF(TDPrimas_!G14="","",TDPrimas_!G14) -> -5872335.437 | I16: =IF(TDPrimas_!H14="","",TDPrimas_!H14) -> -13.09986042 | J16: =IF(TDPrimas_!I14="","",TDPrimas_!I14) -> 100 | K16: =IF(TDPrimas_!J14="","",TDPrimas_!J14) -> 100 | L16: =IF(TDPrimas_!K14="","",TDPrimas_!K14) -> 5.057716025
B17: =IF(TDPrimas_!A15="","",TDPrimas_!A15) -> 8 | C17: =IF(TDPrimas_!B15="","",TDPrimas_!B15) -> Monterrey New York Life | D17: =IF(TDPrimas_!C15="","",TDPrimas_!C15) -> 33270313.77 | E17: =IF(TDPrimas_!D15="","",TDPrimas_!D15) -> 30915868.76 | F17: =IF(TDPrimas_!E15="","",TDPrimas_!E15) -> 4.319631276 | G17: =IF(TDPrimas_!F15="","",TDPrimas_!F15) -> 4.503344418 | H17: =IF(TDPrimas_!G15="","",TDPrimas_!G15) -> 2354445.005 | I17: =IF(TDPrimas_!H15="","",TDPrimas_!H15) -> 7.615652089 | J17: =IF(TDPrimas_!I15="","",TDPrimas_!I15) -> 100 | K17: =IF(TDPrimas_!J15="","",TDPrimas_!J15) -> 100 | L17: =IF(TDPrimas_!K15="","",TDPrimas_!K15) -> 4.319631276
B18: =IF(TDPrimas_!A16="","",TDPrimas_!A16) -> 9 | C18: =IF(TDPrimas_!B16="","",TDPrimas_!B16) -> Mapfre México | D18: =IF(TDPrimas_!C16="","",TDPrimas_!C16) -> 30687810.65 | E18: =IF(TDPrimas_!D16="","",TDPrimas_!D16) -> 25680299.42 | F18: =IF(TDPrimas_!E16="","",TDPrimas_!E16) -> 3.98433353 | G18: =IF(TDPrimas_!F16="","",TDPrimas_!F16) -> 3.740707853 | H18: =IF(TDPrimas_!G16="","",TDPrimas_!G16) -> 5007511.223 | I18: =IF(TDPrimas_!H16="","",TDPrimas_!H16) -> 19.49942693 | J18: =IF(TDPrimas_!I16="","",TDPrimas_!I16) -> 100 | K18: =IF(TDPrimas_!J16="","",TDPrimas_!J16) -> 100 | L18: =IF(TDPrimas_!K16="","",TDPrimas_!K16) -> 3.98433353
B19: =IF(TDPrimas_!A17="","",TDPrimas_!A17) -> 10 | C19: =IF(TDPrimas_!B17="","",TDPrimas_!B17) -> Inbursa | D19: =IF(TDPrimas_!C17="","",TDPrimas_!C17) -> 24654610.77 | E19: =IF(TDPrimas_!D17="","",TDPrimas_!D17) -> 23848282.47 | F19: =IF(TDPrimas_!E17="","",TDPrimas_!E17) -> 3.201016635 | G19: =IF(TDPrimas_!F17="","",TDPrimas_!F17) -> 3.473848028 | H19: =IF(TDPrimas_!G17="","",TDPrimas_!G17) -> 806328.3072 | I19: =IF(TDPrimas_!H17="","",TDPrimas_!H17) -> 3.381074961 | J19: =IF(TDPrimas_!I17="","",TDPrimas_!I17) -> 100 | K19: =IF(TDPrimas_!J17="","",TDPrimas_!J17) -> 100 | L19: =IF(TDPrimas_!K17="","",TDPrimas_!K17) -> 3.201016635
B20: =IF(TDPrimas_!A18="","",TDPrimas_!A18) -> 11 | C20: =IF(TDPrimas_!B18="","",TDPrimas_!B18) -> Chubb Seguros México | D20: =IF(TDPrimas_!C18="","",TDPrimas_!C18) -> 24127131.33 | E20: =IF(TDPrimas_!D18="","",TDPrimas_!D18) -> 20570212.77 | F20: =IF(TDPrimas_!E18="","",TDPrimas_!E18) -> 3.132531656 | G20: =IF(TDPrimas_!F18="","",TDPrimas_!F18) -> 2.99634966 | H20: =IF(TDPrimas_!G18="","",TDPrimas_!G18) -> 3556918.56 | I20: =IF(TDPrimas_!H18="","",TDPrimas_!H18) -> 17.29159829 | J20: =IF(TDPrimas_!I18="","",TDPrimas_!I18) -> 100 | K20: =IF(TDPrimas_!J18="","",TDPrimas_!J18) -> 100 | L20: =IF(TDPrimas_!K18="","",TDPrimas_!K18) -> 3.132531656
B21: =IF(TDPrimas_!A19="","",TDPrimas_!A19) -> 12 | C21: =IF(TDPrimas_!B19="","",TDPrimas_!B19) -> Allianz México | D21: =IF(TDPrimas_!C19="","",TDPrimas_!C19) -> 23235788.47 | E21: =IF(TDPrimas_!D19="","",TDPrimas_!D19) -> 18450547.53 | F21: =IF(TDPrimas_!E19="","",TDPrimas_!E19) -> 3.01680469 | G21: =IF(TDPrimas_!F19="","",TDPrimas_!F19) -> 2.687589693 | H21: =IF(TDPrimas_!G19="","",TDPrimas_!G19) -> 4785240.94 | I21: =IF(TDPrimas_!H19="","",TDPrimas_!H19) -> 25.93549559 | J21: =IF(TDPrimas_!I19="","",TDPrimas_!I19) -> 100 | K21: =IF(TDPrimas_!J19="","",TDPrimas_!J19) -> 100 | L21: =IF(TDPrimas_!K19="","",TDPrimas_!K19) -> 3.01680469
B22: =IF(TDPrimas_!A20="","",TDPrimas_!A20) -> 13 | C22: =IF(TDPrimas_!B20="","",TDPrimas_!B20) -> Zurich Santander | D22: =IF(TDPrimas_!C20="","",TDPrimas_!C20) -> 19835739.91 | E22: =IF(TDPrimas_!D20="","",TDPrimas_!D20) -> 16146107.36 | F22: =IF(TDPrimas_!E20="","",TDPrimas_!E20) -> 2.57536142 | G22: =IF(TDPrimas_!F20="","",TDPrimas_!F20) -> 2.351914578 | H22: =IF(TDPrimas_!G20="","",TDPrimas_!G20) -> 3689632.549 | I22: =IF(TDPrimas_!H20="","",TDPrimas_!H20) -> 22.85152989 | J22: =IF(TDPrimas_!I20="","",TDPrimas_!I20) -> 100 | K22: =IF(TDPrimas_!J20="","",TDPrimas_!J20) -> 100 | L22: =IF(TDPrimas_!K20="","",TDPrimas_!K20) -> 2.57536142
B23: =IF(TDPrimas_!A21="","",TDPrimas_!A21) -> 14 | C23: =IF(TDPrimas_!B21="","",TDPrimas_!B21) -> Atlas | D23: =IF(TDPrimas_!C21="","",TDPrimas_!C21) -> 17981615.09 | E23: =IF(TDPrimas_!D21="","",TDPrimas_!D21) -> 17823957.29 | F23: =IF(TDPrimas_!E21="","",TDPrimas_!E21) -> 2.334632234 | G23: =IF(TDPrimas_!F21="","",TDPrimas_!F21) -> 2.596317742 | H23: =IF(TDPrimas_!G21="","",TDPrimas_!G21) -> 157657.7981 | I23: =IF(TDPrimas_!H21="","",TDPrimas_!H21) -> 0.8845274676 | J23: =IF(TDPrimas_!I21="","",TDPrimas_!I21) -> 100 | K23: =IF(TDPrimas_!J21="","",TDPrimas_!J21) -> 100 | L23: =IF(TDPrimas_!K21="","",TDPrimas_!K21) -> 2.334632234
B24: =IF(TDPrimas_!A22="","",TDPrimas_!A22) -> 15 | C24: =IF(TDPrimas_!B22="","",TDPrimas_!B22) -> Agroasemex | D24: =IF(TDPrimas_!C22="","",TDPrimas_!C22) -> 13598277.13 | E24: =IF(TDPrimas_!D22="","",TDPrimas_!D22) -> 6432910.424 | F24: =IF(TDPrimas_!E22="","",TDPrimas_!E22) -> 1.765524174 | G24: =IF(TDPrimas_!F22="","",TDPrimas_!F22) -> 0.9370466498 | H24: =IF(TDPrimas_!G22="","",TDPrimas_!G22) -> 7165366.71 | I24: =IF(TDPrimas_!H22="","",TDPrimas_!H22) -> 111.3860794 | J24: =IF(TDPrimas_!I22="","",TDPrimas_!I22) -> 100 | K24: =IF(TDPrimas_!J22="","",TDPrimas_!J22) -> 100 | L24: =IF(TDPrimas_!K22="","",TDPrimas_!K22) -> 1.765524174
B25: =IF(TDPrimas_!A23="","",TDPrimas_!A23) -> 15.1 | C25: =IF(TDPrimas_!B23="","",TDPrimas_!B23) -> TOTAL MEDIANAS | D25: =IF(TDPrimas_!C23="","",TDPrimas_!C23) -> 271505448 | E25: =IF(TDPrimas_!D23="","",TDPrimas_!D23) -> 240419137.2 | F25: =IF(TDPrimas_!E23="","",TDPrimas_!E23) -> 35.25074736 | G25: =IF(TDPrimas_!F23="","",TDPrimas_!F23) -> 35.02053227 | H25: =IF(TDPrimas_!G23="","",TDPrimas_!G23) -> 31086310.82 | I25: =IF(TDPrimas_!H23="","",TDPrimas_!H23) -> 12.9300484 | J25: =IF(TDPrimas_!I23="","",TDPrimas_!I23) -> 100 | K25: =IF(TDPrimas_!J23="","",TDPrimas_!J23) -> 100 | L25: =IF(TDPrimas_!K23="","",TDPrimas_!K23) -> 35.25074736
B26: =IF(TDPrimas_!A24="","",TDPrimas_!A24) -> 16 | C26: =IF(TDPrimas_!B24="","",TDPrimas_!B24) -> HSBC Seguros | D26: =IF(TDPrimas_!C24="","",TDPrimas_!C24) -> 12979804.62 | E26: =IF(TDPrimas_!D24="","",TDPrimas_!D24) -> 12695334.4 | F26: =IF(TDPrimas_!E24="","",TDPrimas_!E24) -> 1.685225165 | G26: =IF(TDPrimas_!F24="","",TDPrimas_!F24) -> 1.849259478 | H26: =IF(TDPrimas_!G24="","",TDPrimas_!G24) -> 284470.2131 | I26: =IF(TDPrimas_!H24="","",TDPrimas_!H24) -> 2.24074612 | J26: =IF(TDPrimas_!I24="","",TDPrimas_!I24) -> 100 | K26: =IF(TDPrimas_!J24="","",TDPrimas_!J24) -> 100 | L26: =IF(TDPrimas_!K24="","",TDPrimas_!K24) -> 1.685225165
B27: =IF(TDPrimas_!A25="","",TDPrimas_!A25) -> 17 | C27: =IF(TDPrimas_!B25="","",TDPrimas_!B25) -> ProFuturo G.N.P. | D27: =IF(TDPrimas_!C25="","",TDPrimas_!C25) -> 12182725.52 | E27: =IF(TDPrimas_!D25="","",TDPrimas_!D25) -> 8995707.534 | F27: =IF(TDPrimas_!E25="","",TDPrimas_!E25) -> 1.581736877 | G27: =IF(TDPrimas_!F25="","",TDPrimas_!F25) -> 1.310355197 | H27: =IF(TDPrimas_!G25="","",TDPrimas_!G25) -> 3187017.988 | I27: =IF(TDPrimas_!H25="","",TDPrimas_!H25) -> 35.42820813 | J27: =IF(TDPrimas_!I25="","",TDPrimas_!I25) -> 100 | K27: =IF(TDPrimas_!J25="","",TDPrimas_!J25) -> 100 | L27: =IF(TDPrimas_!K25="","",TDPrimas_!K25) -> 1.581736877
B28: =IF(TDPrimas_!A26="","",TDPrimas_!A26) -> 18 | C28: =IF(TDPrimas_!B26="","",TDPrimas_!B26) -> Pensiones Banorte | D28: =IF(TDPrimas_!C26="","",TDPrimas_!C26) -> 11966941.46 | E28: =IF(TDPrimas_!D26="","",TDPrimas_!D26) -> 13199642.62 | F28: =IF(TDPrimas_!E26="","",TDPrimas_!E26) -> 1.553720683 | G28: =IF(TDPrimas_!F26="","",TDPrimas_!F26) -> 1.922719279 | H28: =IF(TDPrimas_!G26="","",TDPrimas_!G26) -> -1232701.151 | I28: =IF(TDPrimas_!H26="","",TDPrimas_!H26) -> -9.338897929 | J28: =IF(TDPrimas_!I26="","",TDPrimas_!I26) -> 100 | K28: =IF(TDPrimas_!J26="","",TDPrimas_!J26) -> 100 | L28: =IF(TDPrimas_!K26="","",TDPrimas_!K26) -> 1.553720683
B29: =IF(TDPrimas_!A27="","",TDPrimas_!A27) -> 19 | C29: =IF(TDPrimas_!B27="","",TDPrimas_!B27) -> HDI Seguros | D29: =IF(TDPrimas_!C27="","",TDPrimas_!C27) -> 11052143.53 | E29: =IF(TDPrimas_!D27="","",TDPrimas_!D27) -> 9306186.595 | F29: =IF(TDPrimas_!E27="","",TDPrimas_!E27) -> 1.434948441 | G29: =IF(TDPrimas_!F27="","",TDPrimas_!F27) -> 1.355580973 | H29: =IF(TDPrimas_!G27="","",TDPrimas_!G27) -> 1745956.933 | I29: =IF(TDPrimas_!H27="","",TDPrimas_!H27) -> 18.76125 | J29: =IF(TDPrimas_!I27="","",TDPrimas_!I27) -> 100 | K29: =IF(TDPrimas_!J27="","",TDPrimas_!J27) -> 100 | L29: =IF(TDPrimas_!K27="","",TDPrimas_!K27) -> 1.434948441
B30: =IF(TDPrimas_!A28="","",TDPrimas_!A28) -> 20 | C30: =IF(TDPrimas_!B28="","",TDPrimas_!B28) -> Zurich Aseguradora Mexicana | D30: =IF(TDPrimas_!C28="","",TDPrimas_!C28) -> 10982728.37 | E30: =IF(TDPrimas_!D28="","",TDPrimas_!D28) -> 10496838.85 | F30: =IF(TDPrimas_!E28="","",TDPrimas_!E28) -> 1.425935964 | G30: =IF(TDPrimas_!F28="","",TDPrimas_!F28) -> 1.529016733 | H30: =IF(TDPrimas_!G28="","",TDPrimas_!G28) -> 485889.5128 | I30: =IF(TDPrimas_!H28="","",TDPrimas_!H28) -> 4.628912758 | J30: =IF(TDPrimas_!I28="","",TDPrimas_!I28) -> 100 | K30: =IF(TDPrimas_!J28="","",TDPrimas_!J28) -> 100 | L30: =IF(TDPrimas_!K28="","",TDPrimas_!K28) -> 1.425935964
B31: =IF(TDPrimas_!A29="","",TDPrimas_!A29) -> 21 | C31: =IF(TDPrimas_!B29="","",TDPrimas_!B29) -> Pensiones BBVA | D31: =IF(TDPrimas_!C29="","",TDPrimas_!C29) -> 9676186.363 | E31: =IF(TDPrimas_!D29="","",TDPrimas_!D29) -> 6921813.909 | F31: =IF(TDPrimas_!E29="","",TDPrimas_!E29) -> 1.256301866 | G31: =IF(TDPrimas_!F29="","",TDPrimas_!F29) -> 1.008262529 | H31: =IF(TDPrimas_!G29="","",TDPrimas_!G29) -> 2754372.454 | I31: =IF(TDPrimas_!H29="","",TDPrimas_!H29) -> 39.79263948 | J31: =IF(TDPrimas_!I29="","",TDPrimas_!I29) -> 100 | K31: =IF(TDPrimas_!J29="","",TDPrimas_!J29) -> 100 | L31: =IF(TDPrimas_!K29="","",TDPrimas_!K29) -> 1.256301866
B32: =IF(TDPrimas_!A30="","",TDPrimas_!A30) -> 22 | C32: =IF(TDPrimas_!B30="","",TDPrimas_!B30) -> GMX Seguros | D32: =IF(TDPrimas_!C30="","",TDPrimas_!C30) -> 8451044.793 | E32: =IF(TDPrimas_!D30="","",TDPrimas_!D30) -> 8783487.936 | F32: =IF(TDPrimas_!E30="","",TDPrimas_!E30) -> 1.097236343 | G32: =IF(TDPrimas_!F30="","",TDPrimas_!F30) -> 1.279442337 | H32: =IF(TDPrimas_!G30="","",TDPrimas_!G30) -> -332443.1424 | I32: =IF(TDPrimas_!H30="","",TDPrimas_!H30) -> -3.784864793 | J32: =IF(TDPrimas_!I30="","",TDPrimas_!I30) -> 100 | K32: =IF(TDPrimas_!J30="","",TDPrimas_!J30) -> 100 | L32: =IF(TDPrimas_!K30="","",TDPrimas_!K30) -> 1.097236343
B33: =IF(TDPrimas_!A31="","",TDPrimas_!A31) -> 23 | C33: =IF(TDPrimas_!B31="","",TDPrimas_!B31) -> AIG Seguros | D33: =IF(TDPrimas_!C31="","",TDPrimas_!C31) -> 6300133.655 | E33: =IF(TDPrimas_!D31="","",TDPrimas_!D31) -> 5387062.674 | F33: =IF(TDPrimas_!E31="","",TDPrimas_!E31) -> 0.8179740827 | G33: =IF(TDPrimas_!F31="","",TDPrimas_!F31) -> 0.7847037652 | H33: =IF(TDPrimas_!G31="","",TDPrimas_!G31) -> 913070.9812 | I33: =IF(TDPrimas_!H31="","",TDPrimas_!H31) -> 16.94932909 | J33: =IF(TDPrimas_!I31="","",TDPrimas_!I31) -> 100 | K33: =IF(TDPrimas_!J31="","",TDPrimas_!J31) -> 100 | L33: =IF(TDPrimas_!K31="","",TDPrimas_!K31) -> 0.8179740827
B34: =IF(TDPrimas_!A32="","",TDPrimas_!A32) -> 24 | C34: =IF(TDPrimas_!B32="","",TDPrimas_!B32) -> Afirme | D34: =IF(TDPrimas_!C32="","",TDPrimas_!C32) -> 5593472.962 | E34: =IF(TDPrimas_!D32="","",TDPrimas_!D32) -> 5391455.186 | F34: =IF(TDPrimas_!E32="","",TDPrimas_!E32) -> 0.7262252145 | G34: =IF(TDPrimas_!F32="","",TDPrimas_!F32) -> 0.7853435982 | H34: =IF(TDPrimas_!G32="","",TDPrimas_!G32) -> 202017.776 | I34: =IF(TDPrimas_!H32="","",TDPrimas_!H32) -> 3.746999076 | J34: =IF(TDPrimas_!I32="","",TDPrimas_!I32) -> 100 | K34: =IF(TDPrimas_!J32="","",TDPrimas_!J32) -> 100 | L34: =IF(TDPrimas_!K32="","",TDPrimas_!K32) -> 0.7262252145
B35: =IF(TDPrimas_!A33="","",TDPrimas_!A33) -> 25 | C35: =IF(TDPrimas_!B33="","",TDPrimas_!B33) -> Seguros SURA | D35: =IF(TDPrimas_!C33="","",TDPrimas_!C33) -> 4871025.241 | E35: =IF(TDPrimas_!D33="","",TDPrimas_!D33) -> 4592296.013 | F35: =IF(TDPrimas_!E33="","",TDPrimas_!E33) -> 0.6324266471 | G35: =IF(TDPrimas_!F33="","",TDPrimas_!F33) -> 0.6689344807 | H35: =IF(TDPrimas_!G33="","",TDPrimas_!G33) -> 278729.2282 | I35: =IF(TDPrimas_!H33="","",TDPrimas_!H33) -> 6.069496118 | J35: =IF(TDPrimas_!I33="","",TDPrimas_!I33) -> 100 | K35: =IF(TDPrimas_!J33="","",TDPrimas_!J33) -> 100 | L35: =IF(TDPrimas_!K33="","",TDPrimas_!K33) -> 0.6324266471
B36: =IF(TDPrimas_!A34="","",TDPrimas_!A34) -> 26 | C36: =IF(TDPrimas_!B34="","",TDPrimas_!B34) -> Patrimonial Vida | D36: =IF(TDPrimas_!C34="","",TDPrimas_!C34) -> 4625465.06 | E36: =IF(TDPrimas_!D34="","",TDPrimas_!D34) -> 2704976.959 | F36: =IF(TDPrimas_!E34="","",TDPrimas_!E34) -> 0.6005444879 | G36: =IF(TDPrimas_!F34="","",TDPrimas_!F34) -> 0.3940191033 | H36: =IF(TDPrimas_!G34="","",TDPrimas_!G34) -> 1920488.101 | I36: =IF(TDPrimas_!H34="","",TDPrimas_!H34) -> 70.99831645 | J36: =IF(TDPrimas_!I34="","",TDPrimas_!I34) -> 100 | K36: =IF(TDPrimas_!J34="","",TDPrimas_!J34) -> 100 | L36: =IF(TDPrimas_!K34="","",TDPrimas_!K34) -> 0.6005444879
B37: =IF(TDPrimas_!A35="","",TDPrimas_!A35) -> 27 | C37: =IF(TDPrimas_!B35="","",TDPrimas_!B35) -> Hir Seguros | D37: =IF(TDPrimas_!C35="","",TDPrimas_!C35) -> 4515434.181 | E37: =IF(TDPrimas_!D35="","",TDPrimas_!D35) -> 3240513.884 | F37: =IF(TDPrimas_!E35="","",TDPrimas_!E35) -> 0.5862586945 | G37: =IF(TDPrimas_!F35="","",TDPrimas_!F35) -> 0.4720278192 | H37: =IF(TDPrimas_!G35="","",TDPrimas_!G35) -> 1274920.297 | I37: =IF(TDPrimas_!H35="","",TDPrimas_!H35) -> 39.34315182 | J37: =IF(TDPrimas_!I35="","",TDPrimas_!I35) -> 100 | K37: =IF(TDPrimas_!J35="","",TDPrimas_!J35) -> 100 | L37: =IF(TDPrimas_!K35="","",TDPrimas_!K35) -> 0.5862586945
B38: =IF(TDPrimas_!A36="","",TDPrimas_!A36) -> 28 | C38: =IF(TDPrimas_!B36="","",TDPrimas_!B36) -> BUPA México | D38: =IF(TDPrimas_!C36="","",TDPrimas_!C36) -> 4375142.857 | E38: =IF(TDPrimas_!D36="","",TDPrimas_!D36) -> 3560915.634 | F38: =IF(TDPrimas_!E36="","",TDPrimas_!E36) -> 0.5680440544 | G38: =IF(TDPrimas_!F36="","",TDPrimas_!F36) -> 0.5186989785 | H38: =IF(TDPrimas_!G36="","",TDPrimas_!G36) -> 814227.2222 | I38: =IF(TDPrimas_!H36="","",TDPrimas_!H36) -> 22.86567012 | J38: =IF(TDPrimas_!I36="","",TDPrimas_!I36) -> 100 | K38: =IF(TDPrimas_!J36="","",TDPrimas_!J36) -> 100 | L38: =IF(TDPrimas_!K36="","",TDPrimas_!K36) -> 0.5680440544
B39: =IF(TDPrimas_!A37="","",TDPrimas_!A37) -> 29 | C39: =IF(TDPrimas_!B37="","",TDPrimas_!B37) -> Ve Por Más | D39: =IF(TDPrimas_!C37="","",TDPrimas_!C37) -> 3740005.272 | E39: =IF(TDPrimas_!D37="","",TDPrimas_!D37) -> 3728743.961 | F39: =IF(TDPrimas_!E37="","",TDPrimas_!E37) -> 0.4855813462 | G39: =IF(TDPrimas_!F37="","",TDPrimas_!F37) -> 0.543145607 | H39: =IF(TDPrimas_!G37="","",TDPrimas_!G37) -> 11261.31039 | I39: =IF(TDPrimas_!H37="","",TDPrimas_!H37) -> 0.3020135066 | J39: =IF(TDPrimas_!I37="","",TDPrimas_!I37) -> 100 | K39: =IF(TDPrimas_!J37="","",TDPrimas_!J37) -> 100 | L39: =IF(TDPrimas_!K37="","",TDPrimas_!K37) -> 0.4855813462
B40: =IF(TDPrimas_!A38="","",TDPrimas_!A38) -> 30 | C40: =IF(TDPrimas_!B38="","",TDPrimas_!B38) -> Cardif Vida | D40: =IF(TDPrimas_!C38="","",TDPrimas_!C38) -> 3667211.957 | E40: =IF(TDPrimas_!D38="","",TDPrimas_!D38) -> 2528072.369 | F40: =IF(TDPrimas_!E38="","",TDPrimas_!E38) -> 0.4761302697 | G40: =IF(TDPrimas_!F38="","",TDPrimas_!F38) -> 0.3682503855 | H40: =IF(TDPrimas_!G38="","",TDPrimas_!G38) -> 1139139.588 | I40: =IF(TDPrimas_!H38="","",TDPrimas_!H38) -> 45.05961151 | J40: =IF(TDPrimas_!I38="","",TDPrimas_!I38) -> 100 | K40: =IF(TDPrimas_!J38="","",TDPrimas_!J38) -> 100 | L40: =IF(TDPrimas_!K38="","",TDPrimas_!K38) -> 0.4761302697
B41: =IF(TDPrimas_!A39="","",TDPrimas_!A39) -> 31 | C41: =IF(TDPrimas_!B39="","",TDPrimas_!B39) -> FM Global | D41: =IF(TDPrimas_!C39="","",TDPrimas_!C39) -> 3623624.725 | E41: =IF(TDPrimas_!D39="","",TDPrimas_!D39) -> 3245561.499 | F41: =IF(TDPrimas_!E39="","",TDPrimas_!E39) -> 0.4704711475 | G41: =IF(TDPrimas_!F39="","",TDPrimas_!F39) -> 0.4727630775 | H41: =IF(TDPrimas_!G39="","",TDPrimas_!G39) -> 378063.2257 | I41: =IF(TDPrimas_!H39="","",TDPrimas_!H39) -> 11.64862308 | J41: =IF(TDPrimas_!I39="","",TDPrimas_!I39) -> 100 | K41: =IF(TDPrimas_!J39="","",TDPrimas_!J39) -> 100 | L41: =IF(TDPrimas_!K39="","",TDPrimas_!K39) -> 0.4704711475
B42: =IF(TDPrimas_!A40="","",TDPrimas_!A40) -> 32 | C42: =IF(TDPrimas_!B40="","",TDPrimas_!B40) -> ANA | D42: =IF(TDPrimas_!C40="","",TDPrimas_!C40) -> 3347262.784 | E42: =IF(TDPrimas_!D40="","",TDPrimas_!D40) -> 2784750.469 | F42: =IF(TDPrimas_!E40="","",TDPrimas_!E40) -> 0.4345898604 | G42: =IF(TDPrimas_!F40="","",TDPrimas_!F40) -> 0.4056392715 | H42: =IF(TDPrimas_!G40="","",TDPrimas_!G40) -> 562512.3149 | I42: =IF(TDPrimas_!H40="","",TDPrimas_!H40) -> 20.19973858 | J42: =IF(TDPrimas_!I40="","",TDPrimas_!I40) -> 100 | K42: =IF(TDPrimas_!J40="","",TDPrimas_!J40) -> 100 | L42: =IF(TDPrimas_!K40="","",TDPrimas_!K40) -> 0.4345898604
B43: =IF(TDPrimas_!A41="","",TDPrimas_!A41) -> 33 | C43: =IF(TDPrimas_!B41="","",TDPrimas_!B41) -> Plan Seguro | D43: =IF(TDPrimas_!C41="","",TDPrimas_!C41) -> 3324020.051 | E43: =IF(TDPrimas_!D41="","",TDPrimas_!D41) -> 2340553.693 | F43: =IF(TDPrimas_!E41="","",TDPrimas_!E41) -> 0.431572154 | G43: =IF(TDPrimas_!F41="","",TDPrimas_!F41) -> 0.3409355723 | H43: =IF(TDPrimas_!G41="","",TDPrimas_!G41) -> 983466.3579 | I43: =IF(TDPrimas_!H41="","",TDPrimas_!H41) -> 42.01853436 | J43: =IF(TDPrimas_!I41="","",TDPrimas_!I41) -> 100 | K43: =IF(TDPrimas_!J41="","",TDPrimas_!J41) -> 100 | L43: =IF(TDPrimas_!K41="","",TDPrimas_!K41) -> 0.431572154
B44: =IF(TDPrimas_!A42="","",TDPrimas_!A42) -> 34 | C44: =IF(TDPrimas_!B42="","",TDPrimas_!B42) -> Seguros Azteca | D44: =IF(TDPrimas_!C42="","",TDPrimas_!C42) -> 2729565.32 | E44: =IF(TDPrimas_!D42="","",TDPrimas_!D42) -> 2821244.02 | F44: =IF(TDPrimas_!E42="","",TDPrimas_!E42) -> 0.3543914797 | G44: =IF(TDPrimas_!F42="","",TDPrimas_!F42) -> 0.4109550861 | H44: =IF(TDPrimas_!G42="","",TDPrimas_!G42) -> -91678.70061 | I44: =IF(TDPrimas_!H42="","",TDPrimas_!H42) -> -3.249584224 | J44: =IF(TDPrimas_!I42="","",TDPrimas_!I42) -> 100 | K44: =IF(TDPrimas_!J42="","",TDPrimas_!J42) -> 100 | L44: =IF(TDPrimas_!K42="","",TDPrimas_!K42) -> 0.3543914797
B45: =IF(TDPrimas_!A43="","",TDPrimas_!A43) -> 35 | C45: =IF(TDPrimas_!B43="","",TDPrimas_!B43) -> General de Seguros | D45: =IF(TDPrimas_!C43="","",TDPrimas_!C43) -> 2630736.925 | E45: =IF(TDPrimas_!D43="","",TDPrimas_!D43) -> 2219668.69 | F45: =IF(TDPrimas_!E43="","",TDPrimas_!E43) -> 0.3415601543 | G45: =IF(TDPrimas_!F43="","",TDPrimas_!F43) -> 0.3233269193 | H45: =IF(TDPrimas_!G43="","",TDPrimas_!G43) -> 411068.2355 | I45: =IF(TDPrimas_!H43="","",TDPrimas_!H43) -> 18.51935099 | J45: =IF(TDPrimas_!I43="","",TDPrimas_!I43) -> 100 | K45: =IF(TDPrimas_!J43="","",TDPrimas_!J43) -> 100 | L45: =IF(TDPrimas_!K43="","",TDPrimas_!K43) -> 0.3415601543
B46: =IF(TDPrimas_!A44="","",TDPrimas_!A44) -> 36 | C46: =IF(TDPrimas_!B44="","",TDPrimas_!B44) -> Seguros Argos | D46: =IF(TDPrimas_!C44="","",TDPrimas_!C44) -> 2607218.612 | E46: =IF(TDPrimas_!D44="","",TDPrimas_!D44) -> 2553070.5 | F46: =IF(TDPrimas_!E44="","",TDPrimas_!E44) -> 0.3385066682 | G46: =IF(TDPrimas_!F44="","",TDPrimas_!F44) -> 0.3718917257 | H46: =IF(TDPrimas_!G44="","",TDPrimas_!G44) -> 54148.11197 | I46: =IF(TDPrimas_!H44="","",TDPrimas_!H44) -> 2.120901556 | J46: =IF(TDPrimas_!I44="","",TDPrimas_!I44) -> 100 | K46: =IF(TDPrimas_!J44="","",TDPrimas_!J44) -> 100 | L46: =IF(TDPrimas_!K44="","",TDPrimas_!K44) -> 0.3385066682
B47: =IF(TDPrimas_!A45="","",TDPrimas_!A45) -> 37 | C47: =IF(TDPrimas_!B45="","",TDPrimas_!B45) -> Cardif Seguros Generales | D47: =IF(TDPrimas_!C45="","",TDPrimas_!C45) -> 2456286.892 | E47: =IF(TDPrimas_!D45="","",TDPrimas_!D45) -> 0 | F47: =IF(TDPrimas_!E45="","",TDPrimas_!E45) -> 0.3189105386 | G47: =IF(TDPrimas_!F45="","",TDPrimas_!F45) -> 0 | H47: =IF(TDPrimas_!G45="","",TDPrimas_!G45) -> 0 | I47: =IF(TDPrimas_!H45="","",TDPrimas_!H45) -> 0 | J47: =IF(TDPrimas_!I45="","",TDPrimas_!I45) -> 100 | K47: =IF(TDPrimas_!J45="","",TDPrimas_!J45) -> 100 | L47: =IF(TDPrimas_!K45="","",TDPrimas_!K45) -> 0.3189105386
B48: =IF(TDPrimas_!A46="","",TDPrimas_!A46) -> 38 | C48: =IF(TDPrimas_!B46="","",TDPrimas_!B46) -> El Potosí | D48: =IF(TDPrimas_!C46="","",TDPrimas_!C46) -> 2435676.414 | E48: =IF(TDPrimas_!D46="","",TDPrimas_!D46) -> 1891357.541 | F48: =IF(TDPrimas_!E46="","",TDPrimas_!E46) -> 0.3162345895 | G48: =IF(TDPrimas_!F46="","",TDPrimas_!F46) -> 0.2755036415 | H48: =IF(TDPrimas_!G46="","",TDPrimas_!G46) -> 544318.8732 | I48: =IF(TDPrimas_!H46="","",TDPrimas_!H46) -> 28.77926893 | J48: =IF(TDPrimas_!I46="","",TDPrimas_!I46) -> 100 | K48: =IF(TDPrimas_!J46="","",TDPrimas_!J46) -> 100 | L48: =IF(TDPrimas_!K46="","",TDPrimas_!K46) -> 0.3162345895
B49: =IF(TDPrimas_!A47="","",TDPrimas_!A47) -> 39 | C49: =IF(TDPrimas_!B47="","",TDPrimas_!B47) -> HDI Global Seguros | D49: =IF(TDPrimas_!C47="","",TDPrimas_!C47) -> 2295531.777 | E49: =IF(TDPrimas_!D47="","",TDPrimas_!D47) -> 2103649.437 | F49: =IF(TDPrimas_!E47="","",TDPrimas_!E47) -> 0.2980389944 | G49: =IF(TDPrimas_!F47="","",TDPrimas_!F47) -> 0.3064270334 | H49: =IF(TDPrimas_!G47="","",TDPrimas_!G47) -> 191882.3401 | I49: =IF(TDPrimas_!H47="","",TDPrimas_!H47) -> 9.12140287 | J49: =IF(TDPrimas_!I47="","",TDPrimas_!I47) -> 100 | K49: =IF(TDPrimas_!J47="","",TDPrimas_!J47) -> 100 | L49: =IF(TDPrimas_!K47="","",TDPrimas_!K47) -> 0.2980389944
B50: =IF(TDPrimas_!A48="","",TDPrimas_!A48) -> 40 | C50: =IF(TDPrimas_!B48="","",TDPrimas_!B48) -> Seguros Azteca Daños | D50: =IF(TDPrimas_!C48="","",TDPrimas_!C48) -> 1992442.888 | E50: =IF(TDPrimas_!D48="","",TDPrimas_!D48) -> 1756185.315 | F50: =IF(TDPrimas_!E48="","",TDPrimas_!E48) -> 0.25868763 | G50: =IF(TDPrimas_!F48="","",TDPrimas_!F48) -> 0.2558138474 | H50: =IF(TDPrimas_!G48="","",TDPrimas_!G48) -> 236257.5731 | I50: =IF(TDPrimas_!H48="","",TDPrimas_!H48) -> 13.45288399 | J50: =IF(TDPrimas_!I48="","",TDPrimas_!I48) -> 100 | K50: =IF(TDPrimas_!J48="","",TDPrimas_!J48) -> 100 | L50: =IF(TDPrimas_!K48="","",TDPrimas_!K48) -> 0.25868763
B51: =IF(TDPrimas_!A49="","",TDPrimas_!A49) -> 41 | C51: =IF(TDPrimas_!B49="","",TDPrimas_!B49) -> Thona | D51: =IF(TDPrimas_!C49="","",TDPrimas_!C49) -> 1952625.48 | E51: =IF(TDPrimas_!D49="","",TDPrimas_!D49) -> 2019824.973 | F51: =IF(TDPrimas_!E49="","",TDPrimas_!E49) -> 0.2535179606 | G51: =IF(TDPrimas_!F49="","",TDPrimas_!F49) -> 0.2942167851 | H51: =IF(TDPrimas_!G49="","",TDPrimas_!G49) -> -67199.49262 | I51: =IF(TDPrimas_!H49="","",TDPrimas_!H49) -> -3.32699583 | J51: =IF(TDPrimas_!I49="","",TDPrimas_!I49) -> 100 | K51: =IF(TDPrimas_!J49="","",TDPrimas_!J49) -> 100 | L51: =IF(TDPrimas_!K49="","",TDPrimas_!K49) -> 0.2535179606
B52: =IF(TDPrimas_!A50="","",TDPrimas_!A50) -> 42 | C52: =IF(TDPrimas_!B50="","",TDPrimas_!B50) -> Prudential | D52: =IF(TDPrimas_!C50="","",TDPrimas_!C50) -> 1828165.49 | E52: =IF(TDPrimas_!D50="","",TDPrimas_!D50) -> 1558409.868 | F52: =IF(TDPrimas_!E50="","",TDPrimas_!E50) -> 0.2373587723 | G52: =IF(TDPrimas_!F50="","",TDPrimas_!F50) -> 0.2270049869 | H52: =IF(TDPrimas_!G50="","",TDPrimas_!G50) -> 269755.622 | I52: =IF(TDPrimas_!H50="","",TDPrimas_!H50) -> 17.30967106 | J52: =IF(TDPrimas_!I50="","",TDPrimas_!I50) -> 100 | K52: =IF(TDPrimas_!J50="","",TDPrimas_!J50) -> 100 | L52: =IF(TDPrimas_!K50="","",TDPrimas_!K50) -> 0.2373587723
B53: =IF(TDPrimas_!A51="","",TDPrimas_!A51) -> 43 | C53: =IF(TDPrimas_!B51="","",TDPrimas_!B51) -> Insignia Life | D53: =IF(TDPrimas_!C51="","",TDPrimas_!C51) -> 1793771.253 | E53: =IF(TDPrimas_!D51="","",TDPrimas_!D51) -> 1484029.323 | F53: =IF(TDPrimas_!E51="","",TDPrimas_!E51) -> 0.2328932171 | G53: =IF(TDPrimas_!F51="","",TDPrimas_!F51) -> 0.2161703822 | H53: =IF(TDPrimas_!G51="","",TDPrimas_!G51) -> 309741.93 | I53: =IF(TDPrimas_!H51="","",TDPrimas_!H51) -> 20.8716853 | J53: =IF(TDPrimas_!I51="","",TDPrimas_!I51) -> 100 | K53: =IF(TDPrimas_!J51="","",TDPrimas_!J51) -> 100 | L53: =IF(TDPrimas_!K51="","",TDPrimas_!K51) -> 0.2328932171
B54: =IF(TDPrimas_!A52="","",TDPrimas_!A52) -> 44 | C54: =IF(TDPrimas_!B52="","",TDPrimas_!B52) -> BBVA Salud | D54: =IF(TDPrimas_!C52="","",TDPrimas_!C52) -> 1738518.108 | E54: =IF(TDPrimas_!D52="","",TDPrimas_!D52) -> 1674526.547 | F54: =IF(TDPrimas_!E52="","",TDPrimas_!E52) -> 0.2257194581 | G54: =IF(TDPrimas_!F52="","",TDPrimas_!F52) -> 0.2439190643 | H54: =IF(TDPrimas_!G52="","",TDPrimas_!G52) -> 63991.56063 | I54: =IF(TDPrimas_!H52="","",TDPrimas_!H52) -> 3.821471851 | J54: =IF(TDPrimas_!I52="","",TDPrimas_!I52) -> 100 | K54: =IF(TDPrimas_!J52="","",TDPrimas_!J52) -> 100 | L54: =IF(TDPrimas_!K52="","",TDPrimas_!K52) -> 0.2257194581
B55: =IF(TDPrimas_!A53="","",TDPrimas_!A53) -> 45 | C55: =IF(TDPrimas_!B53="","",TDPrimas_!B53) -> El Águila | D55: =IF(TDPrimas_!C53="","",TDPrimas_!C53) -> 1354763.155 | E55: =IF(TDPrimas_!D53="","",TDPrimas_!D53) -> 1282462.571 | F55: =IF(TDPrimas_!E53="","",TDPrimas_!E53) -> 0.1758948635 | G55: =IF(TDPrimas_!F53="","",TDPrimas_!F53) -> 0.1868092631 | H55: =IF(TDPrimas_!G53="","",TDPrimas_!G53) -> 72300.58405 | I55: =IF(TDPrimas_!H53="","",TDPrimas_!H53) -> 5.637636971 | J55: =IF(TDPrimas_!I53="","",TDPrimas_!I53) -> 100 | K55: =IF(TDPrimas_!J53="","",TDPrimas_!J53) -> 100 | L55: =IF(TDPrimas_!K53="","",TDPrimas_!K53) -> 0.1758948635
B56: =IF(TDPrimas_!A54="","",TDPrimas_!A54) -> 46 | C56: =IF(TDPrimas_!B54="","",TDPrimas_!B54) -> Swiss Re Corporate Solutions | D56: =IF(TDPrimas_!C54="","",TDPrimas_!C54) -> 1319552.848 | E56: =IF(TDPrimas_!D54="","",TDPrimas_!D54) -> 1289086.576 | F56: =IF(TDPrimas_!E54="","",TDPrimas_!E54) -> 0.1713233543 | G56: =IF(TDPrimas_!F54="","",TDPrimas_!F54) -> 0.1877741454 | H56: =IF(TDPrimas_!G54="","",TDPrimas_!G54) -> 30466.27257 | I56: =IF(TDPrimas_!H54="","",TDPrimas_!H54) -> 2.363400034 | J56: =IF(TDPrimas_!I54="","",TDPrimas_!I54) -> 100 | K56: =IF(TDPrimas_!J54="","",TDPrimas_!J54) -> 100 | L56: =IF(TDPrimas_!K54="","",TDPrimas_!K54) -> 0.1713233543
B57: =IF(TDPrimas_!A55="","",TDPrimas_!A55) -> 47 | C57: =IF(TDPrimas_!B55="","",TDPrimas_!B55) -> Assurant Vida | D57: =IF(TDPrimas_!C55="","",TDPrimas_!C55) -> 1204700.143 | E57: =IF(TDPrimas_!D55="","",TDPrimas_!D55) -> 1097528.577 | F57: =IF(TDPrimas_!E55="","",TDPrimas_!E55) -> 0.1564115221 | G57: =IF(TDPrimas_!F55="","",TDPrimas_!F55) -> 0.1598709461 | H57: =IF(TDPrimas_!G55="","",TDPrimas_!G55) -> 107171.5666 | I57: =IF(TDPrimas_!H55="","",TDPrimas_!H55) -> 9.764808764 | J57: =IF(TDPrimas_!I55="","",TDPrimas_!I55) -> 100 | K57: =IF(TDPrimas_!J55="","",TDPrimas_!J55) -> 100 | L57: =IF(TDPrimas_!K55="","",TDPrimas_!K55) -> 0.1564115221
B58: =IF(TDPrimas_!A56="","",TDPrimas_!A56) -> 48 | C58: =IF(TDPrimas_!B56="","",TDPrimas_!B56) -> Tokio Marine | D58: =IF(TDPrimas_!C56="","",TDPrimas_!C56) -> 1046151.054 | E58: =IF(TDPrimas_!D56="","",TDPrimas_!D56) -> 835205.6391 | F58: =IF(TDPrimas_!E56="","",TDPrimas_!E56) -> 0.135826396 | G58: =IF(TDPrimas_!F56="","",TDPrimas_!F56) -> 0.1216598078 | H58: =IF(TDPrimas_!G56="","",TDPrimas_!G56) -> 210945.415 | I58: =IF(TDPrimas_!H56="","",TDPrimas_!H56) -> 25.25670387 | J58: =IF(TDPrimas_!I56="","",TDPrimas_!I56) -> 100 | K58: =IF(TDPrimas_!J56="","",TDPrimas_!J56) -> 100 | L58: =IF(TDPrimas_!K56="","",TDPrimas_!K56) -> 0.135826396
B59: =IF(TDPrimas_!A57="","",TDPrimas_!A57) -> 49 | C59: =IF(TDPrimas_!B57="","",TDPrimas_!B57) -> La Latinoamericana | D59: =IF(TDPrimas_!C57="","",TDPrimas_!C57) -> 1045705.941 | E59: =IF(TDPrimas_!D57="","",TDPrimas_!D57) -> 1151107.15 | F59: =IF(TDPrimas_!E57="","",TDPrimas_!E57) -> 0.135768605 | G59: =IF(TDPrimas_!F57="","",TDPrimas_!F57) -> 0.167675442 | H59: =IF(TDPrimas_!G57="","",TDPrimas_!G57) -> -105401.2098 | I59: =IF(TDPrimas_!H57="","",TDPrimas_!H57) -> -9.156507262 | J59: =IF(TDPrimas_!I57="","",TDPrimas_!I57) -> 100 | K59: =IF(TDPrimas_!J57="","",TDPrimas_!J57) -> 100 | L59: =IF(TDPrimas_!K57="","",TDPrimas_!K57) -> 0.135768605
B60: =IF(TDPrimas_!A58="","",TDPrimas_!A58) -> 50 | C60: =IF(TDPrimas_!B58="","",TDPrimas_!B58) -> Pan-American México | D60: =IF(TDPrimas_!C58="","",TDPrimas_!C58) -> 992599.6586 | E60: =IF(TDPrimas_!D58="","",TDPrimas_!D58) -> 996928.2811 | F60: =IF(TDPrimas_!E58="","",TDPrimas_!E58) -> 0.1288735826 | G60: =IF(TDPrimas_!F58="","",TDPrimas_!F58) -> 0.1452170549 | H60: =IF(TDPrimas_!G58="","",TDPrimas_!G58) -> -4328.62255 | I60: =IF(TDPrimas_!H58="","",TDPrimas_!H58) -> -0.434195983 | J60: =IF(TDPrimas_!I58="","",TDPrimas_!I58) -> 100 | K60: =IF(TDPrimas_!J58="","",TDPrimas_!J58) -> 100 | L60: =IF(TDPrimas_!K58="","",TDPrimas_!K58) -> 0.1288735826
B61: =IF(TDPrimas_!A59="","",TDPrimas_!A59) -> 51 | C61: =IF(TDPrimas_!B59="","",TDPrimas_!B59) -> Berkley Seguros | D61: =IF(TDPrimas_!C59="","",TDPrimas_!C59) -> 791062.9977 | E61: =IF(TDPrimas_!D59="","",TDPrimas_!D59) -> 673928.0374 | F61: =IF(TDPrimas_!E59="","",TDPrimas_!E59) -> 0.1027071909 | G61: =IF(TDPrimas_!F59="","",TDPrimas_!F59) -> 0.0981673874 | H61: =IF(TDPrimas_!G59="","",TDPrimas_!G59) -> 117134.9603 | I61: =IF(TDPrimas_!H59="","",TDPrimas_!H59) -> 17.38092998 | J61: =IF(TDPrimas_!I59="","",TDPrimas_!I59) -> 100 | K61: =IF(TDPrimas_!J59="","",TDPrimas_!J59) -> 100 | L61: =IF(TDPrimas_!K59="","",TDPrimas_!K59) -> 0.1027071909
B62: =IF(TDPrimas_!A60="","",TDPrimas_!A60) -> 52 | C62: =IF(TDPrimas_!B60="","",TDPrimas_!B60) -> Sompo Japan | D62: =IF(TDPrimas_!C60="","",TDPrimas_!C60) -> 758794.0596 | E62: =IF(TDPrimas_!D60="","",TDPrimas_!D60) -> 667096.8993 | F62: =IF(TDPrimas_!E60="","",TDPrimas_!E60) -> 0.09851757262 | G62: =IF(TDPrimas_!F60="","",TDPrimas_!F60) -> 0.0971723331 | H62: =IF(TDPrimas_!G60="","",TDPrimas_!G60) -> 91697.1604 | I62: =IF(TDPrimas_!H60="","",TDPrimas_!H60) -> 13.74570329 | J62: =IF(TDPrimas_!I60="","",TDPrimas_!I60) -> 100 | K62: =IF(TDPrimas_!J60="","",TDPrimas_!J60) -> 100 | L62: =IF(TDPrimas_!K60="","",TDPrimas_!K60) -> 0.09851757262
B63: =IF(TDPrimas_!A61="","",TDPrimas_!A61) -> 53 | C63: =IF(TDPrimas_!B61="","",TDPrimas_!B61) -> AXA Salud | D63: =IF(TDPrimas_!C61="","",TDPrimas_!C61) -> 736798.9613 | E63: =IF(TDPrimas_!D61="","",TDPrimas_!D61) -> 632166.9565 | F63: =IF(TDPrimas_!E61="","",TDPrimas_!E61) -> 0.09566185219 | G63: =IF(TDPrimas_!F61="","",TDPrimas_!F61) -> 0.09208428063 | H63: =IF(TDPrimas_!G61="","",TDPrimas_!G61) -> 104632.0047 | I63: =IF(TDPrimas_!H61="","",TDPrimas_!H61) -> 16.55132456 | J63: =IF(TDPrimas_!I61="","",TDPrimas_!I61) -> 100 | K63: =IF(TDPrimas_!J61="","",TDPrimas_!J61) -> 100 | L63: =IF(TDPrimas_!K61="","",TDPrimas_!K61) -> 0.09566185219
B64: =IF(TDPrimas_!A62="","",TDPrimas_!A62) -> 54 | C64: =IF(TDPrimas_!B62="","",TDPrimas_!B62) -> Atradius | D64: =IF(TDPrimas_!C62="","",TDPrimas_!C62) -> 678248.511 | E64: =IF(TDPrimas_!D62="","",TDPrimas_!D62) -> 605124.6715 | F64: =IF(TDPrimas_!E62="","",TDPrimas_!E62) -> 0.08805998951 | G64: =IF(TDPrimas_!F62="","",TDPrimas_!F62) -> 0.08814517983 | H64: =IF(TDPrimas_!G62="","",TDPrimas_!G62) -> 73123.8395 | I64: =IF(TDPrimas_!H62="","",TDPrimas_!H62) -> 12.08409489 | J64: =IF(TDPrimas_!I62="","",TDPrimas_!I62) -> 100 | K64: =IF(TDPrimas_!J62="","",TDPrimas_!J62) -> 100 | L64: =IF(TDPrimas_!K62="","",TDPrimas_!K62) -> 0.08805998951
B65: =IF(TDPrimas_!A63="","",TDPrimas_!A63) -> 55 | C65: =IF(TDPrimas_!B63="","",TDPrimas_!B63) -> Skandia Life | D65: =IF(TDPrimas_!C63="","",TDPrimas_!C63) -> 672062.1935 | E65: =IF(TDPrimas_!D63="","",TDPrimas_!D63) -> 372806.8057 | F65: =IF(TDPrimas_!E63="","",TDPrimas_!E63) -> 0.08725679269 | G65: =IF(TDPrimas_!F63="","",TDPrimas_!F63) -> 0.05430471517 | H65: =IF(TDPrimas_!G63="","",TDPrimas_!G63) -> 299255.3878 | I65: =IF(TDPrimas_!H63="","",TDPrimas_!H63) -> 80.27090259 | J65: =IF(TDPrimas_!I63="","",TDPrimas_!I63) -> 100 | K65: =IF(TDPrimas_!J63="","",TDPrimas_!J63) -> 100 | L65: =IF(TDPrimas_!K63="","",TDPrimas_!K63) -> 0.08725679269
B66: =IF(TDPrimas_!A64="","",TDPrimas_!A64) -> 56 | C66: =IF(TDPrimas_!B64="","",TDPrimas_!B64) -> PREVEM Seguros | D66: =IF(TDPrimas_!C64="","",TDPrimas_!C64) -> 512811.0614 | E66: =IF(TDPrimas_!D64="","",TDPrimas_!D64) -> 478354.1568 | F66: =IF(TDPrimas_!E64="","",TDPrimas_!E64) -> 0.06658051725 | G66: =IF(TDPrimas_!F64="","",TDPrimas_!F64) -> 0.0696792168 | H66: =IF(TDPrimas_!G64="","",TDPrimas_!G64) -> 34456.90455 | I66: =IF(TDPrimas_!H64="","",TDPrimas_!H64) -> 7.203220471 | J66: =IF(TDPrimas_!I64="","",TDPrimas_!I64) -> 100 | K66: =IF(TDPrimas_!J64="","",TDPrimas_!J64) -> 100 | L66: =IF(TDPrimas_!K64="","",TDPrimas_!K64) -> 0.06658051725
B67: =IF(TDPrimas_!A65="","",TDPrimas_!A65) -> 57 | C67: =IF(TDPrimas_!B65="","",TDPrimas_!B65) -> Solunion Crédito | D67: =IF(TDPrimas_!C65="","",TDPrimas_!C65) -> 491847.0151 | E67: =IF(TDPrimas_!D65="","",TDPrimas_!D65) -> 525328.1582 | F67: =IF(TDPrimas_!E65="","",TDPrimas_!E65) -> 0.06385866285 | G67: =IF(TDPrimas_!F65="","",TDPrimas_!F65) -> 0.07652166099 | H67: =IF(TDPrimas_!G65="","",TDPrimas_!G65) -> -33481.14307 | I67: =IF(TDPrimas_!H65="","",TDPrimas_!H65) -> -6.373376822 | J67: =IF(TDPrimas_!I65="","",TDPrimas_!I65) -> 100 | K67: =IF(TDPrimas_!J65="","",TDPrimas_!J65) -> 100 | L67: =IF(TDPrimas_!K65="","",TDPrimas_!K65) -> 0.06385866285
B68: =IF(TDPrimas_!A66="","",TDPrimas_!A66) -> 58 | C68: =IF(TDPrimas_!B66="","",TDPrimas_!B66) -> General de Salud | D68: =IF(TDPrimas_!C66="","",TDPrimas_!C66) -> 463598.8334 | E68: =IF(TDPrimas_!D66="","",TDPrimas_!D66) -> 1101163.058 | F68: =IF(TDPrimas_!E66="","",TDPrimas_!E66) -> 0.06019107708 | G68: =IF(TDPrimas_!F66="","",TDPrimas_!F66) -> 0.160400361 | H68: =IF(TDPrimas_!G66="","",TDPrimas_!G66) -> -637564.2242 | I68: =IF(TDPrimas_!H66="","",TDPrimas_!H66) -> -57.89916578 | J68: =IF(TDPrimas_!I66="","",TDPrimas_!I66) -> 100 | K68: =IF(TDPrimas_!J66="","",TDPrimas_!J66) -> 100 | L68: =IF(TDPrimas_!K66="","",TDPrimas_!K66) -> 0.06019107708
B69: =IF(TDPrimas_!A67="","",TDPrimas_!A67) -> 59 | C69: =IF(TDPrimas_!B67="","",TDPrimas_!B67) -> Primero Seguros | D69: =IF(TDPrimas_!C67="","",TDPrimas_!C67) -> 431846.402 | E69: =IF(TDPrimas_!D67="","",TDPrimas_!D67) -> 1478140.942 | F69: =IF(TDPrimas_!E67="","",TDPrimas_!E67) -> 0.05606851916 | G69: =IF(TDPrimas_!F67="","",TDPrimas_!F67) -> 0.2153126543 | H69: =IF(TDPrimas_!G67="","",TDPrimas_!G67) -> -1046294.54 | I69: =IF(TDPrimas_!H67="","",TDPrimas_!H67) -> -70.78449087 | J69: =IF(TDPrimas_!I67="","",TDPrimas_!I67) -> 100 | K69: =IF(TDPrimas_!J67="","",TDPrimas_!J67) -> 100 | L69: =IF(TDPrimas_!K67="","",TDPrimas_!K67) -> 0.05606851916
B70: =IF(TDPrimas_!A68="","",TDPrimas_!A68) -> 60 | C70: =IF(TDPrimas_!B68="","",TDPrimas_!B68) -> SHF Cred Vivienda | D70: =IF(TDPrimas_!C68="","",TDPrimas_!C68) -> 356133.1991 | E70: =IF(TDPrimas_!D68="","",TDPrimas_!D68) -> 351623.4394 | F70: =IF(TDPrimas_!E68="","",TDPrimas_!E68) -> 0.04623834077 | G70: =IF(TDPrimas_!F68="","",TDPrimas_!F68) -> 0.05121905081 | H70: =IF(TDPrimas_!G68="","",TDPrimas_!G68) -> 4509.75973 | I70: =IF(TDPrimas_!H68="","",TDPrimas_!H68) -> 1.282553785 | J70: =IF(TDPrimas_!I68="","",TDPrimas_!I68) -> 100 | K70: =IF(TDPrimas_!J68="","",TDPrimas_!J68) -> 100 | L70: =IF(TDPrimas_!K68="","",TDPrimas_!K68) -> 0.04623834077
B71: =IF(TDPrimas_!A69="","",TDPrimas_!A69) -> 61 | C71: =IF(TDPrimas_!B69="","",TDPrimas_!B69) -> Coface | D71: =IF(TDPrimas_!C69="","",TDPrimas_!C69) -> 291154.4163 | E71: =IF(TDPrimas_!D69="","",TDPrimas_!D69) -> 305414.1726 | F71: =IF(TDPrimas_!E69="","",TDPrimas_!E69) -> 0.0378018594 | G71: =IF(TDPrimas_!F69="","",TDPrimas_!F69) -> 0.04448800129 | H71: =IF(TDPrimas_!G69="","",TDPrimas_!G69) -> -14259.75627 | I71: =IF(TDPrimas_!H69="","",TDPrimas_!H69) -> -4.668989703 | J71: =IF(TDPrimas_!I69="","",TDPrimas_!I69) -> 100 | K71: =IF(TDPrimas_!J69="","",TDPrimas_!J69) -> 100 | L71: =IF(TDPrimas_!K69="","",TDPrimas_!K69) -> 0.0378018594
B72: =IF(TDPrimas_!A70="","",TDPrimas_!A70) -> 62 | C72: =IF(TDPrimas_!B70="","",TDPrimas_!B70) -> Crabi | D72: =IF(TDPrimas_!C70="","",TDPrimas_!C70) -> 278462.2399 | E72: =IF(TDPrimas_!D70="","",TDPrimas_!D70) -> 169473.8678 | F72: =IF(TDPrimas_!E70="","",TDPrimas_!E70) -> 0.03615397826 | G72: =IF(TDPrimas_!F70="","",TDPrimas_!F70) -> 0.0246863254 | H72: =IF(TDPrimas_!G70="","",TDPrimas_!G70) -> 108988.3721 | I72: =IF(TDPrimas_!H70="","",TDPrimas_!H70) -> 64.30983936 | J72: =IF(TDPrimas_!I70="","",TDPrimas_!I70) -> 100 | K72: =IF(TDPrimas_!J70="","",TDPrimas_!J70) -> 100 | L72: =IF(TDPrimas_!K70="","",TDPrimas_!K70) -> 0.03615397826
B73: =IF(TDPrimas_!A71="","",TDPrimas_!A71) -> 63 | C73: =IF(TDPrimas_!B71="","",TDPrimas_!B71) -> MediAccess | D73: =IF(TDPrimas_!C71="","",TDPrimas_!C71) -> 144964.7039 | E73: =IF(TDPrimas_!D71="","",TDPrimas_!D71) -> 206857.0049 | F73: =IF(TDPrimas_!E71="","",TDPrimas_!E71) -> 0.01882140557 | G73: =IF(TDPrimas_!F71="","",TDPrimas_!F71) -> 0.0301317212 | H73: =IF(TDPrimas_!G71="","",TDPrimas_!G71) -> -61892.301 | I73: =IF(TDPrimas_!H71="","",TDPrimas_!H71) -> -29.92033121 | J73: =IF(TDPrimas_!I71="","",TDPrimas_!I71) -> 100 | K73: =IF(TDPrimas_!J71="","",TDPrimas_!J71) -> 100 | L73: =IF(TDPrimas_!K71="","",TDPrimas_!K71) -> 0.01882140557
B74: =IF(TDPrimas_!A72="","",TDPrimas_!A72) -> 64 | C74: =IF(TDPrimas_!B72="","",TDPrimas_!B72) -> Genworth Seg. de Crédito | D74: =IF(TDPrimas_!C72="","",TDPrimas_!C72) -> 127853.1262 | E74: =IF(TDPrimas_!D72="","",TDPrimas_!D72) -> 117391.5825 | F74: =IF(TDPrimas_!E72="","",TDPrimas_!E72) -> 0.01659973413 | G74: =IF(TDPrimas_!F72="","",TDPrimas_!F72) -> 0.01709978562 | H74: =IF(TDPrimas_!G72="","",TDPrimas_!G72) -> 10461.54367 | I74: =IF(TDPrimas_!H72="","",TDPrimas_!H72) -> 8.91166423 | J74: =IF(TDPrimas_!I72="","",TDPrimas_!I72) -> 100 | K74: =IF(TDPrimas_!J72="","",TDPrimas_!J72) -> 100 | L74: =IF(TDPrimas_!K72="","",TDPrimas_!K72) -> 0.01659973413
B75: =IF(TDPrimas_!A73="","",TDPrimas_!A73) -> 65 | C75: =IF(TDPrimas_!B73="","",TDPrimas_!B73) -> Virginia Surety | D75: =IF(TDPrimas_!C73="","",TDPrimas_!C73) -> 112129.7639 | E75: =IF(TDPrimas_!D73="","",TDPrimas_!D73) -> 95399.78593 | F75: =IF(TDPrimas_!E73="","",TDPrimas_!E73) -> 0.01455830079 | G75: =IF(TDPrimas_!F73="","",TDPrimas_!F73) -> 0.01389636166 | H75: =IF(TDPrimas_!G73="","",TDPrimas_!G73) -> 16729.978 | I75: =IF(TDPrimas_!H73="","",TDPrimas_!H73) -> 17.53670392 | J75: =IF(TDPrimas_!I73="","",TDPrimas_!I73) -> 100 | K75: =IF(TDPrimas_!J73="","",TDPrimas_!J73) -> 100 | L75: =IF(TDPrimas_!K73="","",TDPrimas_!K73) -> 0.01455830079
B76: =IF(TDPrimas_!A74="","",TDPrimas_!A74) -> 66 | C76: =IF(TDPrimas_!B74="","",TDPrimas_!B74) -> Tláloc Seguros | D76: =IF(TDPrimas_!C74="","",TDPrimas_!C74) -> 111365.2858 | E76: =IF(TDPrimas_!D74="","",TDPrimas_!D74) -> 93944.2697 | F76: =IF(TDPrimas_!E74="","",TDPrimas_!E74) -> 0.01445904523 | G76: =IF(TDPrimas_!F74="","",TDPrimas_!F74) -> 0.01368434463 | H76: =IF(TDPrimas_!G74="","",TDPrimas_!G74) -> 17421.0161 | I76: =IF(TDPrimas_!H74="","",TDPrimas_!H74) -> 18.54399013 | J76: =IF(TDPrimas_!I74="","",TDPrimas_!I74) -> 100 | K76: =IF(TDPrimas_!J74="","",TDPrimas_!J74) -> 100 | L76: =IF(TDPrimas_!K74="","",TDPrimas_!K74) -> 0.01445904523
B77: =IF(TDPrimas_!A75="","",TDPrimas_!A75) -> 67 | C77: =IF(TDPrimas_!B75="","",TDPrimas_!B75) -> Odontoprev | D77: =IF(TDPrimas_!C75="","",TDPrimas_!C75) -> 97783.69961 | E77: =IF(TDPrimas_!D75="","",TDPrimas_!D75) -> 103938.1117 | F77: =IF(TDPrimas_!E75="","",TDPrimas_!E75) -> 0.01269568812 | G77: =IF(TDPrimas_!F75="","",TDPrimas_!F75) -> 0.01514009257 | H77: =IF(TDPrimas_!G75="","",TDPrimas_!G75) -> -6154.41206 | I77: =IF(TDPrimas_!H75="","",TDPrimas_!H75) -> -5.921227508 | J77: =IF(TDPrimas_!I75="","",TDPrimas_!I75) -> 100 | K77: =IF(TDPrimas_!J75="","",TDPrimas_!J75) -> 100 | L77: =IF(TDPrimas_!K75="","",TDPrimas_!K75) -> 0.01269568812
B78: =IF(TDPrimas_!A76="","",TDPrimas_!A76) -> 68 | C78: =IF(TDPrimas_!B76="","",TDPrimas_!B76) -> SPP Seguros | D78: =IF(TDPrimas_!C76="","",TDPrimas_!C76) -> 87030.09637 | E78: =IF(TDPrimas_!D76="","",TDPrimas_!D76) -> 71137.01631 | F78: =IF(TDPrimas_!E76="","",TDPrimas_!E76) -> 0.01129950048 | G78: =IF(TDPrimas_!F76="","",TDPrimas_!F76) -> 0.01036213757 | H78: =IF(TDPrimas_!G76="","",TDPrimas_!G76) -> 15893.08006 | I78: =IF(TDPrimas_!H76="","",TDPrimas_!H76) -> 22.34150501 | J78: =IF(TDPrimas_!I76="","",TDPrimas_!I76) -> 100 | K78: =IF(TDPrimas_!J76="","",TDPrimas_!J76) -> 100 | L78: =IF(TDPrimas_!K76="","",TDPrimas_!K76) -> 0.01129950048
B79: =IF(TDPrimas_!A77="","",TDPrimas_!A77) -> 69 | C79: =IF(TDPrimas_!B77="","",TDPrimas_!B77) -> Momento Seguros | D79: =IF(TDPrimas_!C77="","",TDPrimas_!C77) -> 77172.75721 | E79: =IF(TDPrimas_!D77="","",TDPrimas_!D77) -> 21436.39614 | F79: =IF(TDPrimas_!E77="","",TDPrimas_!E77) -> 0.01001967875 | G79: =IF(TDPrimas_!F77="","",TDPrimas_!F77) -> 0.003122521823 | H79: =IF(TDPrimas_!G77="","",TDPrimas_!G77) -> 55736.36107 | I79: =IF(TDPrimas_!H77="","",TDPrimas_!H77) -> 260.0080755 | J79: =IF(TDPrimas_!I77="","",TDPrimas_!I77) -> 100 | K79: =IF(TDPrimas_!J77="","",TDPrimas_!J77) -> 100 | L79: =IF(TDPrimas_!K77="","",TDPrimas_!K77) -> 0.01001967875
B80: =IF(TDPrimas_!A78="","",TDPrimas_!A78) -> 70 | C80: =IF(TDPrimas_!B78="","",TDPrimas_!B78) -> Quálitas Salud | D80: =IF(TDPrimas_!C78="","",TDPrimas_!C78) -> 49328.3722 | E80: =IF(TDPrimas_!D78="","",TDPrimas_!D78) -> 15298.1782 | F80: =IF(TDPrimas_!E78="","",TDPrimas_!E78) -> 0.006404519683 | G80: =IF(TDPrimas_!F78="","",TDPrimas_!F78) -> 0.002228401406 | H80: =IF(TDPrimas_!G78="","",TDPrimas_!G78) -> 34030.194 | I80: =IF(TDPrimas_!H78="","",TDPrimas_!H78) -> 222.4460557 | J80: =IF(TDPrimas_!I78="","",TDPrimas_!I78) -> 100 | K80: =IF(TDPrimas_!J78="","",TDPrimas_!J78) -> 100 | L80: =IF(TDPrimas_!K78="","",TDPrimas_!K78) -> 0.006404519683
B81: =IF(TDPrimas_!A79="","",TDPrimas_!A79) -> 71 | C81: =IF(TDPrimas_!B79="","",TDPrimas_!B79) -> SPT | D81: =IF(TDPrimas_!C79="","",TDPrimas_!C79) -> 44129.07303 | E81: =IF(TDPrimas_!D79="","",TDPrimas_!D79) -> 43281.45902 | F81: =IF(TDPrimas_!E79="","",TDPrimas_!E79) -> 0.005729471787 | G81: =IF(TDPrimas_!F79="","",TDPrimas_!F79) -> 0.006304571881 | H81: =IF(TDPrimas_!G79="","",TDPrimas_!G79) -> 847.61401 | I81: =IF(TDPrimas_!H79="","",TDPrimas_!H79) -> 1.958376703 | J81: =IF(TDPrimas_!I79="","",TDPrimas_!I79) -> 100 | K81: =IF(TDPrimas_!J79="","",TDPrimas_!J79) -> 100 | L81: =IF(TDPrimas_!K79="","",TDPrimas_!K79) -> 0.005729471787
B82: =IF(TDPrimas_!A80="","",TDPrimas_!A80) -> 72 | C82: =IF(TDPrimas_!B80="","",TDPrimas_!B80) -> Banamex Pensiones | D82: =IF(TDPrimas_!C80="","",TDPrimas_!C80) -> 9930.38735 | E82: =IF(TDPrimas_!D80="","",TDPrimas_!D80) -> 6656.59334 | F82: =IF(TDPrimas_!E80="","",TDPrimas_!E80) -> 0.001289305899 | G82: =IF(TDPrimas_!F80="","",TDPrimas_!F80) -> 0.0009696293089 | H82: =IF(TDPrimas_!G80="","",TDPrimas_!G80) -> 3273.79401 | I82: =IF(TDPrimas_!H80="","",TDPrimas_!H80) -> 49.18122293 | J82: =IF(TDPrimas_!I80="","",TDPrimas_!I80) -> 100 | K82: =IF(TDPrimas_!J80="","",TDPrimas_!J80) -> 100 | L82: =IF(TDPrimas_!K80="","",TDPrimas_!K80) -> 0.001289305899
B83: =IF(TDPrimas_!A81="","",TDPrimas_!A81) -> 150.1 | C83: =IF(TDPrimas_!B81="","",TDPrimas_!B81) -> TOTAL RESTO | D83: =IF(TDPrimas_!C81="","",TDPrimas_!C81) -> 164022892.5 | E83: =IF(TDPrimas_!D81="","",TDPrimas_!D81) -> 144774160.8 | F83: =IF(TDPrimas_!E81="","",TDPrimas_!E81) -> 21.29581409 | G83: =IF(TDPrimas_!F81="","",TDPrimas_!F81) -> 21.08845505 | H83: =IF(TDPrimas_!G81="","",TDPrimas_!G81) -> 19248731.75 | I83: =IF(TDPrimas_!H81="","",TDPrimas_!H81) -> 13.29569562 | J83: =IF(TDPrimas_!I81="","",TDPrimas_!I81) -> 100 | K83: =IF(TDPrimas_!J81="","",TDPrimas_!J81) -> 100 | L83: =IF(TDPrimas_!K81="","",TDPrimas_!K81) -> 21.29581409
B84: =IF(TDPrimas_!A82="","",TDPrimas_!A82) -> 200 | C84: =IF(TDPrimas_!B82="","",TDPrimas_!B82) -> Patria | D84: =IF(TDPrimas_!C82="","",TDPrimas_!C82) -> 0 | E84: =IF(TDPrimas_!D82="","",TDPrimas_!D82) -> 0 | F84: =IF(TDPrimas_!E82="","",TDPrimas_!E82) -> 0 | G84: =IF(TDPrimas_!F82="","",TDPrimas_!F82) -> 0 | H84: =IF(TDPrimas_!G82="","",TDPrimas_!G82) -> 0 | I84: =IF(TDPrimas_!H82="","",TDPrimas_!H82) -> 0 | J84: =IF(TDPrimas_!I82="","",TDPrimas_!I82) -> 0 | K84: =IF(TDPrimas_!J82="","",TDPrimas_!J82) -> 0 | L84: =IF(TDPrimas_!K82="","",TDPrimas_!K82) -> 0
B85: =IF(TDPrimas_!A83="","",TDPrimas_!A83) -> 201.1 | C85: =IF(TDPrimas_!B83="","",TDPrimas_!B83) -> TOTAL | D85: =IF(TDPrimas_!C83="","",TDPrimas_!C83) -> 770211891.6 | E85: =IF(TDPrimas_!D83="","",TDPrimas_!D83) -> 686509089.5 | F85: =IF(TDPrimas_!E83="","",TDPrimas_!E83) -> 100 | G85: =IF(TDPrimas_!F83="","",TDPrimas_!F83) -> 100 | H85: =IF(TDPrimas_!G83="","",TDPrimas_!G83) -> 83702802.1 | I85: =IF(TDPrimas_!H83="","",TDPrimas_!H83) -> 12.19252642 | J85: =IF(TDPrimas_!I83="","",TDPrimas_!I83) -> 100 | K85: =IF(TDPrimas_!J83="","",TDPrimas_!J83) -> 100 | L85: =IF(TDPrimas_!K83="","",TDPrimas_!K83) -> 100
B86: =IF(TDPrimas_!A84="","",TDPrimas_!A84) ->  | C86: =IF(TDPrimas_!B84="","",TDPrimas_!B84) ->  | D86: =IF(TDPrimas_!C84="","",TDPrimas_!C84) ->  | E86: =IF(TDPrimas_!D84="","",TDPrimas_!D84) ->  | F86: =IF(TDPrimas_!E84="","",TDPrimas_!E84) ->  | G86: =IF(TDPrimas_!F84="","",TDPrimas_!F84) ->  | H86: =IF(TDPrimas_!G84="","",TDPrimas_!G84) ->  | I86: =IF(TDPrimas_!H84="","",TDPrimas_!H84) ->  | J86: =IF(TDPrimas_!I84="","",TDPrimas_!I84) ->  | K86: =IF(TDPrimas_!J84="","",TDPrimas_!J84) ->  | L86: =IF(TDPrimas_!K84="","",TDPrimas_!K84) -> 
B87: =IF(TDPrimas_!A85="","",TDPrimas_!A85) ->  | C87: =IF(TDPrimas_!B85="","",TDPrimas_!B85) ->  | D87: =IF(TDPrimas_!C85="","",TDPrimas_!C85) ->  | E87: =IF(TDPrimas_!D85="","",TDPrimas_!D85) ->  | F87: =IF(TDPrimas_!E85="","",TDPrimas_!E85) ->  | G87: =IF(TDPrimas_!F85="","",TDPrimas_!F85) ->  | H87: =IF(TDPrimas_!G85="","",TDPrimas_!G85) ->  | I87: =IF(TDPrimas_!H85="","",TDPrimas_!H85) ->  | J87: =IF(TDPrimas_!I85="","",TDPrimas_!I85) ->  | K87: =IF(TDPrimas_!J85="","",TDPrimas_!J85) ->  | L87: =IF(TDPrimas_!K85="","",TDPrimas_!K85) -> 
B88: =IF(TDPrimas_!A86="","",TDPrimas_!A86) ->  | C88: =IF(TDPrimas_!B86="","",TDPrimas_!B86) ->  | D88: =IF(TDPrimas_!C86="","",TDPrimas_!C86) ->  | E88: =IF(TDPrimas_!D86="","",TDPrimas_!D86) ->  | F88: =IF(TDPrimas_!E86="","",TDPrimas_!E86) ->  | G88: =IF(TDPrimas_!F86="","",TDPrimas_!F86) ->  | H88: =IF(TDPrimas_!G86="","",TDPrimas_!G86) ->  | I88: =IF(TDPrimas_!H86="","",TDPrimas_!H86) ->  | J88: =IF(TDPrimas_!I86="","",TDPrimas_!I86) ->  | K88: =IF(TDPrimas_!J86="","",TDPrimas_!J86) ->  | L88: =IF(TDPrimas_!K86="","",TDPrimas_!K86) -> 
B89: =IF(TDPrimas_!A87="","",TDPrimas_!A87) ->  | C89: =IF(TDPrimas_!B87="","",TDPrimas_!B87) ->  | D89: =IF(TDPrimas_!C87="","",TDPrimas_!C87) ->  | E89: =IF(TDPrimas_!D87="","",TDPrimas_!D87) ->  | F89: =IF(TDPrimas_!E87="","",TDPrimas_!E87) ->  | G89: =IF(TDPrimas_!F87="","",TDPrimas_!F87) ->  | H89: =IF(TDPrimas_!G87="","",TDPrimas_!G87) ->  | I89: =IF(TDPrimas_!H87="","",TDPrimas_!H87) ->  | J89: =IF(TDPrimas_!I87="","",TDPrimas_!I87) ->  | K89: =IF(TDPrimas_!J87="","",TDPrimas_!J87) ->  | L89: =IF(TDPrimas_!K87="","",TDPrimas_!K87) -> 
B90: =IF(TDPrimas_!A88="","",TDPrimas_!A88) ->  | C90: =IF(TDPrimas_!B88="","",TDPrimas_!B88) ->  | D90: =IF(TDPrimas_!C88="","",TDPrimas_!C88) ->  | E90: =IF(TDPrimas_!D88="","",TDPrimas_!D88) ->  | F90: =IF(TDPrimas_!E88="","",TDPrimas_!E88) ->  | G90: =IF(TDPrimas_!F88="","",TDPrimas_!F88) ->  | H90: =IF(TDPrimas_!G88="","",TDPrimas_!G88) ->  | I90: =IF(TDPrimas_!H88="","",TDPrimas_!H88) ->  | J90: =IF(TDPrimas_!I88="","",TDPrimas_!I88) ->  | K90: =IF(TDPrimas_!J88="","",TDPrimas_!J88) ->  | L90: =IF(TDPrimas_!K88="","",TDPrimas_!K88) -> 
B91: =IF(TDPrimas_!A89="","",TDPrimas_!A89) ->  | C91: =IF(TDPrimas_!B89="","",TDPrimas_!B89) ->  | D91: =IF(TDPrimas_!C89="","",TDPrimas_!C89) ->  | E91: =IF(TDPrimas_!D89="","",TDPrimas_!D89) ->  | F91: =IF(TDPrimas_!E89="","",TDPrimas_!E89) ->  | G91: =IF(TDPrimas_!F89="","",TDPrimas_!F89) ->  | H91: =IF(TDPrimas_!G89="","",TDPrimas_!G89) ->  | I91: =IF(TDPrimas_!H89="","",TDPrimas_!H89) ->  | J91: =IF(TDPrimas_!I89="","",TDPrimas_!I89) ->  | K91: =IF(TDPrimas_!J89="","",TDPrimas_!J89) ->  | L91: =IF(TDPrimas_!K89="","",TDPrimas_!K89) -> 
B92: =IF(TDPrimas_!A90="","",TDPrimas_!A90) ->  | C92: =IF(TDPrimas_!B90="","",TDPrimas_!B90) ->  | D92: =IF(TDPrimas_!C90="","",TDPrimas_!C90) ->  | E92: =IF(TDPrimas_!D90="","",TDPrimas_!D90) ->  | F92: =IF(TDPrimas_!E90="","",TDPrimas_!E90) ->  | G92: =IF(TDPrimas_!F90="","",TDPrimas_!F90) ->  | H92: =IF(TDPrimas_!G90="","",TDPrimas_!G90) ->  | I92: =IF(TDPrimas_!H90="","",TDPrimas_!H90) ->  | J92: =IF(TDPrimas_!I90="","",TDPrimas_!I90) ->  | K92: =IF(TDPrimas_!J90="","",TDPrimas_!J90) ->  | L92: =IF(TDPrimas_!K90="","",TDPrimas_!K90) -> 
B93: =IF(TDPrimas_!A91="","",TDPrimas_!A91) ->  | C93: =IF(TDPrimas_!B91="","",TDPrimas_!B91) ->  | D93: =IF(TDPrimas_!C91="","",TDPrimas_!C91) ->  | E93: =IF(TDPrimas_!D91="","",TDPrimas_!D91) ->  | F93: =IF(TDPrimas_!E91="","",TDPrimas_!E91) ->  | G93: =IF(TDPrimas_!F91="","",TDPrimas_!F91) ->  | H93: =IF(TDPrimas_!G91="","",TDPrimas_!G91) ->  | I93: =IF(TDPrimas_!H91="","",TDPrimas_!H91) ->  | J93: =IF(TDPrimas_!I91="","",TDPrimas_!I91) ->  | K93: =IF(TDPrimas_!J91="","",TDPrimas_!J91) ->  | L93: =IF(TDPrimas_!K91="","",TDPrimas_!K91) -> 
B94: =IF(TDPrimas_!A92="","",TDPrimas_!A92) ->  | C94: =IF(TDPrimas_!B92="","",TDPrimas_!B92) ->  | D94: =IF(TDPrimas_!C92="","",TDPrimas_!C92) ->  | E94: =IF(TDPrimas_!D92="","",TDPrimas_!D92) ->  | F94: =IF(TDPrimas_!E92="","",TDPrimas_!E92) ->  | G94: =IF(TDPrimas_!F92="","",TDPrimas_!F92) ->  | H94: =IF(TDPrimas_!G92="","",TDPrimas_!G92) ->  | I94: =IF(TDPrimas_!H92="","",TDPrimas_!H92) ->  | J94: =IF(TDPrimas_!I92="","",TDPrimas_!I92) ->  | K94: =IF(TDPrimas_!J92="","",TDPrimas_!J92) ->  | L94: =IF(TDPrimas_!K92="","",TDPrimas_!K92) -> 
B95: =IF(TDPrimas_!A93="","",TDPrimas_!A93) ->  | C95: =IF(TDPrimas_!B93="","",TDPrimas_!B93) ->  | D95: =IF(TDPrimas_!C93="","",TDPrimas_!C93) ->  | E95: =IF(TDPrimas_!D93="","",TDPrimas_!D93) ->  | F95: =IF(TDPrimas_!E93="","",TDPrimas_!E93) ->  | G95: =IF(TDPrimas_!F93="","",TDPrimas_!F93) ->  | H95: =IF(TDPrimas_!G93="","",TDPrimas_!G93) ->  | I95: =IF(TDPrimas_!H93="","",TDPrimas_!H93) ->  | J95: =IF(TDPrimas_!I93="","",TDPrimas_!I93) ->  | K95: =IF(TDPrimas_!J93="","",TDPrimas_!J93) ->  | L95: =IF(TDPrimas_!K93="","",TDPrimas_!K93) -> 
B96: =IF(TDPrimas_!A94="","",TDPrimas_!A94) ->  | C96: =IF(TDPrimas_!B94="","",TDPrimas_!B94) ->  | D96: =IF(TDPrimas_!C94="","",TDPrimas_!C94) ->  | E96: =IF(TDPrimas_!D94="","",TDPrimas_!D94) ->  | F96: =IF(TDPrimas_!E94="","",TDPrimas_!E94) ->  | G96: =IF(TDPrimas_!F94="","",TDPrimas_!F94) ->  | H96: =IF(TDPrimas_!G94="","",TDPrimas_!G94) ->  | I96: =IF(TDPrimas_!H94="","",TDPrimas_!H94) ->  | J96: =IF(TDPrimas_!I94="","",TDPrimas_!I94) ->  | K96: =IF(TDPrimas_!J94="","",TDPrimas_!J94) ->  | L96: =IF(TDPrimas_!K94="","",TDPrimas_!K94) -> 
B97: =IF(TDPrimas_!A95="","",TDPrimas_!A95) ->  | C97: =IF(TDPrimas_!B95="","",TDPrimas_!B95) ->  | D97: =IF(TDPrimas_!C95="","",TDPrimas_!C95) ->  | E97: =IF(TDPrimas_!D95="","",TDPrimas_!D95) ->  | F97: =IF(TDPrimas_!E95="","",TDPrimas_!E95) ->  | G97: =IF(TDPrimas_!F95="","",TDPrimas_!F95) ->  | H97: =IF(TDPrimas_!G95="","",TDPrimas_!G95) ->  | I97: =IF(TDPrimas_!H95="","",TDPrimas_!H95) ->  | J97: =IF(TDPrimas_!I95="","",TDPrimas_!I95) ->  | K97: =IF(TDPrimas_!J95="","",TDPrimas_!J95) ->  | L97: =IF(TDPrimas_!K95="","",TDPrimas_!K95) -> 
B98: =IF(TDPrimas_!A96="","",TDPrimas_!A96) ->  | C98: =IF(TDPrimas_!B96="","",TDPrimas_!B96) ->  | D98: =IF(TDPrimas_!C96="","",TDPrimas_!C96) ->  | E98: =IF(TDPrimas_!D96="","",TDPrimas_!D96) ->  | F98: =IF(TDPrimas_!E96="","",TDPrimas_!E96) ->  | G98: =IF(TDPrimas_!F96="","",TDPrimas_!F96) ->  | H98: =IF(TDPrimas_!G96="","",TDPrimas_!G96) ->  | I98: =IF(TDPrimas_!H96="","",TDPrimas_!H96) ->  | J98: =IF(TDPrimas_!I96="","",TDPrimas_!I96) ->  | K98: =IF(TDPrimas_!J96="","",TDPrimas_!J96) ->  | L98: =IF(TDPrimas_!K96="","",TDPrimas_!K96) -> 
B99: =IF(TDPrimas_!A97="","",TDPrimas_!A97) ->  | C99: =IF(TDPrimas_!B97="","",TDPrimas_!B97) ->  | D99: =IF(TDPrimas_!C97="","",TDPrimas_!C97) ->  | E99: =IF(TDPrimas_!D97="","",TDPrimas_!D97) ->  | F99: =IF(TDPrimas_!E97="","",TDPrimas_!E97) ->  | G99: =IF(TDPrimas_!F97="","",TDPrimas_!F97) ->  | H99: =IF(TDPrimas_!G97="","",TDPrimas_!G97) ->  | I99: =IF(TDPrimas_!H97="","",TDPrimas_!H97) ->  | J99: =IF(TDPrimas_!I97="","",TDPrimas_!I97) ->  | K99: =IF(TDPrimas_!J97="","",TDPrimas_!J97) ->  | L99: =IF(TDPrimas_!K97="","",TDPrimas_!K97) -> 
B100: =IF(TDPrimas_!A98="","",TDPrimas_!A98) ->  | C100: =IF(TDPrimas_!B98="","",TDPrimas_!B98) ->  | D100: =IF(TDPrimas_!C98="","",TDPrimas_!C98) ->  | E100: =IF(TDPrimas_!D98="","",TDPrimas_!D98) ->  | F100: =IF(TDPrimas_!E98="","",TDPrimas_!E98) ->  | G100: =IF(TDPrimas_!F98="","",TDPrimas_!F98) ->  | H100: =IF(TDPrimas_!G98="","",TDPrimas_!G98) ->  | I100: =IF(TDPrimas_!H98="","",TDPrimas_!H98) ->  | J100: =IF(TDPrimas_!I98="","",TDPrimas_!I98) ->  | K100: =IF(TDPrimas_!J98="","",TDPrimas_!J98) ->  | L100: =IF(TDPrimas_!K98="","",TDPrimas_!K98) -> 
B101: =IF(TDPrimas_!A99="","",TDPrimas_!A99) ->  | C101: =IF(TDPrimas_!B99="","",TDPrimas_!B99) ->  | D101: =IF(TDPrimas_!C99="","",TDPrimas_!C99) ->  | E101: =IF(TDPrimas_!D99="","",TDPrimas_!D99) ->  | F101: =IF(TDPrimas_!E99="","",TDPrimas_!E99) ->  | G101: =IF(TDPrimas_!F99="","",TDPrimas_!F99) ->  | H101: =IF(TDPrimas_!G99="","",TDPrimas_!G99) ->  | I101: =IF(TDPrimas_!H99="","",TDPrimas_!H99) ->  | J101: =IF(TDPrimas_!I99="","",TDPrimas_!I99) ->  | K101: =IF(TDPrimas_!J99="","",TDPrimas_!J99) ->  | L101: =IF(TDPrimas_!K99="","",TDPrimas_!K99) -> 
B102: =IF(TDPrimas_!A100="","",TDPrimas_!A100) ->  | C102: =IF(TDPrimas_!B100="","",TDPrimas_!B100) ->  | D102: =IF(TDPrimas_!C100="","",TDPrimas_!C100) ->  | E102: =IF(TDPrimas_!D100="","",TDPrimas_!D100) ->  | F102: =IF(TDPrimas_!E100="","",TDPrimas_!E100) ->  | G102: =IF(TDPrimas_!F100="","",TDPrimas_!F100) ->  | H102: =IF(TDPrimas_!G100="","",TDPrimas_!G100) ->  | I102: =IF(TDPrimas_!H100="","",TDPrimas_!H100) ->  | J102: =IF(TDPrimas_!I100="","",TDPrimas_!I100) ->  | K102: =IF(TDPrimas_!J100="","",TDPrimas_!J100) ->  | L102: =IF(TDPrimas_!K100="","",TDPrimas_!K100) -> 
B103: =IF(TDPrimas_!A101="","",TDPrimas_!A101) ->  | C103: =IF(TDPrimas_!B101="","",TDPrimas_!B101) ->  | D103: =IF(TDPrimas_!C101="","",TDPrimas_!C101) ->  | E103: =IF(TDPrimas_!D101="","",TDPrimas_!D101) ->  | F103: =IF(TDPrimas_!E101="","",TDPrimas_!E101) ->  | G103: =IF(TDPrimas_!F101="","",TDPrimas_!F101) ->  | H103: =IF(TDPrimas_!G101="","",TDPrimas_!G101) ->  | I103: =IF(TDPrimas_!H101="","",TDPrimas_!H101) ->  | J103: =IF(TDPrimas_!I101="","",TDPrimas_!I101) ->  | K103: =IF(TDPrimas_!J101="","",TDPrimas_!J101) ->  | L103: =IF(TDPrimas_!K101="","",TDPrimas_!K101) -> 
B104: =IF(TDPrimas_!A102="","",TDPrimas_!A102) ->  | C104: =IF(TDPrimas_!B102="","",TDPrimas_!B102) ->  | D104: =IF(TDPrimas_!C102="","",TDPrimas_!C102) ->  | E104: =IF(TDPrimas_!D102="","",TDPrimas_!D102) ->  | F104: =IF(TDPrimas_!E102="","",TDPrimas_!E102) ->  | G104: =IF(TDPrimas_!F102="","",TDPrimas_!F102) ->  | H104: =IF(TDPrimas_!G102="","",TDPrimas_!G102) ->  | I104: =IF(TDPrimas_!H102="","",TDPrimas_!H102) ->  | J104: =IF(TDPrimas_!I102="","",TDPrimas_!I102) ->  | K104: =IF(TDPrimas_!J102="","",TDPrimas_!J102) ->  | L104: =IF(TDPrimas_!K102="","",TDPrimas_!K102) -> 
B105: =IF(TDPrimas_!A103="","",TDPrimas_!A103) ->  | C105: =IF(TDPrimas_!B103="","",TDPrimas_!B103) ->  | D105: =IF(TDPrimas_!C103="","",TDPrimas_!C103) ->  | E105: =IF(TDPrimas_!D103="","",TDPrimas_!D103) ->  | F105: =IF(TDPrimas_!E103="","",TDPrimas_!E103) ->  | G105: =IF(TDPrimas_!F103="","",TDPrimas_!F103) ->  | H105: =IF(TDPrimas_!G103="","",TDPrimas_!G103) ->  | I105: =IF(TDPrimas_!H103="","",TDPrimas_!H103) ->  | J105: =IF(TDPrimas_!I103="","",TDPrimas_!I103) ->  | K105: =IF(TDPrimas_!J103="","",TDPrimas_!J103) ->  | L105: =IF(TDPrimas_!K103="","",TDPrimas_!K103) -> 
B106: =IF(TDPrimas_!A104="","",TDPrimas_!A104) ->  | C106: =IF(TDPrimas_!B104="","",TDPrimas_!B104) ->  | D106: =IF(TDPrimas_!C104="","",TDPrimas_!C104) ->  | E106: =IF(TDPrimas_!D104="","",TDPrimas_!D104) ->  | F106: =IF(TDPrimas_!E104="","",TDPrimas_!E104) ->  | G106: =IF(TDPrimas_!F104="","",TDPrimas_!F104) ->  | H106: =IF(TDPrimas_!G104="","",TDPrimas_!G104) ->  | I106: =IF(TDPrimas_!H104="","",TDPrimas_!H104) ->  | J106: =IF(TDPrimas_!I104="","",TDPrimas_!I104) ->  | K106: =IF(TDPrimas_!J104="","",TDPrimas_!J104) ->  | L106: =IF(TDPrimas_!K104="","",TDPrimas_!K104) -> 
B107: =IF(TDPrimas_!A105="","",TDPrimas_!A105) ->  | C107: =IF(TDPrimas_!B105="","",TDPrimas_!B105) ->  | D107: =IF(TDPrimas_!C105="","",TDPrimas_!C105) ->  | E107: =IF(TDPrimas_!D105="","",TDPrimas_!D105) ->  | F107: =IF(TDPrimas_!E105="","",TDPrimas_!E105) ->  | G107: =IF(TDPrimas_!F105="","",TDPrimas_!F105) ->  | H107: =IF(TDPrimas_!G105="","",TDPrimas_!G105) ->  | I107: =IF(TDPrimas_!H105="","",TDPrimas_!H105) ->  | J107: =IF(TDPrimas_!I105="","",TDPrimas_!I105) ->  | K107: =IF(TDPrimas_!J105="","",TDPrimas_!J105) ->  | L107: =IF(TDPrimas_!K105="","",TDPrimas_!K105) -> 
B108: =IF(TDPrimas_!A106="","",TDPrimas_!A106) ->  | C108: =IF(TDPrimas_!B106="","",TDPrimas_!B106) ->  | D108: =IF(TDPrimas_!C106="","",TDPrimas_!C106) ->  | E108: =IF(TDPrimas_!D106="","",TDPrimas_!D106) ->  | F108: =IF(TDPrimas_!E106="","",TDPrimas_!E106) ->  | G108: =IF(TDPrimas_!F106="","",TDPrimas_!F106) ->  | H108: =IF(TDPrimas_!G106="","",TDPrimas_!G106) ->  | I108: =IF(TDPrimas_!H106="","",TDPrimas_!H106) ->  | J108: =IF(TDPrimas_!I106="","",TDPrimas_!I106) ->  | K108: =IF(TDPrimas_!J106="","",TDPrimas_!J106) ->  | L108: =IF(TDPrimas_!K106="","",TDPrimas_!K106) -> 
B109: =IF(TDPrimas_!A107="","",TDPrimas_!A107) ->  | C109: =IF(TDPrimas_!B107="","",TDPrimas_!B107) ->  | D109: =IF(TDPrimas_!C107="","",TDPrimas_!C107) ->  | E109: =IF(TDPrimas_!D107="","",TDPrimas_!D107) ->  | F109: =IF(TDPrimas_!E107="","",TDPrimas_!E107) ->  | G109: =IF(TDPrimas_!F107="","",TDPrimas_!F107) ->  | H109: =IF(TDPrimas_!G107="","",TDPrimas_!G107) ->  | I109: =IF(TDPrimas_!H107="","",TDPrimas_!H107) ->  | J109: =IF(TDPrimas_!I107="","",TDPrimas_!I107) ->  | K109: =IF(TDPrimas_!J107="","",TDPrimas_!J107) ->  | L109: =IF(TDPrimas_!K107="","",TDPrimas_!K107) -> 
B110: =IF(TDPrimas_!A108="","",TDPrimas_!A108) ->  | C110: =IF(TDPrimas_!B108="","",TDPrimas_!B108) ->  | D110: =IF(TDPrimas_!C108="","",TDPrimas_!C108) ->  | E110: =IF(TDPrimas_!D108="","",TDPrimas_!D108) ->  | F110: =IF(TDPrimas_!E108="","",TDPrimas_!E108) ->  | G110: =IF(TDPrimas_!F108="","",TDPrimas_!F108) ->  | H110: =IF(TDPrimas_!G108="","",TDPrimas_!G108) ->  | I110: =IF(TDPrimas_!H108="","",TDPrimas_!H108) ->  | J110: =IF(TDPrimas_!I108="","",TDPrimas_!I108) ->  | K110: =IF(TDPrimas_!J108="","",TDPrimas_!J108) ->  | L110: =IF(TDPrimas_!K108="","",TDPrimas_!K108) -> 
B111: =IF(TDPrimas_!A109="","",TDPrimas_!A109) ->  | C111: =IF(TDPrimas_!B109="","",TDPrimas_!B109) ->  | D111: =IF(TDPrimas_!C109="","",TDPrimas_!C109) ->  | E111: =IF(TDPrimas_!D109="","",TDPrimas_!D109) ->  | F111: =IF(TDPrimas_!E109="","",TDPrimas_!E109) ->  | G111: =IF(TDPrimas_!F109="","",TDPrimas_!F109) ->  | H111: =IF(TDPrimas_!G109="","",TDPrimas_!G109) ->  | I111: =IF(TDPrimas_!H109="","",TDPrimas_!H109) ->  | J111: =IF(TDPrimas_!I109="","",TDPrimas_!I109) ->  | K111: =IF(TDPrimas_!J109="","",TDPrimas_!J109) ->  | L111: =IF(TDPrimas_!K109="","",TDPrimas_!K109) -> 
B112: =IF(TDPrimas_!A110="","",TDPrimas_!A110) ->  | C112: =IF(TDPrimas_!B110="","",TDPrimas_!B110) ->  | D112: =IF(TDPrimas_!C110="","",TDPrimas_!C110) ->  | E112: =IF(TDPrimas_!D110="","",TDPrimas_!D110) ->  | F112: =IF(TDPrimas_!E110="","",TDPrimas_!E110) ->  | G112: =IF(TDPrimas_!F110="","",TDPrimas_!F110) ->  | H112: =IF(TDPrimas_!G110="","",TDPrimas_!G110) ->  | I112: =IF(TDPrimas_!H110="","",TDPrimas_!H110) ->  | J112: =IF(TDPrimas_!I110="","",TDPrimas_!I110) ->  | K112: =IF(TDPrimas_!J110="","",TDPrimas_!J110) ->  | L112: =IF(TDPrimas_!K110="","",TDPrimas_!K110) -> 
B113: =IF(TDPrimas_!A111="","",TDPrimas_!A111) ->  | C113: =IF(TDPrimas_!B111="","",TDPrimas_!B111) ->  | D113: =IF(TDPrimas_!C111="","",TDPrimas_!C111) ->  | E113: =IF(TDPrimas_!D111="","",TDPrimas_!D111) ->  | F113: =IF(TDPrimas_!E111="","",TDPrimas_!E111) ->  | G113: =IF(TDPrimas_!F111="","",TDPrimas_!F111) ->  | H113: =IF(TDPrimas_!G111="","",TDPrimas_!G111) ->  | I113: =IF(TDPrimas_!H111="","",TDPrimas_!H111) ->  | J113: =IF(TDPrimas_!I111="","",TDPrimas_!I111) ->  | K113: =IF(TDPrimas_!J111="","",TDPrimas_!J111) ->  | L113: =IF(TDPrimas_!K111="","",TDPrimas_!K111) -> 
B114: =IF(TDPrimas_!A112="","",TDPrimas_!A112) ->  | C114: =IF(TDPrimas_!B112="","",TDPrimas_!B112) ->  | D114: =IF(TDPrimas_!C112="","",TDPrimas_!C112) ->  | E114: =IF(TDPrimas_!D112="","",TDPrimas_!D112) ->  | F114: =IF(TDPrimas_!E112="","",TDPrimas_!E112) ->  | G114: =IF(TDPrimas_!F112="","",TDPrimas_!F112) ->  | H114: =IF(TDPrimas_!G112="","",TDPrimas_!G112) ->  | I114: =IF(TDPrimas_!H112="","",TDPrimas_!H112) ->  | J114: =IF(TDPrimas_!I112="","",TDPrimas_!I112) ->  | K114: =IF(TDPrimas_!J112="","",TDPrimas_!J112) ->  | L114: =IF(TDPrimas_!K112="","",TDPrimas_!K112) -> 
B115: =IF(TDPrimas_!A113="","",TDPrimas_!A113) ->  | C115: =IF(TDPrimas_!B113="","",TDPrimas_!B113) ->  | D115: =IF(TDPrimas_!C113="","",TDPrimas_!C113) ->  | E115: =IF(TDPrimas_!D113="","",TDPrimas_!D113) ->  | F115: =IF(TDPrimas_!E113="","",TDPrimas_!E113) ->  | G115: =IF(TDPrimas_!F113="","",TDPrimas_!F113) ->  | H115: =IF(TDPrimas_!G113="","",TDPrimas_!G113) ->  | I115: =IF(TDPrimas_!H113="","",TDPrimas_!H113) ->  | J115: =IF(TDPrimas_!I113="","",TDPrimas_!I113) ->  | K115: =IF(TDPrimas_!J113="","",TDPrimas_!J113) ->  | L115: =IF(TDPrimas_!K113="","",TDPrimas_!K113) -> 
B116: =IF(TDPrimas_!A114="","",TDPrimas_!A114) ->  | C116: =IF(TDPrimas_!B114="","",TDPrimas_!B114) ->  | D116: =IF(TDPrimas_!C114="","",TDPrimas_!C114) ->  | E116: =IF(TDPrimas_!D114="","",TDPrimas_!D114) ->  | F116: =IF(TDPrimas_!E114="","",TDPrimas_!E114) ->  | G116: =IF(TDPrimas_!F114="","",TDPrimas_!F114) ->  | H116: =IF(TDPrimas_!G114="","",TDPrimas_!G114) ->  | I116: =IF(TDPrimas_!H114="","",TDPrimas_!H114) ->  | J116: =IF(TDPrimas_!I114="","",TDPrimas_!I114) ->  | K116: =IF(TDPrimas_!J114="","",TDPrimas_!J114) ->  | L116: =IF(TDPrimas_!K114="","",TDPrimas_!K114) -> 
B117: =IF(TDPrimas_!A115="","",TDPrimas_!A115) ->  | C117: =IF(TDPrimas_!B115="","",TDPrimas_!B115) ->  | D117: =IF(TDPrimas_!C115="","",TDPrimas_!C115) ->  | E117: =IF(TDPrimas_!D115="","",TDPrimas_!D115) ->  | F117: =IF(TDPrimas_!E115="","",TDPrimas_!E115) ->  | G117: =IF(TDPrimas_!F115="","",TDPrimas_!F115) ->  | H117: =IF(TDPrimas_!G115="","",TDPrimas_!G115) ->  | I117: =IF(TDPrimas_!H115="","",TDPrimas_!H115) ->  | J117: =IF(TDPrimas_!I115="","",TDPrimas_!I115) ->  | K117: =IF(TDPrimas_!J115="","",TDPrimas_!J115) ->  | L117: =IF(TDPrimas_!K115="","",TDPrimas_!K115) -> 
B118: =IF(TDPrimas_!A116="","",TDPrimas_!A116) ->  | C118: =IF(TDPrimas_!B116="","",TDPrimas_!B116) ->  | D118: =IF(TDPrimas_!C116="","",TDPrimas_!C116) ->  | E118: =IF(TDPrimas_!D116="","",TDPrimas_!D116) ->  | F118: =IF(TDPrimas_!E116="","",TDPrimas_!E116) ->  | G118: =IF(TDPrimas_!F116="","",TDPrimas_!F116) ->  | H118: =IF(TDPrimas_!G116="","",TDPrimas_!G116) ->  | I118: =IF(TDPrimas_!H116="","",TDPrimas_!H116) ->  | J118: =IF(TDPrimas_!I116="","",TDPrimas_!I116) ->  | K118: =IF(TDPrimas_!J116="","",TDPrimas_!J116) ->  | L118: =IF(TDPrimas_!K116="","",TDPrimas_!K116) -> 
B119: =IF(TDPrimas_!A117="","",TDPrimas_!A117) ->  | C119: =IF(TDPrimas_!B117="","",TDPrimas_!B117) ->  | D119: =IF(TDPrimas_!C117="","",TDPrimas_!C117) ->  | E119: =IF(TDPrimas_!D117="","",TDPrimas_!D117) ->  | F119: =IF(TDPrimas_!E117="","",TDPrimas_!E117) ->  | G119: =IF(TDPrimas_!F117="","",TDPrimas_!F117) ->  | H119: =IF(TDPrimas_!G117="","",TDPrimas_!G117) ->  | I119: =IF(TDPrimas_!H117="","",TDPrimas_!H117) ->  | J119: =IF(TDPrimas_!I117="","",TDPrimas_!I117) ->  | K119: =IF(TDPrimas_!J117="","",TDPrimas_!J117) ->  | L119: =IF(TDPrimas_!K117="","",TDPrimas_!K117) -> 
B120: =IF(TDPrimas_!A118="","",TDPrimas_!A118) ->  | C120: =IF(TDPrimas_!B118="","",TDPrimas_!B118) ->  | D120: =IF(TDPrimas_!C118="","",TDPrimas_!C118) ->  | E120: =IF(TDPrimas_!D118="","",TDPrimas_!D118) ->  | F120: =IF(TDPrimas_!E118="","",TDPrimas_!E118) ->  | G120: =IF(TDPrimas_!F118="","",TDPrimas_!F118) ->  | H120: =IF(TDPrimas_!G118="","",TDPrimas_!G118) ->  | I120: =IF(TDPrimas_!H118="","",TDPrimas_!H118) ->  | J120: =IF(TDPrimas_!I118="","",TDPrimas_!I118) ->  | K120: =IF(TDPrimas_!J118="","",TDPrimas_!J118) ->  | L120: =IF(TDPrimas_!K118="","",TDPrimas_!K118) -> 
B121: =IF(TDPrimas_!A119="","",TDPrimas_!A119) ->  | C121: =IF(TDPrimas_!B119="","",TDPrimas_!B119) ->  | D121: =IF(TDPrimas_!C119="","",TDPrimas_!C119) ->  | E121: =IF(TDPrimas_!D119="","",TDPrimas_!D119) ->  | F121: =IF(TDPrimas_!E119="","",TDPrimas_!E119) ->  | G121: =IF(TDPrimas_!F119="","",TDPrimas_!F119) ->  | H121: =IF(TDPrimas_!G119="","",TDPrimas_!G119) ->  | I121: =IF(TDPrimas_!H119="","",TDPrimas_!H119) ->  | J121: =IF(TDPrimas_!I119="","",TDPrimas_!I119) ->  | K121: =IF(TDPrimas_!J119="","",TDPrimas_!J119) ->  | L121: =IF(TDPrimas_!K119="","",TDPrimas_!K119) -> 
B122: =IF(TDPrimas_!A120="","",TDPrimas_!A120) ->  | C122: =IF(TDPrimas_!B120="","",TDPrimas_!B120) ->  | D122: =IF(TDPrimas_!C120="","",TDPrimas_!C120) ->  | E122: =IF(TDPrimas_!D120="","",TDPrimas_!D120) ->  | F122: =IF(TDPrimas_!E120="","",TDPrimas_!E120) ->  | G122: =IF(TDPrimas_!F120="","",TDPrimas_!F120) ->  | H122: =IF(TDPrimas_!G120="","",TDPrimas_!G120) ->  | I122: =IF(TDPrimas_!H120="","",TDPrimas_!H120) ->  | J122: =IF(TDPrimas_!I120="","",TDPrimas_!I120) ->  | K122: =IF(TDPrimas_!J120="","",TDPrimas_!J120) ->  | L122: =IF(TDPrimas_!K120="","",TDPrimas_!K120) -> 
B123: =IF(TDPrimas_!A121="","",TDPrimas_!A121) ->  | C123: =IF(TDPrimas_!B121="","",TDPrimas_!B121) ->  | D123: =IF(TDPrimas_!C121="","",TDPrimas_!C121) ->  | E123: =IF(TDPrimas_!D121="","",TDPrimas_!D121) ->  | F123: =IF(TDPrimas_!E121="","",TDPrimas_!E121) ->  | G123: =IF(TDPrimas_!F121="","",TDPrimas_!F121) ->  | H123: =IF(TDPrimas_!G121="","",TDPrimas_!G121) ->  | I123: =IF(TDPrimas_!H121="","",TDPrimas_!H121) ->  | J123: =IF(TDPrimas_!I121="","",TDPrimas_!I121) ->  | K123: =IF(TDPrimas_!J121="","",TDPrimas_!J121) ->  | L123: =IF(TDPrimas_!K121="","",TDPrimas_!K121) -> 
B124: =IF(TDPrimas_!A122="","",TDPrimas_!A122) ->  | C124: =IF(TDPrimas_!B122="","",TDPrimas_!B122) ->  | D124: =IF(TDPrimas_!C122="","",TDPrimas_!C122) ->  | E124: =IF(TDPrimas_!D122="","",TDPrimas_!D122) ->  | F124: =IF(TDPrimas_!E122="","",TDPrimas_!E122) ->  | G124: =IF(TDPrimas_!F122="","",TDPrimas_!F122) ->  | H124: =IF(TDPrimas_!G122="","",TDPrimas_!G122) ->  | I124: =IF(TDPrimas_!H122="","",TDPrimas_!H122) ->  | J124: =IF(TDPrimas_!I122="","",TDPrimas_!I122) ->  | K124: =IF(TDPrimas_!J122="","",TDPrimas_!J122) ->  | L124: =IF(TDPrimas_!K122="","",TDPrimas_!K122) -> 
B125: =IF(TDPrimas_!A123="","",TDPrimas_!A123) ->  | C125: =IF(TDPrimas_!B123="","",TDPrimas_!B123) ->  | D125: =IF(TDPrimas_!C123="","",TDPrimas_!C123) ->  | E125: =IF(TDPrimas_!D123="","",TDPrimas_!D123) ->  | F125: =IF(TDPrimas_!E123="","",TDPrimas_!E123) ->  | G125: =IF(TDPrimas_!F123="","",TDPrimas_!F123) ->  | H125: =IF(TDPrimas_!G123="","",TDPrimas_!G123) ->  | I125: =IF(TDPrimas_!H123="","",TDPrimas_!H123) ->  | J125: =IF(TDPrimas_!I123="","",TDPrimas_!I123) ->  | K125: =IF(TDPrimas_!J123="","",TDPrimas_!J123) ->  | L125: =IF(TDPrimas_!K123="","",TDPrimas_!K123) -> 
B128: NE = No Existe
B129: * % Extraordinario mayor de 1000%

Sheet Siniestros
B1: SINIESTROS DIRECTOS | I1: =VLOOKUP(RIGHT('TD Siniestros'!B3,2),Cat!$N$2:$O$5,2,0)&" "&LEFT('TD Siniestros'!B3,4) -> Tercer Trimestre 2025
D4: Siniestros Directos
B5: Compañías | D5: Importe | E5: Incr. % | F5: Inc. Rva. Dividendos | G5: % vs. Prima Directa | I5: % Participac de Mercado
D6: ='Primas Directas'!D6 -> 2025 | G6: ='Primas Directas'!D6 -> 2025 | H6: ='Primas Directas'!E6 -> 2024
C7: TOTAL | D7: =VLOOKUP(C7,'TD Siniestros'!$B$7:$M$154,2,0) -> 414187189.8 | E7: =VLOOKUP(C7,'TD Siniestros'!$B$7:$M$154,3,0) -> 5.648581219 | F7: =VLOOKUP(C7,'TD Siniestros'!$B$7:$M$154,4,0) -> 1707780.921 | G7: =VLOOKUP(C7,'TD Siniestros'!$B$7:$M$154,5,0) -> 53.7757459 | H7: =VLOOKUP(C7,'TD Siniestros'!$B$7:$M$154,6,0) -> 57.10665229 | I7: =IFERROR(D7/VLOOKUP("TOTAL",$C$8:$D$124,2,0)*100,"") -> 100
B8: =IF('TD Siniestros'!A7="","",'TD Siniestros'!A7) -> 1 | C8: =IF('TD Siniestros'!B7="","",'TD Siniestros'!B7) -> G.N.P. | D8: =IF('TD Siniestros'!C7="","",'TD Siniestros'!C7) -> 56894917.28 | E8: =IF('TD Siniestros'!D7="","",'TD Siniestros'!D7) -> 12.51272791 | F8: =IF('TD Siniestros'!E7="","",'TD Siniestros'!E7) -> 307796.9439 | G8: =IF('TD Siniestros'!F7="","",'TD Siniestros'!F7) -> 59.76351785 | H8: =IF('TD Siniestros'!G7="","",'TD Siniestros'!G7) -> 59.58575985 | I8: =IFERROR(D8/VLOOKUP("TOTAL",$C$8:$D$124,2,0)*100,"") -> 13.73652268
B9: =IF('TD Siniestros'!A8="","",'TD Siniestros'!A8) -> 2 | C9: =IF('TD Siniestros'!B8="","",'TD Siniestros'!B8) -> BBVA | D9: =IF('TD Siniestros'!C8="","",'TD Siniestros'!C8) -> 32555258.48 | E9: =IF('TD Siniestros'!D8="","",'TD Siniestros'!D8) -> 11.43466697 | F9: =IF('TD Siniestros'!E8="","",'TD Siniestros'!E8) -> 0 | G9: =IF('TD Siniestros'!F8="","",'TD Siniestros'!F8) -> 44.96960561 | H9: =IF('TD Siniestros'!G8="","",'TD Siniestros'!G8) -> 47.62754285 | I9: =IFERROR(D9/VLOOKUP("TOTAL",$C$8:$D$124,2,0)*100,"") -> 7.860035097
B10: =IF('TD Siniestros'!A9="","",'TD Siniestros'!A9) -> 3 | C10: =IF('TD Siniestros'!B9="","",'TD Siniestros'!B9) -> Metlife México | D10: =IF('TD Siniestros'!C9="","",'TD Siniestros'!C9) -> 48946410.45 | E10: =IF('TD Siniestros'!D9="","",'TD Siniestros'!D9) -> 7.80955798 | F10: =IF('TD Siniestros'!E9="","",'TD Siniestros'!E9) -> 89924.31593 | G10: =IF('TD Siniestros'!F9="","",'TD Siniestros'!F9) -> 74.00801638 | H10: =IF('TD Siniestros'!G9="","",'TD Siniestros'!G9) -> 72.9236169 | I10: 11.8174612
B11: =IF('TD Siniestros'!A10="","",'TD Siniestros'!A10) -> 4 | C11: =IF('TD Siniestros'!B10="","",'TD Siniestros'!B10) -> Quálitas | D11: =IF('TD Siniestros'!C10="","",'TD Siniestros'!C10) -> 29050534.72 | E11: =IF('TD Siniestros'!D10="","",'TD Siniestros'!D10) -> 6.5079566 | F11: =IF('TD Siniestros'!E10="","",'TD Siniestros'!E10) -> 173534.2754 | G11: =IF('TD Siniestros'!F10="","",'TD Siniestros'!F10) -> 57.26412144 | H11: =IF('TD Siniestros'!G10="","",'TD Siniestros'!G10) -> 59.55424808 | I11: 7.013866057
B12: =IF('TD Siniestros'!A11="","",'TD Siniestros'!A11) -> 5 | C12: =IF('TD Siniestros'!B11="","",'TD Siniestros'!B11) -> AXA Seguros | D12: =IF('TD Siniestros'!C11="","",'TD Siniestros'!C11) -> 32562888.4 | E12: =IF('TD Siniestros'!D11="","",'TD Siniestros'!D11) -> 10.22454764 | F12: =IF('TD Siniestros'!E11="","",'TD Siniestros'!E11) -> 258017.2013 | G12: =IF('TD Siniestros'!F11="","",'TD Siniestros'!F11) -> 64.83771281 | H12: =IF('TD Siniestros'!G11="","",'TD Siniestros'!G11) -> 62.78463034 | I12: 7.861877239
B13: =IF('TD Siniestros'!A12="","",'TD Siniestros'!A12) -> 5.1 | C13: =IF('TD Siniestros'!B12="","",'TD Siniestros'!B12) -> TOTAL GRANDES | D13: =IF('TD Siniestros'!C12="","",'TD Siniestros'!C12) -> 200010009.3 | E13: =IF('TD Siniestros'!D12="","",'TD Siniestros'!D12) -> 9.895135094 | F13: =IF('TD Siniestros'!E12="","",'TD Siniestros'!E12) -> 829272.7365 | G13: =IF('TD Siniestros'!F12="","",'TD Siniestros'!F12) -> 59.76093198 | H13: =IF('TD Siniestros'!G12="","",'TD Siniestros'!G12) -> 60.40200707 | I13: 48.28976228
B14: =IF('TD Siniestros'!A13="","",'TD Siniestros'!A13) -> 6 | C14: =IF('TD Siniestros'!B13="","",'TD Siniestros'!B13) -> Banorte | D14: =IF('TD Siniestros'!C13="","",'TD Siniestros'!C13) -> 17162737.25 | E14: =IF('TD Siniestros'!D13="","",'TD Siniestros'!D13) -> 3.684847609 | F14: =IF('TD Siniestros'!E13="","",'TD Siniestros'!E13) -> -39156.17179 | G14: =IF('TD Siniestros'!F13="","",'TD Siniestros'!F13) -> 38.00510551 | H14: =IF('TD Siniestros'!G13="","",'TD Siniestros'!G13) -> 46.33588201 | I14: 4.143715129
B15: =IF('TD Siniestros'!A14="","",'TD Siniestros'!A14) -> 7 | C15: =IF('TD Siniestros'!B14="","",'TD Siniestros'!B14) -> Banamex Seguros | D15: =IF('TD Siniestros'!C14="","",'TD Siniestros'!C14) -> 24629771.14 | E15: =IF('TD Siniestros'!D14="","",'TD Siniestros'!D14) -> -8.254328234 | F15: =IF('TD Siniestros'!E14="","",'TD Siniestros'!E14) -> 0 | G15: =IF('TD Siniestros'!F14="","",'TD Siniestros'!F14) -> 63.22600122 | H15: =IF('TD Siniestros'!G14="","",'TD Siniestros'!G14) -> 59.88673063 | I15: 5.946531363
B16: =IF('TD Siniestros'!A15="","",'TD Siniestros'!A15) -> 8 | C16: =IF('TD Siniestros'!B15="","",'TD Siniestros'!B15) -> Monterrey New York Life | D16: =IF('TD Siniestros'!C15="","",'TD Siniestros'!C15) -> 22822147.27 | E16: =IF('TD Siniestros'!D15="","",'TD Siniestros'!D15) -> 9.98318044 | F16: =IF('TD Siniestros'!E15="","",'TD Siniestros'!E15) -> 11743.40035 | G16: =IF('TD Siniestros'!F15="","",'TD Siniestros'!F15) -> 68.59612876 | H16: =IF('TD Siniestros'!G15="","",'TD Siniestros'!G15) -> 67.11950952 | I16: 5.510104569
B17: =IF('TD Siniestros'!A16="","",'TD Siniestros'!A16) -> 9 | C17: =IF('TD Siniestros'!B16="","",'TD Siniestros'!B16) -> Mapfre México | D17: =IF('TD Siniestros'!C16="","",'TD Siniestros'!C16) -> 6624038.084 | E17: =IF('TD Siniestros'!D16="","",'TD Siniestros'!D16) -> -61.75466479 | F17: =IF('TD Siniestros'!E16="","",'TD Siniestros'!E16) -> 169630.6916 | G17: =IF('TD Siniestros'!F16="","",'TD Siniestros'!F16) -> 21.58524165 | H17: =IF('TD Siniestros'!G16="","",'TD Siniestros'!G16) -> 67.44414692 | I17: 1.599286083
B18: =IF('TD Siniestros'!A17="","",'TD Siniestros'!A17) -> 10 | C18: =IF('TD Siniestros'!B17="","",'TD Siniestros'!B17) -> Inbursa | D18: =IF('TD Siniestros'!C17="","",'TD Siniestros'!C17) -> 16402511.08 | E18: =IF('TD Siniestros'!D17="","",'TD Siniestros'!D17) -> 42.69380796 | F18: =IF('TD Siniestros'!E17="","",'TD Siniestros'!E17) -> 370711.1405 | G18: =IF('TD Siniestros'!F17="","",'TD Siniestros'!F17) -> 66.52918283 | H18: =IF('TD Siniestros'!G17="","",'TD Siniestros'!G17) -> 48.20011839 | I18: 3.960168611
B19: =IF('TD Siniestros'!A18="","",'TD Siniestros'!A18) -> 11 | C19: =IF('TD Siniestros'!B18="","",'TD Siniestros'!B18) -> Chubb Seguros México | D19: =IF('TD Siniestros'!C18="","",'TD Siniestros'!C18) -> 9308810.027 | E19: =IF('TD Siniestros'!D18="","",'TD Siniestros'!D18) -> -1.574713073 | F19: =IF('TD Siniestros'!E18="","",'TD Siniestros'!E18) -> 91032.37624 | G19: =IF('TD Siniestros'!F18="","",'TD Siniestros'!F18) -> 38.58233249 | H19: =IF('TD Siniestros'!G18="","",'TD Siniestros'!G18) -> 45.9778537 | I19: 2.247488637
B20: =IF('TD Siniestros'!A19="","",'TD Siniestros'!A19) -> 12 | C20: =IF('TD Siniestros'!B19="","",'TD Siniestros'!B19) -> Allianz México | D20: =IF('TD Siniestros'!C19="","",'TD Siniestros'!C19) -> 8777972.648 | E20: =IF('TD Siniestros'!D19="","",'TD Siniestros'!D19) -> -7.536196104 | F20: =IF('TD Siniestros'!E19="","",'TD Siniestros'!E19) -> 17670.99308 | G20: =IF('TD Siniestros'!F19="","",'TD Siniestros'!F19) -> 37.7778127 | H20: =IF('TD Siniestros'!G19="","",'TD Siniestros'!G19) -> 51.45329702 | I20: 2.119324997
B21: =IF('TD Siniestros'!A20="","",'TD Siniestros'!A20) -> 13 | C21: =IF('TD Siniestros'!B20="","",'TD Siniestros'!B20) -> Zurich Santander | D21: =IF('TD Siniestros'!C20="","",'TD Siniestros'!C20) -> 5444206.36 | E21: =IF('TD Siniestros'!D20="","",'TD Siniestros'!D20) -> 11.46912747 | F21: =IF('TD Siniestros'!E20="","",'TD Siniestros'!E20) -> 0 | G21: =IF('TD Siniestros'!F20="","",'TD Siniestros'!F20) -> 27.44644962 | H21: =IF('TD Siniestros'!G20="","",'TD Siniestros'!G20) -> 30.24907795 | I21: 1.314431372
B22: =IF('TD Siniestros'!A21="","",'TD Siniestros'!A21) -> 14 | C22: =IF('TD Siniestros'!B21="","",'TD Siniestros'!B21) -> Atlas | D22: =IF('TD Siniestros'!C21="","",'TD Siniestros'!C21) -> 8984849.23 | E22: =IF('TD Siniestros'!D21="","",'TD Siniestros'!D21) -> 12.28372125 | F22: =IF('TD Siniestros'!E21="","",'TD Siniestros'!E21) -> 22250.38661 | G22: =IF('TD Siniestros'!F21="","",'TD Siniestros'!F21) -> 49.9668644 | H22: =IF('TD Siniestros'!G21="","",'TD Siniestros'!G21) -> 44.8941614 | I22: 2.169272602
B23: =IF('TD Siniestros'!A22="","",'TD Siniestros'!A22) -> 15 | C23: =IF('TD Siniestros'!B22="","",'TD Siniestros'!B22) -> Agroasemex | D23: =IF('TD Siniestros'!C22="","",'TD Siniestros'!C22) -> 3677143.192 | E23: =IF('TD Siniestros'!D22="","",'TD Siniestros'!D22) -> -43.80357383 | F23: =IF('TD Siniestros'!E22="","",'TD Siniestros'!E22) -> 8494.59238 | G23: =IF('TD Siniestros'!F22="","",'TD Siniestros'!F22) -> 27.04124321 | H23: =IF('TD Siniestros'!G22="","",'TD Siniestros'!G22) -> 101.7171869 | I23: 0.8877974217
B24: =IF('TD Siniestros'!A23="","",'TD Siniestros'!A23) -> 15.1 | C24: =IF('TD Siniestros'!B23="","",'TD Siniestros'!B23) -> TOTAL MEDIANAS | D24: =IF('TD Siniestros'!C23="","",'TD Siniestros'!C23) -> 123834186.3 | E24: =IF('TD Siniestros'!D23="","",'TD Siniestros'!D23) -> -5.717906274 | F24: =IF('TD Siniestros'!E23="","",'TD Siniestros'!E23) -> 652377.409 | G24: =IF('TD Siniestros'!F23="","",'TD Siniestros'!F23) -> 45.6102031 | H24: =IF('TD Siniestros'!G23="","",'TD Siniestros'!G23) -> 54.63139649 | I24: 29.89812079
B25: =IF('TD Siniestros'!A24="","",'TD Siniestros'!A24) -> 16 | C25: =IF('TD Siniestros'!B24="","",'TD Siniestros'!B24) -> HSBC Seguros | D25: =IF('TD Siniestros'!C24="","",'TD Siniestros'!C24) -> 3675388.326 | E25: =IF('TD Siniestros'!D24="","",'TD Siniestros'!D24) -> 38.06925379 | F25: =IF('TD Siniestros'!E24="","",'TD Siniestros'!E24) -> 0 | G25: =IF('TD Siniestros'!F24="","",'TD Siniestros'!F24) -> 28.31620687 | H25: =IF('TD Siniestros'!G24="","",'TD Siniestros'!G24) -> 20.96824628 | I25: 0.8873737328
B26: =IF('TD Siniestros'!A25="","",'TD Siniestros'!A25) -> 17 | C26: =IF('TD Siniestros'!B25="","",'TD Siniestros'!B25) -> ProFuturo G.N.P. | D26: =IF('TD Siniestros'!C25="","",'TD Siniestros'!C25) -> 5539033.894 | E26: =IF('TD Siniestros'!D25="","",'TD Siniestros'!D25) -> 15.4203773 | F26: =IF('TD Siniestros'!E25="","",'TD Siniestros'!E25) -> 0 | G26: =IF('TD Siniestros'!F25="","",'TD Siniestros'!F25) -> 45.46629474 | H26: =IF('TD Siniestros'!G25="","",'TD Siniestros'!G25) -> 53.34776208 | I26: 1.337326221
B27: =IF('TD Siniestros'!A26="","",'TD Siniestros'!A26) -> 18 | C27: =IF('TD Siniestros'!B26="","",'TD Siniestros'!B26) -> Pensiones Banorte | D27: =IF('TD Siniestros'!C26="","",'TD Siniestros'!C26) -> 11714029.66 | E27: =IF('TD Siniestros'!D26="","",'TD Siniestros'!D26) -> 7.602655041 | F27: =IF('TD Siniestros'!E26="","",'TD Siniestros'!E26) -> 0 | G27: =IF('TD Siniestros'!F26="","",'TD Siniestros'!F26) -> 97.88657944 | H27: =IF('TD Siniestros'!G26="","",'TD Siniestros'!G26) -> 82.47477878 | I27: 2.828196997
B28: =IF('TD Siniestros'!A27="","",'TD Siniestros'!A27) -> 19 | C28: =IF('TD Siniestros'!B27="","",'TD Siniestros'!B27) -> HDI Seguros | D28: =IF('TD Siniestros'!C27="","",'TD Siniestros'!C27) -> 6061159.94 | E28: =IF('TD Siniestros'!D27="","",'TD Siniestros'!D27) -> 15.58278987 | F28: =IF('TD Siniestros'!E27="","",'TD Siniestros'!E27) -> 0 | G28: =IF('TD Siniestros'!F27="","",'TD Siniestros'!F27) -> 54.84148776 | H28: =IF('TD Siniestros'!G27="","",'TD Siniestros'!G27) -> 56.34959708 | I28: 1.463386626
B29: =IF('TD Siniestros'!A28="","",'TD Siniestros'!A28) -> 20 | C29: =IF('TD Siniestros'!B28="","",'TD Siniestros'!B28) -> Zurich Aseguradora Mexicana | D29: =IF('TD Siniestros'!C28="","",'TD Siniestros'!C28) -> 4426779.626 | E29: =IF('TD Siniestros'!D28="","",'TD Siniestros'!D28) -> 1.978478012 | F29: =IF('TD Siniestros'!E28="","",'TD Siniestros'!E28) -> 20171.25163 | G29: =IF('TD Siniestros'!F28="","",'TD Siniestros'!F28) -> 40.30673871 | H29: =IF('TD Siniestros'!G28="","",'TD Siniestros'!G28) -> 41.35431643 | I29: 1.06878719
B30: =IF('TD Siniestros'!A29="","",'TD Siniestros'!A29) -> 21 | C30: =IF('TD Siniestros'!B29="","",'TD Siniestros'!B29) -> Pensiones BBVA | D30: =IF('TD Siniestros'!C29="","",'TD Siniestros'!C29) -> 8163299.608 | E30: =IF('TD Siniestros'!D29="","",'TD Siniestros'!D29) -> 12.75356279 | F30: =IF('TD Siniestros'!E29="","",'TD Siniestros'!E29) -> 0 | G30: =IF('TD Siniestros'!F29="","",'TD Siniestros'!F29) -> 84.3648448 | H30: =IF('TD Siniestros'!G29="","",'TD Siniestros'!G29) -> 104.5961125 | I30: 1.970920349
B31: =IF('TD Siniestros'!A30="","",'TD Siniestros'!A30) -> 22 | C31: =IF('TD Siniestros'!B30="","",'TD Siniestros'!B30) -> GMX Seguros | D31: =IF('TD Siniestros'!C30="","",'TD Siniestros'!C30) -> 3448249.229 | E31: =IF('TD Siniestros'!D30="","",'TD Siniestros'!D30) -> -14.49287511 | F31: =IF('TD Siniestros'!E30="","",'TD Siniestros'!E30) -> 0 | G31: =IF('TD Siniestros'!F30="","",'TD Siniestros'!F30) -> 40.80263817 | H31: =IF('TD Siniestros'!G30="","",'TD Siniestros'!G30) -> 45.91233015 | I31: 0.8325340121
B32: =IF('TD Siniestros'!A31="","",'TD Siniestros'!A31) -> 23 | C32: =IF('TD Siniestros'!B31="","",'TD Siniestros'!B31) -> AIG Seguros | D32: =IF('TD Siniestros'!C31="","",'TD Siniestros'!C31) -> 2362947.009 | E32: =IF('TD Siniestros'!D31="","",'TD Siniestros'!D31) -> 87.14234233 | F32: =IF('TD Siniestros'!E31="","",'TD Siniestros'!E31) -> 10046.13086 | G32: =IF('TD Siniestros'!F31="","",'TD Siniestros'!F31) -> 37.50629968 | H32: =IF('TD Siniestros'!G31="","",'TD Siniestros'!G31) -> 23.43850424 | I32: 0.5705021951
B33: =IF('TD Siniestros'!A32="","",'TD Siniestros'!A32) -> 24 | C33: =IF('TD Siniestros'!B32="","",'TD Siniestros'!B32) -> Afirme | D33: =IF('TD Siniestros'!C32="","",'TD Siniestros'!C32) -> 2017664.183 | E33: =IF('TD Siniestros'!D32="","",'TD Siniestros'!D32) -> -34.7977151 | F33: =IF('TD Siniestros'!E32="","",'TD Siniestros'!E32) -> 17031.64716 | G33: =IF('TD Siniestros'!F32="","",'TD Siniestros'!F32) -> 36.07176073 | H33: =IF('TD Siniestros'!G32="","",'TD Siniestros'!G32) -> 57.39579424 | I33: 0.4871382393
B34: =IF('TD Siniestros'!A33="","",'TD Siniestros'!A33) -> 25 | C34: =IF('TD Siniestros'!B33="","",'TD Siniestros'!B33) -> Seguros SURA | D34: =IF('TD Siniestros'!C33="","",'TD Siniestros'!C33) -> 2586905.136 | E34: =IF('TD Siniestros'!D33="","",'TD Siniestros'!D33) -> 35.34303048 | F34: =IF('TD Siniestros'!E33="","",'TD Siniestros'!E33) -> -6216.84322 | G34: =IF('TD Siniestros'!F33="","",'TD Siniestros'!F33) -> 53.10802157 | H34: =IF('TD Siniestros'!G33="","",'TD Siniestros'!G33) -> 41.62121291 | I34: 0.6245739124
B35: =IF('TD Siniestros'!A34="","",'TD Siniestros'!A34) -> 26 | C35: =IF('TD Siniestros'!B34="","",'TD Siniestros'!B34) -> Patrimonial Vida | D35: =IF('TD Siniestros'!C34="","",'TD Siniestros'!C34) -> 1946418.365 | E35: =IF('TD Siniestros'!D34="","",'TD Siniestros'!D34) -> 109.3888879 | F35: =IF('TD Siniestros'!E34="","",'TD Siniestros'!E34) -> 4903.45086 | G35: =IF('TD Siniestros'!F34="","",'TD Siniestros'!F34) -> 42.08049006 | H35: =IF('TD Siniestros'!G34="","",'TD Siniestros'!G34) -> 34.3652093 | I35: 0.4699368819
B36: =IF('TD Siniestros'!A35="","",'TD Siniestros'!A35) -> 27 | C36: =IF('TD Siniestros'!B35="","",'TD Siniestros'!B35) -> Hir Seguros | D36: =IF('TD Siniestros'!C35="","",'TD Siniestros'!C35) -> 2155179.825 | E36: =IF('TD Siniestros'!D35="","",'TD Siniestros'!D35) -> -5.666564257 | F36: =IF('TD Siniestros'!E35="","",'TD Siniestros'!E35) -> 74877.08288 | G36: =IF('TD Siniestros'!F35="","",'TD Siniestros'!F35) -> 47.7291826 | H36: =IF('TD Siniestros'!G35="","",'TD Siniestros'!G35) -> 70.50241184 | I36: 0.5203395659
B37: =IF('TD Siniestros'!A36="","",'TD Siniestros'!A36) -> 28 | C37: =IF('TD Siniestros'!B36="","",'TD Siniestros'!B36) -> BUPA México | D37: =IF('TD Siniestros'!C36="","",'TD Siniestros'!C36) -> 2937393.384 | E37: =IF('TD Siniestros'!D36="","",'TD Siniestros'!D36) -> 18.40273673 | F37: =IF('TD Siniestros'!E36="","",'TD Siniestros'!E36) -> 0 | G37: =IF('TD Siniestros'!F36="","",'TD Siniestros'!F36) -> 67.13822795 | H37: =IF('TD Siniestros'!G36="","",'TD Siniestros'!G36) -> 69.66885729 | I37: 0.7091946484
B38: =IF('TD Siniestros'!A37="","",'TD Siniestros'!A37) -> 29 | C38: =IF('TD Siniestros'!B37="","",'TD Siniestros'!B37) -> Ve Por Más | D38: =IF('TD Siniestros'!C37="","",'TD Siniestros'!C37) -> 2605447.822 | E38: =IF('TD Siniestros'!D37="","",'TD Siniestros'!D37) -> 27.89761413 | F38: =IF('TD Siniestros'!E37="","",'TD Siniestros'!E37) -> -6420.89346 | G38: =IF('TD Siniestros'!F37="","",'TD Siniestros'!F37) -> 69.66428208 | H38: =IF('TD Siniestros'!G37="","",'TD Siniestros'!G37) -> 54.63329249 | I38: 0.6290507979
B39: =IF('TD Siniestros'!A38="","",'TD Siniestros'!A38) -> 30 | C39: =IF('TD Siniestros'!B38="","",'TD Siniestros'!B38) -> Cardif Vida | D39: =IF('TD Siniestros'!C38="","",'TD Siniestros'!C38) -> 851556.7675 | E39: =IF('TD Siniestros'!D38="","",'TD Siniestros'!D38) -> 38.02738262 | F39: =IF('TD Siniestros'!E38="","",'TD Siniestros'!E38) -> 0 | G39: =IF('TD Siniestros'!F38="","",'TD Siniestros'!F38) -> 23.22082218 | H39: =IF('TD Siniestros'!G38="","",'TD Siniestros'!G38) -> 24.40387828 | I39: 0.2055970799
B40: =IF('TD Siniestros'!A39="","",'TD Siniestros'!A39) -> 31 | C40: =IF('TD Siniestros'!B39="","",'TD Siniestros'!B39) -> FM Global | D40: =IF('TD Siniestros'!C39="","",'TD Siniestros'!C39) -> 4591850.646 | E40: =IF('TD Siniestros'!D39="","",'TD Siniestros'!D39) -> 21.47700291 | F40: =IF('TD Siniestros'!E39="","",'TD Siniestros'!E39) -> 0 | G40: =IF('TD Siniestros'!F39="","",'TD Siniestros'!F39) -> 126.7198177 | H40: =IF('TD Siniestros'!G39="","",'TD Siniestros'!G39) -> 116.4672558 | I40: 1.108641397
B41: =IF('TD Siniestros'!A40="","",'TD Siniestros'!A40) -> 32 | C41: =IF('TD Siniestros'!B40="","",'TD Siniestros'!B40) -> ANA | D41: =IF('TD Siniestros'!C40="","",'TD Siniestros'!C40) -> 1835327.897 | E41: =IF('TD Siniestros'!D40="","",'TD Siniestros'!D40) -> -1.324412888 | F41: =IF('TD Siniestros'!E40="","",'TD Siniestros'!E40) -> 10970.27701 | G41: =IF('TD Siniestros'!F40="","",'TD Siniestros'!F40) -> 54.83070841 | H41: =IF('TD Siniestros'!G40="","",'TD Siniestros'!G40) -> 66.7909562 | I41: 0.4431155628
B42: =IF('TD Siniestros'!A41="","",'TD Siniestros'!A41) -> 33 | C42: =IF('TD Siniestros'!B41="","",'TD Siniestros'!B41) -> Plan Seguro | D42: =IF('TD Siniestros'!C41="","",'TD Siniestros'!C41) -> 1952883.048 | E42: =IF('TD Siniestros'!D41="","",'TD Siniestros'!D41) -> 33.04985583 | F42: =IF('TD Siniestros'!E41="","",'TD Siniestros'!E41) -> 0 | G42: =IF('TD Siniestros'!F41="","",'TD Siniestros'!F41) -> 58.75063984 | H42: =IF('TD Siniestros'!G41="","",'TD Siniestros'!G41) -> 62.71092674 | I42: 0.471497694
B43: =IF('TD Siniestros'!A42="","",'TD Siniestros'!A42) -> 34 | C43: =IF('TD Siniestros'!B42="","",'TD Siniestros'!B42) -> Seguros Azteca | D43: =IF('TD Siniestros'!C42="","",'TD Siniestros'!C42) -> 513247.2142 | E43: =IF('TD Siniestros'!D42="","",'TD Siniestros'!D42) -> -44.27083849 | F43: =IF('TD Siniestros'!E42="","",'TD Siniestros'!E42) -> 0 | G43: =IF('TD Siniestros'!F42="","",'TD Siniestros'!F42) -> 18.80325818 | H43: =IF('TD Siniestros'!G42="","",'TD Siniestros'!G42) -> 32.64400536 | I43: 0.1239167282
B44: =IF('TD Siniestros'!A43="","",'TD Siniestros'!A43) -> 35 | C44: =IF('TD Siniestros'!B43="","",'TD Siniestros'!B43) -> General de Seguros | D44: =IF('TD Siniestros'!C43="","",'TD Siniestros'!C43) -> 1732145.886 | E44: =IF('TD Siniestros'!D43="","",'TD Siniestros'!D43) -> 18.2976066 | F44: =IF('TD Siniestros'!E43="","",'TD Siniestros'!E43) -> 41903.40204 | G44: =IF('TD Siniestros'!F43="","",'TD Siniestros'!F43) -> 65.84261123 | H44: =IF('TD Siniestros'!G43="","",'TD Siniestros'!G43) -> 65.96603071 | I44: 0.4182036357
B45: =IF('TD Siniestros'!A44="","",'TD Siniestros'!A44) -> 36 | C45: =IF('TD Siniestros'!B44="","",'TD Siniestros'!B44) -> Seguros Argos | D45: =IF('TD Siniestros'!C44="","",'TD Siniestros'!C44) -> 2198505.174 | E45: =IF('TD Siniestros'!D44="","",'TD Siniestros'!D44) -> -1.475841096 | F45: =IF('TD Siniestros'!E44="","",'TD Siniestros'!E44) -> -14954.29151 | G45: =IF('TD Siniestros'!F44="","",'TD Siniestros'!F44) -> 84.32377566 | H45: =IF('TD Siniestros'!G44="","",'TD Siniestros'!G44) -> 87.40211628 | I45: 0.5307998963
B46: =IF('TD Siniestros'!A45="","",'TD Siniestros'!A45) -> 37 | C46: =IF('TD Siniestros'!B45="","",'TD Siniestros'!B45) -> Cardif Seguros Generales | D46: =IF('TD Siniestros'!C45="","",'TD Siniestros'!C45) -> 293532.6303 | E46: =IF('TD Siniestros'!D45="","",'TD Siniestros'!D45) -> 0 | F46: =IF('TD Siniestros'!E45="","",'TD Siniestros'!E45) -> 0 | G46: =IF('TD Siniestros'!F45="","",'TD Siniestros'!F45) -> 11.95025839 | H46: =IF('TD Siniestros'!G45="","",'TD Siniestros'!G45) -> 0 | I46: 0.07086955791
B47: =IF('TD Siniestros'!A46="","",'TD Siniestros'!A46) -> 38 | C47: =IF('TD Siniestros'!B46="","",'TD Siniestros'!B46) -> El Potosí | D47: =IF('TD Siniestros'!C46="","",'TD Siniestros'!C46) -> 1126492.292 | E47: =IF('TD Siniestros'!D46="","",'TD Siniestros'!D46) -> 11.96059535 | F47: =IF('TD Siniestros'!E46="","",'TD Siniestros'!E46) -> 1291.64917 | G47: =IF('TD Siniestros'!F46="","",'TD Siniestros'!F46) -> 46.24966952 | H47: =IF('TD Siniestros'!G46="","",'TD Siniestros'!G46) -> 53.19727544 | I47: 0.2719766135
B48: =IF('TD Siniestros'!A47="","",'TD Siniestros'!A47) -> 39 | C48: =IF('TD Siniestros'!B47="","",'TD Siniestros'!B47) -> HDI Global Seguros | D48: =IF('TD Siniestros'!C47="","",'TD Siniestros'!C47) -> 1776902.68 | E48: =IF('TD Siniestros'!D47="","",'TD Siniestros'!D47) -> 97.65950278 | F48: =IF('TD Siniestros'!E47="","",'TD Siniestros'!E47) -> 0 | G48: =IF('TD Siniestros'!F47="","",'TD Siniestros'!F47) -> 77.4070173 | H48: =IF('TD Siniestros'!G47="","",'TD Siniestros'!G47) -> 42.73390452 | I48: 0.4290095695
B49: =IF('TD Siniestros'!A48="","",'TD Siniestros'!A48) -> 40 | C49: =IF('TD Siniestros'!B48="","",'TD Siniestros'!B48) -> Seguros Azteca Daños | D49: =IF('TD Siniestros'!C48="","",'TD Siniestros'!C48) -> 504172.8234 | E49: =IF('TD Siniestros'!D48="","",'TD Siniestros'!D48) -> 68.56004508 | F49: =IF('TD Siniestros'!E48="","",'TD Siniestros'!E48) -> 7972.24138 | G49: =IF('TD Siniestros'!F48="","",'TD Siniestros'!F48) -> 25.30425472 | H49: =IF('TD Siniestros'!G48="","",'TD Siniestros'!G48) -> 17.03156091 | I49: 0.121725837
B50: =IF('TD Siniestros'!A49="","",'TD Siniestros'!A49) -> 41 | C50: =IF('TD Siniestros'!B49="","",'TD Siniestros'!B49) -> Thona | D50: =IF('TD Siniestros'!C49="","",'TD Siniestros'!C49) -> 1733506.023 | E50: =IF('TD Siniestros'!D49="","",'TD Siniestros'!D49) -> -7.095814884 | F50: =IF('TD Siniestros'!E49="","",'TD Siniestros'!E49) -> 5154.13614 | G50: =IF('TD Siniestros'!F49="","",'TD Siniestros'!F49) -> 88.77821378 | H50: =IF('TD Siniestros'!G49="","",'TD Siniestros'!G49) -> 92.37965567 | I50: 0.4185320228
B51: =IF('TD Siniestros'!A50="","",'TD Siniestros'!A50) -> 42 | C51: =IF('TD Siniestros'!B50="","",'TD Siniestros'!B50) -> Prudential | D51: =IF('TD Siniestros'!C50="","",'TD Siniestros'!C50) -> 231226.2573 | E51: =IF('TD Siniestros'!D50="","",'TD Siniestros'!D50) -> -4.314815559 | F51: =IF('TD Siniestros'!E50="","",'TD Siniestros'!E50) -> 0 | G51: =IF('TD Siniestros'!F50="","",'TD Siniestros'!F50) -> 12.64799377 | H51: =IF('TD Siniestros'!G50="","",'TD Siniestros'!G50) -> 15.5063921 | I51: 0.05582651106
B52: =IF('TD Siniestros'!A51="","",'TD Siniestros'!A51) -> 43 | C52: =IF('TD Siniestros'!B51="","",'TD Siniestros'!B51) -> Insignia Life | D52: =IF('TD Siniestros'!C51="","",'TD Siniestros'!C51) -> 851617.9688 | E52: =IF('TD Siniestros'!D51="","",'TD Siniestros'!D51) -> 15.74297295 | F52: =IF('TD Siniestros'!E51="","",'TD Siniestros'!E51) -> 33200.29402 | G52: =IF('TD Siniestros'!F51="","",'TD Siniestros'!F51) -> 47.47639742 | H52: =IF('TD Siniestros'!G51="","",'TD Siniestros'!G51) -> 49.58013452 | I52: 0.2056118561
B53: =IF('TD Siniestros'!A52="","",'TD Siniestros'!A52) -> 44 | C53: =IF('TD Siniestros'!B52="","",'TD Siniestros'!B52) -> BBVA Salud | D53: =IF('TD Siniestros'!C52="","",'TD Siniestros'!C52) -> 1307899.767 | E53: =IF('TD Siniestros'!D52="","",'TD Siniestros'!D52) -> 13.37104986 | F53: =IF('TD Siniestros'!E52="","",'TD Siniestros'!E52) -> 0 | G53: =IF('TD Siniestros'!F52="","",'TD Siniestros'!F52) -> 75.23072445 | H53: =IF('TD Siniestros'!G52="","",'TD Siniestros'!G52) -> 68.89381858 | I53: 0.3157750407
B54: =IF('TD Siniestros'!A53="","",'TD Siniestros'!A53) -> 45 | C54: =IF('TD Siniestros'!B53="","",'TD Siniestros'!B53) -> El Águila | D54: =IF('TD Siniestros'!C53="","",'TD Siniestros'!C53) -> 942654.7362 | E54: =IF('TD Siniestros'!D53="","",'TD Siniestros'!D53) -> 82.05328074 | F54: =IF('TD Siniestros'!E53="","",'TD Siniestros'!E53) -> 0 | G54: =IF('TD Siniestros'!F53="","",'TD Siniestros'!F53) -> 69.58077747 | H54: =IF('TD Siniestros'!G53="","",'TD Siniestros'!G53) -> 40.37471273 | I54: 0.2275914754
B55: =IF('TD Siniestros'!A54="","",'TD Siniestros'!A54) -> 46 | C55: =IF('TD Siniestros'!B54="","",'TD Siniestros'!B54) -> Swiss Re Corporate Solutions | D55: =IF('TD Siniestros'!C54="","",'TD Siniestros'!C54) -> 555122.7988 | E55: =IF('TD Siniestros'!D54="","",'TD Siniestros'!D54) -> 225.6023001 | F55: =IF('TD Siniestros'!E54="","",'TD Siniestros'!E54) -> 0 | G55: =IF('TD Siniestros'!F54="","",'TD Siniestros'!F54) -> 42.06900842 | H55: =IF('TD Siniestros'!G54="","",'TD Siniestros'!G54) -> 13.22572579 | I55: 0.1340270323
B56: =IF('TD Siniestros'!A55="","",'TD Siniestros'!A55) -> 47 | C56: =IF('TD Siniestros'!B55="","",'TD Siniestros'!B55) -> Assurant Vida | D56: =IF('TD Siniestros'!C55="","",'TD Siniestros'!C55) -> 178849.3358 | E56: =IF('TD Siniestros'!D55="","",'TD Siniestros'!D55) -> 10.20405063 | F56: =IF('TD Siniestros'!E55="","",'TD Siniestros'!E55) -> -938.99445 | G56: =IF('TD Siniestros'!F55="","",'TD Siniestros'!F55) -> 14.84596285 | H56: =IF('TD Siniestros'!G55="","",'TD Siniestros'!G55) -> 14.78679109 | I56: 0.04318079849
B57: =IF('TD Siniestros'!A56="","",'TD Siniestros'!A56) -> 48 | C57: =IF('TD Siniestros'!B56="","",'TD Siniestros'!B56) -> Tokio Marine | D57: =IF('TD Siniestros'!C56="","",'TD Siniestros'!C56) -> 404088.4182 | E57: =IF('TD Siniestros'!D56="","",'TD Siniestros'!D56) -> -17.0397907 | F57: =IF('TD Siniestros'!E56="","",'TD Siniestros'!E56) -> 1963.65391 | G57: =IF('TD Siniestros'!F56="","",'TD Siniestros'!F56) -> 38.62620189 | H57: =IF('TD Siniestros'!G56="","",'TD Siniestros'!G56) -> 58.31941327 | I57: 0.09756178564
B58: =IF('TD Siniestros'!A57="","",'TD Siniestros'!A57) -> 49 | C58: =IF('TD Siniestros'!B57="","",'TD Siniestros'!B57) -> La Latinoamericana | D58: =IF('TD Siniestros'!C57="","",'TD Siniestros'!C57) -> 571422.3422 | E58: =IF('TD Siniestros'!D57="","",'TD Siniestros'!D57) -> -16.75922172 | F58: =IF('TD Siniestros'!E57="","",'TD Siniestros'!E57) -> 8623.23447 | G58: =IF('TD Siniestros'!F57="","",'TD Siniestros'!F57) -> 54.64464913 | H58: =IF('TD Siniestros'!G57="","",'TD Siniestros'!G57) -> 59.63556431 | I58: 0.1379623408
B59: =IF('TD Siniestros'!A58="","",'TD Siniestros'!A58) -> 50 | C59: =IF('TD Siniestros'!B58="","",'TD Siniestros'!B58) -> Pan-American México | D59: =IF('TD Siniestros'!C58="","",'TD Siniestros'!C58) -> 1026881.068 | E59: =IF('TD Siniestros'!D58="","",'TD Siniestros'!D58) -> 140.6789871 | F59: =IF('TD Siniestros'!E58="","",'TD Siniestros'!E58) -> 10761.29733 | G59: =IF('TD Siniestros'!F58="","",'TD Siniestros'!F58) -> 103.4536995 | H59: =IF('TD Siniestros'!G58="","",'TD Siniestros'!G58) -> 42.79746601 | I59: 0.2479268054
B60: =IF('TD Siniestros'!A59="","",'TD Siniestros'!A59) -> 51 | C60: =IF('TD Siniestros'!B59="","",'TD Siniestros'!B59) -> Berkley Seguros | D60: =IF('TD Siniestros'!C59="","",'TD Siniestros'!C59) -> 399937.6034 | E60: =IF('TD Siniestros'!D59="","",'TD Siniestros'!D59) -> 116.9132774 | F60: =IF('TD Siniestros'!E59="","",'TD Siniestros'!E59) -> 5748.25775 | G60: =IF('TD Siniestros'!F59="","",'TD Siniestros'!F59) -> 50.5569853 | H60: =IF('TD Siniestros'!G59="","",'TD Siniestros'!G59) -> 27.35851868 | I60: 0.0965596265
B61: =IF('TD Siniestros'!A60="","",'TD Siniestros'!A60) -> 52 | C61: =IF('TD Siniestros'!B60="","",'TD Siniestros'!B60) -> Sompo Japan | D61: =IF('TD Siniestros'!C60="","",'TD Siniestros'!C60) -> 131354.6868 | E61: =IF('TD Siniestros'!D60="","",'TD Siniestros'!D60) -> -3.485684099 | F61: =IF('TD Siniestros'!E60="","",'TD Siniestros'!E60) -> 1608.00521 | G61: =IF('TD Siniestros'!F60="","",'TD Siniestros'!F60) -> 17.31097985 | H61: =IF('TD Siniestros'!G60="","",'TD Siniestros'!G60) -> 20.40163222 | I61: 0.03171384582
B62: =IF('TD Siniestros'!A61="","",'TD Siniestros'!A61) -> 53 | C62: =IF('TD Siniestros'!B61="","",'TD Siniestros'!B61) -> AXA Salud | D62: =IF('TD Siniestros'!C61="","",'TD Siniestros'!C61) -> 482046.3032 | E62: =IF('TD Siniestros'!D61="","",'TD Siniestros'!D61) -> 4.745541884 | F62: =IF('TD Siniestros'!E61="","",'TD Siniestros'!E61) -> 0 | G62: =IF('TD Siniestros'!F61="","",'TD Siniestros'!F61) -> 65.42440048 | H62: =IF('TD Siniestros'!G61="","",'TD Siniestros'!G61) -> 72.7983301 | I62: 0.1163836823
B63: =IF('TD Siniestros'!A62="","",'TD Siniestros'!A62) -> 54 | C63: =IF('TD Siniestros'!B62="","",'TD Siniestros'!B62) -> Atradius | D63: =IF('TD Siniestros'!C62="","",'TD Siniestros'!C62) -> 347401.8917 | E63: =IF('TD Siniestros'!D62="","",'TD Siniestros'!D62) -> 149.7195778 | F63: =IF('TD Siniestros'!E62="","",'TD Siniestros'!E62) -> 1452.11603 | G63: =IF('TD Siniestros'!F62="","",'TD Siniestros'!F62) -> 51.22044296 | H63: =IF('TD Siniestros'!G62="","",'TD Siniestros'!G62) -> 22.98977532 | I63: 0.08387557613
B64: =IF('TD Siniestros'!A63="","",'TD Siniestros'!A63) -> 55 | C64: =IF('TD Siniestros'!B63="","",'TD Siniestros'!B63) -> Skandia Life | D64: =IF('TD Siniestros'!C63="","",'TD Siniestros'!C63) -> 74462.12409 | E64: =IF('TD Siniestros'!D63="","",'TD Siniestros'!D63) -> -12.87271456 | F64: =IF('TD Siniestros'!E63="","",'TD Siniestros'!E63) -> 0 | G64: =IF('TD Siniestros'!F63="","",'TD Siniestros'!F63) -> 11.07964781 | H64: =IF('TD Siniestros'!G63="","",'TD Siniestros'!G63) -> 22.9243698 | I64: 0.01797789162
B65: =IF('TD Siniestros'!A64="","",'TD Siniestros'!A64) -> 56 | C65: =IF('TD Siniestros'!B64="","",'TD Siniestros'!B64) -> PREVEM Seguros | D65: =IF('TD Siniestros'!C64="","",'TD Siniestros'!C64) -> 393521.34 | E65: =IF('TD Siniestros'!D64="","",'TD Siniestros'!D64) -> 15.14529237 | F65: =IF('TD Siniestros'!E64="","",'TD Siniestros'!E64) -> 0 | G65: =IF('TD Siniestros'!F64="","",'TD Siniestros'!F64) -> 76.7380756 | H65: =IF('TD Siniestros'!G64="","",'TD Siniestros'!G64) -> 71.44511658 | I65: 0.09501050484
B66: =IF('TD Siniestros'!A65="","",'TD Siniestros'!A65) -> 57 | C66: =IF('TD Siniestros'!B65="","",'TD Siniestros'!B65) -> Solunion Crédito | D66: =IF('TD Siniestros'!C65="","",'TD Siniestros'!C65) -> 552327.5526 | E66: =IF('TD Siniestros'!D65="","",'TD Siniestros'!D65) -> 207.9966619 | F66: =IF('TD Siniestros'!E65="","",'TD Siniestros'!E65) -> 769.00382 | G66: =IF('TD Siniestros'!F65="","",'TD Siniestros'!F65) -> 112.2966157 | H66: =IF('TD Siniestros'!G65="","",'TD Siniestros'!G65) -> 34.13658077 | I66: 0.1333521572
B67: =IF('TD Siniestros'!A66="","",'TD Siniestros'!A66) -> 58 | C67: =IF('TD Siniestros'!B66="","",'TD Siniestros'!B66) -> General de Salud | D67: =IF('TD Siniestros'!C66="","",'TD Siniestros'!C66) -> 678238.5626 | E67: =IF('TD Siniestros'!D66="","",'TD Siniestros'!D66) -> -8.362223226 | F67: =IF('TD Siniestros'!E66="","",'TD Siniestros'!E66) -> 0 | G67: =IF('TD Siniestros'!F66="","",'TD Siniestros'!F66) -> 146.2985913 | H67: =IF('TD Siniestros'!G66="","",'TD Siniestros'!G66) -> 67.2134676 | I67: 0.1637516996
B68: =IF('TD Siniestros'!A67="","",'TD Siniestros'!A67) -> 59 | C68: =IF('TD Siniestros'!B67="","",'TD Siniestros'!B67) -> Primero Seguros | D68: =IF('TD Siniestros'!C67="","",'TD Siniestros'!C67) -> 825054.7942 | E68: =IF('TD Siniestros'!D67="","",'TD Siniestros'!D67) -> -11.01728925 | F68: =IF('TD Siniestros'!E67="","",'TD Siniestros'!E67) -> 0 | G68: =IF('TD Siniestros'!F67="","",'TD Siniestros'!F67) -> 191.0528351 | H68: =IF('TD Siniestros'!G67="","",'TD Siniestros'!G67) -> 62.72798166 | I68: 0.1991985302
B69: =IF('TD Siniestros'!A68="","",'TD Siniestros'!A68) -> 60 | C69: =IF('TD Siniestros'!B68="","",'TD Siniestros'!B68) -> SHF Cred Vivienda | D69: =IF('TD Siniestros'!C68="","",'TD Siniestros'!C68) -> 168492.119 | E69: =IF('TD Siniestros'!D68="","",'TD Siniestros'!D68) -> 91.88734767 | F69: =IF('TD Siniestros'!E68="","",'TD Siniestros'!E68) -> 0 | G69: =IF('TD Siniestros'!F68="","",'TD Siniestros'!F68) -> 47.31154507 | H69: =IF('TD Siniestros'!G68="","",'TD Siniestros'!G68) -> 24.97212123 | I69: 0.04068018595
B70: =IF('TD Siniestros'!A69="","",'TD Siniestros'!A69) -> 61 | C70: =IF('TD Siniestros'!B69="","",'TD Siniestros'!B69) -> Coface | D70: =IF('TD Siniestros'!C69="","",'TD Siniestros'!C69) -> 125599.2027 | E70: =IF('TD Siniestros'!D69="","",'TD Siniestros'!D69) -> 36.28856861 | F70: =IF('TD Siniestros'!E69="","",'TD Siniestros'!E69) -> -3785.3339 | G70: =IF('TD Siniestros'!F69="","",'TD Siniestros'!F69) -> 43.1383471 | H70: =IF('TD Siniestros'!G69="","",'TD Siniestros'!G69) -> 30.17437378 | I70: 0.03032426058
B71: =IF('TD Siniestros'!A70="","",'TD Siniestros'!A70) -> 62 | C71: =IF('TD Siniestros'!B70="","",'TD Siniestros'!B70) -> Crabi | D71: =IF('TD Siniestros'!C70="","",'TD Siniestros'!C70) -> 177404.4252 | E71: =IF('TD Siniestros'!D70="","",'TD Siniestros'!D70) -> 79.72323493 | F71: =IF('TD Siniestros'!E70="","",'TD Siniestros'!E70) -> 0 | G71: =IF('TD Siniestros'!F70="","",'TD Siniestros'!F70) -> 63.70861101 | H71: =IF('TD Siniestros'!G70="","",'TD Siniestros'!G70) -> 58.24484321 | I71: 0.042831944
B72: =IF('TD Siniestros'!A71="","",'TD Siniestros'!A71) -> 63 | C72: =IF('TD Siniestros'!B71="","",'TD Siniestros'!B71) -> MediAccess | D72: =IF('TD Siniestros'!C71="","",'TD Siniestros'!C71) -> 211895.2242 | E72: =IF('TD Siniestros'!D71="","",'TD Siniestros'!D71) -> 19.81662477 | F72: =IF('TD Siniestros'!E71="","",'TD Siniestros'!E71) -> 0 | G72: =IF('TD Siniestros'!F71="","",'TD Siniestros'!F71) -> 146.1702183 | H72: =IF('TD Siniestros'!G71="","",'TD Siniestros'!G71) -> 85.49364921 | I72: 0.05115928967
B73: =IF('TD Siniestros'!A72="","",'TD Siniestros'!A72) -> 64 | C73: =IF('TD Siniestros'!B72="","",'TD Siniestros'!B72) -> Genworth Seg. de Crédito | D73: =IF('TD Siniestros'!C72="","",'TD Siniestros'!C72) -> 112869.9392 | E73: =IF('TD Siniestros'!D72="","",'TD Siniestros'!D72) -> 81.28592192 | F73: =IF('TD Siniestros'!E72="","",'TD Siniestros'!E72) -> 0 | G73: =IF('TD Siniestros'!F72="","",'TD Siniestros'!F72) -> 88.28093809 | H73: =IF('TD Siniestros'!G72="","",'TD Siniestros'!G72) -> 53.03679285 | I73: =IFERROR(D73/VLOOKUP("TOTAL",$C$8:$D$124,2,0)*100,"") -> 0.02725094884
B74: =IF('TD Siniestros'!A73="","",'TD Siniestros'!A73) -> 65 | C74: =IF('TD Siniestros'!B73="","",'TD Siniestros'!B73) -> Virginia Surety | D74: =IF('TD Siniestros'!C73="","",'TD Siniestros'!C73) -> 28931.92198 | E74: =IF('TD Siniestros'!D73="","",'TD Siniestros'!D73) -> 2.695135829 | F74: =IF('TD Siniestros'!E73="","",'TD Siniestros'!E73) -> 0 | G74: =IF('TD Siniestros'!F73="","",'TD Siniestros'!F73) -> 25.80217862 | H74: =IF('TD Siniestros'!G73="","",'TD Siniestros'!G73) -> 29.53112633 | I74: 0.006985228586
B75: =IF('TD Siniestros'!A74="","",'TD Siniestros'!A74) -> 66 | C75: =IF('TD Siniestros'!B74="","",'TD Siniestros'!B74) -> Tláloc Seguros | D75: =IF('TD Siniestros'!C74="","",'TD Siniestros'!C74) -> 28463.91749 | E75: =IF('TD Siniestros'!D74="","",'TD Siniestros'!D74) -> -49.92485265 | F75: =IF('TD Siniestros'!E74="","",'TD Siniestros'!E74) -> 0 | G75: =IF('TD Siniestros'!F74="","",'TD Siniestros'!F74) -> 25.55905755 | H75: =IF('TD Siniestros'!G74="","",'TD Siniestros'!G74) -> 60.50651524 | I75: 0.006872235113
B76: =IF('TD Siniestros'!A75="","",'TD Siniestros'!A75) -> 67 | C76: =IF('TD Siniestros'!B75="","",'TD Siniestros'!B75) -> Odontoprev | D76: =IF('TD Siniestros'!C75="","",'TD Siniestros'!C75) -> 25030.07847 | E76: =IF('TD Siniestros'!D75="","",'TD Siniestros'!D75) -> -4.328773015 | F76: =IF('TD Siniestros'!E75="","",'TD Siniestros'!E75) -> 0 | G76: =IF('TD Siniestros'!F75="","",'TD Siniestros'!F75) -> 25.5973936 | H76: =IF('TD Siniestros'!G75="","",'TD Siniestros'!G75) -> 25.17132314 | I76: 0.006043180255
B77: =IF('TD Siniestros'!A76="","",'TD Siniestros'!A76) -> 68 | C77: =IF('TD Siniestros'!B76="","",'TD Siniestros'!B76) -> SPP Seguros | D77: =IF('TD Siniestros'!C76="","",'TD Siniestros'!C76) -> 5438.36973 | E77: =IF('TD Siniestros'!D76="","",'TD Siniestros'!D76) -> 76.91323355 | F77: =IF('TD Siniestros'!E76="","",'TD Siniestros'!E76) -> 0 | G77: =IF('TD Siniestros'!F76="","",'TD Siniestros'!F76) -> 6.248837996 | H77: =IF('TD Siniestros'!G76="","",'TD Siniestros'!G76) -> 4.321283545 | I77: 0.001313022195
B78: =IF('TD Siniestros'!A77="","",'TD Siniestros'!A77) -> 69 | C78: =IF('TD Siniestros'!B77="","",'TD Siniestros'!B77) -> Momento Seguros | D78: =IF('TD Siniestros'!C77="","",'TD Siniestros'!C77) -> 38436.47156 | E78: =IF('TD Siniestros'!D77="","",'TD Siniestros'!D77) -> 377.8042862 | F78: =IF('TD Siniestros'!E77="","",'TD Siniestros'!E77) -> 0 | G78: =IF('TD Siniestros'!F77="","",'TD Siniestros'!F77) -> 49.80575134 | H78: =IF('TD Siniestros'!G77="","",'TD Siniestros'!G77) -> 37.52681424 | I78: 0.009279975941
B79: =IF('TD Siniestros'!A78="","",'TD Siniestros'!A78) -> 70 | C79: =IF('TD Siniestros'!B78="","",'TD Siniestros'!B78) -> Quálitas Salud | D79: =IF('TD Siniestros'!C78="","",'TD Siniestros'!C78) -> 65378.91155 | E79: =IF('TD Siniestros'!D78="","",'TD Siniestros'!D78) -> 100.8905164 | F79: =IF('TD Siniestros'!E78="","",'TD Siniestros'!E78) -> 0 | G79: =IF('TD Siniestros'!F78="","",'TD Siniestros'!F78) -> 132.5381492 | H79: =IF('TD Siniestros'!G78="","",'TD Siniestros'!G78) -> 212.7347981 | I79: 0.0157848705
B80: =IF('TD Siniestros'!A79="","",'TD Siniestros'!A79) -> 71 | C80: =IF('TD Siniestros'!B79="","",'TD Siniestros'!B79) -> SPT | D80: =IF('TD Siniestros'!C79="","",'TD Siniestros'!C79) -> 38978.43303 | E80: =IF('TD Siniestros'!D79="","",'TD Siniestros'!D79) -> 21.7759942 | F80: =IF('TD Siniestros'!E79="","",'TD Siniestros'!E79) -> 0 | G80: =IF('TD Siniestros'!F79="","",'TD Siniestros'!F79) -> 88.32823885 | H80: =IF('TD Siniestros'!G79="","",'TD Siniestros'!G79) -> 73.95385198 | I80: 0.009410825345
B81: =IF('TD Siniestros'!A80="","",'TD Siniestros'!A80) -> 72 | C81: =IF('TD Siniestros'!B80="","",'TD Siniestros'!B80) -> Banamex Pensiones | D81: =IF('TD Siniestros'!C80="","",'TD Siniestros'!C80) -> 611948.5066 | E81: =IF('TD Siniestros'!D80="","",'TD Siniestros'!D80) -> 1.996502535 | F81: =IF('TD Siniestros'!E80="","",'TD Siniestros'!E80) -> 0 | G81: =IF('TD Siniestros'!F80="","",'TD Siniestros'!F80) -> 6162.383048 | H81: =IF('TD Siniestros'!G80="","",'TD Siniestros'!G80) -> 9013.17022 | I81: 0.1477468453
B82: =IF('TD Siniestros'!A81="","",'TD Siniestros'!A81) -> 150.1 | C82: =IF('TD Siniestros'!B81="","",'TD Siniestros'!B81) -> TOTAL RESTO | D82: =IF('TD Siniestros'!C81="","",'TD Siniestros'!C81) -> 90342994.17 | E82: =IF('TD Siniestros'!D81="","",'TD Siniestros'!D81) -> 14.7981722 | F82: =IF('TD Siniestros'!E81="","",'TD Siniestros'!E81) -> 226130.7751 | G82: =IF('TD Siniestros'!F81="","",'TD Siniestros'!F81) -> 55.0795031 | H82: =IF('TD Siniestros'!G81="","",'TD Siniestros'!G81) -> 54.35862347 | I82: 21.81211694
B83: =IF('TD Siniestros'!A82="","",'TD Siniestros'!A82) -> 200 | C83: =IF('TD Siniestros'!B82="","",'TD Siniestros'!B82) -> Patria | D83: =IF('TD Siniestros'!C82="","",'TD Siniestros'!C82) -> 0 | E83: =IF('TD Siniestros'!D82="","",'TD Siniestros'!D82) -> 0 | F83: =IF('TD Siniestros'!E82="","",'TD Siniestros'!E82) -> 0 | G83: =IF('TD Siniestros'!F82="","",'TD Siniestros'!F82) -> 0 | H83: =IF('TD Siniestros'!G82="","",'TD Siniestros'!G82) -> 0 | I83: 0
B84: =IF('TD Siniestros'!A83="","",'TD Siniestros'!A83) -> 201.1 | C84: =IF('TD Siniestros'!B83="","",'TD Siniestros'!B83) -> TOTAL | D84: =IF('TD Siniestros'!C83="","",'TD Siniestros'!C83) -> 414187189.8 | E84: =IF('TD Siniestros'!D83="","",'TD Siniestros'!D83) -> 5.648581219 | F84: =IF('TD Siniestros'!E83="","",'TD Siniestros'!E83) -> 1707780.921 | G84: =IF('TD Siniestros'!F83="","",'TD Siniestros'!F83) -> 53.7757459 | H84: =IF('TD Siniestros'!G83="","",'TD Siniestros'!G83) -> 57.10665229 | I84: 100
B85: =IF('TD Siniestros'!A84="","",'TD Siniestros'!A84) ->  | C85: =IF('TD Siniestros'!B84="","",'TD Siniestros'!B84) ->  | D85: =IF('TD Siniestros'!C84="","",'TD Siniestros'!C84) ->  | E85: =IF('TD Siniestros'!D84="","",'TD Siniestros'!D84) ->  | F85: =IF('TD Siniestros'!E84="","",'TD Siniestros'!E84) ->  | G85: =IF('TD Siniestros'!F84="","",'TD Siniestros'!F84) ->  | H85: =IF('TD Siniestros'!G84="","",'TD Siniestros'!G84) -> 
B86: =IF('TD Siniestros'!A85="","",'TD Siniestros'!A85) ->  | C86: =IF('TD Siniestros'!B85="","",'TD Siniestros'!B85) ->  | D86: =IF('TD Siniestros'!C85="","",'TD Siniestros'!C85) ->  | E86: =IF('TD Siniestros'!D85="","",'TD Siniestros'!D85) ->  | F86: =IF('TD Siniestros'!E85="","",'TD Siniestros'!E85) ->  | G86: =IF('TD Siniestros'!F85="","",'TD Siniestros'!F85) ->  | H86: =IF('TD Siniestros'!G85="","",'TD Siniestros'!G85) -> 
B87: =IF('TD Siniestros'!A86="","",'TD Siniestros'!A86) ->  | C87: =IF('TD Siniestros'!B86="","",'TD Siniestros'!B86) ->  | D87: =IF('TD Siniestros'!C86="","",'TD Siniestros'!C86) ->  | E87: =IF('TD Siniestros'!D86="","",'TD Siniestros'!D86) ->  | F87: =IF('TD Siniestros'!E86="","",'TD Siniestros'!E86) ->  | G87: =IF('TD Siniestros'!F86="","",'TD Siniestros'!F86) ->  | H87: =IF('TD Siniestros'!G86="","",'TD Siniestros'!G86) -> 
B88: =IF('TD Siniestros'!A87="","",'TD Siniestros'!A87) ->  | C88: =IF('TD Siniestros'!B87="","",'TD Siniestros'!B87) ->  | D88: =IF('TD Siniestros'!C87="","",'TD Siniestros'!C87) ->  | E88: =IF('TD Siniestros'!D87="","",'TD Siniestros'!D87) ->  | F88: =IF('TD Siniestros'!E87="","",'TD Siniestros'!E87) ->  | G88: =IF('TD Siniestros'!F87="","",'TD Siniestros'!F87) ->  | H88: =IF('TD Siniestros'!G87="","",'TD Siniestros'!G87) -> 
B89: =IF('TD Siniestros'!A88="","",'TD Siniestros'!A88) ->  | C89: =IF('TD Siniestros'!B88="","",'TD Siniestros'!B88) ->  | D89: =IF('TD Siniestros'!C88="","",'TD Siniestros'!C88) ->  | E89: =IF('TD Siniestros'!D88="","",'TD Siniestros'!D88) ->  | F89: =IF('TD Siniestros'!E88="","",'TD Siniestros'!E88) ->  | G89: =IF('TD Siniestros'!F88="","",'TD Siniestros'!F88) ->  | H89: =IF('TD Siniestros'!G88="","",'TD Siniestros'!G88) -> 
B90: =IF('TD Siniestros'!A89="","",'TD Siniestros'!A89) ->  | C90: =IF('TD Siniestros'!B89="","",'TD Siniestros'!B89) ->  | D90: =IF('TD Siniestros'!C89="","",'TD Siniestros'!C89) ->  | E90: =IF('TD Siniestros'!D89="","",'TD Siniestros'!D89) ->  | F90: =IF('TD Siniestros'!E89="","",'TD Siniestros'!E89) ->  | G90: =IF('TD Siniestros'!F89="","",'TD Siniestros'!F89) ->  | H90: =IF('TD Siniestros'!G89="","",'TD Siniestros'!G89) -> 
B91: =IF('TD Siniestros'!A90="","",'TD Siniestros'!A90) ->  | C91: =IF('TD Siniestros'!B90="","",'TD Siniestros'!B90) ->  | D91: =IF('TD Siniestros'!C90="","",'TD Siniestros'!C90) ->  | E91: =IF('TD Siniestros'!D90="","",'TD Siniestros'!D90) ->  | F91: =IF('TD Siniestros'!E90="","",'TD Siniestros'!E90) ->  | G91: =IF('TD Siniestros'!F90="","",'TD Siniestros'!F90) ->  | H91: =IF('TD Siniestros'!G90="","",'TD Siniestros'!G90) -> 
B92: =IF('TD Siniestros'!A91="","",'TD Siniestros'!A91) ->  | C92: =IF('TD Siniestros'!B91="","",'TD Siniestros'!B91) ->  | D92: =IF('TD Siniestros'!C91="","",'TD Siniestros'!C91) ->  | E92: =IF('TD Siniestros'!D91="","",'TD Siniestros'!D91) ->  | F92: =IF('TD Siniestros'!E91="","",'TD Siniestros'!E91) ->  | G92: =IF('TD Siniestros'!F91="","",'TD Siniestros'!F91) ->  | H92: =IF('TD Siniestros'!G91="","",'TD Siniestros'!G91) -> 
B93: =IF('TD Siniestros'!A92="","",'TD Siniestros'!A92) ->  | C93: =IF('TD Siniestros'!B92="","",'TD Siniestros'!B92) ->  | D93: =IF('TD Siniestros'!C92="","",'TD Siniestros'!C92) ->  | E93: =IF('TD Siniestros'!D92="","",'TD Siniestros'!D92) ->  | F93: =IF('TD Siniestros'!E92="","",'TD Siniestros'!E92) ->  | G93: =IF('TD Siniestros'!F92="","",'TD Siniestros'!F92) ->  | H93: =IF('TD Siniestros'!G92="","",'TD Siniestros'!G92) -> 
B94: =IF('TD Siniestros'!A93="","",'TD Siniestros'!A93) ->  | C94: =IF('TD Siniestros'!B93="","",'TD Siniestros'!B93) ->  | D94: =IF('TD Siniestros'!C93="","",'TD Siniestros'!C93) ->  | E94: =IF('TD Siniestros'!D93="","",'TD Siniestros'!D93) ->  | F94: =IF('TD Siniestros'!E93="","",'TD Siniestros'!E93) ->  | G94: =IF('TD Siniestros'!F93="","",'TD Siniestros'!F93) ->  | H94: =IF('TD Siniestros'!G93="","",'TD Siniestros'!G93) -> 
B95: =IF('TD Siniestros'!A94="","",'TD Siniestros'!A94) ->  | C95: =IF('TD Siniestros'!B94="","",'TD Siniestros'!B94) ->  | D95: =IF('TD Siniestros'!C94="","",'TD Siniestros'!C94) ->  | E95: =IF('TD Siniestros'!D94="","",'TD Siniestros'!D94) ->  | F95: =IF('TD Siniestros'!E94="","",'TD Siniestros'!E94) ->  | G95: =IF('TD Siniestros'!F94="","",'TD Siniestros'!F94) ->  | H95: =IF('TD Siniestros'!G94="","",'TD Siniestros'!G94) -> 
B96: =IF('TD Siniestros'!A95="","",'TD Siniestros'!A95) ->  | C96: =IF('TD Siniestros'!B95="","",'TD Siniestros'!B95) ->  | D96: =IF('TD Siniestros'!C95="","",'TD Siniestros'!C95) ->  | E96: =IF('TD Siniestros'!D95="","",'TD Siniestros'!D95) ->  | F96: =IF('TD Siniestros'!E95="","",'TD Siniestros'!E95) ->  | G96: =IF('TD Siniestros'!F95="","",'TD Siniestros'!F95) ->  | H96: =IF('TD Siniestros'!G95="","",'TD Siniestros'!G95) -> 
B97: =IF('TD Siniestros'!A96="","",'TD Siniestros'!A96) ->  | C97: =IF('TD Siniestros'!B96="","",'TD Siniestros'!B96) ->  | D97: =IF('TD Siniestros'!C96="","",'TD Siniestros'!C96) ->  | E97: =IF('TD Siniestros'!D96="","",'TD Siniestros'!D96) ->  | F97: =IF('TD Siniestros'!E96="","",'TD Siniestros'!E96) ->  | G97: =IF('TD Siniestros'!F96="","",'TD Siniestros'!F96) ->  | H97: =IF('TD Siniestros'!G96="","",'TD Siniestros'!G96) -> 
B98: =IF('TD Siniestros'!A97="","",'TD Siniestros'!A97) ->  | C98: =IF('TD Siniestros'!B97="","",'TD Siniestros'!B97) ->  | D98: =IF('TD Siniestros'!C97="","",'TD Siniestros'!C97) ->  | E98: =IF('TD Siniestros'!D97="","",'TD Siniestros'!D97) ->  | F98: =IF('TD Siniestros'!E97="","",'TD Siniestros'!E97) ->  | G98: =IF('TD Siniestros'!F97="","",'TD Siniestros'!F97) ->  | H98: =IF('TD Siniestros'!G97="","",'TD Siniestros'!G97) -> 
B99: =IF('TD Siniestros'!A98="","",'TD Siniestros'!A98) ->  | C99: =IF('TD Siniestros'!B98="","",'TD Siniestros'!B98) ->  | D99: =IF('TD Siniestros'!C98="","",'TD Siniestros'!C98) ->  | E99: =IF('TD Siniestros'!D98="","",'TD Siniestros'!D98) ->  | F99: =IF('TD Siniestros'!E98="","",'TD Siniestros'!E98) ->  | G99: =IF('TD Siniestros'!F98="","",'TD Siniestros'!F98) ->  | H99: =IF('TD Siniestros'!G98="","",'TD Siniestros'!G98) -> 
B100: =IF('TD Siniestros'!A99="","",'TD Siniestros'!A99) ->  | C100: =IF('TD Siniestros'!B99="","",'TD Siniestros'!B99) ->  | D100: =IF('TD Siniestros'!C99="","",'TD Siniestros'!C99) ->  | E100: =IF('TD Siniestros'!D99="","",'TD Siniestros'!D99) ->  | F100: =IF('TD Siniestros'!E99="","",'TD Siniestros'!E99) ->  | G100: =IF('TD Siniestros'!F99="","",'TD Siniestros'!F99) ->  | H100: =IF('TD Siniestros'!G99="","",'TD Siniestros'!G99) -> 
B101: =IF('TD Siniestros'!A100="","",'TD Siniestros'!A100) ->  | C101: =IF('TD Siniestros'!B100="","",'TD Siniestros'!B100) ->  | D101: =IF('TD Siniestros'!C100="","",'TD Siniestros'!C100) ->  | E101: =IF('TD Siniestros'!D100="","",'TD Siniestros'!D100) ->  | F101: =IF('TD Siniestros'!E100="","",'TD Siniestros'!E100) ->  | G101: =IF('TD Siniestros'!F100="","",'TD Siniestros'!F100) ->  | H101: =IF('TD Siniestros'!G100="","",'TD Siniestros'!G100) -> 
B102: =IF('TD Siniestros'!A101="","",'TD Siniestros'!A101) ->  | C102: =IF('TD Siniestros'!B101="","",'TD Siniestros'!B101) ->  | D102: =IF('TD Siniestros'!C101="","",'TD Siniestros'!C101) ->  | E102: =IF('TD Siniestros'!D101="","",'TD Siniestros'!D101) ->  | F102: =IF('TD Siniestros'!E101="","",'TD Siniestros'!E101) ->  | G102: =IF('TD Siniestros'!F101="","",'TD Siniestros'!F101) ->  | H102: =IF('TD Siniestros'!G101="","",'TD Siniestros'!G101) -> 
B103: =IF('TD Siniestros'!A102="","",'TD Siniestros'!A102) ->  | C103: =IF('TD Siniestros'!B102="","",'TD Siniestros'!B102) ->  | D103: =IF('TD Siniestros'!C102="","",'TD Siniestros'!C102) ->  | E103: =IF('TD Siniestros'!D102="","",'TD Siniestros'!D102) ->  | F103: =IF('TD Siniestros'!E102="","",'TD Siniestros'!E102) ->  | G103: =IF('TD Siniestros'!F102="","",'TD Siniestros'!F102) ->  | H103: =IF('TD Siniestros'!G102="","",'TD Siniestros'!G102) -> 
B104: =IF('TD Siniestros'!A103="","",'TD Siniestros'!A103) ->  | C104: =IF('TD Siniestros'!B103="","",'TD Siniestros'!B103) ->  | D104: =IF('TD Siniestros'!C103="","",'TD Siniestros'!C103) ->  | E104: =IF('TD Siniestros'!D103="","",'TD Siniestros'!D103) ->  | F104: =IF('TD Siniestros'!E103="","",'TD Siniestros'!E103) ->  | G104: =IF('TD Siniestros'!F103="","",'TD Siniestros'!F103) ->  | H104: =IF('TD Siniestros'!G103="","",'TD Siniestros'!G103) -> 
B105: =IF('TD Siniestros'!A104="","",'TD Siniestros'!A104) ->  | C105: =IF('TD Siniestros'!B104="","",'TD Siniestros'!B104) ->  | D105: =IF('TD Siniestros'!C104="","",'TD Siniestros'!C104) ->  | E105: =IF('TD Siniestros'!D104="","",'TD Siniestros'!D104) ->  | F105: =IF('TD Siniestros'!E104="","",'TD Siniestros'!E104) ->  | G105: =IF('TD Siniestros'!F104="","",'TD Siniestros'!F104) ->  | H105: =IF('TD Siniestros'!G104="","",'TD Siniestros'!G104) -> 
B106: =IF('TD Siniestros'!A105="","",'TD Siniestros'!A105) ->  | C106: =IF('TD Siniestros'!B105="","",'TD Siniestros'!B105) ->  | D106: =IF('TD Siniestros'!C105="","",'TD Siniestros'!C105) ->  | E106: =IF('TD Siniestros'!D105="","",'TD Siniestros'!D105) ->  | F106: =IF('TD Siniestros'!E105="","",'TD Siniestros'!E105) ->  | G106: =IF('TD Siniestros'!F105="","",'TD Siniestros'!F105) ->  | H106: =IF('TD Siniestros'!G105="","",'TD Siniestros'!G105) -> 
B107: =IF('TD Siniestros'!A106="","",'TD Siniestros'!A106) ->  | C107: =IF('TD Siniestros'!B106="","",'TD Siniestros'!B106) ->  | D107: =IF('TD Siniestros'!C106="","",'TD Siniestros'!C106) ->  | E107: =IF('TD Siniestros'!D106="","",'TD Siniestros'!D106) ->  | F107: =IF('TD Siniestros'!E106="","",'TD Siniestros'!E106) ->  | G107: =IF('TD Siniestros'!F106="","",'TD Siniestros'!F106) ->  | H107: =IF('TD Siniestros'!G106="","",'TD Siniestros'!G106) -> 
B108: =IF('TD Siniestros'!A107="","",'TD Siniestros'!A107) ->  | C108: =IF('TD Siniestros'!B107="","",'TD Siniestros'!B107) ->  | D108: =IF('TD Siniestros'!C107="","",'TD Siniestros'!C107) ->  | E108: =IF('TD Siniestros'!D107="","",'TD Siniestros'!D107) ->  | F108: =IF('TD Siniestros'!E107="","",'TD Siniestros'!E107) ->  | G108: =IF('TD Siniestros'!F107="","",'TD Siniestros'!F107) ->  | H108: =IF('TD Siniestros'!G107="","",'TD Siniestros'!G107) -> 
B109: =IF('TD Siniestros'!A108="","",'TD Siniestros'!A108) ->  | C109: =IF('TD Siniestros'!B108="","",'TD Siniestros'!B108) ->  | D109: =IF('TD Siniestros'!C108="","",'TD Siniestros'!C108) ->  | E109: =IF('TD Siniestros'!D108="","",'TD Siniestros'!D108) ->  | F109: =IF('TD Siniestros'!E108="","",'TD Siniestros'!E108) ->  | G109: =IF('TD Siniestros'!F108="","",'TD Siniestros'!F108) ->  | H109: =IF('TD Siniestros'!G108="","",'TD Siniestros'!G108) -> 
B110: =IF('TD Siniestros'!A109="","",'TD Siniestros'!A109) ->  | C110: =IF('TD Siniestros'!B109="","",'TD Siniestros'!B109) ->  | D110: =IF('TD Siniestros'!C109="","",'TD Siniestros'!C109) ->  | E110: =IF('TD Siniestros'!D109="","",'TD Siniestros'!D109) ->  | F110: =IF('TD Siniestros'!E109="","",'TD Siniestros'!E109) ->  | G110: =IF('TD Siniestros'!F109="","",'TD Siniestros'!F109) ->  | H110: =IF('TD Siniestros'!G109="","",'TD Siniestros'!G109) -> 
B111: =IF('TD Siniestros'!A110="","",'TD Siniestros'!A110) ->  | C111: =IF('TD Siniestros'!B110="","",'TD Siniestros'!B110) ->  | D111: =IF('TD Siniestros'!C110="","",'TD Siniestros'!C110) ->  | E111: =IF('TD Siniestros'!D110="","",'TD Siniestros'!D110) ->  | F111: =IF('TD Siniestros'!E110="","",'TD Siniestros'!E110) ->  | G111: =IF('TD Siniestros'!F110="","",'TD Siniestros'!F110) ->  | H111: =IF('TD Siniestros'!G110="","",'TD Siniestros'!G110) -> 
B112: =IF('TD Siniestros'!A111="","",'TD Siniestros'!A111) ->  | C112: =IF('TD Siniestros'!B111="","",'TD Siniestros'!B111) ->  | D112: =IF('TD Siniestros'!C111="","",'TD Siniestros'!C111) ->  | E112: =IF('TD Siniestros'!D111="","",'TD Siniestros'!D111) ->  | F112: =IF('TD Siniestros'!E111="","",'TD Siniestros'!E111) ->  | G112: =IF('TD Siniestros'!F111="","",'TD Siniestros'!F111) ->  | H112: =IF('TD Siniestros'!G111="","",'TD Siniestros'!G111) -> 
B113: =IF('TD Siniestros'!A112="","",'TD Siniestros'!A112) ->  | C113: =IF('TD Siniestros'!B112="","",'TD Siniestros'!B112) ->  | D113: =IF('TD Siniestros'!C112="","",'TD Siniestros'!C112) ->  | E113: =IF('TD Siniestros'!D112="","",'TD Siniestros'!D112) ->  | F113: =IF('TD Siniestros'!E112="","",'TD Siniestros'!E112) ->  | G113: =IF('TD Siniestros'!F112="","",'TD Siniestros'!F112) ->  | H113: =IF('TD Siniestros'!G112="","",'TD Siniestros'!G112) -> 
B114: =IF('TD Siniestros'!A113="","",'TD Siniestros'!A113) ->  | C114: =IF('TD Siniestros'!B113="","",'TD Siniestros'!B113) ->  | D114: =IF('TD Siniestros'!C113="","",'TD Siniestros'!C113) ->  | E114: =IF('TD Siniestros'!D113="","",'TD Siniestros'!D113) ->  | F114: =IF('TD Siniestros'!E113="","",'TD Siniestros'!E113) ->  | G114: =IF('TD Siniestros'!F113="","",'TD Siniestros'!F113) ->  | H114: =IF('TD Siniestros'!G113="","",'TD Siniestros'!G113) -> 
B115: =IF('TD Siniestros'!A114="","",'TD Siniestros'!A114) ->  | C115: =IF('TD Siniestros'!B114="","",'TD Siniestros'!B114) ->  | D115: =IF('TD Siniestros'!C114="","",'TD Siniestros'!C114) ->  | E115: =IF('TD Siniestros'!D114="","",'TD Siniestros'!D114) ->  | F115: =IF('TD Siniestros'!E114="","",'TD Siniestros'!E114) ->  | G115: =IF('TD Siniestros'!F114="","",'TD Siniestros'!F114) ->  | H115: =IF('TD Siniestros'!G114="","",'TD Siniestros'!G114) -> 
B116: =IF('TD Siniestros'!A115="","",'TD Siniestros'!A115) ->  | C116: =IF('TD Siniestros'!B115="","",'TD Siniestros'!B115) ->  | D116: =IF('TD Siniestros'!C115="","",'TD Siniestros'!C115) ->  | E116: =IF('TD Siniestros'!D115="","",'TD Siniestros'!D115) ->  | F116: =IF('TD Siniestros'!E115="","",'TD Siniestros'!E115) ->  | G116: =IF('TD Siniestros'!F115="","",'TD Siniestros'!F115) ->  | H116: =IF('TD Siniestros'!G115="","",'TD Siniestros'!G115) -> 
B117: =IF('TD Siniestros'!A116="","",'TD Siniestros'!A116) ->  | C117: =IF('TD Siniestros'!B116="","",'TD Siniestros'!B116) ->  | D117: =IF('TD Siniestros'!C116="","",'TD Siniestros'!C116) ->  | E117: =IF('TD Siniestros'!D116="","",'TD Siniestros'!D116) ->  | F117: =IF('TD Siniestros'!E116="","",'TD Siniestros'!E116) ->  | G117: =IF('TD Siniestros'!F116="","",'TD Siniestros'!F116) ->  | H117: =IF('TD Siniestros'!G116="","",'TD Siniestros'!G116) -> 
B118: =IF('TD Siniestros'!A117="","",'TD Siniestros'!A117) ->  | C118: =IF('TD Siniestros'!B117="","",'TD Siniestros'!B117) ->  | D118: =IF('TD Siniestros'!C117="","",'TD Siniestros'!C117) ->  | E118: =IF('TD Siniestros'!D117="","",'TD Siniestros'!D117) ->  | F118: =IF('TD Siniestros'!E117="","",'TD Siniestros'!E117) ->  | G118: =IF('TD Siniestros'!F117="","",'TD Siniestros'!F117) ->  | H118: =IF('TD Siniestros'!G117="","",'TD Siniestros'!G117) -> 
B119: =IF('TD Siniestros'!A118="","",'TD Siniestros'!A118) ->  | C119: =IF('TD Siniestros'!B118="","",'TD Siniestros'!B118) ->  | D119: =IF('TD Siniestros'!C118="","",'TD Siniestros'!C118) ->  | E119: =IF('TD Siniestros'!D118="","",'TD Siniestros'!D118) ->  | F119: =IF('TD Siniestros'!E118="","",'TD Siniestros'!E118) ->  | G119: =IF('TD Siniestros'!F118="","",'TD Siniestros'!F118) ->  | H119: =IF('TD Siniestros'!G118="","",'TD Siniestros'!G118) -> 
B120: =IF('TD Siniestros'!A119="","",'TD Siniestros'!A119) ->  | C120: =IF('TD Siniestros'!B119="","",'TD Siniestros'!B119) ->  | D120: =IF('TD Siniestros'!C119="","",'TD Siniestros'!C119) ->  | E120: =IF('TD Siniestros'!D119="","",'TD Siniestros'!D119) ->  | F120: =IF('TD Siniestros'!E119="","",'TD Siniestros'!E119) ->  | G120: =IF('TD Siniestros'!F119="","",'TD Siniestros'!F119) ->  | H120: =IF('TD Siniestros'!G119="","",'TD Siniestros'!G119) -> 
B121: =IF('TD Siniestros'!A120="","",'TD Siniestros'!A120) ->  | C121: =IF('TD Siniestros'!B120="","",'TD Siniestros'!B120) ->  | D121: =IF('TD Siniestros'!C120="","",'TD Siniestros'!C120) ->  | E121: =IF('TD Siniestros'!D120="","",'TD Siniestros'!D120) ->  | F121: =IF('TD Siniestros'!E120="","",'TD Siniestros'!E120) ->  | G121: =IF('TD Siniestros'!F120="","",'TD Siniestros'!F120) ->  | H121: =IF('TD Siniestros'!G120="","",'TD Siniestros'!G120) -> 
B122: =IF('TD Siniestros'!A121="","",'TD Siniestros'!A121) ->  | C122: =IF('TD Siniestros'!B121="","",'TD Siniestros'!B121) ->  | D122: =IF('TD Siniestros'!C121="","",'TD Siniestros'!C121) ->  | E122: =IF('TD Siniestros'!D121="","",'TD Siniestros'!D121) ->  | F122: =IF('TD Siniestros'!E121="","",'TD Siniestros'!E121) ->  | G122: =IF('TD Siniestros'!F121="","",'TD Siniestros'!F121) ->  | H122: =IF('TD Siniestros'!G121="","",'TD Siniestros'!G121) -> 
B123: =IF('TD Siniestros'!A122="","",'TD Siniestros'!A122) ->  | C123: =IF('TD Siniestros'!B122="","",'TD Siniestros'!B122) ->  | D123: =IF('TD Siniestros'!C122="","",'TD Siniestros'!C122) ->  | E123: =IF('TD Siniestros'!D122="","",'TD Siniestros'!D122) ->  | F123: =IF('TD Siniestros'!E122="","",'TD Siniestros'!E122) ->  | G123: =IF('TD Siniestros'!F122="","",'TD Siniestros'!F122) ->  | H123: =IF('TD Siniestros'!G122="","",'TD Siniestros'!G122) -> 
B124: =IF('TD Siniestros'!A123="","",'TD Siniestros'!A123) ->  | C124: =IF('TD Siniestros'!B123="","",'TD Siniestros'!B123) ->  | D124: =IF('TD Siniestros'!C123="","",'TD Siniestros'!C123) ->  | E124: =IF('TD Siniestros'!D123="","",'TD Siniestros'!D123) ->  | F124: =IF('TD Siniestros'!E123="","",'TD Siniestros'!E123) ->  | G124: =IF('TD Siniestros'!F123="","",'TD Siniestros'!F123) ->  | H124: =IF('TD Siniestros'!G123="","",'TD Siniestros'!G123) -> 

Sheet Primas Directas (Vida)
C1: Análisis de Primas Directas | L1: =VLOOKUP(RIGHT('TDPrimas Vida'!B2,2),Cat!$N$2:$O$5,2,0)&" "&LEFT('TDPrimas Vida'!B2,4) -> Tercer Trimestre 2025
C2: =UPPER(RIGHT('TDPrimas Vida'!B3,LEN('TDPrimas Vida'!B3)-3)) -> VIDA TOTAL
L3: Cifras en miles
E4: 2 | F4: 3 | G4: 4 | H4: 5 | I4: 6 | J4: 7 | K4: 8 | L4: 9
E5: Primas Directas | G5: % Part. en Merc. | I5: Incremento | K5: % de Cartera
C6: Compañías | E6: ='Primas Directas'!$D$6 -> 2025 | F6: ='Primas Directas'!$E$6 -> 2024 | G6: =$E$6 -> 2025 | H6: =$F$6 -> 2024 | I6: Importe | J6: % | K6: Por | L6: Total
E7: Importe | F7: Importe | K7: Operación | L7: Cartera
B8: =IF(C8="",B2,D8) -> TOTAL | C8: 151.1 | D8: TOTAL | E8: =VLOOKUP($D8,$D$12:$L$211,E$4,0) -> 311861035.3 | F8: =VLOOKUP($D8,$D$12:$L$211,F$4,0) -> 282737917.9 | G8: 100 | H8: 110.3003933 | I8: 29123117.47 | J8: 10.30039327 | K8: 40.49029088 | L8: 48.84853889
B9: =IF(C9="",B8,D9) -> TOTAL | D9: =IF(D8="","","1er Año") -> 1er Año | E9: =IF(E8="","",(VLOOKUP(B9,'TDPrimas Vida'!$B:$N,5,0))) -> 159551027.9 | F9: =IF(E8="","",(VLOOKUP(B9,'TDPrimas Vida'!$B:$N,6,0))) -> 143097065.2 | G9: =IFERROR((E9/VLOOKUP("TOTAL",$D$12:$L$312,2,0))*100,"") -> 51.16093704 | H9: =IFERROR((E9/VLOOKUP("TOTAL",$D$12:$L$312,3,0))*100,"") -> 56.43071476 | I9: =IF(E8="","",E9-F9) -> 16453962.74 | J9: =IF(E8="","",IFERROR((E9/F9-1)*100,"ND")) -> 11.49846275 | K9: =IF(E8="","",IFERROR((E9/VLOOKUP(B9&"|"&VLOOKUP(TDPrimas_!$B$4,Cat!R:T,2,0),'TD Operación'!A:D,4,0))*100,"ND")) -> 20.71521223 | L9: =IF(E8="","",(VLOOKUP(B9,'TDPrimas Vida'!$B:$N,7,0))) -> 11.49846275
B10: TOTAL | D10: =IF(D9="","","Renovación") -> Renovación | E10: =IF(E8="","",(VLOOKUP(B10,'TDPrimas Vida'!$B:$N,8,0))) -> 111109948.5 | F10: =IF(E8="","",(VLOOKUP(B10,'TDPrimas Vida'!$B:$N,9,0))) -> 106313026.5 | G10: =IFERROR((E10/VLOOKUP("TOTAL",$D$12:$L$312,2,0))*100,"") -> 35.62803171 | H10: =IFERROR((E10/VLOOKUP("TOTAL",$D$12:$L$312,3,0))*100,"") -> 39.29785909 | I10: =IF(E8="","",E10-F10) -> 4796921.996 | J10: =IF(E8="","",IFERROR((E10/F10-1)*100,"ND")) -> 4.512073593 | K10: =IF(E9="","",IFERROR((E10/VLOOKUP(B10&"|"&VLOOKUP(TDPrimas_!$B$4,Cat!R:T,2,0),'TD Operación'!A:D,4,0))*100,"ND")) -> 14.42589367 | L10: =IF(E8="","",(VLOOKUP(B10,'TDPrimas Vida'!$B:$N,10,0))) -> 35.62803171
B11: TOTAL | D11: =IF(D10="","","Únicas") -> Únicas | E11: =IF(E9="","",(VLOOKUP(B11,'TDPrimas Vida'!$B:$N,11,0))) -> 41200058.84 | F11: =IF(E9="","",(VLOOKUP(B11,'TDPrimas Vida'!$B:$N,12,0))) -> 33327826.12 | G11: =IFERROR((E11/VLOOKUP("TOTAL",$D$12:$L$312,2,0))*100,"") -> 13.21103125 | H11: =IFERROR((E11/VLOOKUP("TOTAL",$D$12:$L$312,3,0))*100,"") -> 14.57181943 | I11: =IF(E8="","",E11-F11) -> 7872232.726 | J11: =IF(E8="","",IFERROR((E11/F11-1)*100,"ND")) -> 23.62060069 | K11: =IF(E10="","",IFERROR((E11/VLOOKUP(B11&"|"&VLOOKUP(TDPrimas_!$B$4,Cat!R:T,2,0),'TD Operación'!A:D,4,0))*100,"ND")) -> 5.349184983 | L11: =IF(E8="","",(VLOOKUP(B11,'TDPrimas Vida'!$B:$N,13,0))) -> 13.21103125
B12: =IF(C12="",B7,D12) -> BBVA | C12: =IF('TDPrimas Vida'!A7="","",'TDPrimas Vida'!A7) -> 1 | D12: =IF('TDPrimas Vida'!B7="","",'TDPrimas Vida'!B7) -> BBVA | E12: =IF('TDPrimas Vida'!C7="","",'TDPrimas Vida'!C7) -> 56228654.27 | F12: =IF('TDPrimas Vida'!D7="","",'TDPrimas Vida'!D7) -> 47267011.29 | G12: =IF('TDPrimas Vida'!C7="","",IFERROR((E12/VLOOKUP("TOTAL",$D$12:$L$312,2,0))*100,"")) -> 18.03003514 | H12: =IF('TDPrimas Vida'!C7="","",IFERROR((E12/VLOOKUP("TOTAL",$D$12:$L$312,3,0))*100,"")) -> 19.88719967 | I12: =IF('TDPrimas Vida'!C7="","",E12-F12) -> 8961642.981 | J12: =IFERROR(IF('TDPrimas Vida'!C7="","",(E12/F12-1)*100),"ND") -> 18.95961419 | K12: =IF(E11="","",IFERROR((E12/VLOOKUP(B12&"|"&VLOOKUP(TDPrimas_!$B$4,Cat!R:T,2,0),'TD Operación'!A:D,4,0))*100,"ND")) -> 77.67041408 | L12: =IF('TDPrimas Vida'!E7="","",'TDPrimas Vida'!E7) -> 77.67041408
B13: =IF(C13="",B12,D13) -> BBVA | D13: =IF(D12="","","1er Año") -> 1er Año | E13: =IF(E12="","",(VLOOKUP(B13,'TDPrimas Vida'!$B:$N,5,0))) -> 49674455.03 | F13: =IF(E12="","",(VLOOKUP(B13,'TDPrimas Vida'!$B:$N,6,0))) -> 41148639.24 | G13: =IFERROR((E13/VLOOKUP("TOTAL",$D$12:$L$312,2,0))*100,"") -> 15.92839419 | H13: =IFERROR((E13/VLOOKUP("TOTAL",$D$12:$L$312,3,0))*100,"") -> 17.56908143 | I13: =IF(E12="","",E13-F13) -> 8525815.798 | J13: =IF(E12="","",IFERROR((E13/F13-1)*100,"ND")) -> 20.71955709 | K13: =IF(E12="","",IFERROR((E13/VLOOKUP(B13&"|"&VLOOKUP(TDPrimas_!$B$4,Cat!R:T,2,0),'TD Operación'!A:D,4,0))*100,"ND")) -> 68.6168919 | L13: =IF(E12="","",(VLOOKUP(B13,'TDPrimas Vida'!$B:$N,7,0))) -> 20.71955709
B14: BBVA | D14: =IF(D13="","","Renovación") -> Renovación | E14: =IF(E12="","",(VLOOKUP(B14,'TDPrimas Vida'!$B:$N,8,0))) -> 4519824.909 | F14: =IF(E12="","",(VLOOKUP(B14,'TDPrimas Vida'!$B:$N,9,0))) -> 4086716.372 | G14: =IFERROR((E14/VLOOKUP("TOTAL",$D$12:$L$312,2,0))*100,"") -> 1.449307351 | H14: =IFERROR((E14/VLOOKUP("TOTAL",$D$12:$L$312,3,0))*100,"") -> 1.598591708 | I14: =IF(E12="","",E14-F14) -> 433108.5378 | J14: =IF(E12="","",IFERROR((E14/F14-1)*100,"ND")) -> 10.5979593 | K14: =IF(E13="","",IFERROR((E14/VLOOKUP(B14&"|"&VLOOKUP(TDPrimas_!$B$4,Cat!R:T,2,0),'TD Operación'!A:D,4,0))*100,"ND")) -> 6.243376741 | L14: =IF(E12="","",(VLOOKUP(B14,'TDPrimas Vida'!$B:$N,10,0))) -> 1.449307351
B15: BBVA | D15: =IF(D14="","","Únicas") -> Únicas | E15: =IF(E13="","",(VLOOKUP(B15,'TDPrimas Vida'!$B:$N,11,0))) -> 2034374.329 | F15: =IF(E13="","",(VLOOKUP(B15,'TDPrimas Vida'!$B:$N,12,0))) -> 2031655.684 | G15: =IFERROR((E15/VLOOKUP("TOTAL",$D$12:$L$312,2,0))*100,"") -> 0.6523336033 | H15: =IFERROR((E15/VLOOKUP("TOTAL",$D$12:$L$312,3,0))*100,"") -> 0.7195265298 | I15: =IF(E12="","",E15-F15) -> 2718.64542 | J15: =IF(E12="","",IFERROR((E15/F15-1)*100,"ND")) -> 0.1338142798 | K15: =IF(E14="","",IFERROR((E15/VLOOKUP(B15&"|"&VLOOKUP(TDPrimas_!$B$4,Cat!R:T,2,0),'TD Operación'!A:D,4,0))*100,"ND")) -> 2.810145442 | L15: =IF(E12="","",(VLOOKUP(B15,'TDPrimas Vida'!$B:$N,13,0))) -> 0.6523336033
B16: Metlife México | C16: =IF('TDPrimas Vida'!A8="","",'TDPrimas Vida'!A8) -> 2 | D16: =IF('TDPrimas Vida'!B8="","",'TDPrimas Vida'!B8) -> Metlife México | E16: =IF('TDPrimas Vida'!C8="","",'TDPrimas Vida'!C8) -> 39129855.74 | F16: =IF('TDPrimas Vida'!D8="","",'TDPrimas Vida'!D8) -> 39663455.94 | G16: =IF('TDPrimas Vida'!C8="","",IFERROR((E16/VLOOKUP("TOTAL",$D$12:$L$312,2,0))*100,"")) -> 12.54720895 | H16: =IF('TDPrimas Vida'!C8="","",IFERROR((E16/VLOOKUP("TOTAL",$D$12:$L$312,3,0))*100,"")) -> 13.83962082 | I16: =IF('TDPrimas Vida'!C8="","",E16-F16) -> -533600.2001 | J16: =IFERROR(IF('TDPrimas Vida'!C8="","",(E16/F16-1)*100),"ND") -> -1.345319482 | K16: =IF(E15="","",IFERROR((E16/VLOOKUP(B16&"|"&VLOOKUP(TDPrimas_!$B$4,Cat!R:T,2,0),'TD Operación'!A:D,4,0))*100,"ND")) -> 59.16517633 | L16: =IF('TDPrimas Vida'!E8="","",'TDPrimas Vida'!E8) -> 59.16517633
B17: Metlife México | D17: =IF(D16="","","1er Año") -> 1er Año | E17: =IF(E16="","",(VLOOKUP(B17,'TDPrimas Vida'!$B:$N,5,0))) -> 6936564.031 | F17: =IF(E16="","",(VLOOKUP(B17,'TDPrimas Vida'!$B:$N,6,0))) -> 7755131.062 | G17: =IFERROR((E17/VLOOKUP("TOTAL",$D$12:$L$312,2,0))*100,"") -> 2.224248381 | H17: =IFERROR((E17/VLOOKUP("TOTAL",$D$12:$L$312,3,0))*100,"") -> 2.453354712 | I17: =IF(E16="","",E17-F17) -> -818567.0309 | J17: =IF(E16="","",IFERROR((E17/F17-1)*100,"ND")) -> -10.55516695 | K17: =IF(E16="","",IFERROR((E17/VLOOKUP(B17&"|"&VLOOKUP(TDPrimas_!$B$4,Cat!R:T,2,0),'TD Operación'!A:D,4,0))*100,"ND")) -> 10.48823274 | L17: =IF(E16="","",(VLOOKUP(B17,'TDPrimas Vida'!$B:$N,7,0))) -> -10.55516695
B18: Metlife México | D18: =IF(D17="","","Renovación") -> Renovación | E18: =IF(E16="","",(VLOOKUP(B18,'TDPrimas Vida'!$B:$N,8,0))) -> 25978981.07 | F18: =IF(E16="","",(VLOOKUP(B18,'TDPrimas Vida'!$B:$N,9,0))) -> 25949915.17 | G18: =IFERROR((E18/VLOOKUP("TOTAL",$D$12:$L$312,2,0))*100,"") -> 8.330306812 | H18: =IFERROR((E18/VLOOKUP("TOTAL",$D$12:$L$312,3,0))*100,"") -> 9.188361175 | I18: =IF(E16="","",E18-F18) -> 29065.89845 | J18: =IF(E16="","",IFERROR((E18/F18-1)*100,"ND")) -> 0.1120076819 | K18: =IF(E17="","",IFERROR((E18/VLOOKUP(B18&"|"&VLOOKUP(TDPrimas_!$B$4,Cat!R:T,2,0),'TD Operación'!A:D,4,0))*100,"ND")) -> 39.28077338 | L18: =IF(E16="","",(VLOOKUP(B18,'TDPrimas Vida'!$B:$N,10,0))) -> 8.330306812
B19: Metlife México | D19: =IF(D18="","","Únicas") -> Únicas | E19: =IF(E17="","",(VLOOKUP(B19,'TDPrimas Vida'!$B:$N,11,0))) -> 6214310.642 | F19: =IF(E17="","",(VLOOKUP(B19,'TDPrimas Vida'!$B:$N,12,0))) -> 5958409.71 | G19: =IFERROR((E19/VLOOKUP("TOTAL",$D$12:$L$312,2,0))*100,"") -> 1.992653759 | H19: =IFERROR((E19/VLOOKUP("TOTAL",$D$12:$L$312,3,0))*100,"") -> 2.197904932 | I19: =IF(E16="","",E19-F19) -> 255900.9324 | J19: =IF(E16="","",IFERROR((E19/F19-1)*100,"ND")) -> 4.294785771 | K19: =IF(E18="","",IFERROR((E19/VLOOKUP(B19&"|"&VLOOKUP(TDPrimas_!$B$4,Cat!R:T,2,0),'TD Operación'!A:D,4,0))*100,"ND")) -> 9.396170211 | L19: =IF(E16="","",(VLOOKUP(B19,'TDPrimas Vida'!$B:$N,13,0))) -> 1.992653759
B20: =IF(C20="",B16,D20) -> Banamex Seguros | C20: =IF('TDPrimas Vida'!A9="","",'TDPrimas Vida'!A9) -> 3 | D20: =IF('TDPrimas Vida'!B9="","",'TDPrimas Vida'!B9) -> Banamex Seguros | E20: =IF('TDPrimas Vida'!C9="","",'TDPrimas Vida'!C9) -> 38266807.85 | F20: =IF('TDPrimas Vida'!D9="","",'TDPrimas Vida'!D9) -> 44150506.9 | G20: =IF('TDPrimas Vida'!C9="","",IFERROR((E20/VLOOKUP("TOTAL",$D$12:$L$312,2,0))*100,"")) -> 12.27046778 | H20: =IF('TDPrimas Vida'!C9="","",IFERROR((E20/VLOOKUP("TOTAL",$D$12:$L$312,3,0))*100,"")) -> 13.53437422 | I20: =IF('TDPrimas Vida'!C9="","",E20-F20) -> -5883699.043 | J20: =IFERROR(IF('TDPrimas Vida'!C9="","",(E20/F20-1)*100),"ND") -> -13.32645865 | K20: =IF(E19="","",IFERROR((E20/VLOOKUP(B20&"|"&VLOOKUP(TDPrimas_!$B$4,Cat!R:T,2,0),'TD Operación'!A:D,4,0))*100,"ND")) -> 98.23303783 | L20: =IF('TDPrimas Vida'!E9="","",'TDPrimas Vida'!E9) -> 98.23303783
B21: =IF(C21="",B20,D21) -> Banamex Seguros | D21: =IF(D20="","","1er Año") -> 1er Año | E21: =IF(E20="","",(VLOOKUP(B21,'TDPrimas Vida'!$B:$N,5,0))) -> 26663118.36 | F21: =IF(E20="","",(VLOOKUP(B21,'TDPrimas Vida'!$B:$N,6,0))) -> 30980312.04 | G21: =IFERROR((E21/VLOOKUP("TOTAL",$D$12:$L$312,2,0))*100,"") -> 8.549679293 | H21: =IFERROR((E21/VLOOKUP("TOTAL",$D$12:$L$312,3,0))*100,"") -> 9.430329884 | I21: =IF(E20="","",E21-F21) -> -4317193.674 | J21: =IF(E20="","",IFERROR((E21/F21-1)*100,"ND")) -> -13.93528144 | K21: =IF(E20="","",IFERROR((E21/VLOOKUP(B21&"|"&VLOOKUP(TDPrimas_!$B$4,Cat!R:T,2,0),'TD Operación'!A:D,4,0))*100,"ND")) -> 68.44571736 | L21: =IF(E20="","",(VLOOKUP(B21,'TDPrimas Vida'!$B:$N,7,0))) -> -13.93528144
B22: =IF(C22="",B21,D22) -> Banamex Seguros | D22: =IF(D21="","","Renovación") -> Renovación | E22: =IF(E20="","",(VLOOKUP(B22,'TDPrimas Vida'!$B:$N,8,0))) -> 11603689.49 | F22: =IF(E20="","",(VLOOKUP(B22,'TDPrimas Vida'!$B:$N,9,0))) -> 13170194.86 | G22: =IFERROR((E22/VLOOKUP("TOTAL",$D$12:$L$312,2,0))*100,"") -> 3.720788485 | H22: =IFERROR((E22/VLOOKUP("TOTAL",$D$12:$L$312,3,0))*100,"") -> 4.104044332 | I22: =IF(E20="","",E22-F22) -> -1566505.37 | J22: =IF(E20="","",IFERROR((E22/F22-1)*100,"ND")) -> -11.89432188 | K22: =IF(E21="","",IFERROR((E22/VLOOKUP(B22&"|"&VLOOKUP(TDPrimas_!$B$4,Cat!R:T,2,0),'TD Operación'!A:D,4,0))*100,"ND")) -> 29.78732047 | L22: =IF(E20="","",(VLOOKUP(B22,'TDPrimas Vida'!$B:$N,10,0))) -> 3.720788485
B23: =IF(C23="",B22,D23) -> Banamex Seguros | D23: =IF(D22="","","Únicas") -> Únicas | E23: =IF(E21="","",(VLOOKUP(B23,'TDPrimas Vida'!$B:$N,11,0))) -> 0 | F23: =IF(E21="","",(VLOOKUP(B23,'TDPrimas Vida'!$B:$N,12,0))) -> 0 | G23: =IFERROR((E23/VLOOKUP("TOTAL",$D$12:$L$312,2,0))*100,"") -> 0 | H23: =IFERROR((E23/VLOOKUP("TOTAL",$D$12:$L$312,3,0))*100,"") -> 0 | I23: =IF(E20="","",E23-F23) -> 0 | J23: =IF(E20="","",IFERROR((E23/F23-1)*100,"ND")) -> ND | K23: =IF(E22="","",IFERROR((E23/VLOOKUP(B23&"|"&VLOOKUP(TDPrimas_!$B$4,Cat!R:T,2,0),'TD Operación'!A:D,4,0))*100,"ND")) -> 0 | L23: =IF(E20="","",(VLOOKUP(B23,'TDPrimas Vida'!$B:$N,13,0))) -> 0
B24: =IF(C24="",B20,D24) -> G.N.P. | C24: =IF('TDPrimas Vida'!A10="","",'TDPrimas Vida'!A10) -> 4 | D24: =IF('TDPrimas Vida'!B10="","",'TDPrimas Vida'!B10) -> G.N.P. | E24: =IF('TDPrimas Vida'!C10="","",'TDPrimas Vida'!C10) -> 30445615.76 | F24: =IF('TDPrimas Vida'!D10="","",'TDPrimas Vida'!D10) -> 27770715.72 | G24: =IF('TDPrimas Vida'!C10="","",IFERROR((E24/VLOOKUP("TOTAL",$D$12:$L$312,2,0))*100,"")) -> 9.76255842 | H24: =IF('TDPrimas Vida'!C10="","",IFERROR((E24/VLOOKUP("TOTAL",$D$12:$L$312,3,0))*100,"")) -> 10.76814033 | I24: =IF('TDPrimas Vida'!C10="","",E24-F24) -> 2674900.042 | J24: =IFERROR(IF('TDPrimas Vida'!C10="","",(E24/F24-1)*100),"ND") -> 9.632088955 | K24: =IF(E23="","",IFERROR((E24/VLOOKUP(B24&"|"&VLOOKUP(TDPrimas_!$B$4,Cat!R:T,2,0),'TD Operación'!A:D,4,0))*100,"ND")) -> 31.98066169 | L24: =IF('TDPrimas Vida'!E10="","",'TDPrimas Vida'!E10) -> 31.98066169
B25: =IF(C25="",B24,D25) -> G.N.P. | D25: =IF(D24="","","1er Año") -> 1er Año | E25: =IF(E24="","",(VLOOKUP(B25,'TDPrimas Vida'!$B:$N,5,0))) -> 8097578.105 | F25: =IF(E24="","",(VLOOKUP(B25,'TDPrimas Vida'!$B:$N,6,0))) -> 8012105.836 | G25: =IFERROR((E25/VLOOKUP("TOTAL",$D$12:$L$312,2,0))*100,"") -> 2.596534093 | H25: =IFERROR((E25/VLOOKUP("TOTAL",$D$12:$L$312,3,0))*100,"") -> 2.863987316 | I25: =IF(E24="","",E25-F25) -> 85472.26836 | J25: =IF(E24="","",IFERROR((E25/F25-1)*100,"ND")) -> 1.066789058 | K25: =IF(E24="","",IFERROR((E25/VLOOKUP(B25&"|"&VLOOKUP(TDPrimas_!$B$4,Cat!R:T,2,0),'TD Operación'!A:D,4,0))*100,"ND")) -> 8.505852136 | L25: =IF(E24="","",(VLOOKUP(B25,'TDPrimas Vida'!$B:$N,7,0))) -> 1.066789058
B26: =IF(C26="",B25,D26) -> G.N.P. | D26: =IF(D25="","","Renovación") -> Renovación | E26: =IF(E24="","",(VLOOKUP(B26,'TDPrimas Vida'!$B:$N,8,0))) -> 15492083.7 | F26: =IF(E24="","",(VLOOKUP(B26,'TDPrimas Vida'!$B:$N,9,0))) -> 14075475.56 | G26: =IFERROR((E26/VLOOKUP("TOTAL",$D$12:$L$312,2,0))*100,"") -> 4.967624021 | H26: =IFERROR((E26/VLOOKUP("TOTAL",$D$12:$L$312,3,0))*100,"") -> 5.479308831 | I26: =IF(E24="","",E26-F26) -> 1416608.145 | J26: =IF(E24="","",IFERROR((E26/F26-1)*100,"ND")) -> 10.06437146 | K26: =IF(E25="","",IFERROR((E26/VLOOKUP(B26&"|"&VLOOKUP(TDPrimas_!$B$4,Cat!R:T,2,0),'TD Operación'!A:D,4,0))*100,"ND")) -> 16.27318336 | L26: =IF(E24="","",(VLOOKUP(B26,'TDPrimas Vida'!$B:$N,10,0))) -> 4.967624021
B27: =IF(C27="",B26,D27) -> G.N.P. | D27: =IF(D26="","","Únicas") -> Únicas | E27: =IF(E25="","",(VLOOKUP(B27,'TDPrimas Vida'!$B:$N,11,0))) -> 6855953.958 | F27: =IF(E25="","",(VLOOKUP(B27,'TDPrimas Vida'!$B:$N,12,0))) -> 5683134.33 | G27: =IFERROR((E27/VLOOKUP("TOTAL",$D$12:$L$312,2,0))*100,"") -> 2.198400307 | H27: =IFERROR((E27/VLOOKUP("TOTAL",$D$12:$L$312,3,0))*100,"") -> 2.424844184 | I27: =IF(E24="","",E27-F27) -> 1172819.628 | J27: =IF(E24="","",IFERROR((E27/F27-1)*100,"ND")) -> 20.63684509 | K27: =IF(E26="","",IFERROR((E27/VLOOKUP(B27&"|"&VLOOKUP(TDPrimas_!$B$4,Cat!R:T,2,0),'TD Operación'!A:D,4,0))*100,"ND")) -> 7.201626198 | L27: =IF(E24="","",(VLOOKUP(B27,'TDPrimas Vida'!$B:$N,13,0))) -> 2.198400307
B28: =IF(C28="",B24,D28) -> Banorte | C28: =IF('TDPrimas Vida'!A11="","",'TDPrimas Vida'!A11) -> 5 | D28: =IF('TDPrimas Vida'!B11="","",'TDPrimas Vida'!B11) -> Banorte | E28: =IF('TDPrimas Vida'!C11="","",'TDPrimas Vida'!C11) -> 29563865.44 | F28: =IF('TDPrimas Vida'!D11="","",'TDPrimas Vida'!D11) -> 22830842.83 | G28: =IF('TDPrimas Vida'!C11="","",IFERROR((E28/VLOOKUP("TOTAL",$D$12:$L$312,2,0))*100,"")) -> 9.479820206 | H28: =IF('TDPrimas Vida'!C11="","",IFERROR((E28/VLOOKUP("TOTAL",$D$12:$L$312,3,0))*100,"")) -> 10.45627897 | I28: =IF('TDPrimas Vida'!C11="","",E28-F28) -> 6733022.609 | J28: =IFERROR(IF('TDPrimas Vida'!C11="","",(E28/F28-1)*100),"ND") -> 29.49090692 | K28: =IF(E27="","",IFERROR((E28/VLOOKUP(B28&"|"&VLOOKUP(TDPrimas_!$B$4,Cat!R:T,2,0),'TD Operación'!A:D,4,0))*100,"ND")) -> 65.46612055 | L28: =IF('TDPrimas Vida'!E11="","",'TDPrimas Vida'!E11) -> 65.46612055
B29: =IF(C29="",B28,D29) -> Banorte | D29: =IF(D28="","","1er Año") -> 1er Año | E29: =IF(E28="","",(VLOOKUP(B29,'TDPrimas Vida'!$B:$N,5,0))) -> 5852113.592 | F29: =IF(E28="","",(VLOOKUP(B29,'TDPrimas Vida'!$B:$N,6,0))) -> 3558903.361 | G29: =IFERROR((E29/VLOOKUP("TOTAL",$D$12:$L$312,2,0))*100,"") -> 1.876513232 | H29: =IFERROR((E29/VLOOKUP("TOTAL",$D$12:$L$312,3,0))*100,"") -> 2.069801474 | I29: =IF(E28="","",E29-F29) -> 2293210.232 | J29: =IF(E28="","",IFERROR((E29/F29-1)*100,"ND")) -> 64.43586687 | K29: =IF(E28="","",IFERROR((E29/VLOOKUP(B29&"|"&VLOOKUP(TDPrimas_!$B$4,Cat!R:T,2,0),'TD Operación'!A:D,4,0))*100,"ND")) -> 12.95889993 | L29: =IF(E28="","",(VLOOKUP(B29,'TDPrimas Vida'!$B:$N,7,0))) -> 64.43586687
B30: =IF(C30="",B29,D30) -> Banorte | D30: =IF(D29="","","Renovación") -> Renovación | E30: =IF(E28="","",(VLOOKUP(B30,'TDPrimas Vida'!$B:$N,8,0))) -> 8832334.878 | F30: =IF(E28="","",(VLOOKUP(B30,'TDPrimas Vida'!$B:$N,9,0))) -> 10482700.72 | G30: =IFERROR((E30/VLOOKUP("TOTAL",$D$12:$L$312,2,0))*100,"") -> 2.832137997 | H30: =IFERROR((E30/VLOOKUP("TOTAL",$D$12:$L$312,3,0))*100,"") -> 3.123859348 | I30: =IF(E28="","",E30-F30) -> -1650365.845 | J30: =IF(E28="","",IFERROR((E30/F30-1)*100,"ND")) -> -15.7437085 | K30: =IF(E29="","",IFERROR((E30/VLOOKUP(B30&"|"&VLOOKUP(TDPrimas_!$B$4,Cat!R:T,2,0),'TD Operación'!A:D,4,0))*100,"ND")) -> 19.55829156 | L30: =IF(E28="","",(VLOOKUP(B30,'TDPrimas Vida'!$B:$N,10,0))) -> 2.832137997
B31: =IF(C31="",B30,D31) -> Banorte | D31: =IF(D30="","","Únicas") -> Únicas | E31: =IF(E29="","",(VLOOKUP(B31,'TDPrimas Vida'!$B:$N,11,0))) -> 14879416.97 | F31: =IF(E29="","",(VLOOKUP(B31,'TDPrimas Vida'!$B:$N,12,0))) -> 8789238.749 | G31: =IFERROR((E31/VLOOKUP("TOTAL",$D$12:$L$312,2,0))*100,"") -> 4.771168978 | H31: =IFERROR((E31/VLOOKUP("TOTAL",$D$12:$L$312,3,0))*100,"") -> 5.262618146 | I31: =IF(E28="","",E31-F31) -> 6090178.223 | J31: =IF(E28="","",IFERROR((E31/F31-1)*100,"ND")) -> 69.29130494 | K31: =IF(E30="","",IFERROR((E31/VLOOKUP(B31&"|"&VLOOKUP(TDPrimas_!$B$4,Cat!R:T,2,0),'TD Operación'!A:D,4,0))*100,"ND")) -> 32.94892906 | L31: =IF(E28="","",(VLOOKUP(B31,'TDPrimas Vida'!$B:$N,13,0))) -> 4.771168978
B32: =IF(C32="",B28,D32) -> TOTAL GRANDES | C32: =IF('TDPrimas Vida'!A12="","",'TDPrimas Vida'!A12) -> 5.1 | D32: =IF('TDPrimas Vida'!B12="","",'TDPrimas Vida'!B12) -> TOTAL GRANDES | E32: =IF('TDPrimas Vida'!C12="","",'TDPrimas Vida'!C12) -> 193634799.1 | F32: =IF('TDPrimas Vida'!D12="","",'TDPrimas Vida'!D12) -> 181682532.7 | G32: =IF('TDPrimas Vida'!C12="","",IFERROR((E32/VLOOKUP("TOTAL",$D$12:$L$312,2,0))*100,"")) -> 62.0900905 | H32: =IF('TDPrimas Vida'!C12="","",IFERROR((E32/VLOOKUP("TOTAL",$D$12:$L$312,3,0))*100,"")) -> 68.485614 | I32: =IF('TDPrimas Vida'!C12="","",E32-F32) -> 11952266.39 | J32: =IFERROR(IF('TDPrimas Vida'!C12="","",(E32/F32-1)*100),"ND") -> 6.578654652 | K32: =IF(E31="","",IFERROR((E32/VLOOKUP(B32&"|"&VLOOKUP(TDPrimas_!$B$4,Cat!R:T,2,0),'TD Operación'!A:D,4,0))*100,"ND")) -> 57.85608479 | L32: =IF('TDPrimas Vida'!E12="","",'TDPrimas Vida'!E12) -> 60.92118058
B33: =IF(C33="",B32,D33) -> TOTAL GRANDES | D33: =IF(D32="","","1er Año") -> 1er Año | E33: =IF(E32="","",(VLOOKUP(B33,'TDPrimas Vida'!$B:$N,5,0))) -> 97223829.12 | F33: =IF(E32="","",(VLOOKUP(B33,'TDPrimas Vida'!$B:$N,6,0))) -> 91455091.53 | G33: =IFERROR((E33/VLOOKUP("TOTAL",$D$12:$L$312,2,0))*100,"") -> 31.17536919 | H33: =IFERROR((E33/VLOOKUP("TOTAL",$D$12:$L$312,3,0))*100,"") -> 34.38655482 | I33: =IF(E32="","",E33-F33) -> 5768737.594 | J33: =IF(E32="","",IFERROR((E33/F33-1)*100,"ND")) -> 6.307727101 | K33: =IF(E32="","",IFERROR((E33/VLOOKUP(B33&"|"&VLOOKUP(TDPrimas_!$B$4,Cat!R:T,2,0),'TD Operación'!A:D,4,0))*100,"ND")) -> 29.04947937 | L33: =IF(E32="","",(VLOOKUP(B33,'TDPrimas Vida'!$B:$N,7,0))) -> 6.307727101
B34: =IF(C34="",B33,D34) -> TOTAL GRANDES | D34: =IF(D33="","","Renovación") -> Renovación | E34: =IF(E32="","",(VLOOKUP(B34,'TDPrimas Vida'!$B:$N,8,0))) -> 66426914.05 | F34: =IF(E32="","",(VLOOKUP(B34,'TDPrimas Vida'!$B:$N,9,0))) -> 67765002.69 | G34: =IFERROR((E34/VLOOKUP("TOTAL",$D$12:$L$312,2,0))*100,"") -> 21.30016466 | H34: =IFERROR((E34/VLOOKUP("TOTAL",$D$12:$L$312,3,0))*100,"") -> 23.49416539 | I34: =IF(E32="","",E34-F34) -> -1338088.633 | J34: =IF(E32="","",IFERROR((E34/F34-1)*100,"ND")) -> -1.974601314 | K34: =IF(E33="","",IFERROR((E34/VLOOKUP(B34&"|"&VLOOKUP(TDPrimas_!$B$4,Cat!R:T,2,0),'TD Operación'!A:D,4,0))*100,"ND")) -> 19.84767815 | L34: =IF(E32="","",(VLOOKUP(B34,'TDPrimas Vida'!$B:$N,10,0))) -> 21.30016466
B35: =IF(C35="",B34,D35) -> TOTAL GRANDES | D35: =IF(D34="","","Únicas") -> Únicas | E35: =IF(E33="","",(VLOOKUP(B35,'TDPrimas Vida'!$B:$N,11,0))) -> 29984055.9 | F35: =IF(E33="","",(VLOOKUP(B35,'TDPrimas Vida'!$B:$N,12,0))) -> 22462438.47 | G35: =IFERROR((E35/VLOOKUP("TOTAL",$D$12:$L$312,2,0))*100,"") -> 9.614556646 | H35: =IFERROR((E35/VLOOKUP("TOTAL",$D$12:$L$312,3,0))*100,"") -> 10.60489379 | I35: =IF(E32="","",E35-F35) -> 7521617.429 | J35: =IF(E32="","",IFERROR((E35/F35-1)*100,"ND")) -> 33.48531122 | K35: =IF(E34="","",IFERROR((E35/VLOOKUP(B35&"|"&VLOOKUP(TDPrimas_!$B$4,Cat!R:T,2,0),'TD Operación'!A:D,4,0))*100,"ND")) -> 8.958927263 | L35: =IF(E32="","",(VLOOKUP(B35,'TDPrimas Vida'!$B:$N,13,0))) -> 9.614556646
B36: =IF(C36="",B32,D36) -> Monterrey New York Life | C36: =IF('TDPrimas Vida'!A13="","",'TDPrimas Vida'!A13) -> 6 | D36: =IF('TDPrimas Vida'!B13="","",'TDPrimas Vida'!B13) -> Monterrey New York Life | E36: =IF('TDPrimas Vida'!C13="","",'TDPrimas Vida'!C13) -> 21337894.79 | F36: =IF('TDPrimas Vida'!D13="","",'TDPrimas Vida'!D13) -> 19843719.74 | G36: =IF('TDPrimas Vida'!C13="","",IFERROR((E36/VLOOKUP("TOTAL",$D$12:$L$312,2,0))*100,"")) -> 6.842116318 | H36: =IF('TDPrimas Vida'!C13="","",IFERROR((E36/VLOOKUP("TOTAL",$D$12:$L$312,3,0))*100,"")) -> 7.546881207 | I36: =IF('TDPrimas Vida'!C13="","",E36-F36) -> 1494175.05 | J36: =IFERROR(IF('TDPrimas Vida'!C13="","",(E36/F36-1)*100),"ND") -> 7.52971252 | K36: =IF(E35="","",IFERROR((E36/VLOOKUP(B36&"|"&VLOOKUP(TDPrimas_!$B$4,Cat!R:T,2,0),'TD Operación'!A:D,4,0))*100,"ND")) -> 64.13493705 | L36: =IF('TDPrimas Vida'!E13="","",'TDPrimas Vida'!E13) -> 64.13493705
B37: =IF(C37="",B36,D37) -> Monterrey New York Life | D37: =IF(D36="","","1er Año") -> 1er Año | E37: =IF(E36="","",(VLOOKUP(B37,'TDPrimas Vida'!$B:$N,5,0))) -> 2121513.165 | F37: =IF(E36="","",(VLOOKUP(B37,'TDPrimas Vida'!$B:$N,6,0))) -> 2132155.532 | G37: =IFERROR((E37/VLOOKUP("TOTAL",$D$12:$L$312,2,0))*100,"") -> 0.6802751624 | H37: =IFERROR((E37/VLOOKUP("TOTAL",$D$12:$L$312,3,0))*100,"") -> 0.7503461794 | I37: =IF(E36="","",E37-F37) -> -10642.36733 | J37: =IF(E36="","",IFERROR((E37/F37-1)*100,"ND")) -> -0.4991365391 | K37: =IF(E36="","",IFERROR((E37/VLOOKUP(B37&"|"&VLOOKUP(TDPrimas_!$B$4,Cat!R:T,2,0),'TD Operación'!A:D,4,0))*100,"ND")) -> 6.376595002 | L37: =IF(E36="","",(VLOOKUP(B37,'TDPrimas Vida'!$B:$N,7,0))) -> -0.4991365391
B38: =IF(C38="",B37,D38) -> Monterrey New York Life | D38: =IF(D37="","","Renovación") -> Renovación | E38: =IF(E36="","",(VLOOKUP(B38,'TDPrimas Vida'!$B:$N,8,0))) -> 14189062.94 | F38: =IF(E36="","",(VLOOKUP(B38,'TDPrimas Vida'!$B:$N,9,0))) -> 12812119.17 | G38: =IFERROR((E38/VLOOKUP("TOTAL",$D$12:$L$312,2,0))*100,"") -> 4.549803064 | H38: =IFERROR((E38/VLOOKUP("TOTAL",$D$12:$L$312,3,0))*100,"") -> 5.018450673 | I38: =IF(E36="","",E38-F38) -> 1376943.766 | J38: =IF(E36="","",IFERROR((E38/F38-1)*100,"ND")) -> 10.74719761 | K38: =IF(E37="","",IFERROR((E38/VLOOKUP(B38&"|"&VLOOKUP(TDPrimas_!$B$4,Cat!R:T,2,0),'TD Operación'!A:D,4,0))*100,"ND")) -> 42.64781823 | L38: =IF(E36="","",(VLOOKUP(B38,'TDPrimas Vida'!$B:$N,10,0))) -> 4.549803064
B39: =IF(C39="",B38,D39) -> Monterrey New York Life | D39: =IF(D38="","","Únicas") -> Únicas | E39: =IF(E37="","",(VLOOKUP(B39,'TDPrimas Vida'!$B:$N,11,0))) -> 5027318.683 | F39: =IF(E37="","",(VLOOKUP(B39,'TDPrimas Vida'!$B:$N,12,0))) -> 4899445.032 | G39: =IFERROR((E39/VLOOKUP("TOTAL",$D$12:$L$312,2,0))*100,"") -> 1.612038092 | H39: =IFERROR((E39/VLOOKUP("TOTAL",$D$12:$L$312,3,0))*100,"") -> 1.778084355 | I39: =IF(E36="","",E39-F39) -> 127873.6511 | J39: =IF(E36="","",IFERROR((E39/F39-1)*100,"ND")) -> 2.609961951 | K39: =IF(E38="","",IFERROR((E39/VLOOKUP(B39&"|"&VLOOKUP(TDPrimas_!$B$4,Cat!R:T,2,0),'TD Operación'!A:D,4,0))*100,"ND")) -> 15.11052381 | L39: =IF(E36="","",(VLOOKUP(B39,'TDPrimas Vida'!$B:$N,13,0))) -> 1.612038092
B40: =IF(C40="",B36,D40) -> Zurich Santander | C40: =IF('TDPrimas Vida'!A14="","",'TDPrimas Vida'!A14) -> 7 | D40: =IF('TDPrimas Vida'!B14="","",'TDPrimas Vida'!B14) -> Zurich Santander | E40: =IF('TDPrimas Vida'!C14="","",'TDPrimas Vida'!C14) -> 15562563.94 | F40: =IF('TDPrimas Vida'!D14="","",'TDPrimas Vida'!D14) -> 12172910.21 | G40: =IF('TDPrimas Vida'!C14="","",IFERROR((E40/VLOOKUP("TOTAL",$D$12:$L$312,2,0))*100,"")) -> 4.990223907 | H40: =IF('TDPrimas Vida'!C14="","",IFERROR((E40/VLOOKUP("TOTAL",$D$12:$L$312,3,0))*100,"")) -> 5.504236595 | I40: =IF('TDPrimas Vida'!C14="","",E40-F40) -> 3389653.738 | J40: =IFERROR(IF('TDPrimas Vida'!C14="","",(E40/F40-1)*100),"ND") -> 27.84587811 | K40: =IF(E39="","",IFERROR((E40/VLOOKUP(B40&"|"&VLOOKUP(TDPrimas_!$B$4,Cat!R:T,2,0),'TD Operación'!A:D,4,0))*100,"ND")) -> 78.45718898 | L40: =IF('TDPrimas Vida'!E14="","",'TDPrimas Vida'!E14) -> 78.45718898
B41: =IF(C41="",B40,D41) -> Zurich Santander | D41: =IF(D40="","","1er Año") -> 1er Año | E41: =IF(E40="","",(VLOOKUP(B41,'TDPrimas Vida'!$B:$N,5,0))) -> 8433793.991 | F41: =IF(E40="","",(VLOOKUP(B41,'TDPrimas Vida'!$B:$N,6,0))) -> 6561559.395 | G41: =IFERROR((E41/VLOOKUP("TOTAL",$D$12:$L$312,2,0))*100,"") -> 2.704343613 | H41: =IFERROR((E41/VLOOKUP("TOTAL",$D$12:$L$312,3,0))*100,"") -> 2.982901641 | I41: =IF(E40="","",E41-F41) -> 1872234.595 | J41: =IF(E40="","",IFERROR((E41/F41-1)*100,"ND")) -> 28.53337877 | K41: =IF(E40="","",IFERROR((E41/VLOOKUP(B41&"|"&VLOOKUP(TDPrimas_!$B$4,Cat!R:T,2,0),'TD Operación'!A:D,4,0))*100,"ND")) -> 42.5181719 | L41: =IF(E40="","",(VLOOKUP(B41,'TDPrimas Vida'!$B:$N,7,0))) -> 28.53337877
B42: =IF(C42="",B41,D42) -> Zurich Santander | D42: =IF(D41="","","Renovación") -> Renovación | E42: =IF(E40="","",(VLOOKUP(B42,'TDPrimas Vida'!$B:$N,8,0))) -> 2672325.279 | F42: =IF(E40="","",(VLOOKUP(B42,'TDPrimas Vida'!$B:$N,9,0))) -> 1042592.659 | G42: =IFERROR((E42/VLOOKUP("TOTAL",$D$12:$L$312,2,0))*100,"") -> 0.8568961737 | H42: =IFERROR((E42/VLOOKUP("TOTAL",$D$12:$L$312,3,0))*100,"") -> 0.9451598495 | I42: =IF(E40="","",E42-F42) -> 1629732.62 | J42: =IF(E40="","",IFERROR((E42/F42-1)*100,"ND")) -> 156.3153746 | K42: =IF(E41="","",IFERROR((E42/VLOOKUP(B42&"|"&VLOOKUP(TDPrimas_!$B$4,Cat!R:T,2,0),'TD Operación'!A:D,4,0))*100,"ND")) -> 13.47227425 | L42: =IF(E40="","",(VLOOKUP(B42,'TDPrimas Vida'!$B:$N,10,0))) -> 0.8568961737
B43: =IF(C43="",B42,D43) -> Zurich Santander | D43: =IF(D42="","","Únicas") -> Únicas | E43: =IF(E41="","",(VLOOKUP(B43,'TDPrimas Vida'!$B:$N,11,0))) -> 4456444.673 | F43: =IF(E41="","",(VLOOKUP(B43,'TDPrimas Vida'!$B:$N,12,0))) -> 4568758.151 | G43: =IFERROR((E43/VLOOKUP("TOTAL",$D$12:$L$312,2,0))*100,"") -> 1.428984121 | H43: =IFERROR((E43/VLOOKUP("TOTAL",$D$12:$L$312,3,0))*100,"") -> 1.576175105 | I43: =IF(E40="","",E43-F43) -> -112313.4777 | J43: =IF(E40="","",IFERROR((E43/F43-1)*100,"ND")) -> -2.458293347 | K43: =IF(E42="","",IFERROR((E43/VLOOKUP(B43&"|"&VLOOKUP(TDPrimas_!$B$4,Cat!R:T,2,0),'TD Operación'!A:D,4,0))*100,"ND")) -> 22.46674283 | L43: =IF(E40="","",(VLOOKUP(B43,'TDPrimas Vida'!$B:$N,13,0))) -> 1.428984121
B44: =IF(C44="",B40,D44) -> Allianz México | C44: =IF('TDPrimas Vida'!A15="","",'TDPrimas Vida'!A15) -> 8 | D44: =IF('TDPrimas Vida'!B15="","",'TDPrimas Vida'!B15) -> Allianz México | E44: =IF('TDPrimas Vida'!C15="","",'TDPrimas Vida'!C15) -> 15054124.88 | F44: =IF('TDPrimas Vida'!D15="","",'TDPrimas Vida'!D15) -> 11330570.54 | G44: =IF('TDPrimas Vida'!C15="","",IFERROR((E44/VLOOKUP("TOTAL",$D$12:$L$312,2,0))*100,"")) -> 4.827190053 | H44: =IF('TDPrimas Vida'!C15="","",IFERROR((E44/VLOOKUP("TOTAL",$D$12:$L$312,3,0))*100,"")) -> 5.324409612 | I44: =IF('TDPrimas Vida'!C15="","",E44-F44) -> 3723554.338 | J44: =IFERROR(IF('TDPrimas Vida'!C15="","",(E44/F44-1)*100),"ND") -> 32.8629024 | K44: =IF(E43="","",IFERROR((E44/VLOOKUP(B44&"|"&VLOOKUP(TDPrimas_!$B$4,Cat!R:T,2,0),'TD Operación'!A:D,4,0))*100,"ND")) -> 64.7885261 | L44: =IF('TDPrimas Vida'!E15="","",'TDPrimas Vida'!E15) -> 64.7885261
B45: =IF(C45="",B44,D45) -> Allianz México | D45: =IF(D44="","","1er Año") -> 1er Año | E45: =IF(E44="","",(VLOOKUP(B45,'TDPrimas Vida'!$B:$N,5,0))) -> 7359559.367 | F45: =IF(E44="","",(VLOOKUP(B45,'TDPrimas Vida'!$B:$N,6,0))) -> 4823953.166 | G45: =IFERROR((E45/VLOOKUP("TOTAL",$D$12:$L$312,2,0))*100,"") -> 2.359884222 | H45: =IFERROR((E45/VLOOKUP("TOTAL",$D$12:$L$312,3,0))*100,"") -> 2.602961578 | I45: =IF(E44="","",E45-F45) -> 2535606.201 | J45: =IF(E44="","",IFERROR((E45/F45-1)*100,"ND")) -> 52.56282791 | K45: =IF(E44="","",IFERROR((E45/VLOOKUP(B45&"|"&VLOOKUP(TDPrimas_!$B$4,Cat!R:T,2,0),'TD Operación'!A:D,4,0))*100,"ND")) -> 31.6733791 | L45: =IF(E44="","",(VLOOKUP(B45,'TDPrimas Vida'!$B:$N,7,0))) -> 52.56282791
B46: =IF(C46="",B45,D46) -> Allianz México | D46: =IF(D45="","","Renovación") -> Renovación | E46: =IF(E44="","",(VLOOKUP(B46,'TDPrimas Vida'!$B:$N,8,0))) -> 7694565.509 | F46: =IF(E44="","",(VLOOKUP(B46,'TDPrimas Vida'!$B:$N,9,0))) -> 6506617.372 | G46: =IFERROR((E46/VLOOKUP("TOTAL",$D$12:$L$312,2,0))*100,"") -> 2.467305831 | H46: =IFERROR((E46/VLOOKUP("TOTAL",$D$12:$L$312,3,0))*100,"") -> 2.721448035 | I46: =IF(E44="","",E46-F46) -> 1187948.136 | J46: =IF(E44="","",IFERROR((E46/F46-1)*100,"ND")) -> 18.25753796 | K46: =IF(E45="","",IFERROR((E46/VLOOKUP(B46&"|"&VLOOKUP(TDPrimas_!$B$4,Cat!R:T,2,0),'TD Operación'!A:D,4,0))*100,"ND")) -> 33.115147 | L46: =IF(E44="","",(VLOOKUP(B46,'TDPrimas Vida'!$B:$N,10,0))) -> 2.467305831
B47: =IF(C47="",B46,D47) -> Allianz México | D47: =IF(D46="","","Únicas") -> Únicas | E47: =IF(E45="","",(VLOOKUP(B47,'TDPrimas Vida'!$B:$N,11,0))) -> 0 | F47: =IF(E45="","",(VLOOKUP(B47,'TDPrimas Vida'!$B:$N,12,0))) -> 0 | G47: =IFERROR((E47/VLOOKUP("TOTAL",$D$12:$L$312,2,0))*100,"") -> 0 | H47: =IFERROR((E47/VLOOKUP("TOTAL",$D$12:$L$312,3,0))*100,"") -> 0 | I47: =IF(E44="","",E47-F47) -> 0 | J47: =IF(E44="","",IFERROR((E47/F47-1)*100,"ND")) -> ND | K47: =IF(E46="","",IFERROR((E47/VLOOKUP(B47&"|"&VLOOKUP(TDPrimas_!$B$4,Cat!R:T,2,0),'TD Operación'!A:D,4,0))*100,"ND")) -> 0 | L47: =IF(E44="","",(VLOOKUP(B47,'TDPrimas Vida'!$B:$N,13,0))) -> 0
B48: =IF(C48="",B44,D48) -> HSBC Seguros | C48: =IF('TDPrimas Vida'!A16="","",'TDPrimas Vida'!A16) -> 9 | D48: =IF('TDPrimas Vida'!B16="","",'TDPrimas Vida'!B16) -> HSBC Seguros | E48: =IF('TDPrimas Vida'!C16="","",'TDPrimas Vida'!C16) -> 12635644.15 | F48: =IF('TDPrimas Vida'!D16="","",'TDPrimas Vida'!D16) -> 12348930.74 | G48: =IF('TDPrimas Vida'!C16="","",IFERROR((E48/VLOOKUP("TOTAL",$D$12:$L$312,2,0))*100,"")) -> 4.051690565 | H48: =IF('TDPrimas Vida'!C16="","",IFERROR((E48/VLOOKUP("TOTAL",$D$12:$L$312,3,0))*100,"")) -> 4.469030628 | I48: =IF('TDPrimas Vida'!C16="","",E48-F48) -> 286713.4097 | J48: =IFERROR(IF('TDPrimas Vida'!C16="","",(E48/F48-1)*100),"ND") -> 2.321767089 | K48: =IF(E47="","",IFERROR((E48/VLOOKUP(B48&"|"&VLOOKUP(TDPrimas_!$B$4,Cat!R:T,2,0),'TD Operación'!A:D,4,0))*100,"ND")) -> 97.34849266 | L48: =IF('TDPrimas Vida'!E16="","",'TDPrimas Vida'!E16) -> 97.34849266
B49: =IF(C49="",B48,D49) -> HSBC Seguros | D49: =IF(D48="","","1er Año") -> 1er Año | E49: =IF(E48="","",(VLOOKUP(B49,'TDPrimas Vida'!$B:$N,5,0))) -> 9007583.858 | F49: =IF(E48="","",(VLOOKUP(B49,'TDPrimas Vida'!$B:$N,6,0))) -> 9691792.491 | G49: =IFERROR((E49/VLOOKUP("TOTAL",$D$12:$L$312,2,0))*100,"") -> 2.88833257 | H49: =IFERROR((E49/VLOOKUP("TOTAL",$D$12:$L$312,3,0))*100,"") -> 3.185842184 | I49: =IF(E48="","",E49-F49) -> -684208.6333 | J49: =IF(E48="","",IFERROR((E49/F49-1)*100,"ND")) -> -7.059670685 | K49: =IF(E48="","",IFERROR((E49/VLOOKUP(B49&"|"&VLOOKUP(TDPrimas_!$B$4,Cat!R:T,2,0),'TD Operación'!A:D,4,0))*100,"ND")) -> 69.39691408 | L49: =IF(E48="","",(VLOOKUP(B49,'TDPrimas Vida'!$B:$N,7,0))) -> -7.059670685
B50: =IF(C50="",B49,D50) -> HSBC Seguros | D50: =IF(D49="","","Renovación") -> Renovación | E50: =IF(E48="","",(VLOOKUP(B50,'TDPrimas Vida'!$B:$N,8,0))) -> 3628060.288 | F50: =IF(E48="","",(VLOOKUP(B50,'TDPrimas Vida'!$B:$N,9,0))) -> 2657138.245 | G50: =IFERROR((E50/VLOOKUP("TOTAL",$D$12:$L$312,2,0))*100,"") -> 1.163357995 | H50: =IFERROR((E50/VLOOKUP("TOTAL",$D$12:$L$312,3,0))*100,"") -> 1.283188444 | I50: =IF(E48="","",E50-F50) -> 970922.043 | J50: =IF(E48="","",IFERROR((E50/F50-1)*100,"ND")) -> 36.54014031 | K50: =IF(E49="","",IFERROR((E50/VLOOKUP(B50&"|"&VLOOKUP(TDPrimas_!$B$4,Cat!R:T,2,0),'TD Operación'!A:D,4,0))*100,"ND")) -> 27.95157859 | L50: =IF(E48="","",(VLOOKUP(B50,'TDPrimas Vida'!$B:$N,10,0))) -> 1.163357995
B51: =IF(C51="",B50,D51) -> HSBC Seguros | D51: =IF(D50="","","Únicas") -> Únicas | E51: =IF(E49="","",(VLOOKUP(B51,'TDPrimas Vida'!$B:$N,11,0))) -> 0 | F51: =IF(E49="","",(VLOOKUP(B51,'TDPrimas Vida'!$B:$N,12,0))) -> 0 | G51: =IFERROR((E51/VLOOKUP("TOTAL",$D$12:$L$312,2,0))*100,"") -> 0 | H51: =IFERROR((E51/VLOOKUP("TOTAL",$D$12:$L$312,3,0))*100,"") -> 0 | I51: =IF(E48="","",E51-F51) -> 0 | J51: =IF(E48="","",IFERROR((E51/F51-1)*100,"ND")) -> ND | K51: =IF(E50="","",IFERROR((E51/VLOOKUP(B51&"|"&VLOOKUP(TDPrimas_!$B$4,Cat!R:T,2,0),'TD Operación'!A:D,4,0))*100,"ND")) -> 0 | L51: =IF(E48="","",(VLOOKUP(B51,'TDPrimas Vida'!$B:$N,13,0))) -> 0
B52: =IF(C52="",B48,D52) -> Mapfre México | C52: =IF('TDPrimas Vida'!A17="","",'TDPrimas Vida'!A17) -> 10 | D52: =IF('TDPrimas Vida'!B17="","",'TDPrimas Vida'!B17) -> Mapfre México | E52: =IF('TDPrimas Vida'!C17="","",'TDPrimas Vida'!C17) -> 8712961.614 | F52: =IF('TDPrimas Vida'!D17="","",'TDPrimas Vida'!D17) -> 6620840.573 | G52: =IF('TDPrimas Vida'!C17="","",IFERROR((E52/VLOOKUP("TOTAL",$D$12:$L$312,2,0))*100,"")) -> 2.793860286 | H52: =IF('TDPrimas Vida'!C17="","",IFERROR((E52/VLOOKUP("TOTAL",$D$12:$L$312,3,0))*100,"")) -> 3.081638883 | I52: =IF('TDPrimas Vida'!C17="","",E52-F52) -> 2092121.041 | J52: =IFERROR(IF('TDPrimas Vida'!C17="","",(E52/F52-1)*100),"ND") -> 31.5990246 | K52: =IF(E51="","",IFERROR((E52/VLOOKUP(B52&"|"&VLOOKUP(TDPrimas_!$B$4,Cat!R:T,2,0),'TD Operación'!A:D,4,0))*100,"ND")) -> 28.39225553 | L52: =IF('TDPrimas Vida'!E17="","",'TDPrimas Vida'!E17) -> 28.39225553
B53: =IF(C53="",B52,D53) -> Mapfre México | D53: =IF(D52="","","1er Año") -> 1er Año | E53: =IF(E52="","",(VLOOKUP(B53,'TDPrimas Vida'!$B:$N,5,0))) -> 8016465.476 | F53: =IF(E52="","",(VLOOKUP(B53,'TDPrimas Vida'!$B:$N,6,0))) -> 5958559.392 | G53: =IFERROR((E53/VLOOKUP("TOTAL",$D$12:$L$312,2,0))*100,"") -> 2.570524871 | H53: =IFERROR((E53/VLOOKUP("TOTAL",$D$12:$L$312,3,0))*100,"") -> 2.835299042 | I53: =IF(E52="","",E53-F53) -> 2057906.084 | J53: =IF(E52="","",IFERROR((E53/F53-1)*100,"ND")) -> 34.5369736 | K53: =IF(E52="","",IFERROR((E53/VLOOKUP(B53&"|"&VLOOKUP(TDPrimas_!$B$4,Cat!R:T,2,0),'TD Operación'!A:D,4,0))*100,"ND")) -> 26.12263732 | L53: =IF(E52="","",(VLOOKUP(B53,'TDPrimas Vida'!$B:$N,7,0))) -> 34.5369736
B54: =IF(C54="",B53,D54) -> Mapfre México | D54: =IF(D53="","","Renovación") -> Renovación | E54: =IF(E52="","",(VLOOKUP(B54,'TDPrimas Vida'!$B:$N,8,0))) -> 678432.1205 | F54: =IF(E52="","",(VLOOKUP(B54,'TDPrimas Vida'!$B:$N,9,0))) -> 649554.4216 | G54: =IFERROR((E54/VLOOKUP("TOTAL",$D$12:$L$312,2,0))*100,"") -> 0.2175430861 | H54: =IFERROR((E54/VLOOKUP("TOTAL",$D$12:$L$312,3,0))*100,"") -> 0.2399508795 | I54: =IF(E52="","",E54-F54) -> 28877.69889 | J54: =IF(E52="","",IFERROR((E54/F54-1)*100,"ND")) -> 4.445770505 | K54: =IF(E53="","",IFERROR((E54/VLOOKUP(B54&"|"&VLOOKUP(TDPrimas_!$B$4,Cat!R:T,2,0),'TD Operación'!A:D,4,0))*100,"ND")) -> 2.210754388 | L54: =IF(E52="","",(VLOOKUP(B54,'TDPrimas Vida'!$B:$N,10,0))) -> 0.2175430861
B55: =IF(C55="",B54,D55) -> Mapfre México | D55: =IF(D54="","","Únicas") -> Únicas | E55: =IF(E53="","",(VLOOKUP(B55,'TDPrimas Vida'!$B:$N,11,0))) -> 18064.01737 | F55: =IF(E53="","",(VLOOKUP(B55,'TDPrimas Vida'!$B:$N,12,0))) -> 12726.75926 | G55: =IFERROR((E55/VLOOKUP("TOTAL",$D$12:$L$312,2,0))*100,"") -> 0.005792329058 | H55: =IFERROR((E55/VLOOKUP("TOTAL",$D$12:$L$312,3,0))*100,"") -> 0.00638896173 | I55: =IF(E52="","",E55-F55) -> 5337.25811 | J55: =IF(E52="","",IFERROR((E55/F55-1)*100,"ND")) -> 41.93729135 | K55: =IF(E54="","",IFERROR((E55/VLOOKUP(B55&"|"&VLOOKUP(TDPrimas_!$B$4,Cat!R:T,2,0),'TD Operación'!A:D,4,0))*100,"ND")) -> 0.05886381918 | L55: =IF(E52="","",(VLOOKUP(B55,'TDPrimas Vida'!$B:$N,13,0))) -> 0.005792329058
B56: =IF(C56="",B52,D56) -> AXA Seguros | C56: =IF('TDPrimas Vida'!A18="","",'TDPrimas Vida'!A18) -> 11 | D56: =IF('TDPrimas Vida'!B18="","",'TDPrimas Vida'!B18) -> AXA Seguros | E56: =IF('TDPrimas Vida'!C18="","",'TDPrimas Vida'!C18) -> 5107757.637 | F56: =IF('TDPrimas Vida'!D18="","",'TDPrimas Vida'!D18) -> 4864113.059 | G56: =IF('TDPrimas Vida'!C18="","",IFERROR((E56/VLOOKUP("TOTAL",$D$12:$L$312,2,0))*100,"")) -> 1.637831296 | H56: =IF('TDPrimas Vida'!C18="","",IFERROR((E56/VLOOKUP("TOTAL",$D$12:$L$312,3,0))*100,"")) -> 1.806534361 | I56: =IF('TDPrimas Vida'!C18="","",E56-F56) -> 243644.5773 | J56: =IFERROR(IF('TDPrimas Vida'!C18="","",(E56/F56-1)*100),"ND") -> 5.009023729 | K56: =IF(E55="","",IFERROR((E56/VLOOKUP(B56&"|"&VLOOKUP(TDPrimas_!$B$4,Cat!R:T,2,0),'TD Operación'!A:D,4,0))*100,"ND")) -> 10.17033006 | L56: =IF('TDPrimas Vida'!E18="","",'TDPrimas Vida'!E18) -> 10.17033006
B57: =IF(C57="",B56,D57) -> AXA Seguros | D57: =IF(D56="","","1er Año") -> 1er Año | E57: =IF(E56="","",(VLOOKUP(B57,'TDPrimas Vida'!$B:$N,5,0))) -> 1035477.46 | F57: =IF(E56="","",(VLOOKUP(B57,'TDPrimas Vida'!$B:$N,6,0))) -> 975787.5501 | G57: =IFERROR((E57/VLOOKUP("TOTAL",$D$12:$L$312,2,0))*100,"") -> 0.3320316881 | H57: =IFERROR((E57/VLOOKUP("TOTAL",$D$12:$L$312,3,0))*100,"") -> 0.3662322578 | I57: =IF(E56="","",E57-F57) -> 59689.91012 | J57: =IF(E56="","",IFERROR((E57/F57-1)*100,"ND")) -> 6.117101014 | K57: =IF(E56="","",IFERROR((E57/VLOOKUP(B57&"|"&VLOOKUP(TDPrimas_!$B$4,Cat!R:T,2,0),'TD Operación'!A:D,4,0))*100,"ND")) -> 2.061794684 | L57: =IF(E56="","",(VLOOKUP(B57,'TDPrimas Vida'!$B:$N,7,0))) -> 6.117101014
B58: =IF(C58="",B57,D58) -> AXA Seguros | D58: =IF(D57="","","Renovación") -> Renovación | E58: =IF(E56="","",(VLOOKUP(B58,'TDPrimas Vida'!$B:$N,8,0))) -> 4044028.269 | F58: =IF(E56="","",(VLOOKUP(B58,'TDPrimas Vida'!$B:$N,9,0))) -> 3865383.177 | G58: =IFERROR((E58/VLOOKUP("TOTAL",$D$12:$L$312,2,0))*100,"") -> 1.296740474 | H58: =IFERROR((E58/VLOOKUP("TOTAL",$D$12:$L$312,3,0))*100,"") -> 1.430309843 | I58: =IF(E56="","",E58-F58) -> 178645.0925 | J58: =IF(E56="","",IFERROR((E58/F58-1)*100,"ND")) -> 4.621665806 | K58: =IF(E57="","",IFERROR((E58/VLOOKUP(B58&"|"&VLOOKUP(TDPrimas_!$B$4,Cat!R:T,2,0),'TD Operación'!A:D,4,0))*100,"ND")) -> 8.05228149 | L58: =IF(E56="","",(VLOOKUP(B58,'TDPrimas Vida'!$B:$N,10,0))) -> 1.296740474
B59: =IF(C59="",B58,D59) -> AXA Seguros | D59: =IF(D58="","","Únicas") -> Únicas | E59: =IF(E57="","",(VLOOKUP(B59,'TDPrimas Vida'!$B:$N,11,0))) -> 28251.90731 | F59: =IF(E57="","",(VLOOKUP(B59,'TDPrimas Vida'!$B:$N,12,0))) -> 22942.33264 | G59: =IFERROR((E59/VLOOKUP("TOTAL",$D$12:$L$312,2,0))*100,"") -> 0.009059133431 | H59: =IFERROR((E59/VLOOKUP("TOTAL",$D$12:$L$312,3,0))*100,"") -> 0.009992259801 | I59: =IF(E56="","",E59-F59) -> 5309.57467 | J59: =IF(E56="","",IFERROR((E59/F59-1)*100,"ND")) -> 23.1431335 | K59: =IF(E58="","",IFERROR((E59/VLOOKUP(B59&"|"&VLOOKUP(TDPrimas_!$B$4,Cat!R:T,2,0),'TD Operación'!A:D,4,0))*100,"ND")) -> 0.05625388725 | L59: =IF(E56="","",(VLOOKUP(B59,'TDPrimas Vida'!$B:$N,13,0))) -> 0.009059133431
B60: =IF(C60="",B56,D60) -> Inbursa | C60: =IF('TDPrimas Vida'!A19="","",'TDPrimas Vida'!A19) -> 12 | D60: =IF('TDPrimas Vida'!B19="","",'TDPrimas Vida'!B19) -> Inbursa | E60: =IF('TDPrimas Vida'!C19="","",'TDPrimas Vida'!C19) -> 4831500.992 | F60: =IF('TDPrimas Vida'!D19="","",'TDPrimas Vida'!D19) -> 4347948.743 | G60: =IF('TDPrimas Vida'!C19="","",IFERROR((E60/VLOOKUP("TOTAL",$D$12:$L$312,2,0))*100,"")) -> 1.549248045 | H60: =IF('TDPrimas Vida'!C19="","",IFERROR((E60/VLOOKUP("TOTAL",$D$12:$L$312,3,0))*100,"")) -> 1.708826686 | I60: =IF('TDPrimas Vida'!C19="","",E60-F60) -> 483552.249 | J60: =IFERROR(IF('TDPrimas Vida'!C19="","",(E60/F60-1)*100),"ND") -> 11.12138798 | K60: =IF(E59="","",IFERROR((E60/VLOOKUP(B60&"|"&VLOOKUP(TDPrimas_!$B$4,Cat!R:T,2,0),'TD Operación'!A:D,4,0))*100,"ND")) -> 19.59674414 | L60: =IF('TDPrimas Vida'!E19="","",'TDPrimas Vida'!E19) -> 19.59674414
B61: =IF(C61="",B60,D61) -> Inbursa | D61: =IF(D60="","","1er Año") -> 1er Año | E61: =IF(E60="","",(VLOOKUP(B61,'TDPrimas Vida'!$B:$N,5,0))) -> 2800672.189 | F61: =IF(E60="","",(VLOOKUP(B61,'TDPrimas Vida'!$B:$N,6,0))) -> 2453837.008 | G61: =IFERROR((E61/VLOOKUP("TOTAL",$D$12:$L$312,2,0))*100,"") -> 0.8980513343 | H61: =IFERROR((E61/VLOOKUP("TOTAL",$D$12:$L$312,3,0))*100,"") -> 0.9905541535 | I61: =IF(E60="","",E61-F61) -> 346835.1815 | J61: =IF(E60="","",IFERROR((E61/F61-1)*100,"ND")) -> 14.13440177 | K61: =IF(E60="","",IFERROR((E61/VLOOKUP(B61&"|"&VLOOKUP(TDPrimas_!$B$4,Cat!R:T,2,0),'TD Operación'!A:D,4,0))*100,"ND")) -> 11.35962849 | L61: =IF(E60="","",(VLOOKUP(B61,'TDPrimas Vida'!$B:$N,7,0))) -> 14.13440177
B62: =IF(C62="",B61,D62) -> Inbursa | D62: =IF(D61="","","Renovación") -> Renovación | E62: =IF(E60="","",(VLOOKUP(B62,'TDPrimas Vida'!$B:$N,8,0))) -> 2030828.803 | F62: =IF(E60="","",(VLOOKUP(B62,'TDPrimas Vida'!$B:$N,9,0))) -> 1894111.736 | G62: =IFERROR((E62/VLOOKUP("TOTAL",$D$12:$L$312,2,0))*100,"") -> 0.6511967104 | H62: =IFERROR((E62/VLOOKUP("TOTAL",$D$12:$L$312,3,0))*100,"") -> 0.7182725325 | I62: =IF(E60="","",E62-F62) -> 136717.0674 | J62: =IF(E60="","",IFERROR((E62/F62-1)*100,"ND")) -> 7.218004348 | K62: =IF(E61="","",IFERROR((E62/VLOOKUP(B62&"|"&VLOOKUP(TDPrimas_!$B$4,Cat!R:T,2,0),'TD Operación'!A:D,4,0))*100,"ND")) -> 8.237115652 | L62: =IF(E60="","",(VLOOKUP(B62,'TDPrimas Vida'!$B:$N,10,0))) -> 0.6511967104
B63: =IF(C63="",B62,D63) -> Inbursa | D63: =IF(D62="","","Únicas") -> Únicas | E63: =IF(E61="","",(VLOOKUP(B63,'TDPrimas Vida'!$B:$N,11,0))) -> 0 | F63: =IF(E61="","",(VLOOKUP(B63,'TDPrimas Vida'!$B:$N,12,0))) -> 0 | G63: =IFERROR((E63/VLOOKUP("TOTAL",$D$12:$L$312,2,0))*100,"") -> 0 | H63: =IFERROR((E63/VLOOKUP("TOTAL",$D$12:$L$312,3,0))*100,"") -> 0 | I63: =IF(E60="","",E63-F63) -> 0 | J63: =IF(E60="","",IFERROR((E63/F63-1)*100,"ND")) -> ND | K63: =IF(E62="","",IFERROR((E63/VLOOKUP(B63&"|"&VLOOKUP(TDPrimas_!$B$4,Cat!R:T,2,0),'TD Operación'!A:D,4,0))*100,"ND")) -> 0 | L63: =IF(E60="","",(VLOOKUP(B63,'TDPrimas Vida'!$B:$N,13,0))) -> 0
B64: =IF(C64="",B60,D64) -> Patrimonial Vida | C64: =IF('TDPrimas Vida'!A20="","",'TDPrimas Vida'!A20) -> 13 | D64: =IF('TDPrimas Vida'!B20="","",'TDPrimas Vida'!B20) -> Patrimonial Vida | E64: =IF('TDPrimas Vida'!C20="","",'TDPrimas Vida'!C20) -> 4625465.06 | F64: =IF('TDPrimas Vida'!D20="","",'TDPrimas Vida'!D20) -> 2704976.959 | G64: =IF('TDPrimas Vida'!C20="","",IFERROR((E64/VLOOKUP("TOTAL",$D$12:$L$312,2,0))*100,"")) -> 1.483181461 | H64: =IF('TDPrimas Vida'!C20="","",IFERROR((E64/VLOOKUP("TOTAL",$D$12:$L$312,3,0))*100,"")) -> 1.635954984 | I64: =IF('TDPrimas Vida'!C20="","",E64-F64) -> 1920488.101 | J64: =IFERROR(IF('TDPrimas Vida'!C20="","",(E64/F64-1)*100),"ND") -> 70.99831645 | K64: =IF(E63="","",IFERROR((E64/VLOOKUP(B64&"|"&VLOOKUP(TDPrimas_!$B$4,Cat!R:T,2,0),'TD Operación'!A:D,4,0))*100,"ND")) -> 100 | L64: =IF('TDPrimas Vida'!E20="","",'TDPrimas Vida'!E20) -> 100
B65: =IF(C65="",B64,D65) -> Patrimonial Vida | D65: =IF(D64="","","1er Año") -> 1er Año | E65: =IF(E64="","",(VLOOKUP(B65,'TDPrimas Vida'!$B:$N,5,0))) -> 4625465.06 | F65: =IF(E64="","",(VLOOKUP(B65,'TDPrimas Vida'!$B:$N,6,0))) -> 2704976.959 | G65: =IFERROR((E65/VLOOKUP("TOTAL",$D$12:$L$312,2,0))*100,"") -> 1.483181461 | H65: =IFERROR((E65/VLOOKUP("TOTAL",$D$12:$L$312,3,0))*100,"") -> 1.635954984 | I65: =IF(E64="","",E65-F65) -> 1920488.101 | J65: =IF(E64="","",IFERROR((E65/F65-1)*100,"ND")) -> 70.99831645 | K65: =IF(E64="","",IFERROR((E65/VLOOKUP(B65&"|"&VLOOKUP(TDPrimas_!$B$4,Cat!R:T,2,0),'TD Operación'!A:D,4,0))*100,"ND")) -> 100 | L65: =IF(E64="","",(VLOOKUP(B65,'TDPrimas Vida'!$B:$N,7,0))) -> 70.99831645
B66: =IF(C66="",B65,D66) -> Patrimonial Vida | D66: =IF(D65="","","Renovación") -> Renovación | E66: =IF(E64="","",(VLOOKUP(B66,'TDPrimas Vida'!$B:$N,8,0))) -> 0 | F66: =IF(E64="","",(VLOOKUP(B66,'TDPrimas Vida'!$B:$N,9,0))) -> 0 | G66: =IFERROR((E66/VLOOKUP("TOTAL",$D$12:$L$312,2,0))*100,"") -> 0 | H66: =IFERROR((E66/VLOOKUP("TOTAL",$D$12:$L$312,3,0))*100,"") -> 0 | I66: =IF(E64="","",E66-F66) -> 0 | J66: =IF(E64="","",IFERROR((E66/F66-1)*100,"ND")) -> ND | K66: =IF(E65="","",IFERROR((E66/VLOOKUP(B66&"|"&VLOOKUP(TDPrimas_!$B$4,Cat!R:T,2,0),'TD Operación'!A:D,4,0))*100,"ND")) -> 0 | L66: =IF(E64="","",(VLOOKUP(B66,'TDPrimas Vida'!$B:$N,10,0))) -> 0
B67: =IF(C67="",B66,D67) -> Patrimonial Vida | D67: =IF(D66="","","Únicas") -> Únicas | E67: =IF(E65="","",(VLOOKUP(B67,'TDPrimas Vida'!$B:$N,11,0))) -> 0 | F67: =IF(E65="","",(VLOOKUP(B67,'TDPrimas Vida'!$B:$N,12,0))) -> 0 | G67: =IFERROR((E67/VLOOKUP("TOTAL",$D$12:$L$312,2,0))*100,"") -> 0 | H67: =IFERROR((E67/VLOOKUP("TOTAL",$D$12:$L$312,3,0))*100,"") -> 0 | I67: =IF(E64="","",E67-F67) -> 0 | J67: =IF(E64="","",IFERROR((E67/F67-1)*100,"ND")) -> ND | K67: =IF(E66="","",IFERROR((E67/VLOOKUP(B67&"|"&VLOOKUP(TDPrimas_!$B$4,Cat!R:T,2,0),'TD Operación'!A:D,4,0))*100,"ND")) -> 0 | L67: =IF(E64="","",(VLOOKUP(B67,'TDPrimas Vida'!$B:$N,13,0))) -> 0
B68: =IF(C68="",B64,D68) -> Hir Seguros | C68: =IF('TDPrimas Vida'!A21="","",'TDPrimas Vida'!A21) -> 14 | D68: =IF('TDPrimas Vida'!B21="","",'TDPrimas Vida'!B21) -> Hir Seguros | E68: =IF('TDPrimas Vida'!C21="","",'TDPrimas Vida'!C21) -> 4432707.575 | F68: =IF('TDPrimas Vida'!D21="","",'TDPrimas Vida'!D21) -> 3169415.947 | G68: =IF('TDPrimas Vida'!C21="","",IFERROR((E68/VLOOKUP("TOTAL",$D$12:$L$312,2,0))*100,"")) -> 1.421372686 | H68: =IF('TDPrimas Vida'!C21="","",IFERROR((E68/VLOOKUP("TOTAL",$D$12:$L$312,3,0))*100,"")) -> 1.567779663 | I68: =IF('TDPrimas Vida'!C21="","",E68-F68) -> 1263291.628 | J68: =IFERROR(IF('TDPrimas Vida'!C21="","",(E68/F68-1)*100),"ND") -> 39.85881467 | K68: =IF(E67="","",IFERROR((E68/VLOOKUP(B68&"|"&VLOOKUP(TDPrimas_!$B$4,Cat!R:T,2,0),'TD Operación'!A:D,4,0))*100,"ND")) -> 98.16791471 | L68: =IF('TDPrimas Vida'!E21="","",'TDPrimas Vida'!E21) -> 98.16791471
B69: =IF(C69="",B68,D69) -> Hir Seguros | D69: =IF(D68="","","1er Año") -> 1er Año | E69: =IF(E68="","",(VLOOKUP(B69,'TDPrimas Vida'!$B:$N,5,0))) -> 918803.4404 | F69: =IF(E68="","",(VLOOKUP(B69,'TDPrimas Vida'!$B:$N,6,0))) -> 846949.6512 | G69: =IFERROR((E69/VLOOKUP("TOTAL",$D$12:$L$312,2,0))*100,"") -> 0.2946195056 | H69: =IFERROR((E69/VLOOKUP("TOTAL",$D$12:$L$312,3,0))*100,"") -> 0.3249664733 | I69: =IF(E68="","",E69-F69) -> 71853.78918 | J69: =IF(E68="","",IFERROR((E69/F69-1)*100,"ND")) -> 8.483832431 | K69: =IF(E68="","",IFERROR((E69/VLOOKUP(B69&"|"&VLOOKUP(TDPrimas_!$B$4,Cat!R:T,2,0),'TD Operación'!A:D,4,0))*100,"ND")) -> 20.34806408 | L69: =IF(E68="","",(VLOOKUP(B69,'TDPrimas Vida'!$B:$N,7,0))) -> 8.483832431
B70: =IF(C70="",B69,D70) -> Hir Seguros | D70: =IF(D69="","","Renovación") -> Renovación | E70: =IF(E68="","",(VLOOKUP(B70,'TDPrimas Vida'!$B:$N,8,0))) -> 3513904.135 | F70: =IF(E68="","",(VLOOKUP(B70,'TDPrimas Vida'!$B:$N,9,0))) -> 2322466.296 | G70: =IFERROR((E70/VLOOKUP("TOTAL",$D$12:$L$312,2,0))*100,"") -> 1.126753181 | H70: =IFERROR((E70/VLOOKUP("TOTAL",$D$12:$L$312,3,0))*100,"") -> 1.242813189 | I70: =IF(E68="","",E70-F70) -> 1191437.839 | J70: =IF(E68="","",IFERROR((E70/F70-1)*100,"ND")) -> 51.30054379 | K70: =IF(E69="","",IFERROR((E70/VLOOKUP(B70&"|"&VLOOKUP(TDPrimas_!$B$4,Cat!R:T,2,0),'TD Operación'!A:D,4,0))*100,"ND")) -> 77.81985063 | L70: =IF(E68="","",(VLOOKUP(B70,'TDPrimas Vida'!$B:$N,10,0))) -> 1.126753181
B71: =IF(C71="",B70,D71) -> Hir Seguros | D71: =IF(D70="","","Únicas") -> Únicas | E71: =IF(E69="","",(VLOOKUP(B71,'TDPrimas Vida'!$B:$N,11,0))) -> 0 | F71: =IF(E69="","",(VLOOKUP(B71,'TDPrimas Vida'!$B:$N,12,0))) -> 0 | G71: =IFERROR((E71/VLOOKUP("TOTAL",$D$12:$L$312,2,0))*100,"") -> 0 | H71: =IFERROR((E71/VLOOKUP("TOTAL",$D$12:$L$312,3,0))*100,"") -> 0 | I71: =IF(E68="","",E71-F71) -> 0 | J71: =IF(E68="","",IFERROR((E71/F71-1)*100,"ND")) -> ND | K71: =IF(E70="","",IFERROR((E71/VLOOKUP(B71&"|"&VLOOKUP(TDPrimas_!$B$4,Cat!R:T,2,0),'TD Operación'!A:D,4,0))*100,"ND")) -> 0 | L71: =IF(E68="","",(VLOOKUP(B71,'TDPrimas Vida'!$B:$N,13,0))) -> 0
B72: =IF(C72="",B68,D72) -> Cardif Vida | C72: =IF('TDPrimas Vida'!A22="","",'TDPrimas Vida'!A22) -> 15 | D72: =IF('TDPrimas Vida'!B22="","",'TDPrimas Vida'!B22) -> Cardif Vida | E72: =IF('TDPrimas Vida'!C22="","",'TDPrimas Vida'!C22) -> 3609583.886 | F72: =IF('TDPrimas Vida'!D22="","",'TDPrimas Vida'!D22) -> 2488578.933 | G72: =IF('TDPrimas Vida'!C22="","",IFERROR((E72/VLOOKUP("TOTAL",$D$12:$L$312,2,0))*100,"")) -> 1.157433432 | H72: =IF('TDPrimas Vida'!C22="","",IFERROR((E72/VLOOKUP("TOTAL",$D$12:$L$312,3,0))*100,"")) -> 1.276653628 | I72: =IF('TDPrimas Vida'!C22="","",E72-F72) -> 1121004.952 | J72: =IFERROR(IF('TDPrimas Vida'!C22="","",(E72/F72-1)*100),"ND") -> 45.04598738 | K72: =IF(E71="","",IFERROR((E72/VLOOKUP(B72&"|"&VLOOKUP(TDPrimas_!$B$4,Cat!R:T,2,0),'TD Operación'!A:D,4,0))*100,"ND")) -> 98.42855903 | L72: =IF('TDPrimas Vida'!E22="","",'TDPrimas Vida'!E22) -> 98.42855903
B73: =IF(C73="",B72,D73) -> Cardif Vida | D73: =IF(D72="","","1er Año") -> 1er Año | E73: =IF(E72="","",(VLOOKUP(B73,'TDPrimas Vida'!$B:$N,5,0))) -> 2717912.81 | F73: =IF(E72="","",(VLOOKUP(B73,'TDPrimas Vida'!$B:$N,6,0))) -> 1640134.741 | G73: =IFERROR((E73/VLOOKUP("TOTAL",$D$12:$L$312,2,0))*100,"") -> 0.8715140728 | H73: =IFERROR((E73/VLOOKUP("TOTAL",$D$12:$L$312,3,0))*100,"") -> 0.9612834497 | I73: =IF(E72="","",E73-F73) -> 1077778.07 | J73: =IF(E72="","",IFERROR((E73/F73-1)*100,"ND")) -> 65.71277607 | K73: =IF(E72="","",IFERROR((E73/VLOOKUP(B73&"|"&VLOOKUP(TDPrimas_!$B$4,Cat!R:T,2,0),'TD Operación'!A:D,4,0))*100,"ND")) -> 74.11387295 | L73: =IF(E72="","",(VLOOKUP(B73,'TDPrimas Vida'!$B:$N,7,0))) -> 65.71277607
B74: =IF(C74="",B73,D74) -> Cardif Vida | D74: =IF(D73="","","Renovación") -> Renovación | E74: =IF(E72="","",(VLOOKUP(B74,'TDPrimas Vida'!$B:$N,8,0))) -> 172396.2489 | F74: =IF(E72="","",(VLOOKUP(B74,'TDPrimas Vida'!$B:$N,9,0))) -> 466899.9537 | G74: =IFERROR((E74/VLOOKUP("TOTAL",$D$12:$L$312,2,0))*100,"") -> 0.0552798296 | H74: =IFERROR((E74/VLOOKUP("TOTAL",$D$12:$L$312,3,0))*100,"") -> 0.06097386945 | I74: =IF(E72="","",E74-F74) -> -294503.7048 | J74: =IF(E72="","",IFERROR((E74/F74-1)*100,"ND")) -> -63.07640479 | K74: =IF(E73="","",IFERROR((E74/VLOOKUP(B74&"|"&VLOOKUP(TDPrimas_!$B$4,Cat!R:T,2,0),'TD Operación'!A:D,4,0))*100,"ND")) -> 4.701016766 | L74: =IF(E72="","",(VLOOKUP(B74,'TDPrimas Vida'!$B:$N,10,0))) -> 0.0552798296
B75: =IF(C75="",B74,D75) -> Cardif Vida | D75: =IF(D74="","","Únicas") -> Únicas | E75: =IF(E73="","",(VLOOKUP(B75,'TDPrimas Vida'!$B:$N,11,0))) -> 719274.8262 | F75: =IF(E73="","",(VLOOKUP(B75,'TDPrimas Vida'!$B:$N,12,0))) -> 381544.2388 | G75: =IFERROR((E75/VLOOKUP("TOTAL",$D$12:$L$312,2,0))*100,"") -> 0.23063953 | H75: =IFERROR((E75/VLOOKUP("TOTAL",$D$12:$L$312,3,0))*100,"") -> 0.2543963086 | I75: =IF(E72="","",E75-F75) -> 337730.5874 | J75: =IF(E72="","",IFERROR((E75/F75-1)*100,"ND")) -> 88.51675718 | K75: =IF(E74="","",IFERROR((E75/VLOOKUP(B75&"|"&VLOOKUP(TDPrimas_!$B$4,Cat!R:T,2,0),'TD Operación'!A:D,4,0))*100,"ND")) -> 19.61366931 | L75: =IF(E72="","",(VLOOKUP(B75,'TDPrimas Vida'!$B:$N,13,0))) -> 0.23063953
B76: =IF(C76="",B72,D76) -> TOTAL MEDIANAS | C76: =IF('TDPrimas Vida'!A23="","",'TDPrimas Vida'!A23) -> 15.1 | D76: =IF('TDPrimas Vida'!B23="","",'TDPrimas Vida'!B23) -> TOTAL MEDIANAS | E76: =IF('TDPrimas Vida'!C23="","",'TDPrimas Vida'!C23) -> 95910204.52 | F76: =IF('TDPrimas Vida'!D23="","",'TDPrimas Vida'!D23) -> 79892005.43 | G76: =IF('TDPrimas Vida'!C23="","",IFERROR((E76/VLOOKUP("TOTAL",$D$12:$L$312,2,0))*100,"")) -> 30.75414805 | H76: =IF('TDPrimas Vida'!C23="","",IFERROR((E76/VLOOKUP("TOTAL",$D$12:$L$312,3,0))*100,"")) -> 33.92194625 | I76: =IF('TDPrimas Vida'!C23="","",E76-F76) -> 16018199.08 | J76: =IFERROR(IF('TDPrimas Vida'!C23="","",(E76/F76-1)*100),"ND") -> 20.04981474 | K76: =IF(E75="","",IFERROR((E76/VLOOKUP(B76&"|"&VLOOKUP(TDPrimas_!$B$4,Cat!R:T,2,0),'TD Operación'!A:D,4,0))*100,"ND")) -> 35.32533333 | L76: =IF('TDPrimas Vida'!E23="","",'TDPrimas Vida'!E23) -> 46.17853957
B77: =IF(C77="",B76,D77) -> TOTAL MEDIANAS | D77: =IF(D76="","","1er Año") -> 1er Año | E77: =IF(E76="","",(VLOOKUP(B77,'TDPrimas Vida'!$B:$N,5,0))) -> 47037246.82 | F77: =IF(E76="","",(VLOOKUP(B77,'TDPrimas Vida'!$B:$N,6,0))) -> 37789705.88 | G77: =IFERROR((E77/VLOOKUP("TOTAL",$D$12:$L$312,2,0))*100,"") -> 15.0827585 | H77: =IFERROR((E77/VLOOKUP("TOTAL",$D$12:$L$312,3,0))*100,"") -> 16.63634194 | I77: =IF(E76="","",E77-F77) -> 9247540.932 | J77: =IF(E76="","",IFERROR((E77/F77-1)*100,"ND")) -> 24.47105823 | K77: =IF(E76="","",IFERROR((E77/VLOOKUP(B77&"|"&VLOOKUP(TDPrimas_!$B$4,Cat!R:T,2,0),'TD Operación'!A:D,4,0))*100,"ND")) -> 17.32460514 | L77: =IF(E76="","",(VLOOKUP(B77,'TDPrimas Vida'!$B:$N,7,0))) -> 24.47105823
B78: =IF(C78="",B77,D78) -> TOTAL MEDIANAS | D78: =IF(D77="","","Renovación") -> Renovación | E78: =IF(E76="","",(VLOOKUP(B78,'TDPrimas Vida'!$B:$N,8,0))) -> 38623603.59 | F78: =IF(E76="","",(VLOOKUP(B78,'TDPrimas Vida'!$B:$N,9,0))) -> 32216883.04 | G78: =IFERROR((E78/VLOOKUP("TOTAL",$D$12:$L$312,2,0))*100,"") -> 12.38487634 | H78: =IFERROR((E78/VLOOKUP("TOTAL",$D$12:$L$312,3,0))*100,"") -> 13.66056731 | I78: =IF(E76="","",E78-F78) -> 6406720.559 | J78: =IF(E76="","",IFERROR((E78/F78-1)*100,"ND")) -> 19.886221 | K78: =IF(E77="","",IFERROR((E78/VLOOKUP(B78&"|"&VLOOKUP(TDPrimas_!$B$4,Cat!R:T,2,0),'TD Operación'!A:D,4,0))*100,"ND")) -> 14.22571955 | L78: =IF(E76="","",(VLOOKUP(B78,'TDPrimas Vida'!$B:$N,10,0))) -> 12.38487634
B79: =IF(C79="",B78,D79) -> TOTAL MEDIANAS | D79: =IF(D78="","","Únicas") -> Únicas | E79: =IF(E77="","",(VLOOKUP(B79,'TDPrimas Vida'!$B:$N,11,0))) -> 10249354.11 | F79: =IF(E77="","",(VLOOKUP(B79,'TDPrimas Vida'!$B:$N,12,0))) -> 9885416.514 | G79: =IFERROR((E79/VLOOKUP("TOTAL",$D$12:$L$312,2,0))*100,"") -> 3.286513205 | H79: =IFERROR((E79/VLOOKUP("TOTAL",$D$12:$L$312,3,0))*100,"") -> 3.62503699 | I79: =IF(E76="","",E79-F79) -> 363937.5937 | J79: =IF(E76="","",IFERROR((E79/F79-1)*100,"ND")) -> 3.681560541 | K79: =IF(E78="","",IFERROR((E79/VLOOKUP(B79&"|"&VLOOKUP(TDPrimas_!$B$4,Cat!R:T,2,0),'TD Operación'!A:D,4,0))*100,"ND")) -> 3.775008635 | L79: =IF(E76="","",(VLOOKUP(B79,'TDPrimas Vida'!$B:$N,13,0))) -> 3.286513205
B80: =IF(C80="",B76,D80) -> Atlas | C80: =IF('TDPrimas Vida'!A24="","",'TDPrimas Vida'!A24) -> 16 | D80: =IF('TDPrimas Vida'!B24="","",'TDPrimas Vida'!B24) -> Atlas | E80: =IF('TDPrimas Vida'!C24="","",'TDPrimas Vida'!C24) -> 2615143.821 | F80: =IF('TDPrimas Vida'!D24="","",'TDPrimas Vida'!D24) -> 2689124.636 | G80: =IF('TDPrimas Vida'!C24="","",IFERROR((E80/VLOOKUP("TOTAL",$D$12:$L$312,2,0))*100,"")) -> 0.8385606166 | H80: =IF('TDPrimas Vida'!C24="","",IFERROR((E80/VLOOKUP("TOTAL",$D$12:$L$312,3,0))*100,"")) -> 0.9249356579 | I80: =IF('TDPrimas Vida'!C24="","",E80-F80) -> -73980.8156 | J80: =IFERROR(IF('TDPrimas Vida'!C24="","",(E80/F80-1)*100),"ND") -> -2.751111443 | K80: =IF(E79="","",IFERROR((E80/VLOOKUP(B80&"|"&VLOOKUP(TDPrimas_!$B$4,Cat!R:T,2,0),'TD Operación'!A:D,4,0))*100,"ND")) -> 14.54343121 | L80: =IF('TDPrimas Vida'!E24="","",'TDPrimas Vida'!E24) -> 14.54343121
B81: =IF(C81="",B80,D81) -> Atlas | D81: =IF(D80="","","1er Año") -> 1er Año | E81: =IF(E80="","",(VLOOKUP(B81,'TDPrimas Vida'!$B:$N,5,0))) -> 1885007.596 | F81: =IF(E80="","",(VLOOKUP(B81,'TDPrimas Vida'!$B:$N,6,0))) -> 2019159.802 | G81: =IFERROR((E81/VLOOKUP("TOTAL",$D$12:$L$312,2,0))*100,"") -> 0.6044383179 | H81: =IFERROR((E81/VLOOKUP("TOTAL",$D$12:$L$312,3,0))*100,"") -> 0.6666978417 | I81: =IF(E80="","",E81-F81) -> -134152.2058 | J81: =IF(E80="","",IFERROR((E81/F81-1)*100,"ND")) -> -6.643961795 | K81: =IF(E80="","",IFERROR((E81/VLOOKUP(B81&"|"&VLOOKUP(TDPrimas_!$B$4,Cat!R:T,2,0),'TD Operación'!A:D,4,0))*100,"ND")) -> 10.48297156 | L81: =IF(E80="","",(VLOOKUP(B81,'TDPrimas Vida'!$B:$N,7,0))) -> -6.643961795
B82: =IF(C82="",B81,D82) -> Atlas | D82: =IF(D81="","","Renovación") -> Renovación | E82: =IF(E80="","",(VLOOKUP(B82,'TDPrimas Vida'!$B:$N,8,0))) -> 654749.2422 | F82: =IF(E80="","",(VLOOKUP(B82,'TDPrimas Vida'!$B:$N,9,0))) -> 588315.5582 | G82: =IFERROR((E82/VLOOKUP("TOTAL",$D$12:$L$312,2,0))*100,"") -> 0.2099490376 | H82: =IFERROR((E82/VLOOKUP("TOTAL",$D$12:$L$312,3,0))*100,"") -> 0.2315746141 | I82: =IF(E80="","",E82-F82) -> 66433.68395 | J82: =IF(E80="","",IFERROR((E82/F82-1)*100,"ND")) -> 11.29218546 | K82: =IF(E81="","",IFERROR((E82/VLOOKUP(B82&"|"&VLOOKUP(TDPrimas_!$B$4,Cat!R:T,2,0),'TD Operación'!A:D,4,0))*100,"ND")) -> 3.641214868 | L82: =IF(E80="","",(VLOOKUP(B82,'TDPrimas Vida'!$B:$N,10,0))) -> 0.2099490376
B83: =IF(C83="",B82,D83) -> Atlas | D83: =IF(D82="","","Únicas") -> Únicas | E83: =IF(E81="","",(VLOOKUP(B83,'TDPrimas Vida'!$B:$N,11,0))) -> 75386.98253 | F83: =IF(E81="","",(VLOOKUP(B83,'TDPrimas Vida'!$B:$N,12,0))) -> 81649.27626 | G83: =IFERROR((E83/VLOOKUP("TOTAL",$D$12:$L$312,2,0))*100,"") -> 0.02417326116 | H83: =IFERROR((E83/VLOOKUP("TOTAL",$D$12:$L$312,3,0))*100,"") -> 0.02666320213 | I83: =IF(E80="","",E83-F83) -> -6262.29373 | J83: =IF(E80="","",IFERROR((E83/F83-1)*100,"ND")) -> -7.669747996 | K83: =IF(E82="","",IFERROR((E83/VLOOKUP(B83&"|"&VLOOKUP(TDPrimas_!$B$4,Cat!R:T,2,0),'TD Operación'!A:D,4,0))*100,"ND")) -> 0.4192447794 | L83: =IF(E80="","",(VLOOKUP(B83,'TDPrimas Vida'!$B:$N,13,0))) -> 0.02417326116
B84: =IF(C84="",B80,D84) -> Seguros Argos | C84: =IF('TDPrimas Vida'!A25="","",'TDPrimas Vida'!A25) -> 17 | D84: =IF('TDPrimas Vida'!B25="","",'TDPrimas Vida'!B25) -> Seguros Argos | E84: =IF('TDPrimas Vida'!C25="","",'TDPrimas Vida'!C25) -> 2607218.612 | F84: =IF('TDPrimas Vida'!D25="","",'TDPrimas Vida'!D25) -> 2553070.5 | G84: =IF('TDPrimas Vida'!C25="","",IFERROR((E84/VLOOKUP("TOTAL",$D$12:$L$312,2,0))*100,"")) -> 0.8360193538 | H84: =IF('TDPrimas Vida'!C25="","",IFERROR((E84/VLOOKUP("TOTAL",$D$12:$L$312,3,0))*100,"")) -> 0.9221326351 | I84: =IF('TDPrimas Vida'!C25="","",E84-F84) -> 54148.11197 | J84: =IFERROR(IF('TDPrimas Vida'!C25="","",(E84/F84-1)*100),"ND") -> 2.120901556 | K84: =IF(E83="","",IFERROR((E84/VLOOKUP(B84&"|"&VLOOKUP(TDPrimas_!$B$4,Cat!R:T,2,0),'TD Operación'!A:D,4,0))*100,"ND")) -> 100 | L84: =IF('TDPrimas Vida'!E25="","",'TDPrimas Vida'!E25) -> 100
B85: =IF(C85="",B84,D85) -> Seguros Argos | D85: =IF(D84="","","1er Año") -> 1er Año | E85: =IF(E84="","",(VLOOKUP(B85,'TDPrimas Vida'!$B:$N,5,0))) -> 1488028.641 | F85: =IF(E84="","",(VLOOKUP(B85,'TDPrimas Vida'!$B:$N,6,0))) -> 739442.1638 | G85: =IFERROR((E85/VLOOKUP("TOTAL",$D$12:$L$312,2,0))*100,"") -> 0.4771447768 | H85: =IFERROR((E85/VLOOKUP("TOTAL",$D$12:$L$312,3,0))*100,"") -> 0.5262925652 | I85: =IF(E84="","",E85-F85) -> 748586.477 | J85: =IF(E84="","",IFERROR((E85/F85-1)*100,"ND")) -> 101.2366502 | K85: =IF(E84="","",IFERROR((E85/VLOOKUP(B85&"|"&VLOOKUP(TDPrimas_!$B$4,Cat!R:T,2,0),'TD Operación'!A:D,4,0))*100,"ND")) -> 57.07341278 | L85: =IF(E84="","",(VLOOKUP(B85,'TDPrimas Vida'!$B:$N,7,0))) -> 101.2366502
B86: =IF(C86="",B85,D86) -> Seguros Argos | D86: =IF(D85="","","Renovación") -> Renovación | E86: =IF(E84="","",(VLOOKUP(B86,'TDPrimas Vida'!$B:$N,8,0))) -> 884377.6879 | F86: =IF(E84="","",(VLOOKUP(B86,'TDPrimas Vida'!$B:$N,9,0))) -> 1631523.427 | G86: =IFERROR((E86/VLOOKUP("TOTAL",$D$12:$L$312,2,0))*100,"") -> 0.2835806939 | H86: =IFERROR((E86/VLOOKUP("TOTAL",$D$12:$L$312,3,0))*100,"") -> 0.3127906206 | I86: =IF(E84="","",E86-F86) -> -747145.7393 | J86: =IF(E84="","",IFERROR((E86/F86-1)*100,"ND")) -> -45.79436169 | K86: =IF(E85="","",IFERROR((E86/VLOOKUP(B86&"|"&VLOOKUP(TDPrimas_!$B$4,Cat!R:T,2,0),'TD Operación'!A:D,4,0))*100,"ND")) -> 33.92035036 | L86: =IF(E84="","",(VLOOKUP(B86,'TDPrimas Vida'!$B:$N,10,0))) -> 0.2835806939
B87: =IF(C87="",B86,D87) -> Seguros Argos | D87: =IF(D86="","","Únicas") -> Únicas | E87: =IF(E85="","",(VLOOKUP(B87,'TDPrimas Vida'!$B:$N,11,0))) -> 234812.2836 | F87: =IF(E85="","",(VLOOKUP(B87,'TDPrimas Vida'!$B:$N,12,0))) -> 182104.9094 | G87: =IFERROR((E87/VLOOKUP("TOTAL",$D$12:$L$312,2,0))*100,"") -> 0.07529388316 | H87: =IFERROR((E87/VLOOKUP("TOTAL",$D$12:$L$312,3,0))*100,"") -> 0.08304944924 | I87: =IF(E84="","",E87-F87) -> 52707.3742 | J87: =IF(E84="","",IFERROR((E87/F87-1)*100,"ND")) -> 28.943412 | K87: =IF(E86="","",IFERROR((E87/VLOOKUP(B87&"|"&VLOOKUP(TDPrimas_!$B$4,Cat!R:T,2,0),'TD Operación'!A:D,4,0))*100,"ND")) -> 9.006236856 | L87: =IF(E84="","",(VLOOKUP(B87,'TDPrimas Vida'!$B:$N,13,0))) -> 0.07529388316
B88: =IF(C88="",B84,D88) -> Seguros Azteca | C88: =IF('TDPrimas Vida'!A26="","",'TDPrimas Vida'!A26) -> 18 | D88: =IF('TDPrimas Vida'!B26="","",'TDPrimas Vida'!B26) -> Seguros Azteca | E88: =IF('TDPrimas Vida'!C26="","",'TDPrimas Vida'!C26) -> 2355271.024 | F88: =IF('TDPrimas Vida'!D26="","",'TDPrimas Vida'!D26) -> 2404909.523 | G88: =IF('TDPrimas Vida'!C26="","",IFERROR((E88/VLOOKUP("TOTAL",$D$12:$L$312,2,0))*100,"")) -> 0.7552309386 | H88: =IF('TDPrimas Vida'!C26="","",IFERROR((E88/VLOOKUP("TOTAL",$D$12:$L$312,3,0))*100,"")) -> 0.8330226954 | I88: =IF('TDPrimas Vida'!C26="","",E88-F88) -> -49638.49878 | J88: =IFERROR(IF('TDPrimas Vida'!C26="","",(E88/F88-1)*100),"ND") -> -2.064048493 | K88: =IF(E87="","",IFERROR((E88/VLOOKUP(B88&"|"&VLOOKUP(TDPrimas_!$B$4,Cat!R:T,2,0),'TD Operación'!A:D,4,0))*100,"ND")) -> 86.28740289 | L88: =IF('TDPrimas Vida'!E26="","",'TDPrimas Vida'!E26) -> 86.28740289
B89: =IF(C89="",B88,D89) -> Seguros Azteca | D89: =IF(D88="","","1er Año") -> 1er Año | E89: =IF(E88="","",(VLOOKUP(B89,'TDPrimas Vida'!$B:$N,5,0))) -> 2243811.488 | F89: =IF(E88="","",(VLOOKUP(B89,'TDPrimas Vida'!$B:$N,6,0))) -> 2300793.277 | G89: =IFERROR((E89/VLOOKUP("TOTAL",$D$12:$L$312,2,0))*100,"") -> 0.7194908096 | H89: =IFERROR((E89/VLOOKUP("TOTAL",$D$12:$L$312,3,0))*100,"") -> 0.7936011925 | I89: =IF(E88="","",E89-F89) -> -56981.7891 | J89: =IF(E88="","",IFERROR((E89/F89-1)*100,"ND")) -> -2.476614899 | K89: =IF(E88="","",IFERROR((E89/VLOOKUP(B89&"|"&VLOOKUP(TDPrimas_!$B$4,Cat!R:T,2,0),'TD Operación'!A:D,4,0))*100,"ND")) -> 82.20398581 | L89: =IF(E88="","",(VLOOKUP(B89,'TDPrimas Vida'!$B:$N,7,0))) -> -2.476614899
B90: =IF(C90="",B89,D90) -> Seguros Azteca | D90: =IF(D89="","","Renovación") -> Renovación | E90: =IF(E88="","",(VLOOKUP(B90,'TDPrimas Vida'!$B:$N,8,0))) -> 6553.54553 | F90: =IF(E88="","",(VLOOKUP(B90,'TDPrimas Vida'!$B:$N,9,0))) -> 7030.48114 | G90: =IFERROR((E90/VLOOKUP("TOTAL",$D$12:$L$312,2,0))*100,"") -> 0.002101431339 | H90: =IFERROR((E90/VLOOKUP("TOTAL",$D$12:$L$312,3,0))*100,"") -> 0.002317887031 | I90: =IF(E88="","",E90-F90) -> -476.93561 | J90: =IF(E88="","",IFERROR((E90/F90-1)*100,"ND")) -> -6.783826036 | K90: =IF(E89="","",IFERROR((E90/VLOOKUP(B90&"|"&VLOOKUP(TDPrimas_!$B$4,Cat!R:T,2,0),'TD Operación'!A:D,4,0))*100,"ND")) -> 0.2400948416 | L90: =IF(E88="","",(VLOOKUP(B90,'TDPrimas Vida'!$B:$N,10,0))) -> 0.002101431339
B91: =IF(C91="",B90,D91) -> Seguros Azteca | D91: =IF(D90="","","Únicas") -> Únicas | E91: =IF(E89="","",(VLOOKUP(B91,'TDPrimas Vida'!$B:$N,11,0))) -> 104905.991 | F91: =IF(E89="","",(VLOOKUP(B91,'TDPrimas Vida'!$B:$N,12,0))) -> 97085.76502 | G91: =IFERROR((E91/VLOOKUP("TOTAL",$D$12:$L$312,2,0))*100,"") -> 0.03363869771 | H91: =IFERROR((E91/VLOOKUP("TOTAL",$D$12:$L$312,3,0))*100,"") -> 0.03710361586 | I91: =IF(E88="","",E91-F91) -> 7820.22593 | J91: =IF(E88="","",IFERROR((E91/F91-1)*100,"ND")) -> 8.054966584 | K91: =IF(E90="","",IFERROR((E91/VLOOKUP(B91&"|"&VLOOKUP(TDPrimas_!$B$4,Cat!R:T,2,0),'TD Operación'!A:D,4,0))*100,"ND")) -> 3.843322239 | L91: =IF(E88="","",(VLOOKUP(B91,'TDPrimas Vida'!$B:$N,13,0))) -> 0.03363869771
B92: =IF(C92="",B88,D92) -> Afirme | C92: =IF('TDPrimas Vida'!A27="","",'TDPrimas Vida'!A27) -> 19 | D92: =IF('TDPrimas Vida'!B27="","",'TDPrimas Vida'!B27) -> Afirme | E92: =IF('TDPrimas Vida'!C27="","",'TDPrimas Vida'!C27) -> 2234954.24 | F92: =IF('TDPrimas Vida'!D27="","",'TDPrimas Vida'!D27) -> 2131429.121 | G92: =IF('TDPrimas Vida'!C27="","",IFERROR((E92/VLOOKUP("TOTAL",$D$12:$L$312,2,0))*100,"")) -> 0.7166506829 | H92: =IF('TDPrimas Vida'!C27="","",IFERROR((E92/VLOOKUP("TOTAL",$D$12:$L$312,3,0))*100,"")) -> 0.7904685217 | I92: =IF('TDPrimas Vida'!C27="","",E92-F92) -> 103525.1189 | J92: =IFERROR(IF('TDPrimas Vida'!C27="","",(E92/F92-1)*100),"ND") -> 4.857075371 | K92: =IF(E91="","",IFERROR((E92/VLOOKUP(B92&"|"&VLOOKUP(TDPrimas_!$B$4,Cat!R:T,2,0),'TD Operación'!A:D,4,0))*100,"ND")) -> 39.9564681 | L92: =IF('TDPrimas Vida'!E27="","",'TDPrimas Vida'!E27) -> 39.9564681
B93: =IF(C93="",B92,D93) -> Afirme | D93: =IF(D92="","","1er Año") -> 1er Año | E93: =IF(E92="","",(VLOOKUP(B93,'TDPrimas Vida'!$B:$N,5,0))) -> 2234954.24 | F93: =IF(E92="","",(VLOOKUP(B93,'TDPrimas Vida'!$B:$N,6,0))) -> 2131429.121 | G93: =IFERROR((E93/VLOOKUP("TOTAL",$D$12:$L$312,2,0))*100,"") -> 0.7166506829 | H93: =IFERROR((E93/VLOOKUP("TOTAL",$D$12:$L$312,3,0))*100,"") -> 0.7904685217 | I93: =IF(E92="","",E93-F93) -> 103525.1189 | J93: =IF(E92="","",IFERROR((E93/F93-1)*100,"ND")) -> 4.857075371 | K93: =IF(E92="","",IFERROR((E93/VLOOKUP(B93&"|"&VLOOKUP(TDPrimas_!$B$4,Cat!R:T,2,0),'TD Operación'!A:D,4,0))*100,"ND")) -> 39.9564681 | L93: =IF(E92="","",(VLOOKUP(B93,'TDPrimas Vida'!$B:$N,7,0))) -> 4.857075371
B94: =IF(C94="",B93,D94) -> Afirme | D94: =IF(D93="","","Renovación") -> Renovación | E94: =IF(E92="","",(VLOOKUP(B94,'TDPrimas Vida'!$B:$N,8,0))) -> 0 | F94: =IF(E92="","",(VLOOKUP(B94,'TDPrimas Vida'!$B:$N,9,0))) -> 0 | G94: =IFERROR((E94/VLOOKUP("TOTAL",$D$12:$L$312,2,0))*100,"") -> 0 | H94: =IFERROR((E94/VLOOKUP("TOTAL",$D$12:$L$312,3,0))*100,"") -> 0 | I94: =IF(E92="","",E94-F94) -> 0 | J94: =IF(E92="","",IFERROR((E94/F94-1)*100,"ND")) -> ND | K94: =IF(E93="","",IFERROR((E94/VLOOKUP(B94&"|"&VLOOKUP(TDPrimas_!$B$4,Cat!R:T,2,0),'TD Operación'!A:D,4,0))*100,"ND")) -> 0 | L94: =IF(E92="","",(VLOOKUP(B94,'TDPrimas Vida'!$B:$N,10,0))) -> 0
B95: =IF(C95="",B94,D95) -> Afirme | D95: =IF(D94="","","Únicas") -> Únicas | E95: =IF(E93="","",(VLOOKUP(B95,'TDPrimas Vida'!$B:$N,11,0))) -> 0 | F95: =IF(E93="","",(VLOOKUP(B95,'TDPrimas Vida'!$B:$N,12,0))) -> 0 | G95: =IFERROR((E95/VLOOKUP("TOTAL",$D$12:$L$312,2,0))*100,"") -> 0 | H95: =IFERROR((E95/VLOOKUP("TOTAL",$D$12:$L$312,3,0))*100,"") -> 0 | I95: =IF(E92="","",E95-F95) -> 0 | J95: =IF(E92="","",IFERROR((E95/F95-1)*100,"ND")) -> ND | K95: =IF(E94="","",IFERROR((E95/VLOOKUP(B95&"|"&VLOOKUP(TDPrimas_!$B$4,Cat!R:T,2,0),'TD Operación'!A:D,4,0))*100,"ND")) -> 0 | L95: =IF(E92="","",(VLOOKUP(B95,'TDPrimas Vida'!$B:$N,13,0))) -> 0
B96: =IF(C96="",B92,D96) -> Thona | C96: =IF('TDPrimas Vida'!A28="","",'TDPrimas Vida'!A28) -> 20 | D96: =IF('TDPrimas Vida'!B28="","",'TDPrimas Vida'!B28) -> Thona | E96: =IF('TDPrimas Vida'!C28="","",'TDPrimas Vida'!C28) -> 1848324.338 | F96: =IF('TDPrimas Vida'!D28="","",'TDPrimas Vida'!D28) -> 1916423.751 | G96: =IF('TDPrimas Vida'!C28="","",IFERROR((E96/VLOOKUP("TOTAL",$D$12:$L$312,2,0))*100,"")) -> 0.5926756244 | H96: =IF('TDPrimas Vida'!C28="","",IFERROR((E96/VLOOKUP("TOTAL",$D$12:$L$312,3,0))*100,"")) -> 0.6537235445 | I96: =IF('TDPrimas Vida'!C28="","",E96-F96) -> -68099.41234 | J96: =IFERROR(IF('TDPrimas Vida'!C28="","",(E96/F96-1)*100),"ND") -> -3.553463179 | K96: =IF(E95="","",IFERROR((E96/VLOOKUP(B96&"|"&VLOOKUP(TDPrimas_!$B$4,Cat!R:T,2,0),'TD Operación'!A:D,4,0))*100,"ND")) -> 94.65841541 | L96: =IF('TDPrimas Vida'!E28="","",'TDPrimas Vida'!E28) -> 94.65841541
B97: =IF(C97="",B96,D97) -> Thona | D97: =IF(D96="","","1er Año") -> 1er Año | E97: =IF(E96="","",(VLOOKUP(B97,'TDPrimas Vida'!$B:$N,5,0))) -> 1848128.05 | F97: =IF(E96="","",(VLOOKUP(B97,'TDPrimas Vida'!$B:$N,6,0))) -> 1912984.862 | G97: =IFERROR((E97/VLOOKUP("TOTAL",$D$12:$L$312,2,0))*100,"") -> 0.5926126836 | H97: =IFERROR((E97/VLOOKUP("TOTAL",$D$12:$L$312,3,0))*100,"") -> 0.6536541205 | I97: =IF(E96="","",E97-F97) -> -64856.81134 | J97: =IF(E96="","",IFERROR((E97/F97-1)*100,"ND")) -> -3.390346293 | K97: =IF(E96="","",IFERROR((E97/VLOOKUP(B97&"|"&VLOOKUP(TDPrimas_!$B$4,Cat!R:T,2,0),'TD Operación'!A:D,4,0))*100,"ND")) -> 94.64836289 | L97: =IF(E96="","",(VLOOKUP(B97,'TDPrimas Vida'!$B:$N,7,0))) -> -3.390346293
B98: =IF(C98="",B97,D98) -> Thona | D98: =IF(D97="","","Renovación") -> Renovación | E98: =IF(E96="","",(VLOOKUP(B98,'TDPrimas Vida'!$B:$N,8,0))) -> 0 | F98: =IF(E96="","",(VLOOKUP(B98,'TDPrimas Vida'!$B:$N,9,0))) -> 0 | G98: =IFERROR((E98/VLOOKUP("TOTAL",$D$12:$L$312,2,0))*100,"") -> 0 | H98: =IFERROR((E98/VLOOKUP("TOTAL",$D$12:$L$312,3,0))*100,"") -> 0 | I98: =IF(E96="","",E98-F98) -> 0 | J98: =IF(E96="","",IFERROR((E98/F98-1)*100,"ND")) -> ND | K98: =IF(E97="","",IFERROR((E98/VLOOKUP(B98&"|"&VLOOKUP(TDPrimas_!$B$4,Cat!R:T,2,0),'TD Operación'!A:D,4,0))*100,"ND")) -> 0 | L98: =IF(E96="","",(VLOOKUP(B98,'TDPrimas Vida'!$B:$N,10,0))) -> 0
B99: =IF(C99="",B98,D99) -> Thona | D99: =IF(D98="","","Únicas") -> Únicas | E99: =IF(E97="","",(VLOOKUP(B99,'TDPrimas Vida'!$B:$N,11,0))) -> 196.288 | F99: =IF(E97="","",(VLOOKUP(B99,'TDPrimas Vida'!$B:$N,12,0))) -> 3438.889 | G99: =IFERROR((E99/VLOOKUP("TOTAL",$D$12:$L$312,2,0))*100,"") -> 6.294085434e-05 | H99: =IFERROR((E99/VLOOKUP("TOTAL",$D$12:$L$312,3,0))*100,"") -> 6.942400987e-05 | I99: =IF(E96="","",E99-F99) -> -3242.601 | J99: =IF(E96="","",IFERROR((E99/F99-1)*100,"ND")) -> -94.29211004 | K99: =IF(E98="","",IFERROR((E99/VLOOKUP(B99&"|"&VLOOKUP(TDPrimas_!$B$4,Cat!R:T,2,0),'TD Operación'!A:D,4,0))*100,"ND")) -> 0.01005251657 | L99: =IF(E96="","",(VLOOKUP(B99,'TDPrimas Vida'!$B:$N,13,0))) -> 6.294085434e-05
B100: =IF(C100="",B96,D100) -> Prudential | C100: =IF('TDPrimas Vida'!A29="","",'TDPrimas Vida'!A29) -> 21 | D100: =IF('TDPrimas Vida'!B29="","",'TDPrimas Vida'!B29) -> Prudential | E100: =IF('TDPrimas Vida'!C29="","",'TDPrimas Vida'!C29) -> 1828165.49 | F100: =IF('TDPrimas Vida'!D29="","",'TDPrimas Vida'!D29) -> 1558409.868 | G100: =IF('TDPrimas Vida'!C29="","",IFERROR((E100/VLOOKUP("TOTAL",$D$12:$L$312,2,0))*100,"")) -> 0.5862115761 | H100: =IF('TDPrimas Vida'!C29="","",IFERROR((E100/VLOOKUP("TOTAL",$D$12:$L$312,3,0))*100,"")) -> 0.6465936738 | I100: =IF('TDPrimas Vida'!C29="","",E100-F100) -> 269755.622 | J100: =IFERROR(IF('TDPrimas Vida'!C29="","",(E100/F100-1)*100),"ND") -> 17.30967106 | K100: =IF(E99="","",IFERROR((E100/VLOOKUP(B100&"|"&VLOOKUP(TDPrimas_!$B$4,Cat!R:T,2,0),'TD Operación'!A:D,4,0))*100,"ND")) -> 100 | L100: =IF('TDPrimas Vida'!E29="","",'TDPrimas Vida'!E29) -> 100
B101: =IF(C101="",B100,D101) -> Prudential | D101: =IF(D100="","","1er Año") -> 1er Año | E101: =IF(E100="","",(VLOOKUP(B101,'TDPrimas Vida'!$B:$N,5,0))) -> 363594.4171 | F101: =IF(E100="","",(VLOOKUP(B101,'TDPrimas Vida'!$B:$N,6,0))) -> 332712.2322 | G101: =IFERROR((E101/VLOOKUP("TOTAL",$D$12:$L$312,2,0))*100,"") -> 0.1165886007 | H101: =IFERROR((E101/VLOOKUP("TOTAL",$D$12:$L$312,3,0))*100,"") -> 0.128597685 | I101: =IF(E100="","",E101-F101) -> 30882.1849 | J101: =IF(E100="","",IFERROR((E101/F101-1)*100,"ND")) -> 9.28195056 | K101: =IF(E100="","",IFERROR((E101/VLOOKUP(B101&"|"&VLOOKUP(TDPrimas_!$B$4,Cat!R:T,2,0),'TD Operación'!A:D,4,0))*100,"ND")) -> 19.88848488 | L101: =IF(E100="","",(VLOOKUP(B101,'TDPrimas Vida'!$B:$N,7,0))) -> 9.28195056
B102: =IF(C102="",B101,D102) -> Prudential | D102: =IF(D101="","","Renovación") -> Renovación | E102: =IF(E100="","",(VLOOKUP(B102,'TDPrimas Vida'!$B:$N,8,0))) -> 1453163.774 | F102: =IF(E100="","",(VLOOKUP(B102,'TDPrimas Vida'!$B:$N,9,0))) -> 1210725.95 | G102: =IFERROR((E102/VLOOKUP("TOTAL",$D$12:$L$312,2,0))*100,"") -> 0.4659651607 | H102: =IFERROR((E102/VLOOKUP("TOTAL",$D$12:$L$312,3,0))*100,"") -> 0.5139614047 | I102: =IF(E100="","",E102-F102) -> 242437.8248 | J102: =IF(E100="","",IFERROR((E102/F102-1)*100,"ND")) -> 20.0241702 | K102: =IF(E101="","",IFERROR((E102/VLOOKUP(B102&"|"&VLOOKUP(TDPrimas_!$B$4,Cat!R:T,2,0),'TD Operación'!A:D,4,0))*100,"ND")) -> 79.48753994 | L102: =IF(E100="","",(VLOOKUP(B102,'TDPrimas Vida'!$B:$N,10,0))) -> 0.4659651607
B103: =IF(C103="",B102,D103) -> Prudential | D103: =IF(D102="","","Únicas") -> Únicas | E103: =IF(E101="","",(VLOOKUP(B103,'TDPrimas Vida'!$B:$N,11,0))) -> 11407.29888 | F103: =IF(E101="","",(VLOOKUP(B103,'TDPrimas Vida'!$B:$N,12,0))) -> 14971.68658 | G103: =IFERROR((E103/VLOOKUP("TOTAL",$D$12:$L$312,2,0))*100,"") -> 0.003657814728 | H103: =IFERROR((E103/VLOOKUP("TOTAL",$D$12:$L$312,3,0))*100,"") -> 0.00403458403 | I103: =IF(E100="","",E103-F103) -> -3564.3877 | J103: =IF(E100="","",IFERROR((E103/F103-1)*100,"ND")) -> -23.80752283 | K103: =IF(E102="","",IFERROR((E103/VLOOKUP(B103&"|"&VLOOKUP(TDPrimas_!$B$4,Cat!R:T,2,0),'TD Operación'!A:D,4,0))*100,"ND")) -> 0.6239751784 | L103: =IF(E100="","",(VLOOKUP(B103,'TDPrimas Vida'!$B:$N,13,0))) -> 0.003657814728
B104: =IF(C104="",B100,D104) -> Insignia Life | C104: =IF('TDPrimas Vida'!A30="","",'TDPrimas Vida'!A30) -> 22 | D104: =IF('TDPrimas Vida'!B30="","",'TDPrimas Vida'!B30) -> Insignia Life | E104: =IF('TDPrimas Vida'!C30="","",'TDPrimas Vida'!C30) -> 1793771.253 | F104: =IF('TDPrimas Vida'!D30="","",'TDPrimas Vida'!D30) -> 1484029.323 | G104: =IF('TDPrimas Vida'!C30="","",IFERROR((E104/VLOOKUP("TOTAL",$D$12:$L$312,2,0))*100,"")) -> 0.5751828697 | H104: =IF('TDPrimas Vida'!C30="","",IFERROR((E104/VLOOKUP("TOTAL",$D$12:$L$312,3,0))*100,"")) -> 0.6344289673 | I104: =IF('TDPrimas Vida'!C30="","",E104-F104) -> 309741.93 | J104: =IFERROR(IF('TDPrimas Vida'!C30="","",(E104/F104-1)*100),"ND") -> 20.8716853 | K104: =IF(E103="","",IFERROR((E104/VLOOKUP(B104&"|"&VLOOKUP(TDPrimas_!$B$4,Cat!R:T,2,0),'TD Operación'!A:D,4,0))*100,"ND")) -> 100 | L104: =IF('TDPrimas Vida'!E30="","",'TDPrimas Vida'!E30) -> 100
B105: =IF(C105="",B104,D105) -> Insignia Life | D105: =IF(D104="","","1er Año") -> 1er Año | E105: =IF(E104="","",(VLOOKUP(B105,'TDPrimas Vida'!$B:$N,5,0))) -> 518992.9527 | F105: =IF(E104="","",(VLOOKUP(B105,'TDPrimas Vida'!$B:$N,6,0))) -> 489787.2318 | G105: =IFERROR((E105/VLOOKUP("TOTAL",$D$12:$L$312,2,0))*100,"") -> 0.1664180176 | H105: =IFERROR((E105/VLOOKUP("TOTAL",$D$12:$L$312,3,0))*100,"") -> 0.1835597279 | I105: =IF(E104="","",E105-F105) -> 29205.72086 | J105: =IF(E104="","",IFERROR((E105/F105-1)*100,"ND")) -> 5.962940428 | K105: =IF(E104="","",IFERROR((E105/VLOOKUP(B105&"|"&VLOOKUP(TDPrimas_!$B$4,Cat!R:T,2,0),'TD Operación'!A:D,4,0))*100,"ND")) -> 28.93306222 | L105: =IF(E104="","",(VLOOKUP(B105,'TDPrimas Vida'!$B:$N,7,0))) -> 5.962940428
B106: =IF(C106="",B105,D106) -> Insignia Life | D106: =IF(D105="","","Renovación") -> Renovación | E106: =IF(E104="","",(VLOOKUP(B106,'TDPrimas Vida'!$B:$N,8,0))) -> 1275785.602 | F106: =IF(E104="","",(VLOOKUP(B106,'TDPrimas Vida'!$B:$N,9,0))) -> 995041.1295 | G106: =IFERROR((E106/VLOOKUP("TOTAL",$D$12:$L$312,2,0))*100,"") -> 0.4090878492 | H106: =IFERROR((E106/VLOOKUP("TOTAL",$D$12:$L$312,3,0))*100,"") -> 0.4512255064 | I106: =IF(E104="","",E106-F106) -> 280744.4723 | J106: =IF(E104="","",IFERROR((E106/F106-1)*100,"ND")) -> 28.21435859 | K106: =IF(E105="","",IFERROR((E106/VLOOKUP(B106&"|"&VLOOKUP(TDPrimas_!$B$4,Cat!R:T,2,0),'TD Operación'!A:D,4,0))*100,"ND")) -> 71.12309331 | L106: =IF(E104="","",(VLOOKUP(B106,'TDPrimas Vida'!$B:$N,10,0))) -> 0.4090878492
B107: =IF(C107="",B106,D107) -> Insignia Life | D107: =IF(D106="","","Únicas") -> Únicas | E107: =IF(E105="","",(VLOOKUP(B107,'TDPrimas Vida'!$B:$N,11,0))) -> -1007.30188 | F107: =IF(E105="","",(VLOOKUP(B107,'TDPrimas Vida'!$B:$N,12,0))) -> -799.03871 | G107: =IFERROR((E107/VLOOKUP("TOTAL",$D$12:$L$312,2,0))*100,"") -> -0.0003229970294 | H107: =IFERROR((E107/VLOOKUP("TOTAL",$D$12:$L$312,3,0))*100,"") -> -0.0003562669937 | I107: =IF(E104="","",E107-F107) -> -208.26317 | J107: =IF(E104="","",IFERROR((E107/F107-1)*100,"ND")) -> 26.06421534 | K107: =IF(E106="","",IFERROR((E107/VLOOKUP(B107&"|"&VLOOKUP(TDPrimas_!$B$4,Cat!R:T,2,0),'TD Operación'!A:D,4,0))*100,"ND")) -> -0.05615553703 | L107: =IF(E104="","",(VLOOKUP(B107,'TDPrimas Vida'!$B:$N,13,0))) -> -0.0003229970294
B108: =IF(C108="",B104,D108) -> Assurant Vida | C108: =IF('TDPrimas Vida'!A31="","",'TDPrimas Vida'!A31) -> 23 | D108: =IF('TDPrimas Vida'!B31="","",'TDPrimas Vida'!B31) -> Assurant Vida | E108: =IF('TDPrimas Vida'!C31="","",'TDPrimas Vida'!C31) -> 1204700.143 | F108: =IF('TDPrimas Vida'!D31="","",'TDPrimas Vida'!D31) -> 1097528.577 | G108: =IF('TDPrimas Vida'!C31="","",IFERROR((E108/VLOOKUP("TOTAL",$D$12:$L$312,2,0))*100,"")) -> 0.386293896 | H108: =IF('TDPrimas Vida'!C31="","",IFERROR((E108/VLOOKUP("TOTAL",$D$12:$L$312,3,0))*100,"")) -> 0.4260836864 | I108: =IF('TDPrimas Vida'!C31="","",E108-F108) -> 107171.5666 | J108: =IFERROR(IF('TDPrimas Vida'!C31="","",(E108/F108-1)*100),"ND") -> 9.764808764 | K108: =IF(E107="","",IFERROR((E108/VLOOKUP(B108&"|"&VLOOKUP(TDPrimas_!$B$4,Cat!R:T,2,0),'TD Operación'!A:D,4,0))*100,"ND")) -> 100 | L108: =IF('TDPrimas Vida'!E31="","",'TDPrimas Vida'!E31) -> 100
B109: =IF(C109="",B108,D109) -> Assurant Vida | D109: =IF(D108="","","1er Año") -> 1er Año | E109: =IF(E108="","",(VLOOKUP(B109,'TDPrimas Vida'!$B:$N,5,0))) -> 1198208.891 | F109: =IF(E108="","",(VLOOKUP(B109,'TDPrimas Vida'!$B:$N,6,0))) -> 1090377.486 | G109: =IFERROR((E109/VLOOKUP("TOTAL",$D$12:$L$312,2,0))*100,"") -> 0.3842124391 | H109: =IFERROR((E109/VLOOKUP("TOTAL",$D$12:$L$312,3,0))*100,"") -> 0.4237878313 | I109: =IF(E108="","",E109-F109) -> 107831.4045 | J109: =IF(E108="","",IFERROR((E109/F109-1)*100,"ND")) -> 9.889364542 | K109: =IF(E108="","",IFERROR((E109/VLOOKUP(B109&"|"&VLOOKUP(TDPrimas_!$B$4,Cat!R:T,2,0),'TD Operación'!A:D,4,0))*100,"ND")) -> 99.46117273 | L109: =IF(E108="","",(VLOOKUP(B109,'TDPrimas Vida'!$B:$N,7,0))) -> 9.889364542
B110: =IF(C110="",B109,D110) -> Assurant Vida | D110: =IF(D109="","","Renovación") -> Renovación | E110: =IF(E108="","",(VLOOKUP(B110,'TDPrimas Vida'!$B:$N,8,0))) -> 6491.25284 | F110: =IF(E108="","",(VLOOKUP(B110,'TDPrimas Vida'!$B:$N,9,0))) -> 7151.09067 | G110: =IFERROR((E110/VLOOKUP("TOTAL",$D$12:$L$312,2,0))*100,"") -> 0.002081456836 | H110: =IFERROR((E110/VLOOKUP("TOTAL",$D$12:$L$312,3,0))*100,"") -> 0.002295855076 | I110: =IF(E108="","",E110-F110) -> -659.83783 | J110: =IF(E108="","",IFERROR((E110/F110-1)*100,"ND")) -> -9.227093606 | K110: =IF(E109="","",IFERROR((E110/VLOOKUP(B110&"|"&VLOOKUP(TDPrimas_!$B$4,Cat!R:T,2,0),'TD Operación'!A:D,4,0))*100,"ND")) -> 0.5388272655 | L110: =IF(E108="","",(VLOOKUP(B110,'TDPrimas Vida'!$B:$N,10,0))) -> 0.002081456836
B111: =IF(C111="",B110,D111) -> Assurant Vida | D111: =IF(D110="","","Únicas") -> Únicas | E111: =IF(E109="","",(VLOOKUP(B111,'TDPrimas Vida'!$B:$N,11,0))) -> 0 | F111: =IF(E109="","",(VLOOKUP(B111,'TDPrimas Vida'!$B:$N,12,0))) -> 0 | G111: =IFERROR((E111/VLOOKUP("TOTAL",$D$12:$L$312,2,0))*100,"") -> 0 | H111: =IFERROR((E111/VLOOKUP("TOTAL",$D$12:$L$312,3,0))*100,"") -> 0 | I111: =IF(E108="","",E111-F111) -> 0 | J111: =IF(E108="","",IFERROR((E111/F111-1)*100,"ND")) -> ND | K111: =IF(E110="","",IFERROR((E111/VLOOKUP(B111&"|"&VLOOKUP(TDPrimas_!$B$4,Cat!R:T,2,0),'TD Operación'!A:D,4,0))*100,"ND")) -> 0 | L111: =IF(E108="","",(VLOOKUP(B111,'TDPrimas Vida'!$B:$N,13,0))) -> 0
